Workbook

Sheet Exh. ELJ-5 E Bill Impact
E1: AVISTA UTILITIES
E2: WASHINGTON ELECTRIC
E3: PRESENT AND PROPOSED RATE COMPONENTS BY SCHEDULE
D4: STAFF PROPOSED
A7: Schedule 001 Bill Impact
A11: Schedule 001 Present | G11: Schedule 001 Proposed
B12: Basic Charge | C12: Block 1 | D12: Block 2 | E12: Total Bill | G12: Basic Charge | H12: Block 1 | I12: Block 2 | J12: Total Bill | L12: Bill Impact | M12: % Change
B13: ='Exh. ELJ-5 E Bill Components'!D14 -> 9 | C13: ='Exh. ELJ-5 E Bill Components'!H16 -> 0.07858 | D13: ='Exh. ELJ-5 E Bill Components'!H17 -> 0.09182 | G13: ='Exh. ELJ-5 E Bill Components'!L14 -> 9 | H13: ='Exh. ELJ-5 E Bill Components'!L16 -> 0.08037 | I13: ='Exh. ELJ-5 E Bill Components'!L17 -> 0.0939
A14: 100 | B14: =$B$13 -> 9 | C14: =A14*$C$13 -> 7.858 | E14: =SUM(B14:D14) -> 16.858 | G14: =$G$13 -> 9 | H14: =A14*$H$13 -> 8.037 | J14: =SUM(G14:I14) -> 17.037 | L14: =J14-E14 -> 0.179 | M14: =L14/E14 -> 0.01061810416
A15: 200 | B15: =$B$13 -> 9 | C15: 15.716 | E15: =SUM(B15:D15) -> 24.716 | G15: =$G$13 -> 9 | H15: 16.074 | J15: =SUM(G15:I15) -> 25.074 | L15: =J15-E15 -> 0.358 | M15: =L15/E15 -> 0.01448454442
A16: 300 | B16: =$B$13 -> 9 | C16: 23.574 | E16: =SUM(B16:D16) -> 32.574 | G16: =$G$13 -> 9 | H16: 24.111 | J16: =SUM(G16:I16) -> 33.111 | L16: 0.537 | M16: =L16/E16 -> 0.01648554062
A17: 400 | B17: =$B$13 -> 9 | C17: 31.432 | E17: =SUM(B17:D17) -> 40.432 | G17: =$G$13 -> 9 | H17: 32.148 | J17: =SUM(G17:I17) -> 41.148 | L17: 0.716 | M17: =L17/E17 -> 0.01770874555
A18: 500 | B18: =$B$13 -> 9 | C18: 39.29 | E18: =SUM(B18:D18) -> 48.29 | G18: =$G$13 -> 9 | H18: 40.185 | J18: =SUM(G18:I18) -> 49.185 | L18: 0.895 | M18: =L18/E18 -> 0.01853385794
A19: 600 | B19: =$B$13 -> 9 | C19: 47.148 | E19: =SUM(B19:D19) -> 56.148 | G19: =$G$13 -> 9 | H19: 48.222 | J19: =SUM(G19:I19) -> 57.222 | L19: 1.074 | M19: =L19/E19 -> 0.01912801881
A20: 700 | B20: 9 | C20: 55.006 | E20: =SUM(B20:D20) -> 64.006 | G20: 9 | H20: 56.259 | J20: =SUM(G20:I20) -> 65.259 | L20: 1.253 | M20: =L20/E20 -> 0.01957628972
A21: 800 | B21: 9 | C21: 62.864 | E21: 71.864 | G21: 9 | H21: 64.296 | J21: 73.296 | L21: 1.432 | M21: 0.01992652789
A22: =ROUND('Pres & Prop Rev'!D46/'Pres & Prop Rev'!D48,0) -> 914 | B22: 9 | C22: =ROUND($C$21,2) -> 62.86 | D22: =ROUND((A22-$A$21)*$D$13,2) -> 10.47 | E22: 82.33 | G22: 9 | H22: =ROUND($H$21,2) -> 64.3 | I22: =ROUND((A22-$A$21)*$I$13,2) -> 10.7 | J22: =SUM(G22:I22) -> 84 | L22: 1.67 | M22: =L22/E22 -> 0.02028422203
A23: 1000 | B23: 9 | C23: =ROUND($C$21,2) -> 62.86 | D23: =ROUND((A23-$A$21)*$D$13,2) -> 18.36 | E23: 90.22 | G23: 9 | H23: =ROUND($H$21,2) -> 64.3 | I23: =ROUND((A23-$A$21)*$I$13,2) -> 18.78 | J23: 92.08 | L23: 1.86 | M23: 0.02061627134
A24: 1100 | B24: 9 | C24: =$C$21 -> 62.864 | D24: =(A24-$A$21)*$D$13 -> 27.546 | E24: =SUM(B24:D24) -> 99.41 | G24: 9 | H24: =$H$21 -> 64.296 | I24: =(A24-$A$21)*$I$13 -> 28.17 | J24: =SUM(G24:I24) -> 101.466 | L24: 2.056 | M24: =L24/E24 -> 0.02068202394
A25: 1200 | B25: 9 | C25: =$C$21 -> 62.864 | D25: =(A25-$A$21)*$D$13 -> 36.728 | E25: 108.592 | G25: 9 | H25: =$H$21 -> 64.296 | I25: =(A25-$A$21)*$I$13 -> 37.56 | J25: 110.856 | L25: 2.264 | M25: 0.0208486813
A26: 1300 | B26: 9 | C26: =$C$21 -> 62.864 | D26: =(A26-$A$21)*$D$13 -> 45.91 | E26: =SUM(B26:D26) -> 117.774 | G26: 9 | H26: =$H$21 -> 64.296 | I26: =(A26-$A$21)*$I$13 -> 46.95 | J26: =SUM(G26:I26) -> 120.246 | L26: 2.472 | M26: =L26/E26 -> 0.02098935249
A27: 1400 | B27: 9 | C27: =$C$21 -> 62.864 | D27: =(A27-$A$21)*$D$13 -> 55.092 | E27: =SUM(B27:D27) -> 126.956 | G27: 9 | H27: =$H$21 -> 64.296 | I27: =(A27-$A$21)*$I$13 -> 56.34 | J27: =SUM(G27:I27) -> 129.636 | L27: 2.68 | M27: =L27/E27 -> 0.02110967579
A28: 1500 | B28: 9 | C28: =$C$21 -> 62.864 | D28: =(A28-$A$21)*$D$13 -> 64.274 | E28: 136.138 | G28: 9 | H28: =$H$21 -> 64.296 | I28: =(A28-$A$21)*$I$13 -> 65.73 | J28: 139.026 | L28: 2.888 | M28: 0.02121376838
A31: Schedule 001 Bill Impact with Tax and AFDUC Credit
J32: Exh. BAE-8
H33: first 800 | J33: 0.003009650008
H34: 801-1500 | J34: 0.003501415602
H35: over 1500 | J35: 0.004105351295
A37: Schedule 001 Present | G37: Schedule 001 Proposed
B38: Basic Charge | C38: Block 1 | D38: Block 2 | E38: Total Bill | G38: Basic Charge | H38: Block 1 | I38: Block 2 | J38: Tax Credit | K38: Total Bill | M38: Bill Impact | N38: % Change
B39: 9 | C39: 0.07858 | D39: 0.09182 | G39: =G13 -> 9 | H39: =H13 -> 0.08037 | I39: =I13 -> 0.0939
A40: 100 | B40: =$B$39 -> 9 | C40: =A40*$C$39 -> 7.858 | E40: =SUM(B40:D40) -> 16.858 | G40: =$B$39 -> 9 | H40: =A40*$H$39 -> 8.037 | J40: =A40*$J$33 -> 0.3009650008 | K40: =SUM(G40:I40)-J40 -> 16.736035 | M40: =K40-E40 -> -0.1219650008 | N40: =M40/E40 -> -0.007234844039
A41: 200 | B41: 9 | C41: 15.716 | E41: =SUM(B41:D41) -> 24.716 | G41: 9 | H41: 16.074 | J41: 0.6019300016 | K41: =SUM(G41:I41)-J41 -> 24.47207 | M41: =K41-E41 -> -0.2439300016 | N41: =M41/E41 -> -0.009869315489
A42: 300 | B42: 9 | C42: 23.574 | E42: 32.574 | G42: 9 | H42: 24.111 | J42: 0.9028950024 | K42: 32.208105 | M42: -0.3658950024 | N42: -0.0112327317
A43: 400 | B43: 9 | C43: 31.432 | E43: 40.432 | G43: 9 | H43: 32.148 | J43: 1.203860003 | K43: 39.94414 | M43: -0.4878600033 | N43: -0.01206618528
A44: 500 | B44: 9 | C44: 39.29 | E44: 48.29 | G44: 9 | H44: 40.185 | J44: 1.504825004 | K44: 47.680175 | M44: -0.6098250041 | N44: -0.01262839106
A45: 600 | B45: 9 | C45: 47.148 | E45: 56.148 | G45: 9 | H45: 48.222 | J45: 1.805790005 | K45: 55.41621 | M45: -0.7317900049 | N45: -0.01303323368
A46: 700 | B46: 9 | C46: 55.006 | E46: 64.006 | G46: 9 | H46: 56.259 | J46: 2.106755006 | K46: 63.15224499 | M46: -0.8537550057 | N46: -0.01333867146
A47: 800 | B47: 9 | C47: 62.864 | E47: 71.864 | G47: 9 | H47: 64.296 | J47: 2.407720007 | K47: 70.88827999 | M47: -0.9757200065 | N47: -0.01357731279
A48: 914 | B48: 9 | C48: =ROUND($C$47,2) -> 62.86 | D48: =ROUND((A48-$A$47)*$D$39,2) -> 10.47 | E48: =SUM(B48:D48) -> 82.33 | G48: 9 | H48: =ROUND($H$47,2) -> 64.3 | I48: =ROUND((A48-$A$47)*$I$39,2) -> 10.7 | J48: =$J$47+((A48-800)*$J$34) -> 2.806881385 | K48: 81.19311861 | M48: -1.136881385 | N48: -0.013808835
A49: 1000 | B49: 9 | C49: 62.86 | D49: 18.36 | E49: =SUM(B49:D49) -> 90.22 | G49: 9 | H49: 64.3 | I49: 18.78 | J49: 3.108003127 | K49: 88.97199687 | M49: -1.248003127 | N49: -0.01383288769
A50: 1100 | B50: 9 | C50: 62.86 | D50: 27.55 | E50: 99.41 | G50: 9 | H50: 64.3 | I50: 28.17 | J50: 3.458144687 | K50: 98.01185531 | M50: -1.398144687 | N50: -0.01406442699
A51: 1200 | B51: 9 | C51: 62.86 | D51: 36.73 | E51: 108.59 | G51: 9 | H51: 64.3 | I51: 37.56 | J51: 3.808286248 | K51: 107.0517138 | M51: -1.538286248 | N51: -0.01416600283
A52: 1300 | B52: 9 | C52: 62.86 | D52: 45.91 | E52: 117.77 | G52: 9 | H52: 64.3 | I52: 46.95 | J52: 4.158427808 | K52: 116.0915722 | M52: -1.678427808 | N52: -0.01425174329
A53: 1400 | B53: 9 | C53: 62.86 | D53: 55.09 | E53: 126.95 | G53: 9 | H53: 64.3 | I53: 56.34 | J53: 4.508569368 | K53: 125.1314306 | M53: -1.818569368 | N53: -0.01432508364
A54: 1500 | B54: 9 | C54: 62.86 | D54: 64.27 | E54: 136.13 | G54: 9 | H54: 64.3 | I54: 65.73 | J54: 4.858710928 | K54: 134.1712891 | M54: -1.958710928 | N54: -0.01438853249

Sheet Exh. ELJ-5 E Bill Components
A1: AVISTA UTILITIES | R1: This worksheet uses Base & Billing rates from 'Rate Design' tab.
A2: WASHINGTON ELECTRIC
A3: PRESENT AND PROPOSED RATE COMPONENTS BY SCHEDULE
E4: STAFF PROPOSED
G9: Misc | J9: General | K9: Sch. 92 | L9: Proposed | M9: Proposed | N9: Sch. 98 | O9: Sch. 93/94 | P9: Proposed Billing
D10: Base Tariff | E10: Present | F10: Present | G10: Rate | H10: Adjusted | J10: Rate | K10: LIRAP Rate | L10: Billing | M10: Base Tariff | N10: REC Revenue | O10: ERM/BPA | P10: Rate With
A11: Type of Service | D11: Sch. Rate | E11: Other Adj.(1) | F11: Billing Rate | G11: Adjustment | H11: Billing Rate | J11: Inc/Dec | K11: Increase | L11: Rate | M11: Rate | N11: Decrease | O11: Increase | P11: ERM Decrease (2) | Q11: non-printing | T11: Present | U11: Proposed | V11: Proposed
B12: (a) | D12: (b) | E12: (c) | F12: (d) | G12: (e) | H12: (e) | J12: (e) | K12: (f) | L12: (g) | M12: (h) | N12: (h) | O12: (i) | P12: (j) | Q12: Base | R12: Billing | T12: Billing | U12: Base | V12: Billing
A13: Residential Service - Schedule 1
A14: Basic Charge | D14: ='Rate Design'!D4 -> 9 | E14: =F14-D14 -> 0 | F14: ='Rate Design'!D14 -> 9 | J14: =IF(ROUND(L14-F14,5)<>ROUND(M14-D14,5),#VALUE!,M14-D14) -> 0 | L14: ='Rate Design'!D36 -> 9 | M14: ='Rate Design'!D26 -> 9 | P14: =M14 -> 9 | Q14: =J14/D14 -> 0 | R14: =J14/F14 -> 0
A15: Energy Charge:
A16: ="First "&TEXT('Rate Design'!N5,"#,##0")&" kWhs" -> First 800 kWhs | D16: ='Rate Design'!D5/100 -> 0.08103 | E16: =F16-D16 -> -0.00245 | F16: ='Rate Design'!D15/100 -> 0.07858 | H16: =F16+G16 -> 0.07858 | J16: =M16-D16 -> 0.00179 | K16: 0 | L16: =F16+J16+K16 -> 0.08037 | M16: ='Rate Design'!D27/100 -> 0.08282 | N16: =#REF! ->  | O16: =0.00164+0.00083 -> 0.00247 | P16: =L16+N16+O16 ->  | Q16: =J16/D16 -> 0.02209058373 | R16: =(J16)/F16 -> 0.02277933316 | T16: =D16+E16-F16 -> 0 | U16: =D16+J16-M16 -> 0 | V16: =F16+G16+J16+K16-L16 -> 0
A17: =TEXT('Rate Design'!N5,"#,##0")&" - "&TEXT('Rate Design'!N6,"#,##0")&" kWhs" -> 800 - 1,500 kWhs | D17: ='Rate Design'!D6/100 -> 0.09427 | E17: =F17-D17 -> -0.00245 | F17: ='Rate Design'!D16/100 -> 0.09182 | H17: =F17+G17 -> 0.09182 | J17: =M17-D17 -> 0.00208 | K17: =K16 -> 0 | L17: =F17+J17+K17 -> 0.0939 | M17: ='Rate Design'!D28/100 -> 0.09635 | N17: =N16 ->  | O17: =O16 -> 0.00247 | P17: =L17+N17 ->  | Q17: =J17/D17 -> 0.02206428344 | R17: =(J17)/F17 -> 0.02265301677 | T17: =D17+E17-F17 -> 0 | U17: =D17+J17-M17 -> 0 | V17: =F17+G17+J17+K17-L17 -> 0
A18: ="All over "&TEXT('Rate Design'!N6,"#,##0")&" kWhs" -> All over 1,500 kWhs | D18: ='Rate Design'!D7/100 -> 0.11053 | E18: =F18-D18 -> -0.00245 | F18: ='Rate Design'!D17/100 -> 0.10808 | H18: =F18+G18 -> 0.10808 | J18: =M18-D18 -> 0.00244 | K18: =K16 -> 0 | L18: =F18+J18+K18 -> 0.11052 | M18: ='Rate Design'!D29/100 -> 0.11297 | N18: =N16 ->  | O18: =O16 -> 0.00247 | P18: =L18+N18 ->  | Q18: =J18/D18 -> 0.02207545463 | R18: =(J18)/F18 -> 0.02257586973 | T18: =D18+E18-F18 -> 0 | U18: =D18+J18-M18 -> 0 | V18: =F18+G18+J18+K18-L18 -> 0
A20: General Services - Schedule 11
A21: Basic Charge | D21: ='Rate Design'!E4 -> 20 | E21: =F21-D21 -> 0 | F21: ='Rate Design'!E14 -> 20 | J21: =IF(ROUND(L21-F21,5)<>ROUND(M21-D21,5),#VALUE!,M21-D21) -> 0 | L21: ='Rate Design'!E36 -> 20 | M21: ='Rate Design'!E26 -> 20 | P21: =M21 -> 20 | Q21: =J21/D21 -> 0 | R21: =J21/F21 -> 0
A22: Energy Charge:
A23: ="First "&TEXT('Rate Design'!O5,"#,##0")&" kWhs" -> First 3,650 kWhs | D23: ='Rate Design'!E5/100 -> 0.11686 | E23: =F23-D23 -> 0.00429 | F23: ='Rate Design'!E15/100 -> 0.12115 | H23: =F23+G23 -> 0.12115 | J23: =M23-D23 -> 0.00093 | K23: 0 | L23: =F23+J23+K23 -> 0.12208 | M23: ='Rate Design'!E27/100 -> 0.11779 | N23: =N16 ->  | O23: =O16 -> 0.00247 | P23: =L23+N23 ->  | Q23: =J23/D23 -> 0.00795824063 | R23: =(J23)/F23 -> 0.007676434173 | T23: =D23+E23-F23 -> 0 | U23: =D23+J23-M23 -> 0 | V23: =F23+G23+J23+K23-L23 -> 0
A24: ="All over "&TEXT('Rate Design'!O5,"#,##0")&" kWhs" -> All over 3,650 kWhs | D24: ='Rate Design'!E6/100 -> 0.08588 | E24: =F24-D24 -> 0.00429 | F24: ='Rate Design'!E16/100 -> 0.09017 | H24: =F24+G24 -> 0.09017 | J24: =M24-D24 -> 0.00068 | K24: =K23 -> 0 | L24: =F24+J24+K24 -> 0.09085 | M24: ='Rate Design'!E28/100 -> 0.08656 | N24: =N23 ->  | O24: =O23 -> 0.00247 | P24: =L24+N24 ->  | Q24: =J24/D24 -> 0.007918025151 | R24: =(J24)/F24 -> 0.007541310857 | T24: =D24+E24-F24 -> 0 | U24: =D24+J24-M24 -> 0 | V24: =F24+G24+J24+K24-L24 -> 0
A25: Demand Charge:
A26: =TEXT('Rate Design'!O10,"#,##0")&" kW or less" -> 20 kW or less | D26: no charge | F26: no charge | J26: no charge | M26: no charge | P26: no charge
A27: ="Over "&TEXT('Rate Design'!O10,"#,##0")&" kW" -> Over 20 kW | D27: ='Rate Design'!E10 -> 7 | E27: =F27-D27 -> 0 | F27: ='Rate Design'!E20 -> 7 | J27: =IF(ROUND(L27-F27,5)<>ROUND(M27-D27,5),#VALUE!,M27-D27) -> 0 | L27: ='Rate Design'!E42 -> 7 | M27: ='Rate Design'!E32 -> 7 | P27: ='Rate Design'!E32 -> 7 | Q27: =J27/D27 -> 0 | R27: =J27/F27 -> 0
A28: Minimums: | D28: $20.00 Single Phase Service | L28: $20.00 Single Phase Service
D29: $27.35 Three Phase Service | L29: $27.35 Three Phase Service
A31: Large General Service - Schedule 21
A32: Energy Charge:
A33: ="First "&TEXT('Rate Design'!P5,"#,##0")&" kWhs" -> First 250,000 kWhs | D33: ='Rate Design'!F5/100 -> 0.07535 | E33: =F33-D33 -> 0.00296 | F33: ='Rate Design'!F15/100 -> 0.07831 | H33: =F33+G33 -> 0.07831 | J33: =M33-D33 -> 0.00067 | K33: 0 | L33: =F33+J33+K33 -> 0.07898 | M33: ='Rate Design'!F27/100 -> 0.07602 | N33: =N16 ->  | O33: =O16 -> 0.00247 | P33: =L33+N33 ->  | Q33: =J33/D33 -> 0.008891838089 | R33: =(J33)/F33 -> 0.008555740008 | T33: =D33+E33-F33 -> 0 | U33: =D33+J33-M33 -> 0 | V33: =F33+G33+J33+K33-L33 -> 0
A34: ="All over "&TEXT('Rate Design'!P5,"#,##0")&" kWhs" -> All over 250,000 kWhs | D34: ='Rate Design'!F6/100 -> 0.06742 | E34: =F34-D34 -> 0.00296 | F34: ='Rate Design'!F16/100 -> 0.07038 | H34: =F34+G34 -> 0.07038 | J34: =M34-D34 -> 0.0006 | K34: =K33 -> 0 | L34: =F34+J34+K34 -> 0.07098 | M34: ='Rate Design'!F28/100 -> 0.06802 | N34: =N33 ->  | O34: =O33 -> 0.00247 | P34: =L34+N34 ->  | Q34: =J34/D34 -> 0.008899436369 | R34: =(J34)/F34 -> 0.00852514919 | T34: =D34+E34-F34 -> 0 | U34: =D34+J34-M34 -> 0 | V34: =F34+G34+J34+K34-L34 -> 0
A35: Demand Charge:
A36: =TEXT('Rate Design'!P10,"#,##0")&" kW or less" -> 50 kW or less | D36: ='Rate Design'!F9 -> 550 | E36: =F36-D36 -> 0 | F36: ='Rate Design'!F19 -> 550 | J36: =IF(ROUND(L36-F36,5)<>ROUND(M36-D36,5),#VALUE!,M36-D36) -> 0 | L36: ='Rate Design'!F41 -> 550 | M36: ='Rate Design'!F31 -> 550 | P36: =M36 -> 550 | Q36: =J36/D36 -> 0 | R36: =J36/F36 -> 0
A37: ="Over "&TEXT('Rate Design'!P10,"#,##0")&" kW" -> Over 50 kW | D37: ='Rate Design'!F10 -> 7 | E37: =F37-D37 -> 0 | F37: ='Rate Design'!F20 -> 7 | J37: =IF(ROUND(L37-F37,5)<>ROUND(M37-D37,5),#VALUE!,M37-D37) -> 0 | L37: ='Rate Design'!F42 -> 7 | M37: ='Rate Design'!F32 -> 7 | P37: ='Rate Design'!F32 -> 7 | Q37: =J37/D37 -> 0 | R37: =J37/F37 -> 0
A38: Primary Voltage Discount | D38: 0.2 | E38: =F38-D38 -> 0 | F38: 0.2 | J38: =IF(ROUND(L38-F38,5)<>ROUND(M38-D38,5),#VALUE!,M38-D38) -> 0 | L38: 0.2 | M38: 0.2 | P38: 0.2 | Q38: =J38/D38 -> 0 | R38: =J38/F38 -> 0
A40: Extra Large General Service - Schedule 25
A41: Energy Charge:
A42: ="First "&TEXT('Rate Design'!Q5,"#,##0")&" kWhs" -> First 500,000 kWhs | D42: ='Rate Design'!G5/100 -> 0.05505 | E42: =F42-D42 -> -0.00188 | F42: ='Rate Design'!G15/100 -> 0.05317 | H42: =F42+G42 -> 0.05317 | J42: =M42-D42 -> 0.00101 | K42: 0 | L42: =F42+J42+K42 -> 0.05418 | M42: ='Rate Design'!G27/100 -> 0.05606 | N42: =N16 ->  | O42: =O16 -> 0.00247 | P42: =L42+N42 ->  | Q42: =J42/D42 -> 0.01834695731 | R42: =(J42)/F42 -> 0.01899567425 | T42: =D42+E42-F42 -> 0 | U42: =D42+J42-M42 -> 0 | V42: =F42+G42+J42+K42-L42 -> 0
A43: =TEXT('Rate Design'!Q27,"#,##0")&" - "&TEXT('Rate Design'!Q28,"#,##0")&" kWhs" -> 500,000 - 6,000,000 kWhs | D43: ='Rate Design'!G6/100 -> 0.04953 | E43: =F43-D43 -> -0.00188 | F43: ='Rate Design'!G16/100 -> 0.04765 | H43: =F43+G43 -> 0.04765 | J43: =M43-D43 -> 0.00091 | K43: =K42 -> 0 | L43: =F43+J43+K43 -> 0.04856 | M43: ='Rate Design'!G28/100 -> 0.05044 | N43: =N42 ->  | O43: =O42 -> 0.00247 | P43: =L43+N43 ->  | Q43: =J43/D43 -> 0.01837270341 | R43: =(J43)/F43 -> 0.01909758657 | T43: =D43+E43-F43 -> 0 | U43: =D43+J43-M43 -> 0 | V43: =F43+G43+J43+K43-L43 -> 0
A44: ="All over "&TEXT('Rate Design'!Q28,"#,##0")&" kWhs" -> All over 6,000,000 kWhs | D44: ='Rate Design'!G7/100 -> 0.04235 | E44: =F44-D44 -> -0.00281 | F44: ='Rate Design'!G17/100 -> 0.03954 | H44: =F44+G44 -> 0.03954 | J44: =M44-D44 -> 0.00077 | L44: =F44+J44+K44 -> 0.04031 | M44: ='Rate Design'!G29/100 -> 0.04312 | N44: =N42 ->  | O44: =O42 -> 0.00247 | P44: =L44+N44 ->  | Q44: =J44/D44 -> 0.01818181818 | R44: =(J44)/F44 -> 0.01947395043 | T44: =D44+E44-F44 -> 0 | U44: =D44+J44-M44 -> 0 | V44: =F44+G44+J44+K44-L44 -> 0
A45: Demand Charge:
A46: =TEXT('Rate Design'!Q10,"#,##0")&" kva or less" -> 3,000 kva or less | D46: ='Rate Design'!G9 -> 30650 | E46: =F46-D46 -> 0 | F46: ='Rate Design'!G19 -> 30650 | J46: =IF(ROUND(L46-F46,5)<>ROUND(M46-D46,5),#VALUE!,M46-D46) -> 0 | L46: ='Rate Design'!G41 -> 30650 | M46: ='Rate Design'!G31 -> 30650 | P46: ='Rate Design'!G31 -> 30650 | Q46: =J46/D46 -> 0 | R46: =J46/F46 -> 0
A47: ="Over "&TEXT('Rate Design'!Q10,"#,##0")&" kva" -> Over 3,000 kva | D47: ='Rate Design'!G10 -> 8.3 | E47: =F47-D47 -> 0 | F47: ='Rate Design'!G20 -> 8.3 | J47: =IF(ROUND(L47-F47,5)<>ROUND(M47-D47,5),#VALUE!,M47-D47) -> 0 | L47: ='Rate Design'!G42 -> 8.3 | M47: ='Rate Design'!G32 -> 8.3 | P47: ='Rate Design'!G32 -> 8.3 | Q47: =J47/D47 -> 0 | R47: =J47/F47 -> 0
A48: Primary Volt. Discount
A49: 11 - 60 kv | D49: 0.2 | E49: =F49-D49 -> 0 | F49: 0.2 | J49: =IF(ROUND(L49-F49,5)<>ROUND(M49-D49,5),#VALUE!,M49-D49) -> 0 | L49: 0.2 | M49: 0.2 | P49: =M49 -> 0.2 | Q49: =J49/D49 -> 0 | R49: =J49/F49 -> 0
A50: 60 - 115 kv | D50: 1.52 | E50: =F50-D50 -> 0 | F50: 1.52 | J50: =IF(ROUND(L50-F50,5)<>ROUND(M50-D50,5),#VALUE!,M50-D50) -> 0 | L50: 1.52 | M50: 1.52 | P50: =M50 -> 1.52 | Q50: =J50/D50 -> 0 | R50: =J50/F50 -> 0
A51: 115 or higher kv | D51: 1.93 | E51: =F51-D51 -> 0 | F51: 1.93 | J51: =IF(ROUND(L51-F51,5)<>ROUND(M51-D51,5),#VALUE!,M51-D51) -> 0 | L51: 1.93 | M51: 1.93 | P51: =M51 -> 1.93 | Q51: =J51/D51 -> 0 | R51: =J51/F51 -> 0
A52: Annual Minimum | D52: Present: | E52: 945750 | L52: =6000000*M42+5000000*M43+12*M46 -> 956360 | P52: =L52 -> 956360 | Q52: =L52/E52-1 -> 0.01121860957
A54: Pumping Service - Schedule 31
A55: Basic Charge | D55: ='Rate Design'!H4 -> 20 | E55: =F55-D55 -> 0 | F55: ='Rate Design'!H14 -> 20 | J55: =IF(ROUND(L55-F55,5)<>ROUND(M55-D55,5),#VALUE!,M55-D55) -> 0 | L55: ='Rate Design'!H36 -> 20 | M55: ='Rate Design'!H26 -> 20 | P55: =M55 -> 20 | Q55: =J55/D55 -> 0 | R55: =J55/F55 -> 0
A56: Energy Charge:
A57: First 85 kW/kWh | D57: ='Rate Design'!H5/100 -> 0.10292 | E57: =F57-D57 -> 0.00264 | F57: ='Rate Design'!H15/100 -> 0.10556 | H57: =F57+G57 -> 0.10556 | J57: =M57-D57 -> 0.00147 | K57: 0 | L57: =F57+J57+K57 -> 0.10703 | M57: ='Rate Design'!H27/100 -> 0.10439 | N57: =N16 ->  | O57: =O16 -> 0.00247 | P57: =L57+N57 ->  | Q57: =J57/D57 -> 0.0142829382 | R57: =(J57)/F57 -> 0.01392572944 | T57: =D57+E57-F57 -> 0 | U57: =D57+J57-M57 -> 0 | V57: =F57+G57+J57+K57-L57 -> 0
A58: Next 80 kW/kWh | D58: ='Rate Design'!H5/100 -> 0.10292 | E58: =F57-D57 -> 0.00264 | F58: ='Rate Design'!H15/100 -> 0.10556 | H58: =F58+G58 -> 0.10556 | J58: =M57-D57 -> 0.00147 | K58: =K57 -> 0 | L58: =F58+J58+K58 -> 0.10703 | M58: ='Rate Design'!H27/100 -> 0.10439 | Q58: =J58/D58 -> 0.0142829382 | R58: =(J58)/F58 -> 0.01392572944 | T58: =D58+E58-F58 -> 0 | U58: =D58+J58-M58 -> 0 | V58: =F58+G58+J58+K58-L58 -> 0
A59: All additional kWhs | D59: ='Rate Design'!H6/100 -> 0.0735 | E59: =F59-D59 -> 0.00264 | F59: ='Rate Design'!H16/100 -> 0.07614 | H59: =F59+G59 -> 0.07614 | J59: =M59-D59 -> 0.00105 | K59: =K57 -> 0 | L59: =F59+J59+K59 -> 0.07719 | M59: ='Rate Design'!H28/100 -> 0.07455 | N59: =N57 ->  | O59: =O57 -> 0.00247 | P59: =L59+N59 ->  | Q59: =J59/D59 -> 0.01428571429 | R59: =(J59)/F59 -> 0.01379038613 | T59: =D59+E59-F59 -> 0 | U59: =D59+J59-M59 -> 0 | V59: =F59+G59+J59+K59-L59 -> 0
A62: (1) Includes all present rate adjustments: Schedule 59 (BPA Residential Exchange),
A63: Schedule 75 (Decoupling), Schedule 91 (DSM), Schedule 92 (LIRAP), Schedule 93 (ERM),
A64: Remand Schedule 94 and Schedule 98 (REC Revenue).

Sheet ROR
B1: AVISTA UTILITIES
B2: WASHINGTON ELECTRIC
B3: PRESENT & PROPOSED RATE OF RETURN BY RATE SCHEDULE
B4: 12 MONTHS ENDED DECEMBER 31, 2018
C7: Total | D7: Sch 1 | E7: Sch 11 | F7: Sch 21 | G7: Sch 25 | H7: Sch 31 | I7: Schs 41-48
B8: Total Rate Base | C8: =SUM(D8:I8) -> 1877557000 | D8: 1000841966 | E8: 232908575.8 | F8: 385101730.8 | G8: 181619969.1 | H8: 43824830.08 | I8: 33259928.44 | J8: from COS
B10: Revenue From Retail Rates | C10: =SUM(D10:I10) -> 531722000 | D10: 232554000 | E10: 77796000 | F10: 133266000 | G10: 69248000 | H10: 12229000 | I10: 6629000 | J10: from COS
B11: Other Operating Revenues | C11: =SUM(D11:I11) -> 70350000 | D11: 30446191.12 | E11: 7874369.713 | F11: 16999813.03 | G11: 12940211.04 | H11: 1760704.617 | I11: 328710.4744 | J11: from COS
B12: Total Revenues | C12: =IF(ROUND(C10+C11,0)<>ROUND(SUM(D12:I12),0),#VALUE!,SUM(D12:I12)) -> 602072000 | D12: =D10+D11 -> 263000191.1 | E12: 85670369.71 | F12: 150265813 | G12: 82188211.04 | H12: 13989704.62 | I12: 6957710.474
B14: Total Operating Exp b4 conv items & taxes | C14: =SUM(D14:I14) -> 462774000 | D14: =D17-D15-D16 -> 236371685 | E14: 54433435.54 | F14: 97132838.69 | G14: 60656523.39 | H14: 10412527.62 | I14: 3766989.756
B15: Revenue Related conversion items | C15: =SUM(D15:I15) -> 24369000 | D15: 10658028.87 | E15: 3565417.124 | F15: 6107626.079 | G15: 3173659.378 | H15: 560459.2268 | I15: 303809.3233 | J15: from COS
B16: Income Taxes | C16: =SUM(D16:I16) -> 8798000 | D16: -1138927.395 | E16: 2817717.038 | F16: 4822634.931 | G16: 1782853.334 | H16: 248354.6017 | I16: 265367.49 | J16: from COS
B17: Total Expenses | C17: =IF(ROUND(SUM(C14:C16),0)<>ROUND(SUM(D17:I17),0),#VALUE!,SUM(D17:I17)) -> 495941000 | D17: 245890786.5 | E17: 60816569.71 | F17: 108063099.7 | G17: 65613036.1 | H17: 11221341.45 | I17: 4336166.57 | J17: from COS
D18: .
B19: Net Operating Income | C19: =IF(ROUND(C12-C17,0)<>ROUND(SUM(D19:I19),0),#VALUE!,ROUND(SUM(D19:I19),-3)) -> 106131000 | D19: =D12-D17 -> 17109404.65 | E19: 24853800.01 | F19: 42202713.33 | G19: 16575174.94 | H19: 2768363.172 | I19: 2621543.905
B20: Present Rate of Return | C20: =C19/C8 -> 0.05652611345 | D20: 0.01709501123 | E20: 0.1067105405 | F20: 0.10958848 | G20: 0.09126295429 | H20: 0.06316882842 | I20: =I19/I8 -> 0.07881989012
B21: Present Return Ratio | C21: =C20/$C20 -> 1 | D21: 0.3024267933 | E21: 1.887809615 | F21: 1.938723067 | G21: 1.614527317 | H21: 1.117515862 | I21: 1.394397833
B23: Interest Expense | C23: =SUM(D23:I23) -> 46563000 | D23: 24820660.28 | E23: 5776081.374 | F23: 9550438.091 | G23: 4504135.226 | H23: 1086846.132 | I23: 824838.8985 | J23: from COS
B25: Proposed Misc Revenue Increase | C25: 0
B26: Proposed Rate Revenue Increase | C26: 7230000 | D26: =C26/C10 -> 0.01359733094
B27: Proposed Rev Increase | C27: =C25+C26 -> 7230000
D28: change
B29: Proposed Rate Revenues | C29: =C10+C26 -> 538952000 | D29: =C29-C10 -> 7230000 | F29: Uncollectibles | G29: 0.003326
B30: incremental conversion expenses | C30: =ROUND(C27*G29,-3)+ROUND(C27*G30,-3)+ROUND(C27*G31,-3) -> 317000 | F30: Commiss Fees | G30: 0.002
B31: incremental Income Taxes | C31: =ROUND(C27*G32,-3) -> 1452000 | F31: Excise Tax | G31: 0.038605
B32: Proposed Return | C32: =C19+C27-C30-C31 -> 111592000 | D32: =C32-C19 -> 5461000 | F32: Federal Inc Tax | G32: 0.200774
B33: Proposed Return % | C33: =C32/C8 -> 0.05943468028
B35: Allocation of incremental Misc Rev | C35: =SUM(D35:I35) -> 0 | D35: 0 | E35: 0 | F35: 0 | G35: 0 | H35: 0 | I35: 0 | J35: from COS
B37: Target Relative Return | C37: =C38/C33 -> 1 | D37: =D39/D8/C33 -> 0.2547396072 | E37: 1.815278539 | F37: 1.864429859 | G37: 1.597275578 | H37: 1.08596513 | I37: 4.333275323 | J37: Input | K37: =D26 -> 0.01359733094
B38: Target Return % | C38: =C39/C8 -> 0.05943468028 | D38: =D39/D8 -> 0.01514036711 | E38: 0.1078904996 | F38: 0.1108117926 | G38: 0.09493356331 | H38: 0.06454399031 | I38: 0.2575468334
B39: Target Return (NOI b4 Interest) | C39: =C32 -> 111592000 | D39: =$C$32-SUM(E39:I39) -> 15153114.78 | E39: =E8*E37*$C$32/$C$8 -> 25128622.61 | F39: =F8*F37*$C$32/$C$8 -> 42673813.12 | G39: =G8*G37*$C$32/$C$8 -> 17241830.84 | H39: =H8*H37*$C$32/$C$8 -> 2828629.408 | I39: =I8*I37*$C$32/$C$8 -> 8565989.248 | J39: =ROUND(C39-SUM(D39:I39),0) -> 0
B40: Target Return after Interest Expense | C40: =C39-C23 -> 65029000 | D40: =D39-D23 -> -9667545.499 | E40: 19352541.23 | F40: 33123375.03 | G40: 12737695.61 | H40: 1741783.276 | I40: 7741150.349 | J40: 0
B41: Target Return b4 Income Taxes & Interest | C41: =C40+C16+C31+C23 -> 121842000 | D41: =D40+D23+D40/$C40*SUM($C$16,$C$31) -> 13629297.08 | E41: 28179008.55 | F41: 47894785.21 | G41: 19249571.69 | H41: 3103172.744 | I41: 9786164.725 | J41: 0
B42: Target Return b4 Misc Rev | C42: =C41-C11-$C$25*C35 -> 51492000 | D42: =D41-D11-$C$25*D35 -> -16816894.04 | E42: 20304638.84 | F42: 30894972.17 | G42: 6309360.652 | H42: 1342468.127 | I42: 9457454.25 | J42: 0
B43: =B14 -> Total Operating Exp b4 conv items & taxes | C43: 462774000 | D43: =D14 -> 236371685 | E43: 54433435.54 | F43: 97132838.69 | G43: 60656523.39 | H43: 10412527.62 | I43: =I14 -> 3766989.756 | J43: 0
B44: Conversion Items | C44: =C15+C30 -> 24686000 | D44: =$C44*D46/$C46 -> 10539155.94 | E44: 3587606.616 | F44: 6145641.631 | G44: 3214522.861 | H44: 564267.9565 | I44: 634804.9934 | J44: 0
B45: Incremental Rate Revenue | C45: =C26 -> 7230000 | D45: =(D42-D10+D14+($C$44*D10)/$C$29)/(1-$C$44/$C$29) -> -2460053.1 | E45: 529681 | F45: 907452.5 | G45: 932406.9 | H45: 90263.7 | I45: 7230249 | J45: 0
B46: Target Rate Revenue | C46: =C42+C43+C44 -> 538952000 | D46: =D10+D45 -> 230093946.9 | E46: 78325681 | F46: 134173452.5 | G46: 70180406.9 | H46: 12319263.7 | I46: 13859249 | J46: 0
B47: Change in Rate Revenue | C47: =C46/C10-1 -> 0.01359733094 | D47: -0.01057841663 | E47: 0.006808589131 | F47: 0.006809332463 | G47: 0.01346474844 | H47: 0.007381118652 | I47: 1.090699804
B49: Incremental Rate Revenue - rounded | C49: =SUM(D49:I49) -> 7230000 | D49: =ROUND(D45,-3)+1000 -> -2459000 | E49: =ROUND(E45,-3) -> 530000 | F49: 907000 | G49: 932000 | H49: 90000 | I49: 7230000
B50: Target Rate Revenue - rounded | C50: =SUM(D50:I50) -> 538951000 | D50: =ROUND(D46,-3) -> 230094000 | E50: 78326000 | F50: 134173000 | G50: 70180000 | H50: 12319000 | I50: 13859000
B52: ERM Revenue decrease | C52: =SUM(D52:I52) -> 0 | D52: 0 | E52: 0 | F52: 0 | G52: 0 | H52: 0 | I52: 0
B53: Net Increase | C53: =SUM(D53:I53) -> 7230000 | D53: =D45+D52 -> -2460053.1 | E53: 529681 | F53: 907452.5 | G53: 932406.9 | H53: 90263.7 | I53: 7230249
B54: Present Billed | C54: =SUM(D54:I54) -> 481541000 | D54: 204738000 | E54: 66923000 | F54: 129127000 | G54: 62716000 | H54: 10909000 | I54: 7128000
B55: Net Increase as % of billed | C55: =C53/C54 -> 0.01501429785 | D55: -0.01201561557 | E55: 0.007914782661 | F55: 0.007027596862 | G55: 0.0148671296 | H55: 0.008274241452 | I55: 1.014344697
B56: Total Present Billed Revenue | C56: =SUM(D56:I56) -> 519237979.8 | D56: 220074328.9 | E56: 78691630.8 | F56: 131866134.1 | G56: 69157140.57 | H56: 12658500.82 | I56: 6790244.614
B57: % of Present Billed Revenue | C57: =C45/C56 -> 0.01392425108 | D57: =D45/D56 -> -0.01117828287 | E57: 0.006731097 | F57: 0.006881619046 | G57: =G45/G56 -> 0.01348243858 | H57: 0.007130678528 | I57: 1.06479949
B59: Movement towards Unity | D59: =(D37-D21)/(1-D21) -> -0.06836155068 | E59: =(E37-E21)/(1-E21) -> 0.08169665471 | F59: =(F37-F21)/(1-F21) -> 0.07914283765 | G59: 0.02807318423 | H59: 0.2684806236 | I59: -7.451555873
B61: Movement To Unity | D61: =(D37-D21)/(1-D21) -> -0.06836155068 | E61: 0.08169665471 | F61: 0.07914283765 | G61: 0.02807318423 | H61: 0.2684806236 | I61: -7.451555873
B64: Uniform Present Return | C64: =C19 -> 106131000 | D64: =$C64*D$8/$C$8 -> 56573706.51 | E64: =$C64*E$8/$C$8 -> 13165416.58 | F64: 21768304.13 | G64: 10266270.98 | H64: 2477247.317 | I64: 1880054.488
B65: Present Income Taxes at Unity | C65: =C16 -> 8798000 | D65: 4689821.728 | E65: 1091380.794 | F65: 1804539.104 | G65: 851048.7237 | H65: 205357.7361 | I65: 155851.9131
B66: Operating Expenses (Excl. Rev Rel exp & inc tax) | C66: =SUM(D66:I66) -> 462774000 | D66: =D14 -> 236371685 | E66: 54433435.54 | F66: 97132838.69 | G66: 60656523.39 | H66: 10412527.62 | I66: 3766989.756
B67: Deduct Other Operating Revenues | C67: =SUM(D67:I67) -> -70350000 | D67: =-D11 -> -30446191.12 | E67: -7874369.713 | F67: -16999813.03 | G67: -12940211.04 | H67: -1760704.617 | I67: -328710.4744
B68: Revenue Related Expenses at Unity | C68: =C15 -> 24369000 | D68: =$C68*SUM(D64:D67)/SUM($C$64:$C$67) -> 12833528.69 | E68: 2921086.049 | F68: 4981163.645 | G68: 2825876.223 | H68: 544411.2427 | I68: 262934.1522
B69: Total Uniform Cost at Present Return | C69: =SUM(C64:C68) -> 531722000 | D69: =SUM(D64:D68) -> 280022550.8 | E69: 63736949.26 | F69: 108687032.5 | G69: 61659508.27 | H69: 11878839.3 | I69: 5737119.836
B71: Uniform Proposed Return | C71: =C32 -> 111592000 | D71: =$C71*D$8/$C$8 -> 59484722.24 | E71: =$C71*E$8/$C$8 -> 13842846.74 | F71: =$C71*F$8/$C$8 -> 22888398.24 | G71: 10794524.8 | H71: 2604714.764 | I71: 1976793.213
B72: Proposed Income Taxes at Unity | C72: =C16+C31 -> 10250000 | D72: 5463818.222 | E72: 1271499.562 | F72: 2102355.742 | G72: 991503.6847 | H72: 239249.4653 | I72: 181573.3245
B73: Operating Expenses (Excl. Rev Rel exp & inc tax) | C73: =SUM(D73:I73) -> 462774000 | D73: =D14 -> 236371685 | E73: 54433435.54 | F73: 97132838.69 | G73: 60656523.39 | H73: 10412527.62 | I73: 3766989.756
B74: Deduct Other Operating Revenues | C74: =SUM(D74:I74) -> -70350000 | D74: =-D11-$C$25*D35 -> -30446191.12 | E74: -7874369.713 | F74: -16999813.03 | G74: -12940211.04 | H74: -1760704.617 | I74: -328710.4744
B75: Proposed Revenue Related Expenses at Unity | C75: =C15+C30 -> 24686000 | D75: =$C75*SUM(D71:D74)/SUM($C$71:$C$74) -> 13002602.57 | E75: 2960471.53 | F75: 5046193.263 | G75: 2856254.906 | H75: 551825.3268 | I75: 268652.4069
B76: Total Uniform Cost at Proposed Return | C76: =SUM(C71:C75) -> 538952000 | D76: =SUM(D71:D75) -> 283876636.9 | E76: 64633883.66 | F76: 110169972.9 | G76: 62358595.74 | H76: 12047612.56 | I76: 5865298.226
B78: Revenue Change to Achieve Unity (rounded) | C78: =SUM(D78:I78) -> 7229000 | D78: =ROUND(D76-D10,-3)-2000 -> 51321000 | E78: =ROUND(E76-E10,-3) -> -13162000 | F78: =ROUND(F76-F10,-3) -> -23096000 | G78: =ROUND(G76-G10,-3) -> -6889000 | H78: =ROUND(H76-H10,-3) -> -181000 | I78: =ROUND(I76-I10,-3) -> -764000
B80: Revenue to Cost Ratio at Present Rates | C80: =C10/C69 -> 1 | D80: 0.8304831141 | E80: 1.220579286 | F80: 1.226144434 | G80: 1.123070909 | H80: 1.029477687 | I80: 1.155457824
B81: Revenue to Cost Ratio at Proposed Rates | C81: =C46/C76 -> 1 | D81: 0.8105420347 | E81: 1.211836216 | F81: 1.217876786 | G81: 1.125432766 | H81: 1.022548131 | I81: 2.362923157
B82: Change in Revenue to Cost Ratio | C82: =C81-C80 -> 0 | D82: -0.01994107933 | E82: -0.008743069773 | F82: -0.008267648255 | G82: 0.002361857383 | H82: -0.006929555959 | I82: 1.207465333
C83: =C82/(1-C80) ->  | D83: -0.1176347667 | E83: 0.03963685775 | F83: 0.03655914986 | G83: -0.01919102901 | H83: 0.2350780102 | I83: -7.767157056

Sheet Rate Spread GRC
A3: Avista
A4: Electric
A5: Rate Spread
D9: Base Tariff | F9: Base | J9: Adjusted Billed | L9: Parity | M9: from Knox UE-20 Base Case Electric COS Model, E-Summary of results
D10: Revenue | E10: Percentage | F10: Tariff | G10: Proposed | H10: Proposed | J10: Revenue
B11: Type of | C11: Schedule | D11: Under Present | E11: of Base | F11: Percent | G11: General | H11: Base Tariff | J11: at Present
A12: No. | B12: Service | C12: Number | D12: Rates(1) | E12: Increase | F12: Increase | G12: Increase | H12: Revenue | J12: Rates (2)
B13: (a) | C13: (b) | D13: (c) | E13: (d) | F13: (e) | G13: (f) | H13: (g) | J13: (h)
D14: =IF(Base1_Billing2<>1,"ERROR","") -> 
A15: 1 | B15: Residential | C15: 1/2 | D15: ='Pres & Prop Rev'!$D$152/1000 -> 232554.0388 | E15: 1.453807253 | F15: =E15*$E$30 -> 0.01979675671 | G15: =F15*D15 -> 4603.815728 | H15: =D15+G15+0.3 -> 237158.1545 | J15: ='Proposed Increase'!H16+'Proposed Increase'!I16 -> 226547.0992 | L15: 0.82
A17: 2 | B17: General Service | C17: 11/12 | D17: ='Pres & Prop Rev'!$E$152/1000 -> 77795.98985 | E17: 0.5 | F17: =E17*$E$30 -> 0.006808590571 | G17: =F17*D17 -> 529.6810429 | H17: =D17+G17 -> 78325.67089 | J17: ='Proposed Increase'!H18+'Proposed Increase'!I18 -> 80210.93292 | L17: 1.23
A19: 3 | B19: Large General Service | C19: 21/22 | D19: ='Pres & Prop Rev'!$F$152/1000 -> 133265.8333 | E19: 0.5 | F19: =E19*$E$30 -> 0.006808590571 | G19: =F19*D19+0.1 -> 907.4524961 | H19: =D19+G19-0.2 -> 134173.0858 | J19: ='Proposed Increase'!H20+'Proposed Increase'!I20 -> 137183.0797 | L19: 1.24
A21: 4 | B21: Extra Large General Service | C21: 25 | D21: ='Pres & Prop Rev'!$G$152/1000 -> 68472.82466 | E21: 1 | F21: 0.01361718114 | G21: =F21*D21 -> 932.4068566 | H21: =D21+G21+0.2 -> 69405.43152 | J21: ='Proposed Increase'!H22+'Proposed Increase'!I22 -> 66850.24277 | L21: 1.15
A23: 5 | B23: Pumping Service | C23: 30/31/32 | D23: ='Pres & Prop Rev'!$H$152/1000 -> 12229.34005 | E23: 1 | F23: 0.01361718114 | G23: =F23*D23+0.1 -> 166.6291387 | H23: 12395.96919 | J23: ='Proposed Increase'!H24+'Proposed Increase'!I24 -> 12561.94491 | L23: 1.03
A25: 6 | B25: Street & Area Lights | C25: 41-48 | D25: ='Pres & Prop Rev'!$I$152/1000 -> 6628.665002 | E25: 1 | F25: 0.01361718114 | G25: 90.26373206 | H25: 6718.928734 | J25: ='Proposed Increase'!H26+'Proposed Increase'!I26 -> 6769.562282 | L25: 1.12
A27: 7 | B27: Total | D27: =SUM(D15:D25)+0.2 -> 530946.8917 | F27: =D30/$D$27 -> 0.01361718114 | G27: =SUM(G15:G25) -> 7230.248995 | H27: =D27+G27+0.3 -> 538177.4406 | J27: ='Proposed Increase'!H28+'Proposed Increase'!I28 -> 530122.8618
D28: =ROUND(D27-'Pres & Prop Rev'!C205/1000,0) -> 0 | G28: =ROUND(G27-D30,0) -> 0
B30: Revenue Requirement | D30: 7230 | E30: =D30/D27 -> 0.01361718114
B37: testimony scenarios
B39: w/o global pandemic
D41: Base Tariff | F41: Base | J41: Adjusted Billed
D42: Revenue | E42: Percentage | F42: Tariff | G42: Proposed | H42: Proposed | J42: Revenue
B43: Type of | C43: Schedule | D43: Under Present | E43: of Base | F43: Percent | G43: General | H43: Base Tariff | J43: at Present
A44: No. | B44: Service | C44: Number | D44: Rates(1) | E44: Increase | F44: Increase | G44: Increase | H44: Revenue | J44: Rates (2)
B45: (a) | C45: (b) | D45: (c) | E45: (d) | F45: (e) | G45: (f) | H45: (g) | J45: (h)
D46: =IF(Base1_Billing2<>1,"ERROR","") -> 
A47: 1 | B47: Residential | C47: 1/2 | D47: ='Pres & Prop Rev'!$D$152/1000 -> 232554.0388 | E47: 1.8175 | F47: =E47*$E$30 -> 0.02474922672 | G47: =F47*D47 -> 5755.532631 | H47: =D47+G47+0.3 -> 238309.8714 | J47: ='Proposed Increase'!H16+'Proposed Increase'!I43 -> 226547.0992 | L47: 0.83
A49: 2 | B49: General Service | C49: 11/12 | D49: ='Pres & Prop Rev'!$E$152/1000 -> 77795.98985 | E49: 0.1 | F49: =E49*$E$30 -> 0.001361718114 | G49: =F49*D49 -> 105.9362086 | H49: =D49+G49 -> 77901.92606 | J49: ='Proposed Increase'!H18+'Proposed Increase'!I45 -> 80210.93292 | L49: 1.23
A51: 3 | B51: Large General Service | C51: 21/22 | D51: ='Pres & Prop Rev'!$F$152/1000 -> 133265.8333 | E51: 0.1 | F51: =E51*$E$30 -> 0.001361718114 | G51: =F51*D51+0.1 -> 181.5704992 | H51: =D51+G51-0.2 -> 133447.2038 | J51: ='Proposed Increase'!H20+'Proposed Increase'!I47 -> 137183.0797 | L51: 1.24
A53: 4 | B53: Extra Large General Service | C53: 25 | D53: ='Pres & Prop Rev'!$G$152/1000 -> 68472.82466 | E53: 1 | F53: =E53*$E$30 -> 0.01361718114 | G53: =F53*D53 -> 932.4068566 | H53: =D53+G53+0.2 -> 69405.43152 | J53: ='Proposed Increase'!H22+'Proposed Increase'!I49 -> 66850.24277 | L53: 1.15
A55: 5 | B55: Pumping Service | C55: 30/31/32 | D55: ='Pres & Prop Rev'!$H$152/1000 -> 12229.34005 | E55: 1 | F55: =E55*$E$30 -> 0.01361718114 | G55: =F55*D55+0.1 -> 166.6291387 | H55: =D55+G55 -> 12395.96919 | J55: ='Proposed Increase'!H24+'Proposed Increase'!I51 -> 12561.94491 | L55: 1.03
A57: 6 | B57: Street & Area Lights | C57: 41-48 | D57: ='Pres & Prop Rev'!$I$152/1000 -> 6628.665002 | E57: 1 | F57: =E57*$E$30 -> 0.01361718114 | G57: =F57*D57 -> 90.26373206 | H57: =D57+G57 -> 6718.928734 | J57: ='Proposed Increase'!H26+'Proposed Increase'!I53 -> 6769.562282 | L57: 1.12
A59: 7 | B59: Total | D59: =SUM(D47:D57)+0.2 -> 530946.8917 | F59: =D62/$D$27 -> 0.01361718114 | G59: =SUM(G47:G57) -> 7232.339066 | H59: =D59+G59+0.3 -> 538179.5307 | J59: ='Proposed Increase'!H28+'Proposed Increase'!I55 -> 530122.8618
D60: =ROUND(D59-'Pres & Prop Rev'!C345/1000,0) -> 530947 | G60: =ROUND(G59-D62,0) -> 2
B62: Revenue Requirement | D62: =$D$30 -> 7230 | E62: =$E$30 -> 0.01361718114
B67: Residential within 10% of parity, 0% increase to all other classes
D69: Base Tariff | F69: Base | J69: Adjusted Billed
D70: Revenue | E70: Percentage | F70: Tariff | G70: Proposed | H70: Proposed | J70: Revenue
B71: Type of | C71: Schedule | D71: Under Present | E71: of Base | F71: Percent | G71: General | H71: Base Tariff | J71: at Present
A72: No. | B72: Service | C72: Number | D72: Rates(1) | E72: Increase | F72: Increase | G72: Increase | H72: Revenue | J72: Rates (2)
B73: (a) | C73: (b) | D73: (c) | E73: (d) | F73: (e) | G73: (f) | H73: (g) | J73: (h)
D74: =IF(Base1_Billing2<>1,"ERROR","") -> 
A75: 1 | B75: Residential | C75: 1/2 | D75: ='Pres & Prop Rev'!$D$152/1000 -> 232554.0388 | E75: 15 | F75: =E75*$E$30 -> 0.2042577171 | G75: =F75*D75 -> 47500.95707 | H75: =D75+G75+0.3 -> 280055.2958 | J75: ='Proposed Increase'!H16+'Proposed Increase'!I16 -> 226547.0992 | L75: 0.9
A77: 2 | B77: General Service | C77: 11/12 | D77: ='Pres & Prop Rev'!$E$152/1000 -> 77795.98985 | E77: 0 | F77: =E77*$E$30 -> 0 | G77: =F77*D77 -> 0 | H77: =D77+G77 -> 77795.98985 | J77: ='Proposed Increase'!H18+'Proposed Increase'!I18 -> 80210.93292 | L77: 1.14
A79: 3 | B79: Large General Service | C79: 21/22 | D79: ='Pres & Prop Rev'!$F$152/1000 -> 133265.8333 | E79: 0 | F79: =E79*$E$30 -> 0 | G79: =F79*D79+0.1 -> 0.1 | H79: =D79+G79-0.2 -> 133265.7333 | J79: ='Proposed Increase'!H20+'Proposed Increase'!I20 -> 137183.0797 | L79: 1.15
A81: 4 | B81: Extra Large General Service | C81: 25 | D81: ='Pres & Prop Rev'!$G$152/1000 -> 68472.82466 | E81: 0 | F81: =E81*$E$30 -> 0 | G81: =F81*D81 -> 0 | H81: =D81+G81+0.2 -> 68473.02466 | J81: ='Proposed Increase'!H22+'Proposed Increase'!I22 -> 66850.24277 | L81: 1.06
A83: 5 | B83: Pumping Service | C83: 30/31/32 | D83: ='Pres & Prop Rev'!$H$152/1000 -> 12229.34005 | E83: 0 | F83: =E83*$E$30 -> 0 | G83: =F83*D83+0.1 -> 0.1 | H83: =D83+G83 -> 12229.44005 | J83: ='Proposed Increase'!H24+'Proposed Increase'!I24 -> 12561.94491 | L83: 0.94
A85: 6 | B85: Street & Area Lights | C85: 41-48 | D85: ='Pres & Prop Rev'!$I$152/1000 -> 6628.665002 | E85: 0 | F85: =E85*$E$30 -> 0 | G85: =F85*D85 -> 0 | H85: =D85+G85 -> 6628.665002 | J85: ='Proposed Increase'!H26+'Proposed Increase'!I26 -> 6769.562282 | L85: 1.03
A87: 7 | B87: Total | D87: =SUM(D75:D85)+0.2 -> 530946.8917 | F87: =D90/$D$27 -> 0.01361718114 | G87: =SUM(G75:G85) -> 47501.15707 | H87: =D87+G87+0.3 -> 578448.3487 | J87: ='Proposed Increase'!H28+'Proposed Increase'!I28 -> 530122.8618
D88: =ROUND(D87-'Pres & Prop Rev'!C318/1000,0) -> 530947 | G88: =ROUND(G87-D90,0) -> 40271
B90: Revenue Requirement | D90: =$D$30 -> 7230 | E90: =$E$30 -> 0.01361718114

Sheet Rate Design
A1: PRESENT RATES | D1: 1 | E1: 2 | F1: 3 | G1: 4 | H1: 5 | I1: 6 | N1: Tiers - used for bill comparisons
C2: TOTAL | D2: SCH. 1,2 | E2: SCH. 11,12 | F2: SCH. 21,22 | G2: SCH. 25 | H2: SCH. 30, 31, 32 | L2: Range Name | N2: SCHEDULE 1,2 | O2: SCH. 11,12 | P2: SCH. 21,22 | Q2: SCHEDULE 25 | R2: SCH. 30, 31, 32
B3: Base Tariff Rates
A4: 1 | B4: BASIC CHARGE | D4: 9 | E4: 20 | F4: 0 | G4: 0 | H4: 20
A5: 2 | B5: BLOCK 1 PER KWH | D5: 8.103 | E5: 11.686 | F5: 7.535 | G5: 5.505 | H5: 10.292 | N5: 800 | O5: 3650 | P5: 250000 | Q5: 500000
A6: 3 | B6: BLOCK 2 PER KWH | D6: 9.427 | E6: 8.588 | F6: 6.742 | G6: 4.953 | H6: 7.35 | N6: 1500 | O6: 9999999 | P6: 9999999 | Q6: 9999999
A7: 4 | B7: BLOCK 3 PER KWH | D7: 11.053 | E7: 0 | F7: 0 | G7: 4.235 | H7: 0 | L7: Rates_Base_Present | N7: 9999999 | O7: 9999999 | P7: 9999999 | Q7: 9999999
A8: 5 | B8: BLOCK 4 PER KWH
A9: 6 | B9: DEMAND CHARGE | D9: 0 | E9: 0 | F9: 550 | G9: 30650 | H9: 0
A10: 7 | B10: DEMAND BLOCK 1 | D10: 0 | E10: 7 | F10: 7 | G10: 8.3 | H10: 0 | N10: 0 | O10: 20 | P10: 50 | Q10: 3000
B12: Billing Rates | D12: =IF(D13<>'Pres & Prop Rev'!D$5,#VALUE!,"") ->  | E12: =IF(E13<>'Pres & Prop Rev'!E$5,#VALUE!,"") ->  | F12: =IF(F13<>'Pres & Prop Rev'!F$5,#VALUE!,"") ->  | G12: =IF(G13<>'Pres & Prop Rev'!G$5,#VALUE!,"") ->  | H12: =IF(H13<>'Pres & Prop Rev'!H$5,#VALUE!,"") -> 
D13: SCHEDULE 1,2 | E13: SCH. 11,12 | F13: SCH. 21,22 | G13: SCHEDULE 25 | H13: SCH. 30, 31, 32
A14: 1 | B14: BASIC CHARGE | D14: =D4 -> 9 | E14: =E4 -> 20 | F14: =F4 -> 0 | G14: =G4 -> 0 | H14: =H4 -> 20
A15: 2 | B15: BLOCK 1 PER KWH | D15: =D5-0.414+0.244+0.323+0.141-0.418-0.089-0.032 -> 7.858 | E15: =E5+0.365+0.426+0.205-0.416-0.119-0.032 -> 12.115 | F15: =F5+0.365+0.333+0.147-0.427-0.09-0.032 -> 7.831 | G15: =G5+0.205+0.093-0.396-0.059-0.031 -> 5.317 | H15: =H5+0.365+0.282+0.128-0.397-0.081-0.033 -> 10.556 | N15: =N5 -> 800 | O15: =O5 -> 3650 | P15: =P5 -> 250000 | Q15: =Q5 -> 500000
A16: 3 | B16: BLOCK 2 PER KWH | D16: =D6-0.414+0.244+0.323+0.141-0.418-0.089-0.032 -> 9.182 | E16: =E6+0.365+0.426+0.205-0.416-0.119-0.032 -> 9.017 | F16: =F6+0.365+0.333+0.147-0.427-0.09-0.032 -> 7.038 | G16: =G6+0.205+0.093-0.396-0.059-0.031 -> 4.765 | H16: =H6+0.365+0.282+0.128-0.397-0.081-0.033 -> 7.614 | N16: =N6 -> 1500 | O16: 9999999 | P16: 9999999 | Q16: 9999999
A17: 4 | B17: BLOCK 3 PER KWH | D17: 10.808 | G17: =G7+0.205-0.396-0.059-0.031 -> 3.954 | L17: Rates_Billing_Present | N17: 9999999 | O17: 9999999 | P17: 9999999 | Q17: 9999999
A18: 5 | B18: BLOCK 4 PER KWH
A19: 6 | B19: DEMAND CHARGE | F19: =F9 -> 550 | G19: =G9 -> 30650
A20: 7 | B20: DEMAND BLOCK 1 | E20: =E10 -> 7 | F20: =F10 -> 7 | G20: =G10 -> 8.3 | N20: =N10 -> 0 | O20: =O10 -> 20 | P20: =P10 -> 50 | Q20: =Q10 -> 3000
A22: PROPOSED RATES
B24: Base Tariff Rates | D24: =IF(D25<>'Pres & Prop Rev'!D$5,#VALUE!,"") ->  | E24: =IF(E25<>'Pres & Prop Rev'!E$5,#VALUE!,"") ->  | F24: =IF(F25<>'Pres & Prop Rev'!F$5,#VALUE!,"") ->  | G24: =IF(G25<>'Pres & Prop Rev'!G$5,#VALUE!,"") ->  | H24: =IF(H25<>'Pres & Prop Rev'!H$5,#VALUE!,"") -> 
D25: SCHEDULE 1,2 | E25: SCH. 11,12 | F25: SCH. 21,22 | G25: SCHEDULE 25 | H25: SCH. 30, 31, 32 | T25: Rounding
A26: 1 | B26: BASIC CHARGE | D26: =ROUND(D62,$T26) -> 9 | E26: =ROUND(E62,$T26) -> 20 | F26: =ROUND(F62,$T26) -> 0 | G26: =ROUND(G62,$T26) -> 0 | H26: =ROUND(H62,$T26) -> 20 | T26: 2 | U26: 2
A27: 2 | B27: BLOCK 1 PER KWH | D27: =ROUND(D85,$T27) -> 8.282 | E27: =ROUND(E85,$T27) -> 11.779 | F27: 7.602 | G27: 5.606 | H27: 10.439 | N27: 800 | O27: 3650 | P27: 250000 | Q27: 500000 | T27: 3 | U27: 3
A28: 3 | B28: BLOCK 2 PER KWH | D28: 9.635 | E28: =ROUND(E86,$T28) -> 8.656 | F28: 6.802 | G28: 5.044 | H28: 7.455 | N28: 1500 | O28: 9999999 | P28: 9999999 | Q28: 6000000 | T28: 3 | U28: 3
A29: 4 | B29: BLOCK 3 PER KWH | D29: =ROUND(D87,$T29) -> 11.297 | E29: 0 | F29: 0 | G29: 4.312 | H29: 0 | L29: Rates_Base_Proposed | N29: 9999999 | O29: 9999999 | P29: 9999999 | Q29: 99999999 | T29: 3 | U29: 3
A30: 5 | B30: BLOCK 4 PER KWH | T30: 3 | U30: 3
A31: 6 | B31: DEMAND CHARGE | D31: =ROUND(D66,$T31) -> 0 | E31: =ROUND(E66,$T31) -> 0 | F31: =ROUND(F66,$T31) -> 550 | G31: =ROUND(G66,$T31) -> 30650 | H31: =ROUND(H66,$T31) -> 0 | T31: 2 | U31: 2
A32: 7 | B32: DEMAND BLOCK 1 | D32: =ROUND(D69,$T32) -> 0 | E32: =ROUND(E69,$T32) -> 7 | F32: =ROUND(F69,$T32) -> 7 | G32: =ROUND(G69,$T32) -> 8.3 | H32: =ROUND(H69,$T32) -> 0 | N32: 0 | O32: 20 | P32: 50 | Q32: 3000 | T32: 2 | U32: 2
B34: Billing Rates | D34: =IF(D35<>'Pres & Prop Rev'!D$5,#VALUE!,"") ->  | E34: =IF(E35<>'Pres & Prop Rev'!E$5,#VALUE!,"") ->  | F34: =IF(F35<>'Pres & Prop Rev'!F$5,#VALUE!,"") ->  | G34: =IF(G35<>'Pres & Prop Rev'!G$5,#VALUE!,"") ->  | H34: =IF(H35<>'Pres & Prop Rev'!H$5,#VALUE!,"") -> 
D35: SCHEDULE 1,2 | E35: SCH. 11,12 | F35: SCH. 21,22 | G35: SCHEDULE 25 | H35: SCH. 30, 31, 32 | S35: LIRAP/DSM increase
A36: 1 | B36: BASIC CHARGE | D36: =D26 -> 9 | E36: =E26 -> 20 | F36: =F26 -> 0 | G36: =G26 -> 0 | H36: =H26 -> 20 | S36: 1 | T36: 11 | U36: 21 | V36: 25 | W36: 31
A37: 2 | B37: BLOCK 1 PER KWH | D37: =D27-0.414+0.244+0.323+0.141-0.418-0.089-0.032 -> 8.037 | E37: =E27+0.365+0.426+0.205-0.416-0.119-0.032 -> 12.208 | F37: =F27+0.365+0.333+0.147-0.427-0.09-0.032 -> 7.898 | G37: =G27+0.205+0.093-0.396-0.059-0.031 -> 5.418 | H37: =H27+0.365+0.282+0.128-0.397-0.081-0.033 -> 10.703 | N37: =N27 -> 800 | O37: 3650 | P37: 250000 | Q37: 500000 | S37: 0 | T37: 0 | U37: 0 | V37: 0 | W37: 0
A38: 3 | B38: BLOCK 2 PER KWH | D38: =D28-0.414+0.244+0.323+0.141-0.418-0.089-0.032 -> 9.39 | E38: =E28+0.365+0.426+0.205-0.416-0.119-0.032 -> 9.085 | F38: =F28+0.365+0.333+0.147-0.427-0.09-0.032 -> 7.098 | G38: =G28+0.205+0.093-0.396-0.059-0.031 -> 4.856 | H38: =H28+0.365+0.282+0.128-0.397-0.081-0.033 -> 7.719 | N38: 1500 | O38: 9999999 | P38: 9999999 | Q38: 6000000 | S38: =S$37 -> 0 | T38: =T$37 -> 0 | U38: =U$37 -> 0 | V38: =V$37 -> 0 | W38: =W$37 -> 0
A39: 4 | B39: BLOCK 3 PER KWH | D39: 11.052 | G39: =G29+0.205-0.396-0.059-0.031 -> 4.031 | L39: Rates_Billing_Proposed | N39: 9999999 | O39: 9999999 | P39: 9999999 | Q39: 99999999 | S39: =S$37 -> 0 | T39: 0 | U39: 0 | V39: 0 | W39: 0
A40: 5 | B40: BLOCK 4 PER KWH | S40: 0 | T40: 0 | U40: 0 | V40: 0 | W40: 0
A41: 6 | B41: DEMAND CHARGE | F41: =F31 -> 550 | G41: =G31 -> 30650
A42: 7 | B42: DEMAND BLOCK 1 | E42: =E32 -> 7 | F42: =F32 -> 7 | G42: =G32 -> 8.3 | N42: =N32 -> 0 | O42: =O32 -> 20 | P42: =P32 -> 50 | Q42: =Q32 -> 3000
D45: 0 | E45: 0) ERM=0; 1) ERM as is
B47: Proposed Rate Workup - from Pres & Prop Rev tab
B49: KILOWATT HOURS (KWHS)
B50: BLOCK 1 | C50: =SUM(D50:H50) -> 3477200782 | D50: ='Pres & Prop Rev'!D31 -> 1632639774 | E50: ='Pres & Prop Rev'!E31 -> 435979118.4 | F50: ='Pres & Prop Rev'!F31 -> 1229791152 | G50: ='Pres & Prop Rev'!G31 -> 132000000 | H50: ='Pres & Prop Rev'!H31 -> 46790737.71
B51: BLOCK 2 | C51: =SUM(D51:H51) -> 1490635917 | D51: ='Pres & Prop Rev'!D32 -> 504552668 | E51: ='Pres & Prop Rev'!E32 -> 191116384.1 | F51: ='Pres & Prop Rev'!F32 -> 146237824.5 | G51: ='Pres & Prop Rev'!G32 -> 555959799.3 | H51: ='Pres & Prop Rev'!H32 -> 92769241.33
B52: BLOCK 3 | C52: =SUM(D52:H52) -> 682329917 | D52: ='Pres & Prop Rev'!D33 -> 299072582.4 | E52: ='Pres & Prop Rev'!E33 -> 0 | F52: ='Pres & Prop Rev'!F33 -> 0 | G52: ='Pres & Prop Rev'!G33 -> 383257334.6 | H52: ='Pres & Prop Rev'!H33 -> 0
B53: ADJ. TO ACTUAL/EE ADJ | C53: =SUM(D53:H53) -> 0 | D53: ='Pres & Prop Rev'!D41+'Pres & Prop Rev'!D38 -> 0 | E53: ='Pres & Prop Rev'!E41+'Pres & Prop Rev'!E38 -> 0 | F53: ='Pres & Prop Rev'!F41+'Pres & Prop Rev'!F38 -> 0 | G53: ='Pres & Prop Rev'!G41+'Pres & Prop Rev'!G38 -> 0 | H53: ='Pres & Prop Rev'!H41+'Pres & Prop Rev'!H38 -> 0
B54: WEATHER & U/B KWHS | C54: =SUM(D54:H54) -> -52372625 | D54: ='Pres & Prop Rev'!D44 -> -40779500 | E54: ='Pres & Prop Rev'!E44 -> -5197349 | F54: ='Pres & Prop Rev'!F44 -> -6458850 | G54: ='Pres & Prop Rev'!G44 -> 0 | H54: ='Pres & Prop Rev'!H44 -> 63074
B55: TOTAL PROFORMA KWHS | C55: =IF(ROUND(SUM(D55:I55),3)<>ROUND(SUM(C50:C54),3),#VALUE!,SUM(D55:I55)) -> 5597793992 | D55: =SUM(D50:D54) -> 2395485525 | E55: =SUM(E50:E54) -> 621898153.5 | F55: =SUM(F50:F54) -> 1369570126 | G55: =SUM(G50:G54) -> 1071217134 | H55: =SUM(H50:H54) -> 139623053
B56: TOTAL BILLS | D56: ='Pres & Prop Rev'!D48 -> 2619517 | E56: ='Pres & Prop Rev'!E48 -> 391801 | F56: ='Pres & Prop Rev'!F48 -> 22941 | G56: ='Pres & Prop Rev'!G48 -> 276 | H56: ='Pres & Prop Rev'!H48 -> 29492
B57: EXCESS DEMAND | D57: ='Pres & Prop Rev'!D50 -> 0 | E57: ='Pres & Prop Rev'!E50 -> 438307.9769 | F57: ='Pres & Prop Rev'!F50 -> 2648035.602 | G57: ='Pres & Prop Rev'!G50 -> 1275882.483 | H57: ='Pres & Prop Rev'!H50 -> 0
J58: Proposed rates: | K58: Formulas to copy
B59: Proposed Revenue | C59: =SUM(D59:I59) -> 531458311.9 | D59: ='Rate Spread GRC'!H15*1000 -> 237158154.5 | E59: ='Rate Spread GRC'!H17*1000 -> 78325670.89 | F59: ='Rate Spread GRC'!H19*1000 -> 134173085.8 | G59: ='Rate Spread GRC'!H21*1000 -> 69405431.52 | H59: ='Rate Spread GRC'!H23*1000 -> 12395969.19 | J59: same as current | K59: FLOOR | L59: CEILING | M59: OTHER
B60: Targeted Rate Increase | C60: ='Rate Spread GRC'!F27 -> 0.01361718114 | D60: ='Rate Spread GRC'!F15 -> 0.01979675671 | E60: ='Rate Spread GRC'!F17 -> 0.006808590571 | F60: ='Rate Spread GRC'!F19 -> 0.006808590571 | G60: ='Rate Spread GRC'!F21 -> 0.01361718114 | H60: ='Rate Spread GRC'!F25 -> 0.01361718114 | J60: diff than current
B61: Present Basic Charge | D61: =D4 -> 9 | E61: =E4 -> 20 | F61: =F4 -> 0 | G61: =G4 -> 0 | H61: 20
B62: BASIC CHARGE | D62: 9 | E62: 20 | F62: 0 | G62: 0 | H62: 20 | K62: =FLOOR(K61*(1+K$60),$K63) -> 0 | L62: =CEILING(L61*(1+L$60),$L63) -> 0 | M62: =M61*(1+M$60) -> 0
B63: % D in Basic Charge | D63: =IF(D61,D62/D61-1,0) -> 0 | E63: =IF(E61,E62/E61-1,0) -> 0 | F63: =IF(F61,F62/F61-1,0) -> 0 | G63: =IF(G61,G62/G61-1,0) -> 0 | H63: =IF(H61,H62/H61-1,0) -> 0 | K63: 0.05 | L63: 0.05
B64: Basic Charge Revenue | C64: =SUM(D64:I64) -> 32001513 | D64: =D56*D62 -> 23575653 | E64: =E56*E62 -> 7836020 | F64: =F56*F62 -> 0 | G64: =G56*G62 -> 0 | H64: =H56*H62 -> 589840
B65: Present Demand Block 1 | D65: =D9 -> 0 | E65: =E9 -> 0 | F65: =F9 -> 550 | G65: =G9 -> 30650 | H65: =H9 -> 0
B66: DEMAND BLOCK 1 | F66: 550 | G66: 30650 | K66: =FLOOR(K65*(1+K$60),$K67) -> 0 | L66: =CEILING(L65*(1+L$60),$L67) -> 0 | M66: =M65*(1+M$60) -> 0
B67: % D in Demand Block 1 | D67: =IF(D65,D66/D65-1,0) -> 0 | E67: =IF(E65,E66/E65-1,0) -> 0 | F67: =IF(F65,F66/F65-1,0) -> 0 | G67: =IF(G65,G66/G65-1,0) -> 0 | H67: =IF(H65,H66/H65-1,0) -> 0 | K67: 5 | L67: 10
B68: Present Demand Block 2 | D68: =D10 -> 0 | E68: 7 | F68: 7 | G68: 8.3 | H68: =H10 -> 0
B69: DEMAND BLOCK 2 | E69: 7 | F69: 7 | G69: 8.3 | H69: 0 | K69: =FLOOR(K68*(1+K$60),$K70) -> 0 | L69: =CEILING(L68*(1+L$60),$L70) -> 0 | M69: =M68*(1+M$60) -> 0
B70: % D in Demand Block 2 | D70: =IF(D68,D69/D68-1,0) -> 0 | E70: =IF(E68,E69/E68-1,0) -> 0 | F70: =IF(F68,F69/F68-1,0) -> 0 | G70: =IF(G68,G69/G68-1,0) -> 0 | H70: =IF(H68,H69/H68-1,0) -> 0 | K70: 0.05 | L70: 0.05
B71: Demand Revenue | C71: =SUM(D71:I71) -> 53271179.66 | D71: =D56*D66+D57*D69 -> 0 | E71: =E56*E66+E57*E69 -> 3068155.838 | F71: =F56*F66+F57*F69 -> 31153799.21 | G71: =G56*G66+G57*G69 -> 19049224.61 | H71: =H56*H66+H57*H69 -> 0
B72: Pwr Fctr/Prim Voltg Disc | C72: =SUM(D72:I72) -> -1549513.7 | D72: ='Pres & Prop Rev'!D172+'Pres & Prop Rev'!D173 -> 0 | E72: ='Pres & Prop Rev'!E172+'Pres & Prop Rev'!E173 -> 0 | F72: ='Pres & Prop Rev'!F172+'Pres & Prop Rev'!F173 -> 61123.23 | G72: ='Pres & Prop Rev'!G172+'Pres & Prop Rev'!G173 -> -1610636.93 | H72: ='Pres & Prop Rev'!H172+'Pres & Prop Rev'!H173 -> 0
B74: Present Block 1 Base Rate | D74: =D5 -> 8.103 | E74: =E5 -> 11.686 | F74: =F5 -> 7.535 | G74: =G5 -> 5.505 | H74: =H5 -> 10.292
B75: Present Block 2 Base Rate | D75: =D6 -> 9.427 | E75: 8.588 | F75: 6.742 | G75: 4.953 | H75: 7.35
B76: Present Block 3 Base Rate | D76: 11.053 | E76: 0 | F76: 0 | G76: 4.235 | H76: 0
B78: 1) Flat Rate Increase | D78: 0 | E78: 1 | F78: 1 | G78: 1 | H78: 1
B79: 2) % Rate Increase | D79: 0.02203229695 | E79: 0.00791852299 | F79: 0.008890205896 | G79: 0.01827414127 | H79: 0.01431584767 | M79: =M$60 -> 0
B80: Method ---> | D80: 2 | E80: 2 | F80: 2 | G80: 2 | H80: 2
A82: Calculated | B82: BLOCK 1 PER KWH | D82: =CHOOSE(D$80,D74+D$78,D74*(1+D$79)) -> 8.281527702 | E82: =CHOOSE(E$80,E74+E$78,E74*(1+E$79)) -> 11.77853586 | F82: =CHOOSE(F$80,F74+F$78,F74*(1+F$79)) -> 7.601987701 | G82: =CHOOSE(G$80,G74+G$78,G74*(1+G$79)) -> 5.605599148 | H82: =CHOOSE(H$80,H74+H$78,H74*(1+H$79)) -> 10.4393387
B83: BLOCK 2 PER KWH | D83: 9.634698463 | E83: =CHOOSE(E$80,E75+E$78,E75*(1+E$79)) -> 8.656004275 | F83: 6.801937768 | G83: =CHOOSE(G$80,G75+G$78,G75*(1+G$79)) -> 5.043511822 | H83: =CHOOSE(H$80,H75+H$78,H75*(1+H$79)) -> 7.45522148 | M83: =0.75*M82 -> 0
B84: BLOCK 3 PER KWH | D84: 11.29652298 | E84: 0 | F84: 0 | G84: =CHOOSE(G$80,G76+G$78,G76*(1+G$79)) -> 4.312390988 | H84: 0
A85: Input | B85: BLOCK 1 PER KWH | D85: =D82 -> 8.281527702 | E85: =E82 -> 11.77853586 | F85: =F82 -> 7.601987701 | G85: =G82 -> 5.605599148 | H85: 10.4393387 | M85: =M82 -> 0
B86: BLOCK 2 PER KWH | D86: =D83 -> 9.634698463 | E86: =E83 -> 8.656004275 | F86: =F83 -> 6.801937768 | G86: =G83 -> 5.043511822 | H86: =H83 -> 7.45522148 | J86: =G86-G85 -> -0.562087326 | M86: =M83 -> 0 | N86: =0.75*(N85-N74)+N75 -> 0
B87: BLOCK 3 PER KWH | D87: =D84 -> 11.29652298 | E87: 0 | F87: 0 | G87: =G84 -> 4.312390988 | H87: 0 | J87: =G87-G86 -> -0.7311208334 | M87: =M84 -> 0
B88: Blocks 1-3 Revenue | C88: =SUM(D88:I88) -> 452702663.3 | D88: =SUMPRODUCT(D50:D52,D85:D87)/100 -> 217604446.3 | E88: =SUMPRODUCT(E50:E52,E85:E87)/100 -> 67894999.18 | F88: =SUMPRODUCT(F50:F52,F85:F87)/100 -> 103435577.9 | G88: =SUMPRODUCT(G50:G52,G85:G87)/100 -> 51966843.84 | H88: =SUMPRODUCT(H50:H52,H85:H87)/100 -> 11800796
B89: Adj. to Actual Revenue | C89: =SUM(D89:I89) -> 0 | D89: ='Pres & Prop Rev'!D181+'Pres & Prop Rev'!D178 -> 0 | E89: ='Pres & Prop Rev'!E181+'Pres & Prop Rev'!E178 -> 0 | F89: ='Pres & Prop Rev'!F181+'Pres & Prop Rev'!F178 -> 0 | G89: ='Pres & Prop Rev'!G181+'Pres & Prop Rev'!G178+'Pres & Prop Rev'!G174 -> 0 | H89: ='Pres & Prop Rev'!H181+'Pres & Prop Rev'!H178 -> 0
B90: Weather & U/B Revenue | C90: =SUM(D90:I90) -> -4967530.33 | D90: ='Pres & Prop Rev'!D202 -> -4021944.84 | E90: ='Pres & Prop Rev'!E202 -> -473504.13 | F90: ='Pres & Prop Rev'!F202 -> -477414.55 | G90: ='Pres & Prop Rev'!G202 -> 0 | H90: ='Pres & Prop Rev'!H202 -> 5333.19
B92: Revenue Remaining | C92: =IF(ROUND(C59-C64-C71-C72-SUM(C88:C90),3)<>ROUND(SUM(D92:I92),3),#VALUE!,SUM(D92:I92)) -> 9.883195162e-05 | D92: =D59-D64-D71-D72-SUM(D88:D90) -> -8.046627045e-07 | E92: =E59-E64-E71-E72-SUM(E88:E90) -> -3.576278687e-07 | F92: =F59-F64-F71-F72-SUM(F88:F90) -> 0 | G92: =G59-G64-G71-G72-SUM(G88:G90) -> 9.999424219e-05 | H92: =H59-H64-H71-H72-SUM(H88:H90) -> 0 | J92: there will be some remainder in Schs. 21 & 25 because some components of their revenue don't change w/a rate change.
B93: Revenue Remaining - ¢/kWh | C93: =C92/C55*100 -> 1.765551783e-12 | D93: =D92/D55*100 -> -3.359079803e-14 | E93: -5.750585793e-14 | F93: 0 | G93: 9.334638051e-12 | H93: 0
B94: check - < $6k is rounding | C94: =SUM(D94:I94) -> -14297.37926 | D94: =D59-'Pres & Prop Rev'!D204-D92 -> -10658.97168 | E94: =E59-'Pres & Prop Rev'!E204-E92 -> -2015.388623 | F94: =F59-'Pres & Prop Rev'!F204-F92 -> -242.2530949 | G94: =G59-'Pres & Prop Rev'!G204-G92 -> -1744.714561 | H94: =H59-'Pres & Prop Rev'!H204-H92 -> 363.9486991
A95: =IF(Base1_Billing2=2,"MAKE SURE TO CHANGE Base1_Billing2 to '1' before designing Base Rates","") -> 
B96: Proposed Target | C96: =SUM(D96:I96) -> 531458311.9 | D96: =D59 -> 237158154.5 | E96: =E59 -> 78325670.89 | F96: =F59 -> 134173085.8 | G96: =G59 -> 69405431.52 | H96: =H59 -> 12395969.19
B97: Proposed Actual | C97: =SUM(D97:I97) -> 531472609.3 | D97: ='Pres & Prop Rev'!D204 -> 237168813.5 | E97: ='Pres & Prop Rev'!E204 -> 78327686.28 | F97: ='Pres & Prop Rev'!F204 -> 134173328.1 | G97: ='Pres & Prop Rev'!G204 -> 69407176.23 | H97: ='Pres & Prop Rev'!H204 -> 12395605.24
C98: =SUM(D98:H98) -> 14297.37916 | D98: =D97-D96 -> 10658.97168 | E98: =E97-E96 -> 2015.388623 | F98: =F97-F96 -> 242.2530949 | G98: =G97-G96 -> 1744.714461 | H98: =H97-H96 -> -363.9486991
B99: Rate D Check
B100: Basic Charge | C100: ='Pres & Prop Rev'!C164/'Pres & Prop Rev'!C111-1 -> 0 | D100: ='Pres & Prop Rev'!D164/'Pres & Prop Rev'!D111-1 -> 0 | E100: ='Pres & Prop Rev'!E164/'Pres & Prop Rev'!E111-1 -> 0 | F100: ='Pres & Prop Rev'!F164/'Pres & Prop Rev'!F111-1 ->  | G100: ='Pres & Prop Rev'!G164/'Pres & Prop Rev'!G111-1 ->  | H100: ='Pres & Prop Rev'!H164/'Pres & Prop Rev'!H111-1 -> 0
B101: Demand Charge | C101: =SUM('Pres & Prop Rev'!C170:C171)/SUM('Pres & Prop Rev'!C117:C118)-1 -> 3.508882074e-11 | D101: =SUM('Pres & Prop Rev'!D170:D171)/SUM('Pres & Prop Rev'!D117:D118)-1 ->  | E101: =SUM('Pres & Prop Rev'!E170:E171)/SUM('Pres & Prop Rev'!E117:E118)-1 -> 5.014286764e-10 | F101: =SUM('Pres & Prop Rev'!F170:F171)/SUM('Pres & Prop Rev'!F117:F118)-1 -> -2.469147109e-11 | G101: =SUM('Pres & Prop Rev'!G170:G171)/SUM('Pres & Prop Rev'!G117:G118)-1 -> 5.774491996e-11 | H101: =SUM('Pres & Prop Rev'!H170:H171)/SUM('Pres & Prop Rev'!H117:H118)-1 -> 
B102: Adj. to Actual Revenue | C102: ='Pres & Prop Rev'!C181/'Pres & Prop Rev'!C128-1 ->  | D102: ='Pres & Prop Rev'!D181/'Pres & Prop Rev'!D128-1 ->  | E102: ='Pres & Prop Rev'!E181/'Pres & Prop Rev'!E128-1 ->  | F102: ='Pres & Prop Rev'!F181/'Pres & Prop Rev'!F128-1 ->  | G102: ='Pres & Prop Rev'!G181/'Pres & Prop Rev'!G128-1 ->  | H102: ='Pres & Prop Rev'!H181/'Pres & Prop Rev'!H128-1 -> 
B103: Weather & U/B Revenue | C103: ='Pres & Prop Rev'!C202/'Pres & Prop Rev'!C149-1 -> 0.0194370813 | D103: ='Pres & Prop Rev'!D202/'Pres & Prop Rev'!D149-1 -> 0.02207247884 | E103: ='Pres & Prop Rev'!E202/'Pres & Prop Rev'!E149-1 -> 0.007925589302 | F103: ='Pres & Prop Rev'!F202/'Pres & Prop Rev'!F149-1 -> 0.008892565367 | G103: ='Pres & Prop Rev'!G202/'Pres & Prop Rev'!G149-1 ->  | H103: ='Pres & Prop Rev'!H202/'Pres & Prop Rev'!H149-1 -> 0.01428468186
B104: Block Energy Charges | C104: =SUM('Pres & Prop Rev'!C166:C169)/SUM('Pres & Prop Rev'!C113:C116)-1 -> 0.01627345048 | D104: =SUM('Pres & Prop Rev'!D166:D169)/SUM('Pres & Prop Rev'!D113:D116)-1 -> 0.02208235939 | E104: =SUM('Pres & Prop Rev'!E166:E169)/SUM('Pres & Prop Rev'!E113:E116)-1 -> 0.007948441856 | F104: =SUM('Pres & Prop Rev'!F166:F169)/SUM('Pres & Prop Rev'!F113:F116)-1 -> 0.008892568822 | G104: =SUM('Pres & Prop Rev'!G166:G169)/SUM('Pres & Prop Rev'!G113:G116)-1 -> 0.01830832839 | H104: =SUM('Pres & Prop Rev'!H166:H169)/SUM('Pres & Prop Rev'!H113:H116)-1 -> 0.01428456451
B105: Overall Revenue | C105: ='Pres & Prop Rev'!C208 -> 0.01451133208 | D105: ='Pres & Prop Rev'!D208 -> 0.01984388112 | E105: ='Pres & Prop Rev'!E208 -> 0.006834496644 | F105: ='Pres & Prop Rev'!F208 -> 0.006809658009 | G105: ='Pres & Prop Rev'!G208 -> 0.0136455824 | H105: ='Pres & Prop Rev'!H208 -> 0.01359559791
B107: Avg. Usage | D107: =D55/D56 -> 914.4760369 | E107: =E55/E56 -> 1587.280669 | F107: =F55/F56 -> 59699.66986 | G107: =G55/G56 -> 3881221.5 | H107: =H55/H56 -> 4734.268718
B108: Bill Compare: | C108: =INDEX($D$2:$I$2,K108) -> SCH. 1,2 | F108: =INDEX($D$2:$I$2,L108) -> SCH. 11,12 | K108: 1 | L108: 2
B109: =IF(Base1_Billing2=2,"BILLING RATES","BASE RATES") -> BASE RATES | C109: Pres | D109: Prop | E109: % Incr | F109: Pres | G109: Prop | H109: % Incr
B110: 100
B111: 200
B112: 300
B113: 400
B114: 500
B115: 600
B116: 700
B117: 800
B118: 900
B119: 1000 | C119: =ROUND(D14+600*D15/100+400*D16/100,2) -> 92.88 | D119: =ROUND(D36+600*D37/100+400*D38/100,2) -> 94.78 | E119: =D119/C119-1 -> 0.02045650301 | F119: =D119-C119 -> 1.9
B120: 1100
B121: 1200
B122: 1300
B123: 1400
B124: 1500
D125: 2425727000 | E125: =395341000+52692000 -> 448033000
D126: =205474*12 -> 2465688 | E126: =(19967+8691)*12 -> 343896
D127: =D125/D126 -> 983.7931644 | E127: =E125/E126 -> 1302.815386

Sheet Pres & Prop Rev
B2: =IF(Base1_Billing2=2,"BILLED","") -> 
A4: WORK PAPER | D4: RESIDENTIAL | E4: GENERAL SVC. | F4: LG. GEN. SVC. | G4: EX LG GEN SVC | H4: PUMPING | I4: ST & AREA LTG
A5: REFERENCE | C5: TOTAL | D5: SCHEDULE 1,2 | E5: SCH. 11,12 | F5: SCH. 21,22 | G5: SCHEDULE 25 | H5: SCH. 30, 31, 32 | I5: SCH. 41-48 | P5: Print Header for all printed pages on this worksheet:
B6: PRESENT BILL DETERMINANTS | L6: Calculate all revenue exhibits using ____ rates: | P6: ="AVISTA UTILITIES WASHINGTON ELECTRIC PRO FORMA REVENUE UNDER PRESENT AND PROPOSED "&N9&" RATES 12 MONTHS ENDED DECEMBER 31, 2019" -> AVISTA UTILITIES WASHINGTON ELECTRIC PRO FORMA REVENUE UNDER PRESENT AND PROPOSED BASE TARIFF RATES 12 MONTHS ENDED DECEMBER 31, 2019
B7: KILOWATT HOURS (KWHS) | K7: 1) | L7: BASE TARIFF
A8: JDM-E-10 | B8: BLOCK 1 | D8: ='Bill Determ'!$B$9 -> 1632639774 | E8: ='Bill Determ'!$B$17 -> 435979118.4 | F8: ='Bill Determ'!$B$28 -> 1229791152 | G8: ='Bill Determ'!$B$37 -> 132000000 | H8: =SUM('Bill Determ'!$B$43:$C$43) -> 46790737.71 | L8: or | N8: 1
A9: JDM-E-10 | B9: BLOCK 2 | D9: ='Bill Determ'!$C$9 -> 504552668 | E9: ='Bill Determ'!$C$17 -> 191116384.1 | F9: ='Bill Determ'!$C$28 -> 146237824.5 | G9: ='Bill Determ'!$C$37 -> 555959799.3 | H9: ='Bill Determ'!$D$43 -> 92769241.33 | K9: 2) | L9: BILLING | N9: =CHOOSE(Base1_Billing2,L7,L9) -> BASE TARIFF
A10: JDM-E-10 | B10: BLOCK 3 | D10: ='Bill Determ'!$D$9 -> 299072582.4 | G10: ='Bill Determ'!$D$37 -> 383257334.6 | N10: =CHOOSE(Base1_Billing2,"Base","Billing") -> Base
B11: BLOCK 4
A12: JDM-E-20 | B12: STREET & AREA LIGHTS | I12: ='REVRUNS 12ME1219'!P287 -> 17961923.66
B14: SUBTOTAL | C14: =SUM(D14:I14) -> 5668128540 | D14: =SUM(D8:D12) -> 2436265025 | E14: 627095502.5 | F14: 1376028976 | G14: 1071217134 | H14: 139559979 | I14: 17961923.66
B17: SUBTOTAL | C17: =SUM(D17:I17) -> 5668128540 | D17: =D14+D15 -> 2436265025 | E17: 627095502.5 | F17: 1376028976 | G17: 1071217134 | H17: 139559979 | I17: 17961923.66
A18: JDM-E-10 | B18: ADJUSTMENT TO ACTUAL | C18: =SUM(D18:I18) -> 0 | D18: ='Bill Determ'!$E$11 -> 0 | E18: ='Bill Determ'!$D$21 -> 0 | F18: ='Bill Determ'!$D$33 -> 0 | G18: 0 | H18: ='Bill Determ'!$E$45 -> 0 | I18: 0
B20: TOTAL BEFORE ADJUSTMENT | C20: =SUM(D20:I20) -> 5668128540 | D20: =D17+D18 -> 2436265025 | E20: 627095502.5 | F20: 1376028976 | G20: 1071217134 | H20: 139559979 | I20: 17961923.66
A21: JDM-E-3 | B21: WEATHER & UNBILLED ADJ. KWHS | C21: =SUM(D21:I21) -> -52372625 | D21: =D142+D145 -> -40779500 | E21: -5197349 | F21: -6458850 | G21: 0 | H21: 63074 | I21: 0
B23: TOTAL PROFORMA KWHS | C23: =IF(ROUND(SUM(D23:I23),3)<>ROUND(SUM(C20:C21),3),#VALUE!,SUM(D23:I23)) -> 5615755915 | D23: =D20+D21 -> 2395485525 | E23: 621898153.5 | F23: 1369570126 | G23: 1071217134 | H23: 139623053 | I23: 17961923.66
A25: JDM-E-10 | B25: TOTAL BILLS | D25: ='Bill Determ'!$F$9 -> 2619517 | E25: ='Bill Determ'!$F$17 -> 391801 | F25: ='Bill Determ'!$F$28 -> 22941 | G25: ='Bill Determ'!$G$37 -> 276 | H25: ='Bill Determ'!$F$41 -> 29492
B26: MINIMUM BILLS
A27: JDM-E-10 | B27: EXCESS DEMAND | E27: ='Bill Determ'!$E$17 -> 438307.9769 | F27: ='Bill Determ'!$E$28 -> 2648035.602 | G27: ='Bill Determ'!$F$37+'Bill Determ'!F38 -> 1275882.483
B29: PROPOSED BILL DETERMINANTS
B30: KILOWATT HOURS (KWHS)
B31: BLOCK 1 | D31: =D8 -> 1632639774 | E31: 435979118.4 | F31: 1229791152 | G31: 132000000 | H31: 46790737.71 | I31: 0
B32: BLOCK 2 | D32: =D9 -> 504552668 | E32: 191116384.1 | F32: 146237824.5 | G32: ='Bill Determ'!$C$37 -> 555959799.3 | H32: 92769241.33 | I32: 0
B33: BLOCK 3 | D33: 299072582.4 | E33: 0 | F33: 0 | G33: ='Bill Determ'!$D$37 -> 383257334.6 | H33: 0 | I33: 0
B34: BLOCK 4 | D34: 0 | E34: 0 | F34: 0 | G34: 0 | H34: 0 | I34: 0
B35: STREET & AREA LIGHTS | D35: 0 | E35: 0 | F35: 0 | G35: 0 | H35: 0 | I35: =I12 -> 17961923.66
B37: SUBTOTAL | C37: =SUM(D37:I37) -> 5668128540 | D37: =SUM(D31:D35) -> 2436265025 | E37: 627095502.5 | F37: 1376028976 | G37: 1071217134 | H37: 139559979 | I37: 17961923.66
C38: =SUM(D38:I38) -> 0 | D38: =D15 -> 0 | E38: 0 | F38: 0 | G38: 0 | H38: 0 | I38: 0
B40: SUBTOTAL | C40: =SUM(D40:I40) -> 5668128540 | D40: =D37+D38 -> 2436265025 | E40: 627095502.5 | F40: 1376028976 | G40: 1071217134 | H40: 139559979 | I40: 17961923.66
B41: ADJUSTMENT TO ACTUAL | C41: =SUM(D41:I41) -> 0 | D41: =D18 -> 0 | E41: 0 | F41: 0 | G41: 0 | H41: 0 | I41: 0
B43: TOTAL BEFORE ADJUSTMENT | C43: =SUM(D43:I43) -> 5668128540 | D43: =D40+D41 -> 2436265025 | E43: 627095502.5 | F43: 1376028976 | G43: 1071217134 | H43: 139559979 | I43: 17961923.66
B44: WEATHER & UNBILLED ADJ. KWHS | C44: =SUM(D44:I44) -> -52372625 | D44: =D21 -> -40779500 | E44: -5197349 | F44: -6458850 | G44: 0 | H44: 63074 | I44: 0
B46: TOTAL PROFORMA KWHS | C46: =IF(ROUND(SUM(D46:I46),3)<>ROUND(SUM(C43:C44),3),#VALUE!,SUM(D46:I46)) -> 5615755915 | D46: =D43+D44 -> 2395485525 | E46: 621898153.5 | F46: 1369570126 | G46: 1071217134 | H46: 139623053 | I46: 17961923.66
B48: TOTAL BILLS | D48: =D25 -> 2619517 | E48: =E25 -> 391801 | F48: =F25 -> 22941 | G48: =G25 -> 276 | H48: =H25 -> 29492
B49: MINIMUM BILLS
B50: EXCESS DEMAND | E50: =E27 -> 438307.9769 | F50: =F27 -> 2648035.602 | G50: =G27 -> 1275882.483
D55: 1 | E55: 2 | F55: 3 | G55: 4 | H55: 5 | I55: 6 | L55: =SUMPRODUCT(--(ISBLANK(D55:I55))) -> 0
A56: WORK PAPER | D56: RESIDENTIAL | E56: GENERAL SVC. | F56: LG. GEN. SVC. | G56: EX LG GEN SVC | H56: PUMPING | I56: ST & AREA LTG | L56: ="selected in cell "&CELL("address",Base1_Billing2)&":" -> selected in cell $N$8:
A57: REFERENCE | C57: TOTAL | D57: SCHEDULE 1 | E57: SCH. 11,12 | F57: SCH. 21,22 | G57: SCHEDULE 25 | H57: SCH. 30, 31, 32 | I57: SCH. 41-48 | L57: =N10 -> Base
B58: PRESENT RATES | L58: ="Rates_"&$L$57&"_Present" -> Rates_Base_Present | N58: - range name where Present Rates table can be found
A59: JDM-E-21 | B59: BASIC CHARGE | D59: =INDEX(INDIRECT($L$58),$K59,D$55) -> 9 | E59: 20 | F59: 0 | G59: 0 | H59: 20 | I59: 0 | K59: 1 | L59: ="Rates_"&$L$57&"_Proposed" -> Rates_Base_Proposed | N59: - range name where Proposed Rates table can be found
B60: MONTHLY MINIMUM
A62: JDM-E-21 | B62: BLOCK 1 PER KWH | D62: =INDEX(INDIRECT($L$58),$K62,D$55) -> 8.103 | E62: 11.686 | F62: 7.535 | G62: 5.505 | H62: 10.292 | I62: 0 | K62: 2
A63: JDM-E-21 | B63: BLOCK 2 PER KWH | D63: 9.427 | E63: 8.588 | F63: 6.742 | G63: 4.953 | H63: 7.35 | I63: 0 | K63: 3
A64: JDM-E-21 | B64: BLOCK 3 PER KWH | D64: 11.053 | E64: 0 | F64: 0 | G64: 4.235 | H64: 0 | I64: 0 | K64: 4
B65: BLOCK 4 PER KWH | K65: 5
B67: ADJUST TO ACTUAL PER KWH | D67: =(D124-D111)/D14*100 -> 8.739339575 | E67: =(E124-E111-SUM(E117:E120))/E14*100 -> 10.74183989 | F67: =(F124-F111-SUM(F117:F120))/F14*100 -> 7.450723726 | H67: =(H124-H111-SUM(H117:H120))/H14*100 -> 8.336374117
A69: JDM-E-21 | B69: DEMAND BLOCK 1 | D69: =INDEX(INDIRECT($L$58),$K69,D$55) -> 0 | E69: 0 | F69: 550 | G69: 30650 | H69: 0 | I69: 0 | K69: 6
A70: JDM-E-21 | B70: DEMAND BLOCK 2 | D70: 0 | E70: 7 | F70: 7 | G70: 8.3 | H70: 0 | I70: 0 | K70: 7
B75: PROPOSED RATES
B76: BASIC CHARGE | D76: =INDEX(INDIRECT($L$59),$K76,D$55) -> 9 | E76: =INDEX(INDIRECT($L$59),$K76,E$55) -> 20 | H76: =INDEX(INDIRECT($L$59),$K76,H$55) -> 20 | K76: 1
B77: MONTHLY MINIMUM
B79: BLOCK 1 PER KWH | D79: =INDEX(INDIRECT($L$59),$K79,D$55) -> 8.282 | E79: 11.779 | F79: 7.602 | G79: 5.606 | H79: 10.439 | K79: 2
B80: BLOCK 2 PER KWH | D80: 9.635 | E80: 8.656 | F80: 6.802 | G80: 5.044 | H80: 7.455 | K80: 3
B81: BLOCK 3 PER KWH | D81: 11.297 | G81: 4.312 | K81: 4
B82: BLOCK 4 PER KWH | K82: 5
B84: ADJUST TO ACTUAL PER KWH | D84: =(D177-D164)/D37*100 -> 8.932324812 | E84: =(E177-E164-SUM(E170:E173))/E37*100 -> 10.82722078 | F84: =(F177-F164-SUM(F170:F173))/F37*100 -> 7.516979799 | H84: =(H177-H164-SUM(H170:H173))/H37*100 -> 8.45545559
B86: DEMAND BLOCK 1 | F86: =INDEX(INDIRECT($L$59),$K86,F$55) -> 550 | G86: =INDEX(INDIRECT($L$59),$K86,G$55) -> 30650 | K86: 6
B87: DEMAND BLOCK 2 | E87: =INDEX(INDIRECT($L$59),$K87,E$55) -> 7 | F87: =INDEX(INDIRECT($L$59),$K87,F$55) -> 7 | G87: =INDEX(INDIRECT($L$59),$K87,G$55) -> 8.3 | K87: 7
B95: =CHOOSE(Base1_Billing2,"Note: Rates do not include BPA Residential Exchange Program Schedule 59, , Decoupling Schedule 75, Public Purpose Adjustment Schedules 89,91,92, REC Revenue Adjustment Schedule 98 or Power Cost Surcharge Schedule 93.","") -> Note: Rates do not include BPA Residential Exchange Program Schedule 59, , Decoupling Schedule 75, Public Purpose Adjustment Schedules 89,91,92, REC Revenue Adjustment Schedule 98 or Power Cost Surcharge Schedule 93.
A107: WORK PAPER | D107: RESIDENTIAL | E107: GENERAL SVC. | F107: LG. GEN. SVC. | G107: EX LG GEN SVC | H107: PUMPING | I107: ST & AREA LTG
A108: REFERENCE | C108: TOTAL | D108: SCHEDULE 1 | E108: SCH. 11,12 | F108: SCH. 21,22 | G108: SCHEDULE 25 | H108: SCH. 30, 31, 32 | I108: SCH. 41-48
B109: PRESENT REVENUE
B110: =UPPER(CHOOSE(Base1_Billing2,$N$9,$N$10))&" REVENUE" -> BASE TARIFF REVENUE
B111: BASIC CHARGE | C111: =SUM(D111:I111) -> 32001513 | D111: =D25*D59 -> 23575653 | E111: =E25*E59 -> 7836020 | H111: =H25*H59 -> 589840
B112: MONTHLY MINIMUM | C112: 0
B113: BLOCK 1 | C113: 287988386.7 | D113: =ROUND(D8*D62/100,2) -> 132292800.9 | E113: 50948519.78 | F113: 92664763.29 | G113: =ROUND(G8*G62/100,2) -> 7266600 | H113: 4815702.73
B114: BLOCK 2 | C114: 108191837.3 | D114: 47564180.01 | E114: 16413075.07 | F114: 9859354.12 | G114: 27536688.86 | H114: 6818539.24
B115: BLOCK 3 | C115: 49287440.65 | D115: =ROUND(D10*D64/100,2) -> 33056492.53 | G115: 16230948.12
B116: BLOCK 4 | C116: 0
B117: DEMAND BLOCK 1 | C117: 21076950 | F117: =F25*F69 -> 12617550 | G117: =G25*G69 -> 8459400
B118: DEMAND BLOCK 2 | C118: 32194229.66 | E118: =E27*E70 -> 3068155.838 | F118: =F27*F70 -> 18536249.21 | G118: =G27*G70 -> 10589824.61
A119: JDM-E-22/23 | B119: POWER FACTOR ADJUSTMENT | C119: 126292.44 | E119: ='Bill Determ'!G17*0.5 -> 0 | F119: =('Bill Determ'!G28)*0.5 -> 126292.44 | H119: ='Bill Determ'!G41*0.5 -> 0
A120: JDM-E-29/8 | B120: PRIMARY VOLTAGE DISCOUNT | C120: -1675806.14 | F120: ='REVRUNS 12ME1219'!P360+'REVRUNS 12ME1219'!P367 -> -65169.21 | G120: ='WA Sch 25'!P116 -> -1610636.93
B121: ANNUAL MINIMUM ADJUSTMENT | C121: 0 | G121: ='WA Sch 25'!T147 -> 0
A122: JDM-E-11 | B122: STREET & AREA LIGHT REVENUE | C122: 6628665.002 | I122: ='Lighting summary'!D19 -> 6628665.002
B124: SUBTOTAL | C124: =IF(ROUND(SUM(C111:C122),3)<>ROUND(SUM(D124:I124),3),#VALUE!,SUM(D124:I124)) -> 535819508.6 | D124: =SUM(D111:D122) -> 236489126.5 | E124: 78265770.69 | F124: 133739039.9 | G124: 68472824.66 | H124: 12224081.97 | I124: 6628665.002
C125: =SUM(D125:I125) -> 0 | D125: =ROUND(D15*D67/100,2) -> 0 | E125: =ROUND(E15*E67/100,2) -> 0 | F125: =ROUND(F15*F67/100,2) -> 0 | G125: =ROUND(G15*G63/100,2) -> 0 | H125: =ROUND(H15*H67/100,2) -> 0
B127: SUBTOTAL | C127: =SUM(D127:I127) -> 535819508.6 | D127: =D124+D125 -> 236489126.5 | E127: 78265770.69 | F127: 133739039.9 | G127: 68472824.66 | H127: 12224081.97 | I127: 6628665.002
B128: ADJUST TO ACTUAL | C128: =SUM(D128:I128) -> 0 | D128: =ROUND(D18*D67/100,2) -> 0 | E128: 0 | F128: 0 | G128: 0 | H128: 0 | I128: 0
B130: ="TOTAL "&UPPER(CHOOSE(Base1_Billing2,$N$9,$N$10))&" REVENUE" -> TOTAL BASE TARIFF REVENUE | C130: =IF(ROUND(SUM(D130:I130),3)<>ROUND(SUM(C127:C128),3),#VALUE!,SUM(D130:I130)) -> 535819508.6 | D130: =D127+D128 -> 236489126.5 | E130: 78265770.69 | F130: 133739039.9 | G130: 68472824.66 | H130: 12224081.97 | I130: 6628665.002
B132: ADJUSTMENT REVENUE
B133: UNBILLED REVENUE ADJUSTMENT | L133: =D8/$D$14 -> 0.6701404641 | N133: =$D$134*L133 -> -3298050.055 | P133: =N133*(D62/100) -> -267240.9959
A134: JDM-E-15 | B134: UNBILLED LOAD KWHS | C134: =SUM(D134:I134) -> -9617800 | D134: ='REVRUNS 12ME1219'!P322 -> -4921431 | E134: ='REVRUNS 12ME1219'!P323 -> -1087941 | F134: ='REVRUNS 12ME1219'!P324 -> -3671502 | H134: ='REVRUNS 12ME1219'!P326 -> 63074 | L134: =D9/$D$14 -> 0.2071008954 | N134: =$D$134*L134 -> -1019232.767 | P134: =N134*(D63/100) -> -96083.07291
A135: JDM-E-5/6 | B135: UNBILLED LOAD RATE | D135: =D67 -> 8.739339575 | E135: =E67 -> 10.74183989 | F135: =F67 -> 7.450723726 | H135: =H67 -> 8.336374117 | L135: =D10/$D$14 -> 0.1227586405 | N135: =$D$134*L135 -> -604148.1789 | P135: =N135*(D64/100) -> -66776.49821
B136: UNBILLED LOAD REVENUE | C136: =SUM(D136:I136) -> -815260.84 | D136: =ROUND(D134*D135/100,2) -> -430100.57 | E136: =ROUND(E134*E135/100,2) -> -116864.88 | F136: =ROUND(F134*F135/100,2) -> -273553.47 | H136: =ROUND(H134*H135/100,2) -> 5258.08 | L136: =SUM(L133:L135) -> 1 | N136: =SUM(N133:N135) -> -4921431 | P136: =SUM(P133:P135) -> -430100.567
A138: JDM-E-17 | B138: WEATHER-SENSITIVE KWHS | C138: =SUM(D138:I138) -> 0 | D138: 0 | E138: 0 | F138: 0
A139: JDM-E-5/6 | B139: WEATHER-SENSITIVE RATE | D139: =I226 -> 9.774612049 | E139: =I245 -> 8.588 | F139: =G278 -> 7.162832361
B140: WEATHER-SENSITIVE REVENUE | C140: =SUM(D140:I140) -> 0 | D140: =ROUND(D138*D139/100,2) -> 0 | E140: =ROUND(E138*E139/100,2) -> 0 | F140: =ROUND(F138*F139/100,2) -> 0
A142: JDM-E-15 | B142: TOTAL UNBILLED KWH ADJUST | C142: =IF(ROUND(C134+C138,3)<>ROUND(SUM(D142:I142),3),#VALUE!,C134+C138) -> -9617800 | D142: =D134+D138 -> -4921431 | E142: =E134+E138 -> -1087941 | F142: =F134+F138 -> -3671502 | H142: =H134+H138 -> 63074 | I142: =I134+I138 -> 0
B143: TOTAL UNBILLED REVENUE ADJ | C143: =IF(ROUND(C136+C140,3)<>ROUND(SUM(D143:I143),3),#VALUE!,C136+C140) -> -815260.84 | D143: =D136+D140 -> -430100.57 | E143: =E136+E140 -> -116864.88 | F143: =F136+F140 -> -273553.47 | H143: =H136+H140 -> 5258.08
B144: WEATHER NORMALIZATION ADJ
A145: JDM-E-17 | B145: WEATHER-SENSITIVE KWHS | C145: =SUM(D145:I145) -> -42754825 | D145: -35858069 | E145: -4109408 | F145: -2787348
A146: JDM-E-5/6 | B146: WEATHER-SENSITIVE RATE | D146: =I226 -> 9.774612049 | E146: =I245 -> 8.588 | F146: =G278 -> 7.162832361
B147: WEATHER-SENSITIVE REVENUE | C147: =SUM(D147:I147) -> -4057556.15 | D147: =ROUND(D145*D146/100,2) -> -3504987.13 | E147: =ROUND(E145*E146/100,2) -> -352915.96 | F147: =ROUND(F145*F146/100,2) -> -199653.06
B149: TOTAL ADJUSTMENT REVENUE | C149: =IF(ROUND(C143+C147,3)<>ROUND(SUM(D149:I149),3),#VALUE!,C143+C147) -> -4872816.99 | D149: =D147+D143 -> -3935087.7 | E149: =E147+E143 -> -469780.84 | F149: =F147+F143 -> -473206.53 | H149: =H147+H143 -> 5258.08
B150: =B130 -> TOTAL BASE TARIFF REVENUE | C150: =C130 -> 535819508.6 | D150: 236489126.5 | E150: 78265770.69 | F150: 133739039.9 | G150: 68472824.66 | H150: 12224081.97 | I150: 6628665.002
B152: TOTAL PRESENT REVENUE | C152: =IF(ROUND(C149+C150,3)<>ROUND(SUM(D152:I152),3),#VALUE!,SUM(D152:I152)) -> 530946691.7 | D152: =D149+D150 -> 232554038.8 | E152: 77795989.85 | F152: 133265833.3 | G152: 68472824.66 | H152: 12229340.05 | I152: 6628665.002
A160: WORK PAPER | D160: RESIDENTIAL | E160: GENERAL SVC. | F160: LG. GEN. SVC. | G160: EX LG GEN SVC | H160: PUMPING | I160: ST & AREA LTG
A161: REFERENCE | C161: TOTAL | D161: SCHEDULE 1 | E161: SCH. 11,12 | F161: SCH. 21,22 | G161: SCHEDULE 25 | H161: SCH. 30, 31, 32 | I161: SCH. 41-48
B162: PROPOSED REVENUE
B163: =UPPER(CHOOSE(Base1_Billing2,$N$9,$N$10))&" REVENUE" -> BASE TARIFF REVENUE
B164: BASIC CHARGE | C164: =SUM(D164:I164) -> 32001513 | D164: =D48*D76 -> 23575653 | E164: =E48*E76 -> 7836020 | H164: =H48*H76 -> 589840
B165: MONTHLY MINIMUM | C165: 0 | D165: =D49*D77 -> 0
B166: BLOCK 1 | C166: 292342335 | D166: =ROUND(D31*D79/100,2) -> 135215226.1 | E166: 51353980.36 | F166: 93488723.36 | G166: 7399920 | H166: =ROUND(H31*H79/100,2) -> 4884485.11
B167: BLOCK 2 | C167: 110062339.8 | D167: 48613649.56 | E167: 16543034.21 | F167: 9947096.82 | G167: 28042612.28 | H167: 6915946.94
B168: BLOCK 3 | C168: 50312285.9 | D168: =ROUND(D33*D81/100,2) -> 33786229.63 | G168: 16526056.27
B169: BLOCK 4 | C169: 0 | D169: =ROUND(D34*D82/100,2) -> 0
B170: DEMAND BLOCK 1 | C170: 21076950 | F170: =ROUND(F48*F86,2) -> 12617550 | G170: =ROUND(G48*G86,2) -> 8459400
B171: DEMAND BLOCK 2 | C171: 32194229.66 | E171: =ROUND(E50*E87,2) -> 3068155.84 | F171: =ROUND(F50*F87,2) -> 18536249.21 | G171: =ROUND(G50*G87,2) -> 10589824.61
B172: POWER FACTOR ADJUSTMENT | C172: 126292.44 | E172: =E119 -> 0 | F172: =F119 -> 126292.44 | H172: =H119 -> 0
B173: PRIMARY VOLTAGE DISCOUNT | C173: -1675806.14 | F173: =F120 -> -65169.21 | G173: ='WA Sch 25'!P121 -> -1610636.93
B174: ANNUAL MINIMUM ADJUSTMENT | C174: 0 | G174: 0
A175: JDM-E-11 | B175: STREET & AREA LIGHT REVENUE | C175: 7178826.122 | I175: ='Lighting summary'!G19 -> 7178826.122
B177: SUBTOTAL | C177: =IF(ROUND(SUM(C164:C175),3)<>ROUND(SUM(D177:I177),3),#VALUE!,SUM(D177:I177)) -> 543618965.7 | D177: =SUM(D164:D175) -> 241190758.3 | E177: 78801190.41 | F177: 134650742.6 | G177: 69407176.23 | H177: 12390272.05 | I177: 7178826.122
C178: =SUM(D178:I178) -> 0 | D178: =ROUND(D38*D84/100,2) -> 0 | E178: =ROUND(E38*E84/100,2) -> 0 | F178: =ROUND(F38*F84/100,2) -> 0 | G178: =ROUND(G38*G80/100,2) -> 0 | H178: =ROUND(H38*H84/100,2) -> 0 | I178: 0
B180: SUBTOTAL | C180: =SUM(D180:I180) -> 543618965.7 | D180: =D177+D178 -> 241190758.3 | E180: 78801190.41 | F180: 134650742.6 | G180: 69407176.23 | H180: 12390272.05 | I180: 7178826.122
B181: ADJUST TO ACTUAL | C181: =SUM(D181:I181) -> 0 | D181: =ROUND(D41*D84/100,2) -> 0 | E181: 0 | F181: 0 | G181: 0 | H181: 0 | I181: 0
B183: ="SUBTOTAL "&UPPER(CHOOSE(Base1_Billing2,$N$9,$N$10))&" REVENUE" -> SUBTOTAL BASE TARIFF REVENUE | C183: =IF(ROUND(SUM(D183:I183),3)<>ROUND(SUM(C180:C181),3),#VALUE!,SUM(D183:I183)) -> 543618965.7 | D183: =D180+D181 -> 241190758.3 | E183: 78801190.41 | F183: 134650742.6 | G183: 69407176.23 | H183: 12390272.05 | I183: 7178826.122
B185: ADJUSTMENT REVENUE
B186: UNBILLED REVENUE ADJUSTMENT
B187: UNBILLED LOAD KWHS | C187: =SUM(D187:I187) -> -9617800 | D187: =D134 -> -4921431 | E187: =E134 -> -1087941 | F187: =F134 -> -3671502 | H187: =H134 -> 63074
B188: UNBILLED LOAD RATE | D188: =D84 -> 8.932324812 | E188: =E84 -> 10.82722078 | F188: =F84 -> 7.516979799 | H188: =H84 -> 8.45545559
B189: UNBILLED LOAD REVENUE | C189: =SUM(D189:I189) -> -828044.84 | D189: =ROUND(D187*D188/100,2) -> -439598.2 | E189: =ROUND(E187*E188/100,2) -> -117793.77 | F189: =ROUND(F187*F188/100,2) -> -275986.06 | H189: =ROUND(H187*H188/100,2) -> 5333.19
B191: WEATHER-SENSITIVE KWHS | C191: =SUM(D191:I191) -> 0 | D191: =D138 -> 0 | E191: =E138 -> 0 | F191: =F138 -> 0
B192: WEATHER-SENSITIVE RATE | D192: =I235 -> 9.990350125 | E192: =I253 -> 8.656 | F192: =G286 -> 7.226528341
B193: WEATHER-SENSITIVE REVENUE | C193: =SUM(D193:I193) -> 0 | D193: =ROUND(D191*D192/100,2) -> 0 | E193: =ROUND(E191*E192/100,2) -> 0 | F193: =ROUND(F191*F192/100,2) -> 0
B195: TOTAL UNBILLED KWH ADJUST | C195: =IF(ROUND(C187+C191,3)<>ROUND(SUM(D195:I195),3),#VALUE!,SUM(D195:I195)) -> -9617800 | D195: =D187+D191 -> -4921431 | E195: =E187+E191 -> -1087941 | F195: =F187+F191 -> -3671502 | H195: =H187+H191 -> 63074
B196: TOTAL UNBILLED REVENUE ADJ | C196: =IF(ROUND(C189+C193,3)<>ROUND(SUM(D196:I196),3),#VALUE!,SUM(D196:I196)) -> -828044.84 | D196: =D189+D193 -> -439598.2 | E196: =E189+E193 -> -117793.77 | F196: =F189+F193 -> -275986.06 | H196: =H189+H193 -> 5333.19
B197: WEATHER NORMALIZATION ADJ
B198: WEATHER-SENSITIVE KWHS | C198: =SUM(D198:I198) -> -42754825 | D198: =D145 -> -35858069 | E198: =E145 -> -4109408 | F198: =F145 -> -2787348
B199: WEATHER-SENSITIVE RATE | D199: =I235 -> 9.990350125 | E199: =I253 -> 8.656 | F199: =G286 -> 7.226528341
B200: WEATHER-SENSITIVE REVENUE | C200: =SUM(D200:I200) -> -4139485.49 | D200: =ROUND(D198*D199/100,2) -> -3582346.64 | E200: =ROUND(E198*E199/100,2) -> -355710.36 | F200: =ROUND(F198*F199/100,2) -> -201428.49
B202: TOTAL ADJUSTMENT REVENUE | C202: =IF(ROUND(SUM(D202:I202),3)<>ROUND(C196+C200,3),#VALUE!,SUM(D202:I202)) -> -4967530.33 | D202: =D200+D196 -> -4021944.84 | E202: =E200+E196 -> -473504.13 | F202: =F200+F196 -> -477414.55 | H202: =H200+H196 -> 5333.19
B203: ="TOTAL "&UPPER(CHOOSE(Base1_Billing2,$N$9,$N$10))&" REVENUE" -> TOTAL BASE TARIFF REVENUE | C203: =SUM(D203:I203) -> 543618965.7 | D203: =D183 -> 241190758.3 | E203: 78801190.41 | F203: 134650742.6 | G203: 69407176.23 | H203: 12390272.05 | I203: 7178826.122
B204: TOTAL PROPOSED REVENUE | C204: =IF(ROUND(SUM(D204:I204),3)<>ROUND(SUM(C202:C203),3),#VALUE!,SUM(D204:I204)) -> 538651435.4 | D204: =D202+D203 -> 237168813.5 | E204: 78327686.28 | F204: 134173328.1 | G204: 69407176.23 | H204: 12395605.24 | I204: 7178826.122
B205: TOTAL PRESENT REVENUE | C205: =SUM(D205:I205) -> 530946691.7 | D205: =D152 -> 232554038.8 | E205: 77795989.85 | F205: 133265833.3 | G205: 68472824.66 | H205: 12229340.05 | I205: 6628665.002
B207: TOTAL REVENUE INCREASE | C207: =SUM(D207:I207) -> 7704743.762 | D207: =D204-D205 -> 4614774.7 | E207: 531696.4315 | F207: 907494.7492 | G207: 934351.5711 | H207: 166265.19 | I207: 550161.12
B208: PERCENT REVENUE INCREASE | C208: =C207/C205 -> 0.01451133208 | D208: =D207/D205 -> 0.01984388112 | E208: 0.006834496644 | F208: 0.006809658009 | G208: 0.0136455824 | H208: 0.01359559791 | I208: =I207/I205 -> 0.08299727318
B209: =IF(Base1_Billing2=2,"Pres and Prop Revenues may be incorrect due to Sch 59--for example all of Sch 11 gets benefit of Sch 59 but it s/only be Sch 12; see Billing Rev on Exhibit page for fix","") -> 
C210: =C4 -> 
A216: WORK PAPER | D216: TOTAL | E216: TOTAL | F216: BASELOAD | G216: BASELOAD | H216: WTHR-SENS. | I216: WTHR-SENS.
A217: REFERENCE | C217: RATES | D217: KWHS | E217: REVENUE | F217: KWHS | G217: REVENUE | H217: KWHS | I217: REVENUE
B219: PRESENT BASELOAD AND WEATHER-SENSITIVE RATES
B220: SCHEDULE 1
B221: 0-800 KWHS | C221: =D62 -> 8.103 | D221: =D8 -> 1632639774 | E221: =C221*D221/100 -> 132292800.9 | F221: =MIN(D221,F225) -> 1508841792 | G221: =F221*C221/100 -> 122261450.4 | H221: =D221-F221 -> 123797982.5 | I221: =H221*C221/100 -> 10031350.52 | L221: =H221/$H$225 -> 0.1334859621 | N221: =L221*$D$145 -> -4786548.839 | O221: =N221*(C221/100) -> -387854.0524
B222: 801-1500 KWHS | C222: =D63 -> 9.427 | D222: =D9 -> 504552668 | E222: =C222*D222/100 -> 47564180.01 | F222: =MIN(F225-F221,D222) -> 0 | G222: =F222*C222/100 -> 0 | H222: =D222-F222 -> 504552668 | I222: =H222*C222/100 -> 47564180.01 | L222: =H222/$H$225 -> 0.5440371236 | N222: =L222*$D$145 -> -19508120.72 | O222: =N222*(C222/100) -> -1839030.54
B223: OVER 100 KWHS | C223: =D64 -> 11.053 | D223: =D10 -> 299072582.4 | E223: =C223*D223/100 -> 33056492.53 | F223: =MIN(F225-F221-F222,D223) -> 0 | G223: =F223*C223/100 -> 0 | H223: =D223-F223 -> 299072582.4 | I223: =H223*C223/100 -> 33056492.53 | L223: =H223/$H$225 -> 0.3224769143 | N223: =L223*$D$145 -> -11563399.44 | O223: =N223*(C223/100) -> -1278102.54
N224: =SUM(N221:N223) -> -35858069 | O224: =SUM(O221:O223) -> -3504987.133
B225: TOTAL | D225: =D221+D222+D223 -> 2436265025 | E225: 212913473.5 | F225: =576*D25 -> 1508841792 | G225: 122261450.4 | H225: 927423232.8 | I225: 90652023.06
B226: AVERAGE RATE | E226: =E225/D225*100 -> 8.739339575 | G226: =G225/F225*100 -> 8.103 | I226: =I225/H225*100 -> 9.774612049
B228: PROPOSED BASELOAD AND WEATHER-SENSITIVE RATES
B229: SCHEDULE 1
B230: 0-800 KWHS | C230: =D79 -> 8.282 | D230: =D221 -> 1632639774 | E230: =C230*D230/100 -> 135215226.1 | F230: =MIN(D230,F234) -> 1508841792 | G230: =F230*C230/100 -> 124962277.2 | H230: =H221 -> 123797982.5 | I230: =H230*C230/100 -> 10252948.91
B231: 801-1500 KWHS | C231: =D80 -> 9.635 | D231: =D222 -> 504552668 | E231: =C231*D231/100 -> 48613649.56 | F231: =MIN(F234-F230,D231) -> 0 | G231: =F231*C231/100 -> 0 | H231: =H222 -> 504552668 | I231: =H231*C231/100 -> 48613649.56
B232: OVER 1500 KWHS | C232: =D81 -> 11.297 | D232: =D223 -> 299072582.4 | E232: =C232*D232/100 -> 33786229.63 | F232: =MIN(F234-F230-F231,D232) -> 0 | G232: =F232*C232/100 -> 0 | H232: =H223 -> 299072582.4 | I232: =H232*C232/100 -> 33786229.63
B234: TOTAL | D234: =D230+D231+D232 -> 2436265025 | E234: 217615105.3 | F234: =F225 -> 1508841792 | G234: 124962277.2 | H234: 927423232.8 | I234: 92652828.1
B235: AVERAGE RATE | E235: =E234/D234*100 -> 8.932324813 | G235: =G234/F234*100 -> 8.282 | I235: =I234/H234*100 -> 9.990350125
B239: PRESENT BASELOAD AND WEATHER-SENSITIVE RATES
B240: SCHEDULE 11
B241: 0-3650 KWHS | C241: =E62 -> 11.686 | D241: =E8 -> 435979118.4 | E241: =C241*D241/100 -> 50948519.78 | F241: =MIN(D241,F244) -> 435979118.4 | G241: =F241*C241/100 -> 50948519.78 | H241: =D241-F241 -> 0 | I241: =H241*C241/100 -> 0
B242: over 3650 KWHS | C242: =E63 -> 8.588 | D242: =E9 -> 191116384.1 | E242: =C242*D242/100 -> 16413075.07 | F242: =MIN(F244-F241,D242) -> 138009346.6 | G242: =F242*C242/100 -> 11852242.69 | H242: =D242-F242 -> 53107037.54 | I242: =H242*C242/100 -> 4560832.384
B244: TOTAL | D244: =D241+D242 -> 627095502.5 | E244: 67361594.85 | F244: =1465*E25 -> 573988465 | G244: 62800762.46 | H244: 53107037.54 | I244: 4560832.384
B245: AVERAGE RATE | E245: =E244/D244*100 -> 10.74183989 | G245: =G244/F244*100 -> 10.94111925 | I245: =I244/H244*100 -> 8.588
B247: PROPOSED BASELOAD AND WEATHER-SENSITIVE RATES
B248: SCHEDULE 11
B249: 0-3650 KWHS | C249: =E79 -> 11.779 | D249: =E31 -> 435979118.4 | E249: =C249*D249/100 -> 51353980.36 | F249: =MIN(D249,F252) -> 435979118.4 | G249: =F249*C249/100 -> 51353980.36 | H249: =D249-F249 -> 0 | I249: =H249*C249/100 -> 0
B250: over 3650 KWHS | C250: =E80 -> 8.656 | D250: =E32 -> 191116384.1 | E250: =C250*D250/100 -> 16543034.21 | F250: =MIN(F252-F249,D250) -> 138009346.6 | G250: =F250*C250/100 -> 11946089.04 | H250: =D250-F250 -> 53107037.54 | I250: =H250*C250/100 -> 4596945.169
B252: TOTAL | D252: =D249+D250 -> 627095502.5 | E252: 67897014.57 | F252: =F244 -> 573988465 | G252: 63300069.4 | H252: 53107037.54 | I252: 4596945.169
B253: AVERAGE RATE | E253: =E252/D252*100 -> 10.82722078 | G253: =G252/F252*100 -> 11.02810827 | I253: =I252/H252*100 -> 8.656
B261: Note: Total Base Load for Sch. 1 = Base Load per bill times total billings (base load per bill on JDM-E-18) =
B262: ="663 X "&TEXT(D25,"#,##0")&" = "&TEXT(F225,"#,##0") -> 663 X 2,619,517 = 1,508,841,792
B263: ="Total Base Load for Sch. 11 = 1,338 X "&TEXT(E25,"#,##0")&" = "&TEXT(F244,"#,##0") -> Total Base Load for Sch. 11 = 1,338 X 391,801 = 573,988,465
B264: =IF(Base1_Billing2=2,"Pres and Prop Revenues may be incorrect due to Sch 59--for example all of Sch 11 gets benefit of Sch 59 but it s/only be Sch 12; see Billing Rev on Exhibit page for fix","") -> 
A269: WORK PAPER | D269: TOTAL | E269: TOTAL | F269: BASELOAD | G269: BASELOAD | H269: WTHR-SENS. | I269: WTHR-SENS.
A270: REFERENCE | C270: RATES | D270: KWHS | E270: REVENUE | F270: KWHS | G270: REVENUE | H270: KWHS | I270: REVENUE
B272: PRESENT BASELOAD AND WEATHER-SENSITIVE RATES
B273: SCHEDULE 21
B274: 0-250000 KWHS | C274: =F62 -> 7.535 | D274: =F8 -> 1229791152 | E274: =C274*D274/100 -> 92664763.29 | F274: =MIN(D274,F277) -> 1229791152 | G274: =F274*C274/100 -> 92664763.29 | H274: =D274-F274 -> 0 | I274: =H274*C274/100 -> 0
B275: OVER 250000 KWHS | C275: =F63 -> 6.742 | D275: =F9 -> 146237824.5 | E275: =C275*D275/100 -> 9859354.125 | F275: =MIN(F277-F274,D275) -> 146237824.5 | G275: =F275*C275/100 -> 9859354.125 | H275: =D275-F275 -> 0 | I275: =H275*C275/100 -> 0
B277: TOTAL | D277: =D274+D275 -> 1376028976 | E277: =E274+E275 -> 102524117.4 | F277: =62392*F25 -> 1431334872 | G277: =G274+G275 -> 102524117.4 | H277: =H274+H275 -> 0 | I277: =I274+I275 -> 0
B278: AVERAGE RATE | E278: =E277/D277*100 -> 7.450723726 | G278: =G277/F277*100 -> 7.162832361 | I278: =I277/H277*100 -> 
B280: PROPOSED BASELOAD AND WEATHER-SENSITIVE RATES
B281: SCHEDULE 21
B282: 0-250000 KWHS | C282: =F79 -> 7.602 | D282: =D274 -> 1229791152 | E282: =C282*D282/100 -> 93488723.36 | F282: =MIN(D282,F285) -> 1229791152 | G282: =F282*C282/100 -> 93488723.36 | H282: =H274 -> 0 | I282: =H282*C282/100 -> 0
B283: OVER 250000 KWHS | C283: =F80 -> 6.802 | D283: =D275 -> 146237824.5 | E283: =C283*D283/100 -> 9947096.819 | F283: =MIN(F285-F282,D283) -> 146237824.5 | G283: =F283*C283/100 -> 9947096.819 | H283: =H275 -> 0 | I283: =H283*C283/100 -> 0
B285: TOTAL | D285: =D282+D283 -> 1376028976 | E285: =E282+E283 -> 103435820.2 | F285: =F277 -> 1431334872 | G285: =G282+G283 -> 103435820.2 | H285: =H282+H283 -> 0 | I285: =I282+I283 -> 0
B286: AVERAGE RATE | G286: =G285/F285*100 -> 7.226528341 | I286: =I285/H285*100 -> 
B294: Note: Total Base Load for Sch. 21 = Base Load per bill times total billings (base load per bill on JDM-E-18) =
B295: ="53,800 X "&TEXT(F25,"#,##0")&" = "&TEXT(F277,"#,##0") -> 53,800 X 22,941 = 1,431,334,872
D299: =D207/D48 -> 1.761689159 | E299: =E207/E48 -> 1.357057362 | F299: =F207/F48 -> 39.55776772 | G299: =G207/G48 -> 3385.331779 | H299: =H207/H48 -> 5.637636986
D300: =D23/D25 -> 914.4760369 | E300: =E23/E25 -> 1587.280669 | F300: =F23/F25 -> 59699.66986 | G300: =G23/G25 -> 3881221.5 | H300: =H23/H25 -> 4734.268718
D301: =D300*-#REF! ->  | E301: =E300*-#REF! ->  | F301: =F300*-#REF! ->  | G301: =G300*-#REF! ->  | H301: =H300*-#REF! -> 
D302: =(800*((D79-D62)/100))+(118*((D80-D63)/100))+(D76-D59) -> 1.67744
D305: =D299+D301 ->  | E305: =E299+E301 ->  | F305: =F299+F301 ->  | G305: =G299+G301 ->  | H305: =H299+H301 -> 

Sheet Proposed Increase
A1: AVISTA UTILITIES | V1: This worksheet pulls data from 'Pres & Prop Rev' tab.
A2: WASHINGTON ELECTRIC
A3: PROPOSED INCREASE BY SERVICE SCHEDULE
A4: 12 MONTHS ENDED DECEMBER 31, 2019
A5: (000s of Dollars)
D10: Base Tariff | F10: Base Tariff | G10: Base | H10: Total Billed | J10: Adjusted Billed | K10: Base | L10: Sch 94 | M10: Sch 92 | O10: Percent | S10: Percent | W10: Percent | X10: Total Billed
D11: Revenue | E11: Settlement | F11: Revenue | G11: Tariff | H11: Revenue | I11: Misc | J11: Revenue | K11: Rate | L11: Remand | M11: LIRAP | N11: Total | O11: Increase | P11: Sch. 98 | Q11: Sch. 93 | R11: Proposed | S11: Increase | W11: Increase | X11: Revenue
B12: Type of | C12: Schedule | D12: Under Present | E12: General | F12: Under Proposed | G12: Percent | H12: at Present | I12: Rate Adjustment | J12: at Present | K12: General | L12: Rate | M12: Rate | N12: Net | O12: on Billed | P12: REC Revenue | Q12: ERM | R12: General | S12: on Billed | W12: on Base | X12: at Proposed
A13: No. | B13: Service | C13: Number | D13: Rates(1) | E13: Increase | F13: Rates(1) | G13: Increase | H13: Rates (2) | I13: Change | J13: Rates (2) | K13: Increase | L13: Adjustment | M13: Adjustment | N13: Impact | O13: Revenue | P13: Decrease | Q13: Increase | R13: Increase | S13: Revenue | W13: Revenue | X13: Rates (2) | Z13: GRC | AA13: LIRAP
B14: (a) | C14: (b) | D14: (c) | E14: (d) | F14: (e) | G14: (f) | H14: (g) | I14: (h) | J14: (h) | K14: (h) | L14: (i) | M14: (k) | N14: (j) | O14: (k) | P14: (j) | Q14: (k) | R14: (j) | S14: (k) | U14: ="col (m) source" -> col (m) source
D15: =IF(Base1_Billing2<>1,"ERROR","") -> 
A16: 1 | B16: Residential | C16: 1/2 | D16: ='Pres & Prop Rev'!$D$152/1000 -> 232554.0388 | E16: ='Pres & Prop Rev'!$D$207/1000 -> 4614.7747 | F16: =D16+E16 -> 237168.8135 | G16: =E16/D16 -> 0.01984388112 | H16: =226685.09923-138 -> 226547.0992 | I16: 0 | J16: =H16+I16 -> 226547.0992 | K16: =E16 -> 4614.7747 | L16: 0 | M16: 0 | N16: =K16+L16+M16 -> 4614.7747 | O16: =(K16+L16+M16)/J16 -> 0.02037004542 | P16: =#REF!/1000 ->  | Q16: =('Pres & Prop Rev'!D23*(0))/1000 -> 0 | R16: =E16+Q16 -> 4614.7747 | S16: =(R16)/H16 -> 0.02037004542 | U16: from Pres & Prop Rev tab | W16: =(E16+Q16)/D16 -> 0.01984388112 | X16: =K16+J16+M16 -> 231161.8739 | Z16: =K16/J16 -> 0.02037004542 | AA16: =M16/J16 -> 0
A18: 2 | B18: General Service | C18: 11/12 | D18: ='Pres & Prop Rev'!$E$152/1000 -> 77795.98985 | E18: ='Pres & Prop Rev'!$E$207/1000 -> 531.6964315 | F18: =D18+E18 -> 78327.68628 | G18: =E18/D18 -> 0.006834496644 | H18: =80463.9329184615-253 -> 80210.93292 | I18: 0 | J18: =H18+I18 -> 80210.93292 | K18: =E18 -> 531.6964315 | L18: 0 | M18: 0 | N18: =K18+L18+M18 -> 531.6964315 | O18: =(K18+L18+M18)/J18 -> 0.006628727683 | P18: =#REF!/1000 ->  | Q18: =('Pres & Prop Rev'!E23*(0))/1000 -> 0 | R18: =E18+Q18 -> 531.6964315 | S18: =(R18)/H18 -> 0.006628727683 | U18: from below | W18: =(E18+Q18)/D18 -> 0.006834496644 | X18: =K18+J18+M18 -> 80742.62935 | Z18: =K18/J18 -> 0.006628727683 | AA18: =M18/J18 -> 0
A20: 3 | B20: Large General Service | C20: 21/22 | D20: ='Pres & Prop Rev'!$F$152/1000 -> 133265.8333 | E20: ='Pres & Prop Rev'!$F$207/1000 -> 907.4947492 | F20: =D20+E20 -> 134173.3281 | G20: =E20/D20 -> 0.006809658009 | H20: =137320.079690769-137 -> 137183.0797 | I20: 0 | J20: 137183.0797 | K20: =E20 -> 907.4947492 | L20: 0 | M20: 0 | N20: =K20+L20+M20 -> 907.4947492 | O20: =(K20+L20+M20)/J20 -> 0.006615209042 | P20: =#REF!/1000 ->  | Q20: =('Pres & Prop Rev'!F23*(0))/1000 -> 0 | R20: =E20+Q20 -> 907.4947492 | S20: =(R20)/H20 -> 0.006615209042 | U20: from below | W20: =(E20+Q20)/D20 -> 0.006809658009 | X20: =K20+J20+M20 -> 138090.5744 | Z20: =K20/J20 -> 0.006615209042 | AA20: =M20/J20 -> 0
A22: 4 | B22: Extra Large General Service | C22: 25 | D22: ='Pres & Prop Rev'!$G$152/1000 -> 68472.82466 | E22: ='Pres & Prop Rev'!$G$207/1000 -> 934.3515711 | F22: =D22+E22 -> 69407.17623 | G22: =E22/D22 -> 0.0136455824 | H22: 66850.24277 | I22: 0 | J22: 66850.24277 | K22: =E22 -> 934.3515711 | L22: 0 | M22: 0 | N22: =K22+L22+M22 -> 934.3515711 | O22: =(K22+L22+M22)/J22 -> 0.01397678651 | P22: =#REF!/1000 ->  | Q22: =('Pres & Prop Rev'!G23*(0))/1000 -> 0 | R22: =E22+Q22 -> 934.3515711 | S22: =(R22)/H22 -> 0.01397678651 | U22: from Pres & Prop Rev tab | W22: =(E22+Q22)/D22 -> 0.0136455824 | X22: =K22+J22+M22 -> 67784.59434 | Z22: =K22/J22 -> 0.01397678651 | AA22: =M22/J22 -> 0
A24: 5 | B24: Pumping Service | C24: 30/31/32 | D24: ='Pres & Prop Rev'!$H$152/1000 -> 12229.34005 | E24: ='Pres & Prop Rev'!$H$207/1000 -> 166.26519 | F24: =D24+E24 -> 12395.60524 | G24: =E24/D24 -> 0.01359559791 | H24: =12597.94491-36 -> 12561.94491 | I24: 0 | J24: 12561.94491 | K24: =E24 -> 166.26519 | L24: 0 | M24: 0 | N24: =K24+L24+M24 -> 166.26519 | O24: =(K24+L24+M24)/J24 -> 0.01323562483 | P24: =#REF!/1000 ->  | Q24: =('Pres & Prop Rev'!H23*(0))/1000 -> 0 | R24: =E24+Q24 -> 166.26519 | S24: =(R24)/H24 -> 0.01323562483 | U24: from below | W24: =(E24+Q24)/D24 -> 0.01359559791 | X24: =K24+J24+M24 -> 12728.2101 | Z24: =K24/J24 -> 0.01323562483 | AA24: =M24/J24 -> 0
A26: 6 | B26: Street & Area Lights | C26: 41-48 | D26: ='Pres & Prop Rev'!$I$152/1000 -> 6628.665002 | E26: ='Pres & Prop Rev'!$I$207/1000 -> 550.16112 | F26: =D26+E26 -> 7178.826122 | G26: =E26/D26 -> 0.08299727318 | H26: =6628.562281992+141 -> 6769.562282 | I26: 0 | J26: =H26+I26 -> 6769.562282 | K26: =E26 -> 550.16112 | L26: 0 | M26: 0 | N26: =K26+L26+M26 -> 550.16112 | O26: =(K26+L26+M26)/J26 -> 0.08126982175 | P26: =#REF!/1000 ->  | Q26: =('Pres & Prop Rev'!I23*(0))/1000 -> 0 | R26: =E26+Q26 -> 550.16112 | S26: =(R26)/H26 -> 0.08126982175 | U26: from Pres & Prop Rev tab | W26: =(E26+Q26)/D26 -> 0.08299727318 | X26: =K26+J26+M26 -> 7319.723402 | Z26: =K26/J26 -> 0.08126982175 | AA26: =M26/J26 -> 0
A28: 7 | B28: Total | D28: =SUM(D16:D26) -> 530946.6917 | E28: =SUM(E16:E26) -> 7704.743762 | F28: =SUM(F16:F26) -> 538651.4354 | G28: =E28/D28 -> 0.01451133208 | H28: =SUM(H16:H26) -> 530122.8618 | I28: =SUM(I16:I26) -> 0 | J28: 530122.8618 | K28: =E28 -> 7704.743762 | L28: =SUM(L16:L26) -> 0 | M28: =SUM(M16:M26) -> 0 | N28: =K28+L28+M28 -> 7704.743762 | O28: =(K28+L28+M28)/J28 -> 0.01453388321 | P28: =SUM(P16:P27) ->  | Q28: =SUM(Q16:Q26) -> 0 | R28: =E28+Q28 -> 7704.743762 | S28: =(R28)/H28 -> 0.01453388321 | U28: from below | W28: =(E28+Q28)/D28 -> 0.01451133208 | X28: =E28+H28+Q28 -> 537827.6056 | Z28: =K28/J28 -> 0.01453388321 | AA28: =M28/J28 -> 0
D29: =ROUND(D28-'Pres & Prop Rev'!C205/1000,0) -> 0
A33: (1) Excludes all present rate adjustments: Schedule 59 (BPA Residential Exchange), Schedule 75 (Decoupling),
A34: Schedule 91 (DSM), Schedule 92 (LIRAP), Schedule 93 (ERM), Schedule 94 (Remand) and Schedule 98 (REC Revenue).
A36: (2) Includes all present rate adjustments: Schedule 59 (BPA Residential Exchange), Schedule 75 (Decoupling),
A37: Schedule 91 (DSM), Schedule 92 (LIRAP), Schedule 93 (ERM), Schedule 94 (Remand) and Schedule 98 (REC Revenue).
B40: reduce billed revenue for BPA ResEx (already accounted for in Schs 1 & 48)
F41: Billing | K41: Billed Revenue
F42: Determinants | H42: Sch 59 Rate | K42: Impact
B43: Schedule 12 only | F43: ='REVRUNS 12ME1219'!P113 -> 61017333.26 | H43: -0.00414 | K43: =F43*H43 -> -252611.7597
B44: Schedule 22 only | F44: ='REVRUNS 12ME1219'!P143 -> 33141700.52 | H44: =H43 -> -0.00414 | K44: =F44*H44 -> -137206.6402
B45: Schedule 32 only | F45: ='REVRUNS 12ME1219'!P198 -> 8612374.172 | H45: =H44 -> -0.00414 | K45: =F45*H45 -> -35655.22907
B46: Schedule 48 only | F46: ='REVRUNS 12ME1219'!P262 -> 2499245.176 | H46: -0.00414 | K46: =F46*H46 -> -10346.87503
B47: Total | F47: =SUM(F43:F46) -> 105270653.1 | K47: =SUM(K43:K46) -> -435820.5039 | O47: Manually deducted in Column H
B49: Schedule 98 (REC Revenue Rebate) | H49: Sch 98 Rate
B50: Schedule 41-48 only | F50: ='REVRUNS 12ME1219'!P287 -> 17961923.66 | H50: -0.00035 | K50: =F50*H50 -> -6286.673281
B52: Schedule 92 (LIRAP) | H52: Sch 92 Rate
B53: Schedule 41-48 only | F53: ='Lighting summary'!D19 -> 6628665.002 | H53: 0.0166 | K53: =F53*H53 -> 110035.839
B55: Schedule 93 (ERM) | H55: Sch 93 Rate
B56: Schedule 41-48 only | F56: ='REVRUNS 12ME1219'!P287 -> 17961923.66 | H56: -0.00789 | K56: =F56*H56 -> -141719.5777
B58: Schedule 94 (Remand) | H58: Sch 94 Rate
B59: Schedule 41-48 only | F59: ='REVRUNS 12ME1219'!P287 -> 17961923.66 | H59: -0.00339 | K59: =F59*H59 -> -60890.92121
B61: Schedule 91 (DSM) | H61: Sch 91 Rate
B62: Schedule 41-48 only | F62: ='REVRUNS 12ME1219'!P287 -> 17961923.66 | H62: 0.01394 | K62: =F62*H62 -> 250389.2158
S63: ERM Reduction Calc
H64: Sch 89 Rate
B65: Schedule 2 only | F65: ='REVRUNS 12ME1219'!P83 -> 4501964.018 | H65: -0.03064 | K65: =F65*H65 -> -137940.1775 | Q65: 0 | R65: 1 | S65: =-D16*$Q$66 -> 0 | U65: =0/'Pres & Prop Rev'!D23 -> 0 | V65: =(D16/$D$28)*$S$71 -> 0
Q66: =Q65/D28 -> 0 | R66: 11 | S66: =-D18*Q66 -> 0 | V66: =(D18/$D$28)*$S$71 -> 0
R67: 21 | S67: =-D20*Q66 -> 0 | V67: =(D20/$D$28)*$S$71 -> 0
R68: 25 | S68: =-D22*Q66 -> 0 | V68: =(D22/$D$28)*$S$71 -> 0
B69: Schedule 41-48 only Total | K69: =K46+K50+K62+K59+K56+K53 -> 141181.0077 | R69: 31 | S69: =-D24*Q66 -> 0 | V69: =(D24/$D$28)*$S$71 -> 0
R70: 41-48 | S70: =-D26*Q66 -> 0 | V70: =(D26/$D$28)*$S$71 -> 0
S71: =SUM(S65:S70) -> 0 | V71: =SUM(V65:V70) -> 0

Sheet Present&Prop Class ROR
A1: AVISTA UTILITIES | N1: This worksheet pulls data from 'ROR' tab.
A2: WASHINGTON ELECTRIC
A3: PRESENT & PROPOSED RATES OF RETURN BY RATE SCHEDULE
A4: 12 MONTHS ENDED DECEMBER 31, 2019
D9: Present Rates | H9: Base | J9: Proposed Rates
D10: Present | E10: Present | F10: Present | H10: Tariff | J10: Proposed | K10: Proposed | L10: Proposed
A11: Line | B11: Type of | C11: Sch. | D11: Rate of | E11: Parity | F11: Return | H11: Proposed | J11: Rate of | K11: Parity | L11: Return
A12: No. | B12: Service | C12: Number | D12: Return | E12: Ratio | F12: Ratio | H12: Increase | J12: Return | K12: Ratio | L12: Ratio
B13: (a) | C13: (b) | D13: (c) | E13: (d) | F13: (e) | H13: (f) | J13: (g) | K13: (h) | L13: (i)
A14: 1 | B14: Residential | C14: 1/2 | D14: =INDEX(ROR!$C$20:$I$20,$A14+1) -> 0.01709501123 | E14: 0.82 | F14: =INDEX(ROR!$C$21:$I$21,$A14+1) -> 0.3024267933 | H14: =INDEX(ROR!$C$47:$I$47,$A14+1) -> -0.01057841663 | J14: =INDEX(ROR!$C$38:$I$38,$A14+1) -> 0.01514036711 | K14: 0.82 | L14: =INDEX(ROR!$C$37:$I$37,$A14+1) -> 0.2547396072
A15: 2 | B15: General Service | C15: 11/12 | D15: =INDEX(ROR!$C$20:$I$20,$A15+1) -> 0.1067105405 | E15: 1.24 | F15: =INDEX(ROR!$C$21:$I$21,$A15+1) -> 1.887809615 | H15: =INDEX(ROR!$C$47:$I$47,$A15+1) -> 0.006808589131 | J15: =INDEX(ROR!$C$38:$I$38,$A15+1) -> 0.1078904996 | K15: 1.24 | L15: =INDEX(ROR!$C$37:$I$37,$A15+1) -> 1.815278539
A16: 3 | B16: Large General Service | C16: 21/22 | D16: =INDEX(ROR!$C$20:$I$20,$A16+1) -> 0.10958848 | E16: 1.25 | F16: =INDEX(ROR!$C$21:$I$21,$A16+1) -> 1.938723067 | H16: =INDEX(ROR!$C$47:$I$47,$A16+1) -> 0.006809332463 | J16: =INDEX(ROR!$C$38:$I$38,$A16+1) -> 0.1108117926 | K16: 1.25 | L16: =INDEX(ROR!$C$37:$I$37,$A16+1) -> 1.864429859
A17: 4 | B17: Extra Large General Svc. | C17: 25 | D17: =INDEX(ROR!$C$20:$I$20,$A17+1) -> 0.09126295429 | E17: 1.15 | F17: =INDEX(ROR!$C$21:$I$21,$A17+1) -> 1.614527317 | H17: =INDEX(ROR!$C$47:$I$47,$A17+1) -> 0.01346474844 | J17: =INDEX(ROR!$C$38:$I$38,$A17+1) -> 0.09493356331 | K17: 1.15 | L17: =INDEX(ROR!$C$37:$I$37,$A17+1) -> 1.597275578
A18: 5 | B18: Pumping Service | C18: 30/31/32 | D18: =INDEX(ROR!$C$20:$I$20,$A18+1) -> 0.06316882842 | E18: 1.03 | F18: =INDEX(ROR!$C$21:$I$21,$A18+1) -> 1.117515862 | H18: =INDEX(ROR!$C$47:$I$47,$A18+1) -> 0.007381118652 | J18: =INDEX(ROR!$C$38:$I$38,$A18+1) -> 0.06454399031 | K18: 1.03 | L18: =INDEX(ROR!$C$37:$I$37,$A18+1) -> 1.08596513
A19: 6 | B19: Street & Area Lights | C19: 41-48 | D19: =INDEX(ROR!$C$20:$I$20,$A19+1) -> 0.07881989012 | E19: 1.12 | F19: =INDEX(ROR!$C$21:$I$21,$A19+1) -> 1.394397833 | H19: =INDEX(ROR!$C$47:$I$47,$A19+1) -> 1.090699804 | J19: =INDEX(ROR!$C$38:$I$38,$A19+1) -> 0.2575468334 | K19: 1.12 | L19: =INDEX(ROR!$C$37:$I$37,$A19+1) -> 4.333275323
A20: 7 | B20: Total | D20: =INDEX(ROR!$C$20:$I$20,1) -> 0.05652611345 | E20: =INDEX(ROR!$C$21:$I$21,1) -> 1 | F20: =INDEX(ROR!$C$21:$I$21,1) -> 1 | H20: =INDEX(ROR!$C$47:$I$47,1) -> 0.01359733094 | J20: =INDEX(ROR!$C$38:$I$38,1) -> 0.05943468028 | K20: =INDEX(ROR!$C$37:$I$37,1) -> 1 | L20: =INDEX(ROR!$C$37:$I$37,1) -> 1

Sheet Bill Determ
A1: AVISTA UTILITIES
A2: WASHINGTON ELECTRIC
A3: ACTUAL / PRO FORMA BILLING DETERMINANTS BY RATE SCHEDULE
A4: 12 MONTHS ENDED DECEMBER 31, 2019
A8: Schedule 1, 2 | B8: 0-800 kWhs | C8: 801-1500 kWhs | D8: over 1500 kWhs | E8: Total kWhs | F8: Total Billings(2)
A9: kWhs per billing run | B9: ='Block Data'!O21 -> 1632639774 | C9: ='Block Data'!O22 -> 504552668 | D9: ='Block Data'!O23 -> 299072582.4 | E9: =B9+C9+D9 -> 2436265025 | F9: ='REVRUNS 12ME1219'!P36 -> 2619517
A10: Total kWhs per Rev. Run | E10: ='Block Data'!O13 -> 2436265025
A11: Adjust. kWhs to Actual | E11: =E10-E9 -> 0
A14: Schedule 11,12 | B14: 0-3,650 kWhs | C14: over 3,650 kWhs | D14: Total kWhs | E14: kw over 20(1) | F14: Total Billings(2) | G14: kvar billed(1)
A15: kWhs per Revenue Run | B15: ='Block Data'!O38 -> 435979118.4 | C15: ='Block Data'!O39 -> 191116384.1 | D15: =B15+C15 -> 627095502.5 | E15: ='Block Data'!O45 -> 438307.9769 | F15: ='REVRUNS 12ME1219'!P37 -> 391801 | G15: ='Block Data'!O49 -> 0
A16: Shifted from Sch 21 | B16: 0 | C16: 0 | D16: =SUM(B16:C16) -> 0 | E16: 0 | F16: 0 | G16: 0
A17: Total by Block | B17: =SUM(B15:B16) -> 435979118.4 | C17: 191116384.1 | D17: 627095502.5 | E17: 438307.9769 | F17: 391801 | G17: 0
A18: Total kWhs per Rev. Run | D18: ='Block Data'!O31 -> 627095502.5
A19: Schedule Shifting from 21 | D19: =D16 -> 0
A20: Total Adjusted kWhs | D20: =D18+D19 -> 627095502.5
A21: Adjust. kWhs to Actual | D21: =D20-D17 -> 0
A24: Schedule 21,22 | B24: 0-250,000 kWhs | C24: over 250,000 kWhs | D24: Total kWhs | E24: kw over 50(1) | F24: Total Billings(2) | G24: kvar billed(1)
A25: kWhs per Revenue Run | B25: ='Block Data'!O64 -> 1229791152 | C25: ='Block Data'!O65 -> 146237824.5 | D25: =B25+C25 -> 1376028976 | E25: ='Block Data'!O71 -> 2648035.602 | F25: ='REVRUNS 12ME1219'!P38 -> 22941 | G25: ='Block Data'!O75 -> 252584.88
A26: Special Contract Shifted to Sched 21 | B26: 0 | C26: 0 | D26: =SUM(B26:C26) -> 0 | E26: 0 | F26: 0 | G26: 0
A27: Shifted to Sch 011 | B27: =-D16 -> 0 | C27: 0 | D27: =SUM(B27:C27) -> 0 | E27: 0 | F27: =-F16 -> 0 | G27: =-G16 -> 0
A28: Total | B28: =SUM(B25:B27) -> 1229791152 | C28: =SUM(C25:C27) -> 146237824.5 | D28: =SUM(B28:C28) -> 1376028976 | E28: =SUM(E25:E27) -> 2648035.602 | F28: =SUM(F25:F27) -> 22941 | G28: =SUM(G25:G27) -> 252584.88
A29: Total kWhs per Rev. Run | D29: ='Block Data'!O57 -> 1376028976
A30: Schedule Shifting to Sch. 21 | D30: =D26 -> 0
A31: Schedule Shifting to Sch. 11 | D31: =D27 -> 0
A32: Total adjusted kWhs | D32: =D29+D30+D31 -> 1376028976
A33: Adjust. kWhs to Actual | D33: =D32-D28 -> 0
A36: Schedule 25(3) | B36: 0-500,000 kWhs | C36: 500,001-6M kWhs | D36: > 6M kWhs | E36: Total kWhs | F36: kva over 3,000 | G36: Total Billings(2)
A37: Total | B37: ='WA Sch 25'!Q27 -> 132000000 | C37: ='WA Sch 25'!R27 -> 555959799.3 | D37: ='WA Sch 25'!S27 -> 383257334.6 | E37: =SUM(B37:D37) -> 1071217134 | F37: ='WA Sch 25'!P91 -> 1275882.483 | G37: =23*12 -> 276
A40: Schedule 30, 31, & 32 | B40: Block 1 kWhs | C40: Block 2 kWhs | D40: Block 3 kWhs | E40: Total kWhs | F40: Total Billings(2) | G40: kvar billed(1)
A41: kWhs per billing run (30,31& 32) | B41: ='Block Data'!O92 -> 35517018.18 | C41: ='Block Data'!O93 -> 11273719.53 | D41: ='Block Data'!O94 -> 92769241.33 | E41: =B41+C41+D41 -> 139559979 | F41: ='REVRUNS 12ME1219'!P40 -> 29492 | G41: ='Block Data'!O99 -> 0
A42: Schedule 31 to 30 Shifting Adj | B42: 0 | C42: 0 | D42: =-B42-C42 -> 0 | E42: =SUM(B42:D42) -> 0
A43: Total Schs. 30,31&32 | B43: =B41+B42 -> 35517018.18 | C43: =C41+C42 -> 11273719.53 | D43: =D41+D42 -> 92769241.33 | E43: =E41+E42 -> 139559979
A44: Total kWhs per Rev. Run | E44: ='Block Data'!O84 -> 139559979
A45: Adjust kWhs to Actual | E45: =E44-E43 -> 0
A62: Revenue Runs from this sheet | B62: =E10+D18+D29+E44+E37 -> 5650166617
A64: actual Revenue Runs | B64: ='REVRUNS 12ME1219'!P288 -> 5684114360
A65: less:
A66: Sch 25 Adj | B66: ='REVRUNS 12ME1219'!P285-'Bill Determ'!E37 -> 15985820.09 | C66: rev. runs too high
A68: Sch shifting | B68: =D26 -> 0 | C68: not shown on this sheet
A69: Schs 41-48 St & Area Lt | B69: ='REVRUNS 12ME1219'!P287 -> 17961923.66 | C69: not shown on this sheet
B70: =B64-SUM(B66:B69) -> 5650166617
A71: Diff | B71: =B62-B70 -> 0
A73: from Present Rev tab | B73: ='Pres & Prop Rev'!C20-'Pres & Prop Rev'!C15 -> 5668128540
A74: this sheet + SAL | B74: =B62+B69+B68 -> 5668128540
A75: Diff | B75: =B73-B74 -> 0
A78: Rev. Run customers | B78: ='REVRUNS 12ME1219'!P42 -> 3069310
A79: less:
A80: normalize Sch 25 | B80: ='REVRUNS 12ME1219'!P39-G37 -> 0 | C80: rev. runs too low
A81: Sch Shifting | B81: =-F26 -> 0 | C81: not shown on this sheet
A82: Schs 41-48 St & Area Lt | B82: ='REVRUNS 12ME1219'!P41 -> 5283 | C82: not shown on this sheet
B83: =B78-SUM(B79:B82) -> 3064027
A85: from Present Rev tab | B85: =SUM('Pres & Prop Rev'!D25:I25) -> 3064027
A86: Diff | B86: =B83-B85 -> 0

Sheet LIRAP
B3: Schedule 92 LIRAP Funding
K6: Total
D7: LIRAP | E7: Present | F7: Present | H7: Proposed | I7: Proposed | K7: Incremental | R7: Present
B8: Type of | C8: Schedule | D8: Billing | E8: LIRAP Funding | F8: LIRAP Funding | G8: LIRAP Funding | H8: LIRAP Funding | I8: LIRAP Funding | K8: Rate | R8: Billing
B9: Service | C9: Number | D9: Determinants | E9: Rate | F9: Revenue | G9: Increase | H9: Revenue | I9: Rate | K9: change | R9: Revenue
B10: (a) | C10: (b) | D10: (c) | E10: (d) | F10: (e) | G10: (f) | H10: (g) | I10: (h) | K10: (m)
B12: Residential | C12: 1/2 | D12: ='Pres & Prop Rev'!D46 -> 2395485525 | E12: 0.00141 | F12: =D12*E12 -> 3377634.59 | G12: =F12*$G$37 -> 0 | H12: =F12+G12 -> 3377634.59 | I12: =ROUND(H12/D12,5) -> 0.00141 | K12: =ROUND(I12-E12,5) -> 0 | R12: ='Rate Spread GRC'!J15*1000 -> 226547099.2 | S12: =(G12)/R12 -> 0 | U12: =E12*(1+$G$37) -> 0.00141 | V12: =#REF!/R12 -> 
B14: General Service | C14: 11/12 | D14: ='Pres & Prop Rev'!E46 -> 621898153.5 | E14: 0.00205 | F14: =D14*E14 -> 1274891.215 | G14: =F14*$G$37 -> 0 | H14: =F14+G14 -> 1274891.215 | I14: =ROUND(H14/D14,5) -> 0.00205 | K14: =ROUND(I14-E14,5) -> 0 | R14: ='Rate Spread GRC'!J17*1000 -> 80210932.92 | S14: =(G14)/R14 -> 0 | U14: =E14*(1+$G$37) -> 0.00205 | V14: =#REF!/R14 -> 
G15: =F15*$G$37 -> 0
B16: Large General Service | C16: 21/22 | D16: ='Pres & Prop Rev'!F46 -> 1369570126 | E16: 0.00147 | F16: =D16*E16 -> 2013268.086 | G16: =F16*$G$37 -> 0 | H16: 2013268.086 | I16: 0.00147 | K16: 0 | R16: ='Rate Spread GRC'!J19*1000 -> 137183079.7 | S16: 0 | U16: =E16*(1+$G$37) -> 0.00147 | V16: =#REF!/R16 -> 
B18: Extra Large General Service | C18: 25 | D18: ='Pres & Prop Rev'!G31+'Pres & Prop Rev'!G32 -> 687959799.3 | E18: 0.00093 | F18: 639802.6134 | G18: =F18*$G$37 -> 0 | H18: 639802.6134 | I18: 0.00093 | K18: 0 | R18: ='Rate Spread GRC'!J21*1000 -> 66850242.77 | S18: 0 | U18: =E18*(1+$G$37) -> 0.00093 | V18: =#REF!/R18 -> 
B20: Pumping Service | C20: 30/31/32 | D20: ='Pres & Prop Rev'!H46 -> 139623053 | E20: 0.00128 | F20: 178717.5079 | G20: =F20*$G$37 -> 0 | H20: 178717.5079 | I20: 0.00128 | K20: 0 | R20: ='Rate Spread GRC'!J23*1000 -> 12561944.91 | S20: 0 | U20: =E20*(1+$G$37) -> 0.00128 | V20: =#REF!/R20 -> 
B22: Street & Area Lights | C22: 41-48 | D22: ='Pres & Prop Rev'!I46 -> 17961923.66 | E22: 0.0166 | F22: 101939.3309 | G22: =F22*$G$37 -> 0 | H22: =F22+G22 -> 101939.3309 | I22: =ROUND(H22/K47,4) -> 0.0142 | K22: =ROUND(I22-E22,4) -> -0.0024 | R22: ='Rate Spread GRC'!J25*1000 -> 6769562.282 | S22: 0 | U22: =E22*(1+$G$37) -> 0.0166 | V22: =#REF!/R22 -> 
B24: Total | D24: =SUM(D12:D22) -> 5232498581 | F24: =SUM(F12:F22) -> 7586253.343 | G24: =SUM(G12:G22) -> 0 | H24: =SUM(H12:H22) -> 7586253.343 | R24: =SUM(R12:R22) -> 530122861.8 | S24: 0 | V24: =K24/R24 -> 0
E26: Net Funding | F26: =F24*G38 -> 7249658.868 | G26: =F26*G37 -> 0 | H26: =H24*G38 -> 7249658.868
G27: =G26/F26 -> 0
B29: Electric LIRAP Percentage Change
B30: Sch 001 Base Rate Change | C30: 0
B31: times 2 | C31: =C30*2 -> 0
B32: less Oct Increase | C32: 0
B33: Incremental Change | C33: =SUM(C31:C32) -> 0
G37: =(C30*2) -> 0 | H37: Net Funding Increase | K37: =F26*G37 -> 0 | L37: =K37/F24 -> 0
G38: 0.955631 | H38: Revenue Conversion Factor
I41: Present Bill | K41: =ROUND((800*'Exh. ELJ-5 E Bill Impact'!C13),2)+ROUND((118*'Exh. ELJ-5 E Bill Impact'!D13),2)+9 -> 82.69 | N41: 918 kWh's
I42: Proposed Bill | K42: =ROUND((800*('Exh. ELJ-5 E Bill Impact'!C13+K12)),2)+ROUND((118*('Exh. ELJ-5 E Bill Impact'!D13+K12)),2)+9 -> 82.69
I43: Bill Change | K43: =K42-K41 -> 0 | L43: =K43/K41 -> 0
G47: Proposed Street & Area Light Revenue | K47: ='Proposed Increase'!F26*1000 -> 7178826.122

Sheet WA Sch 25
A1: Washington Schedule 25 Billing Determinants | Q1: 1st | R1: =Q2 -> 500000 | S1: =R2 -> 6000000
P2: 12-mo Ended | Q2: 500000 | R2: 6000000 | S2: 99999999
A3: KWHs | C3: Acct No. | D3: 2019-01-01 | E3: 2019-02-01 | F3: 2019-03-01 | G3: 2019-04-01 | H3: 2019-05-01 | I3: 2019-06-01 | J3: 2019-07-01 | K3: 2019-08-01 | L3: 2019-09-01 | M3: 2019-10-01 | N3: 2019-11-01 | O3: 2019-12-01 | P3: Total | Q3: kwhs/mo | R3: kwhs/mo | S3: kwhs/mo
A4: 1 | C4: 2311008572 | D4: 6430355.4 | E4: 5834220 | F4: 6772222.8 | G4: 5461138.2 | H4: 6566826 | I4: 6641355 | J4: 6479961.6 | K4: 6676870.2 | L4: 6590295.6 | M4: 4241370 | N4: 3978168.6 | O4: 3647007 | P4: =SUM(D4:O4) -> 69319790.4 | Q4: =Q$2*12-SUMPRODUCT(--($D4:$O4<=Q$2),Q$2-$D4:$O4) -> 6000000 | R4: =R$2*12-SUM($Q4:Q4)-SUMPRODUCT(--($D4:$O4<=R$2),R$2-$D4:$O4) -> 59161903.8 | S4: =S$2*12-SUM($Q4:R4)-SUMPRODUCT(--($D4:$O4<=S$2),S$2-$D4:$O4) -> 4157886.6
A5: 2 | C5: 8920023327 | D5: 2489222.4 | E5: 2924871.6 | F5: 3069759 | G5: 2967686.4 | H5: 2938063.8 | I5: 2839666.2 | J5: 2858247 | K5: 2982000 | L5: 2826234.6 | M5: 2987325.6 | N5: 2858725.8 | O5: 2088534 | P5: 33830336.4 | Q5: =Q$2*12-SUMPRODUCT(--($D5:$O5<=Q$2),Q$2-$D5:$O5) -> 6000000 | R5: =R$2*12-SUM($Q5:Q5)-SUMPRODUCT(--($D5:$O5<=R$2),R$2-$D5:$O5) -> 27830336.4 | S5: =S$2*12-SUM($Q5:R5)-SUMPRODUCT(--($D5:$O5<=S$2),S$2-$D5:$O5) -> 0
A6: 3 | C6: 9920023116 | D6: 1540777 | E6: 1346983.4 | F6: 1473201.8 | G6: 1247283.8 | H6: 1264634 | I6: 1231641.6 | J6: 1276636.2 | K6: 1211726.6 | L6: 1230002.2 | M6: 1437599.8 | N6: 1268366.4 | O6: 1327428.2 | P6: 15856281 | Q6: 6000000 | R6: =R$2*12-SUM($Q6:Q6)-SUMPRODUCT(--($D6:$O6<=R$2),R$2-$D6:$O6) -> 9856281 | S6: =S$2*12-SUM($Q6:R6)-SUMPRODUCT(--($D6:$O6<=S$2),S$2-$D6:$O6) -> 0
A7: 4 | C7: 8970099313 | D7: 1352948.1 | E7: 1264439.4 | F7: 1402041.9 | G7: 1231146 | H7: 1287875.4 | I7: 1221032.4 | J7: 1295525.7 | K7: 1267560 | L7: 1223764.504 | M7: 1341954.6 | N7: 1374168.6 | O7: 1435293.3 | P7: 15697749.9 | Q7: 6000000 | R7: =R$2*12-SUM($Q7:Q7)-SUMPRODUCT(--($D7:$O7<=R$2),R$2-$D7:$O7) -> 9697749.904 | S7: =S$2*12-SUM($Q7:R7)-SUMPRODUCT(--($D7:$O7<=S$2),S$2-$D7:$O7) -> 0
A8: 5 | C8: 0080095044 | D8: 1702092 | E8: 1591291.8 | F8: 1673399.7 | G8: 1630085.1 | H8: 1897795.2 | I8: 1883613.9 | J8: 2068525.2 | K8: 2152669.05 | L8: 1809992.1 | M8: 1622814.9 | N8: 1526811.3 | O8: 1680707.7 | P8: 21239797.95 | Q8: 6000000 | R8: =R$2*12-SUM($Q8:Q8)-SUMPRODUCT(--($D8:$O8<=R$2),R$2-$D8:$O8) -> 15239797.95 | S8: =S$2*12-SUM($Q8:R8)-SUMPRODUCT(--($D8:$O8<=S$2),S$2-$D8:$O8) -> 0
A9: 6 | C9: 1420028876 | D9: 2304565.2 | E9: 2401187.6 | F9: 2216379.2 | G9: 2001342 | H9: 1765531.6 | I9: 1635488.4 | J9: 1831124.4 | K9: 2051921.2 | L9: 2065095.2 | M9: 2194743.6 | N9: 2178733.2 | O9: 2139620 | P9: 24785731.6 | Q9: 6000000 | R9: =R$2*12-SUM($Q9:Q9)-SUMPRODUCT(--($D9:$O9<=R$2),R$2-$D9:$O9) -> 18785731.6 | S9: =S$2*12-SUM($Q9:R9)-SUMPRODUCT(--($D9:$O9<=S$2),S$2-$D9:$O9) -> 0
A10: 7 | C10: 0170122152 | D10: 1228851.4 | E10: 1108142 | F10: 1209637.8 | G10: 1196998.6 | H10: 1275577.8 | I10: 1274086.8 | J10: 1361623.2 | K10: 1441545 | L10: 1281733.6 | M10: 1280935.6 | N10: 1253442.4 | O10: 1206101.4 | P10: 15118675.6 | Q10: 6000000 | R10: =R$2*12-SUM($Q10:Q10)-SUMPRODUCT(--($D10:$O10<=R$2),R$2-$D10:$O10) -> 9118675.6 | S10: =S$2*12-SUM($Q10:R10)-SUMPRODUCT(--($D10:$O10<=S$2),S$2-$D10:$O10) -> 0
A11: 8 | C11: 8640841982 | D11: 1014295.8 | E11: 920665.2 | F11: 1040461.8 | G11: 1028403.6 | H11: 1090068 | I11: 1089215.4 | J11: 1102201.8 | K11: 1142723.4 | L11: 1004530.8 | M11: 1109871 | N11: 957184.2 | O11: 1008655.2 | P11: 12508276.2 | Q11: 6000000 | R11: =R$2*12-SUM($Q11:Q11)-SUMPRODUCT(--($D11:$O11<=R$2),R$2-$D11:$O11) -> 6508276.2 | S11: =S$2*12-SUM($Q11:R11)-SUMPRODUCT(--($D11:$O11<=S$2),S$2-$D11:$O11) -> 0
A12: 9 | C12: 0160126924 | D12: 36161892 | E12: 35055804 | F12: 35276106 | G12: 34282368 | H12: 38684638 | I12: 37544592 | J12: 40314368 | K12: 40335278 | L12: 38614866 | M12: 40639056 | N12: 33404254 | O12: 40786226 | P12: 451099448 | Q12: 6000000 | R12: =R$2*12-SUM($Q12:Q12)-SUMPRODUCT(--($D12:$O12<=R$2),R$2-$D12:$O12) -> 66000000 | S12: =S$2*12-SUM($Q12:R12)-SUMPRODUCT(--($D12:$O12<=S$2),S$2-$D12:$O12) -> 379099448 | V12: =P12*0.00205 -> 924753.8684 | W12: Sch 91
A13: 10 | C13: 4250473907 | D13: 5425757.4 | E13: 4067649.6 | F13: 5397126 | G13: 4048065 | H13: 5523718.2 | I13: 5344491.6 | J13: 5579019.6 | K13: 5677425.6 | L13: 5432989.8 | M13: 5384127 | N13: 4750036.2 | O13: 4830865.2 | P13: 61461271.2 | Q13: 6000000 | R13: =R$2*12-SUM($Q13:Q13)-SUMPRODUCT(--($D13:$O13<=R$2),R$2-$D13:$O13) -> 55461271.2 | S13: =S$2*12-SUM($Q13:R13)-SUMPRODUCT(--($D13:$O13<=S$2),S$2-$D13:$O13) -> 0
A14: 11 | C14: 9060132009 | D14: 5699153.6 | E14: 4675479.2 | F14: 5387804.8 | G14: 3086608 | H14: 5451588.8 | I14: 5317446.4 | J14: 5464401.6 | K14: 5389888 | L14: 4830078.4 | M14: 5042686.6 | N14: 3148917.8 | O14: 4548415.2 | P14: 58042468.4 | Q14: 6000000 | R14: =R$2*12-SUM($Q14:Q14)-SUMPRODUCT(--($D14:$O14<=R$2),R$2-$D14:$O14) -> 52042468.4 | S14: =S$2*12-SUM($Q14:R14)-SUMPRODUCT(--($D14:$O14<=S$2),S$2-$D14:$O14) -> 0
A15: 12 | C15: 0030019644 | D15: 3145375.8 | E15: 2906864.1 | F15: 3123668.1 | G15: 3080977.2 | H15: 3501913.8 | I15: 3576136.2 | J15: 3982116.6 | K15: 4114332.6 | L15: 3464176.8 | M15: 3097831.8 | N15: 2982909.3 | O15: 3113638.5 | P15: 40089940.8 | Q15: 6000000 | R15: =R$2*12-SUM($Q15:Q15)-SUMPRODUCT(--($D15:$O15<=R$2),R$2-$D15:$O15) -> 34089940.8 | S15: =S$2*12-SUM($Q15:R15)-SUMPRODUCT(--($D15:$O15<=S$2),S$2-$D15:$O15) -> 0
A16: 13 | C16: 1080099801 | D16: 908495.7 | E16: 840762.3 | F16: 892970.4 | G16: 907827.9 | H16: 1046360.7 | I16: 1030852.2 | J16: 1122424.8 | K16: 1142553.3 | L16: 998959.5 | M16: 891912 | N16: 850724.7 | O16: 890435.7 | P16: 11524279.2 | Q16: 6000000 | R16: =R$2*12-SUM($Q16:Q16)-SUMPRODUCT(--($D16:$O16<=R$2),R$2-$D16:$O16) -> 5524279.2 | S16: =S$2*12-SUM($Q16:R16)-SUMPRODUCT(--($D16:$O16<=S$2),S$2-$D16:$O16) -> 0
A17: 14 | C17: 0070121063 | D17: 1041768 | E17: 961987.2 | F17: 979598.4 | G17: 998028 | H17: 1073128.8 | I17: 963899.4 | J17: 1020265.2 | K17: 951238.2 | L17: 939187.2 | M17: 1032136.8 | N17: 791913 | O17: 874927.2 | P17: 11628077.4 | Q17: 6000000 | R17: =R$2*12-SUM($Q17:Q17)-SUMPRODUCT(--($D17:$O17<=R$2),R$2-$D17:$O17) -> 5628077.4 | S17: =S$2*12-SUM($Q17:R17)-SUMPRODUCT(--($D17:$O17<=S$2),S$2-$D17:$O17) -> 0
A18: 15 | C18: 2260946595 | P18: 0 | Q18: 0 | R18: =R$2*12-SUM($Q18:Q18)-SUMPRODUCT(--($D18:$O18<=R$2),R$2-$D18:$O18) -> 0 | S18: =S$2*12-SUM($Q18:R18)-SUMPRODUCT(--($D18:$O18<=S$2),S$2-$D18:$O18) -> 0
A19: 16 | C19: 2470070232 | D19: 2443134.4 | E19: 2144335.2 | F19: 2337361.6 | G19: 2038019.2 | H19: 1872600.8 | I19: 1966053.6 | J19: 2046626.4 | K19: 1872029.6 | L19: 1706678.4 | M19: 2161275.2 | N19: 2097821.6 | O19: 2095228.8 | P19: 24781164.8 | Q19: 6000000 | R19: =R$2*12-SUM($Q19:Q19)-SUMPRODUCT(--($D19:$O19<=R$2),R$2-$D19:$O19) -> 18781164.8 | S19: =S$2*12-SUM($Q19:R19)-SUMPRODUCT(--($D19:$O19<=S$2),S$2-$D19:$O19) -> 0
A20: 17 | C20: 3730460787 | D20: 2625235.2 | E20: 2513677.6 | F20: 2712830.4 | G20: 2454127.2 | H20: 2385269.6 | I20: 2260983.2 | J20: 2338896 | K20: 2448112.8 | L20: 2425589.6 | M20: 2592273.6 | N20: 2521019.2 | O20: 2595868.8 | P20: 29873883.2 | Q20: 6000000 | R20: =R$2*12-SUM($Q20:Q20)-SUMPRODUCT(--($D20:$O20<=R$2),R$2-$D20:$O20) -> 23873883.2 | S20: =S$2*12-SUM($Q20:R20)-SUMPRODUCT(--($D20:$O20<=S$2),S$2-$D20:$O20) -> 0
A21: 18 | C21: 6030021572 | D21: 4074088.47 | E21: 3735432.08 | F21: 3894820 | G21: 3475766.9 | H21: 3975953.7 | I21: 4146438.3 | J21: 4743233.49 | K21: 5200295.89 | L21: 4225127.69 | M21: 3955310.27 | N21: 4073921.27 | O21: 4189061 | P21: 49689449.06 | Q21: 6000000 | R21: =R$2*12-SUM($Q21:Q21)-SUMPRODUCT(--($D21:$O21<=R$2),R$2-$D21:$O21) -> 43689449.06 | S21: =S$2*12-SUM($Q21:R21)-SUMPRODUCT(--($D21:$O21<=S$2),S$2-$D21:$O21) -> 0
A22: 19 | C22: 6100609210 | D22: 3338542.2 | E22: 3082228.8 | F22: 3179446.2 | G22: 2963473.8 | H22: 2905484.4 | I22: 2736304.2 | J22: 2831325 | K22: 2882762.401 | L22: 2935837.8 | M22: 3192197.4 | N22: 3254874 | O22: 3400227.6 | P22: 36702703.8 | Q22: 6000000 | R22: =R$2*12-SUM($Q22:Q22)-SUMPRODUCT(--($D22:$O22<=R$2),R$2-$D22:$O22) -> 30702703.8 | S22: =S$2*12-SUM($Q22:R22)-SUMPRODUCT(--($D22:$O22<=S$2),S$2-$D22:$O22) -> 0
A23: 20 | C23: 5030019646 | D23: 3026576 | E23: 2990184 | F23: 3046976 | G23: 2713032 | H23: 2616832 | I23: 2535008 | J23: 2541848 | K23: 2592288 | L23: 2438608 | M23: 2575288 | N23: 2593312 | O23: 2605920 | P23: 32275872 | Q23: 6000000 | R23: =R$2*12-SUM($Q23:Q23)-SUMPRODUCT(--($D23:$O23<=R$2),R$2-$D23:$O23) -> 26275872 | S23: =S$2*12-SUM($Q23:R23)-SUMPRODUCT(--($D23:$O23<=S$2),S$2-$D23:$O23) -> 0
A24: 21 | C24: 7030024549 | D24: 2366302.4 | E24: 2198089.6 | F24: 2276612.8 | G24: 2306925.6 | H24: 2288518.4 | I24: 2609135.2 | J24: 3090948 | K24: 3605996.8 | L24: 3042250.4 | M24: 2602236 | N24: 2213898.4 | O24: 2088850.4 | P24: 30689764 | Q24: 6000000 | R24: =R$2*12-SUM($Q24:Q24)-SUMPRODUCT(--($D24:$O24<=R$2),R$2-$D24:$O24) -> 24689764 | S24: =S$2*12-SUM($Q24:R24)-SUMPRODUCT(--($D24:$O24<=S$2),S$2-$D24:$O24) -> 0
A25: 22 | C25: 2311155858 | D25: 756162.4 | E25: 715803.2 | F25: 698616.8 | G25: 760233.6 | H25: 810712 | I25: 771814.4 | J25: 766337.6 | K25: 799288 | L25: 783356 | M25: 2483056.8 | N25: 2890652.8 | O25: 2797082.4 | P25: =SUM(D25:O25) -> 15033116 | Q25: =Q$2*12-SUMPRODUCT(--($D25:$O25<=Q$2),Q$2-$D25:$O25) -> 6000000 | R25: =R$2*12-SUM($Q25:Q25)-SUMPRODUCT(--($D25:$O25<=R$2),R$2-$D25:$O25) -> 9033116 | S25: =S$2*12-SUM($Q25:R25)-SUMPRODUCT(--($D25:$O25<=S$2),S$2-$D25:$O25) -> 0
A26: 23 | C26: 7600951015 | D26: 900862.2 | E26: 857476.2 | F26: 846148.8 | G26: 766487.4 | H26: 827744.4 | I26: 800738.4 | J26: 837921 | K26: 860076 | L26: 779373 | M26: 846573 | N26: 830373.6 | O26: 815283 | P26: =SUM(D26:O26) -> 9969057 | Q26: =Q$2*12-SUMPRODUCT(--($D26:$O26<=Q$2),Q$2-$D26:$O26) -> 6000000 | R26: =R$2*12-SUM($Q26:Q26)-SUMPRODUCT(--($D26:$O26<=R$2),R$2-$D26:$O26) -> 3969057 | S26: =S$2*12-SUM($Q26:R26)-SUMPRODUCT(--($D26:$O26<=S$2),S$2-$D26:$O26) -> 0
B27: Schedule 25 Total | D27: =SUM(D4:D26) -> 89976453.07 | E27: =SUM(E4:E26) -> 84137574.08 | F27: 88907190.3 | G27: 80646023.5 | H27: 91050835.4 | I27: 89419992.8 | J27: 94953576.39 | K27: 96798580.64 | L27: 90648727.19 | M27: 92712575.57 | N27: 81800228.37 | O27: 90165376.6 | P27: =IF(ROUND(SUM(P4:P26),0)<>ROUND(SUM(D27:O27),0),#VALUE!,SUM(P4:P26)) -> 1071217134 | Q27: =SUM(Q4:Q26) -> 132000000 | R27: =SUM(R4:R26) -> 555959799.3 | S27: =SUM(S4:S26) -> 383257334.6
S28: =SUM(Q27:S27) -> 1071217134
B29: Revenue Run Total | D29: 92475540.94 | E29: 91334911.62 | F29: 85256588.48 | G29: 90115026.3 | H29: 81790111.9 | I29: 92286223.4 | J29: 90638942 | K29: 96199701.69 | L29: 98369017.34 | M29: 91866248.39 | N29: 93890910.77 | O29: 82979731.17 | P29: =SUM(D29:O29) -> 1087202954
B30: Booked Unbilled Reversal | D30: -92515285 | E30: -91484247 | F30: -84934068 | G30: -89487500 | H30: -79454560 | I30: -92015166 | J30: -91195162 | K30: -95775976 | L30: -94768404 | M30: -91927127 | N30: -93727705 | O30: -83601582 | P30: =SUM(D30:O30) -> -1080886782
B31: Gross Booked Unbilled | D31: 91484247 | E31: 84934068 | F31: 89487500 | G31: 79454560 | H31: 92015166 | I31: 91195162 | J31: 95775976 | K31: 94768404 | L31: 91927127 | M31: 93727705 | N31: 83601582 | O31: 90893021 | P31: 1079264518
B32: Gross Unbilled True-up | D32: -229885.13 | E32: 241970.73 | F32: 546976.55 | G32: 2255002.15 | H32: 190507.65 | I32: -613342.15 | J32: 482689.44 | K32: 3520063.591 | L32: -141428.356 | M32: 82656.02 | N32: -702400.58 | O32: 281147.25 | P32: 5913957.165
B33: Unbilled Reversal True-up | D33: 39744.063 | E33: 229885.13 | F33: -241970.73 | G33: -546976.55 | H33: -2255002.15 | I33: -190507.65 | J33: 613342.15 | K33: -482689.44 | L33: -3520063.591 | M33: 141428.356 | N33: -82656.02 | O33: 702400.58 | P33: -5593065.852
P34: 0
P35: 0
B36: Adj Revenue Runs, Sch 25 | D36: =SUM(D29:D35) -> 91254361.87 | E36: 85256588.48 | F36: 90115026.3 | G36: 81790111.9 | H36: 92286223.4 | I36: 90662369.6 | J36: 96315787.59 | K36: =SUM(K29:K35) -> 98229503.84 | L36: =SUM(L29:L35) -> 91866248.39 | M36: =SUM(M29:M35) -> 93890910.77 | N36: =SUM(N29:N35) -> 82979731.17 | O36: =SUM(O29:O35) -> 91254718 | P36: =IF(ROUND(SUM(P29:P35),0)<>ROUND(SUM(D36:O36),0),#VALUE!,SUM(P29:P35)) -> 1085901581
D37: =D36-D27 -> 1277908.8 | E37: 1119014.4 | F37: 1207836 | G37: 1144088.4 | H37: 1235388 | I37: 1242376.8 | J37: 1362211.2 | K37: 1430923.2 | L37: 1217521.2 | M37: 1178335.2 | N37: 1179502.8 | O37: 1089341.4 | P37: 14684447.4
B40: KVA | D40: =D$3 -> 2019-01-01 | E40: =E$3 -> 2019-02-01 | F40: 2019-03-01 | G40: 2019-04-01 | H40: 2019-05-01 | I40: 2019-06-01 | J40: 2019-07-01 | K40: 2019-08-01 | L40: 2019-09-01 | M40: 2019-10-01 | N40: 2019-11-01 | O40: 2019-12-01 | P40: Total | Q40: Peak | R40: Month
A41: 1 | B41: =B4 -> 0 | C41: =C4 -> 2311008572 | D41: 11235.119 | E41: 13097.044 | F41: 12788.42 | G41: 11813.076 | H41: 19727.5 | I41: 11694.565 | J41: 10955.651 | K41: 11234.874 | L41: 11020.227 | M41: 9747.696 | N41: 7452.812 | O41: 7325.132 | P41: =SUM(D41:O41) -> 138092.116 | Q41: =MAX(D41:O41) -> 19727.5 | R41: =INDEX($D$40:$O$40,MATCH(Q41,$D41:$O41,0)) -> 2019-05-01
A42: 2 | B42: =B5 -> 0 | C42: =C5 -> 8920023327 | D42: 5486.075 | E42: 5434.125 | F42: 5276.123 | G42: 5056.137 | H42: 4983.969 | I42: 5005.413 | J42: 5087.689 | K42: 5057.623 | L42: 5126.23 | M42: 5102.895 | N42: 5137.21 | O42: 5127.785 | P42: 61881.274 | Q42: =MAX(D42:O42) -> 5486.075 | R42: =INDEX($D$40:$O$40,MATCH(Q42,$D42:$O42,0)) -> 2019-01-01
A43: 3 | B43: 0 | C43: 9920023116 | D43: 3170.492 | E43: 2956.648 | F43: 3009.147 | G43: 2718.489 | H43: 2604.73 | I43: 2581.237 | J43: 2646.144 | K43: 2770.75 | L43: 2656.09 | M43: 2911.705 | N43: 2818.054 | O43: 2969.598 | P43: 33813.084 | Q43: =MAX(D43:O43) -> 3170.492 | R43: 2019-01-01
A44: 4 | B44: 0 | C44: 8970099313 | D44: 2775.984 | E44: 2727.249 | F44: 2695.553 | G44: 2485.556 | H44: 2523.753 | I44: 2697.937 | J44: 2645.407 | K44: 2641.172 | L44: 2607.199 | M44: 2611.644 | N44: 2852.106 | O44: 2986.779 | P44: 32250.339 | Q44: 2986.779 | R44: 2019-12-01
A45: 5 | B45: 0 | C45: 0080095044 | D45: 2798.121 | E45: 2925.64 | F45: 2824.83 | G45: 3132.223 | H45: 3477.369 | I45: 3747.495 | J45: 3914.42 | K45: 3810.733 | L45: 3653.3 | M45: 2698.208 | N45: 2697.904 | O45: 2856.324 | P45: 38536.567 | Q45: 3914.42 | R45: 2019-07-01
A46: 6 | B46: 0 | C46: 1420028876 | D46: 4693.976 | E46: 4607.82 | F46: 4350.339 | G46: 4168.823 | H46: 4653.533 | I46: 4532.701 | J46: 4783.741 | K46: 5478.841 | L46: 5486.071 | M46: 4220.907 | N46: 4550.799 | O46: 4495.921 | P46: 56023.472 | Q46: 5486.071 | R46: 2019-09-01
A47: 7 | B47: 0 | C47: 0170122152 | D47: 2837.009 | E47: 2880.291 | F47: 2821.714 | G47: 2974.208 | H47: 3029.111 | I47: 3196.048 | J47: 3339.189 | K47: 3522.618 | L47: 3280.206 | M47: 3114.724 | N47: 3080.481 | O47: 3007.698 | P47: 37083.297 | Q47: 3522.618 | R47: 2019-08-01
A48: 8 | B48: 0 | C48: 8640841982 | D48: 4138.03 | E48: 4134.473 | F48: 4111.06 | G48: 4134.729 | H48: 4168.178 | I48: 4212.564 | J48: 4223.697 | K48: 4273.099 | L48: 4214.49 | M48: 4157.89 | N48: 4170.945 | O48: 4257.599 | P48: 50196.754 | Q48: 4273.099 | R48: 2019-08-01
A49: 9 | B49: 0 | C49: 0160126924 | D49: 56979.76 | E49: 58491.21 | F49: 60723.97 | G49: 60695.18 | H49: 59633.5 | I49: 59915.37 | J49: 60954.8 | K49: 62499.94 | L49: 60332.9 | M49: 61348.84 | N49: 61453.18 | O49: 62886.96 | P49: 725915.61 | Q49: 62886.96 | R49: 2019-12-01
A50: 10 | B50: 0 | C50: 4250473907 | D50: 9494.367 | E50: 8151.693 | F50: 8444.641 | G50: 8251.37 | H50: 8416.083 | I50: 8438.518 | J50: 8465.471 | K50: 8617.573 | L50: 8465.008 | M50: 8444.641 | N50: 8123.326 | O50: 8375.373 | P50: 101688.064 | Q50: 9494.367 | R50: 2019-01-01
A51: 11 | B51: 0 | C51: 9060132009 | D51: 8557.577 | E51: 8575.149 | F51: 8703.892 | G51: 8473.339 | H51: 8775.977 | I51: 9149.543 | J51: 8848.156 | K51: 8727.265 | L51: 8415.024 | M51: 8497.022 | N51: 8603.248 | O51: 8631.508 | P51: 103957.7 | Q51: 9149.543 | R51: 2019-06-01
A52: 12 | B52: 0 | C52: 0030019644 | D52: 4980.233 | E52: 4999.588 | F52: 5543.734 | G52: 5907.495 | H52: 6389.427 | I52: 6828.66 | J52: 7121.865 | K52: 7273.985 | L52: 6707.211 | M52: 5606.314 | N52: 4896.101 | O52: 4949.013 | P52: 71203.626 | Q52: 7273.985 | R52: 2019-08-01
A53: 13 | B53: 0 | C53: 1080099801 | D53: 1801.012 | E53: 1807.513 | F53: 1766.224 | G53: 2097.466 | H53: 2342.851 | I53: 2440.171 | J53: 2558.3 | K53: 2603.322 | L53: 2421.044 | M53: 1998.975 | N53: 1729.87 | O53: 1770.852 | P53: 25337.6 | Q53: 2603.322 | R53: 2019-08-01
A54: 14 | B54: 0 | C54: 0070121063 | D54: 5920.46 | E54: 5993.254 | F54: 5928.205 | G54: 5817.009 | H54: 6388.395 | I54: 6221.201 | J54: 6304.875 | K54: 6173.893 | L54: 6325.053 | M54: 6242.394 | N54: 6406.447 | O54: 6101.693 | P54: 73822.879 | Q54: 6406.447 | R54: 2019-11-01
A55: 15 | B55: 0 | C55: 2260946595 | P55: 0 | Q55: 0
A56: 16 | B56: 0 | C56: 2470070232 | D56: 5028.102 | E56: 4788.468 | F56: 4942.805 | G56: 4612.442 | H56: 4606.809 | I56: 4393.97 | J56: 4423.787 | K56: 4237.939 | L56: 4362.253 | M56: 4489.859 | N56: 4602.6 | O56: 4523.538 | P56: 55012.572 | Q56: 5028.102 | R56: 2019-01-01
A57: 17 | B57: 0 | C57: 3730460787 | D57: 4576.142 | E57: 4593.748 | F57: 4793.024 | G57: 4269.566 | H57: 4178.726 | I57: 4025.975 | J57: 4061.17 | K57: 4215.13 | L57: 4599.915 | M57: 4512.391 | N57: 4444.425 | O57: 4482.939 | P57: 52753.151 | Q57: 4793.024 | R57: 2019-03-01
A58: 18 | B58: 0 | C58: 6030021572 | D58: 7561.8 | E58: 7319.55 | F58: 6877.6 | G58: 7474.16 | H58: 8302.59 | I58: 9730.33 | J58: 10780.89 | K58: 11330.56 | L58: 10798.06 | M58: 7293.78 | N58: 7735.4 | O58: 7646.46 | P58: 102851.18 | Q58: 11330.56 | R58: 2019-08-01
A59: 19 | B59: 0 | C59: 6100609210 | D59: 5925.472 | E59: 5829.219 | F59: 5446.55 | G59: 5450.83 | H59: 4763.363 | I59: 4751.401 | J59: 4657.95 | K59: 5287.044 | L59: 5266.264 | M59: 5678.363 | N59: 5797.156 | O59: 5921.923 | P59: 64775.535 | Q59: 5925.472 | R59: 2019-01-01
A60: 20 | B60: 0 | C60: 5030019646 | D60: 5543.024 | E60: 9427.748 | F60: 5699.796 | G60: 5095.943 | H60: 4944.725 | I60: 4815.787 | J60: 4644.219 | K60: 4858.576 | L60: 4945.268 | M60: 5057.24 | N60: 4988.948 | O60: 4920.228 | P60: 64941.502 | Q60: 9427.748 | R60: 2019-02-01
A61: 21 | B61: 0 | C61: 7030024549 | D61: 4283.557 | E61: 4289.834 | F61: 4226.067 | G61: 4553.32 | H61: 5085.145 | I61: 6309.379 | J61: 5919.558 | K61: 7191.935 | L61: 9554.729 | M61: 8275.527 | N61: 4245.864 | O61: 4204.433 | P61: 68139.348 | Q61: 9554.729 | R61: 2019-09-01
A62: 22 | B62: 0 | D62: 2223.39 | E62: 2148.591 | F62: 1909.559 | G62: 2118.725 | H62: 2298.212 | I62: 2136.031 | J62: 2246.822 | K62: 2660.088 | L62: 2377.278 | M62: 6979.901 | N62: 6503.073 | O62: 6407.751 | P62: 40009.421 | Q62: =MAX(D62:O62) -> 6979.901 | R62: =INDEX($D$40:$O$40,MATCH(Q62,$D62:$O62,0)) -> 2019-10-01
A63: 23 | B63: 0 | D63: 3733.76 | E63: 3840.748 | F63: 3713.142 | G63: 3775.555 | H63: 3660.164 | I63: 3602.386 | J63: 3660.213 | K63: 3628.878 | L63: 3524.979 | M63: 3638.946 | N63: 3738.236 | O63: 3734.714 | P63: 44251.721 | Q63: 3840.748 | R63: 2019-02-01
B64: Schedule 25 Total | D64: =SUM(D41:D63) -> 163743.462 | E64: =SUM(E41:E63) -> 169019.603 | F64: 166596.395 | G64: 165075.641 | H64: 174954.11 | I64: 170426.682 | J64: 172244.014 | K64: 178095.838 | L64: 176138.799 | M64: 172629.862 | N64: 166028.185 | O64: 167584.221 | P64: =IF(ROUND(SUM(P41:P63),0)<>ROUND(SUM(D64:O64),0),#VALUE!,SUM(P41:P63)) -> 2042536.812
P66: =P$2 -> 12-mo Ended
B67: KVA in excess of 3,000 | D67: =D$3 -> 2019-01-01 | E67: =E$3 -> 2019-02-01 | F67: 2019-03-01 | G67: 2019-04-01 | H67: 2019-05-01 | I67: 2019-06-01 | J67: 2019-07-01 | K67: 2019-08-01 | L67: 2019-09-01 | M67: 2019-10-01 | N67: 2019-11-01 | O67: 2019-12-01 | P67: Total
A68: 1 | B68: =B4 -> 0 | C68: =C4 -> 2311008572 | D68: =IF(D41>3000,D41-3000,0) -> 8235.119 | E68: 10097.044 | F68: 9788.42 | G68: =MAX(0,G41-3000) -> 8813.076 | H68: 16727.5 | I68: 8694.565 | J68: 7955.651 | K68: 8234.874 | L68: 8020.227 | M68: 6747.696 | N68: 4452.812 | O68: 4325.132 | P68: =SUM(D68:O68) -> 102092.116
A69: 2 | B69: =B5 -> 0 | C69: =C5 -> 8920023327 | D69: 2486.075 | E69: 2434.125 | F69: 2276.123 | G69: =MAX(0,G42-3000) -> 2056.137 | H69: 1983.969 | I69: 2005.413 | J69: 2087.689 | K69: 2057.623 | L69: 2126.23 | M69: 2102.895 | N69: 2137.21 | O69: 2127.785 | P69: 25881.274
A70: 3 | B70: 0 | C70: 9920023116 | D70: 170.492 | E70: 0 | F70: 9.147 | G70: =MAX(0,G43-3000) -> 0 | H70: 0 | I70: 0 | J70: 0 | K70: 0 | L70: 0 | M70: 0 | N70: 0 | O70: 0 | P70: 179.639
A71: 4 | B71: 0 | C71: 8970099313 | D71: 0 | E71: 0 | F71: 0 | G71: =MAX(0,G44-3000) -> 0 | H71: 0 | I71: 0 | J71: 0 | K71: 0 | L71: 0 | M71: 0 | N71: 0 | O71: 0 | P71: 0
A72: 5 | B72: 0 | C72: 0080095044 | D72: 0 | E72: 0 | F72: 0 | G72: =MAX(0,G45-3000) -> 132.223 | H72: 477.369 | I72: 747.495 | J72: 914.42 | K72: 810.733 | L72: 653.3 | M72: 0 | N72: 0 | O72: 0 | P72: 3735.54
A73: 6 | B73: 0 | C73: 1420028876 | D73: 1693.976 | E73: 1607.82 | F73: 1350.339 | G73: =MAX(0,G46-3000) -> 1168.823 | H73: 1653.533 | I73: 1532.701 | J73: 1783.741 | K73: 2478.841 | L73: 2486.071 | M73: 1220.907 | N73: 1550.799 | O73: 1495.921 | P73: 20023.472
A74: 7 | B74: 0 | C74: 0170122152 | D74: 0 | E74: 0 | F74: 0 | G74: =MAX(0,G47-3000) -> 0 | H74: 29.111 | I74: 196.048 | J74: 339.189 | K74: 522.618 | L74: 280.206 | M74: 114.724 | N74: 80.481 | O74: 7.698 | P74: 1570.075
A75: 8 | B75: 0 | C75: 610074869 | D75: 1138.03 | E75: 1134.473 | F75: 1111.06 | G75: =MAX(0,G48-3000) -> 1134.729 | H75: 1168.178 | I75: 1212.564 | J75: 1223.697 | K75: 1273.099 | L75: 1214.49 | M75: 1157.89 | N75: 1170.945 | O75: 1257.599 | P75: 14196.754
A76: 9 | B76: 0 | C76: =C12 -> 0160126924 | D76: =MAX(0,D49-3000) -> 53979.76 | E76: =MAX(0,E49-3000) -> 55491.21 | F76: =MAX(0,F49-3000) -> 57723.97 | G76: =MAX(0,G49-3000) -> 57695.18 | H76: 56633.5 | I76: 56915.37 | J76: 57954.8 | K76: 59499.94 | L76: 57332.9 | M76: 58348.84 | N76: 58453.18 | O76: 59886.96 | P76: 689915.61
A77: 10 | B77: 0 | C77: 4250473907 | D77: =IF(D50>3000,D50-3000,0) -> 6494.367 | E77: 5151.693 | F77: 5444.641 | G77: =MAX(0,G50-3000) -> 5251.37 | H77: 5416.083 | I77: 5438.518 | J77: 5465.471 | K77: 5617.573 | L77: 5465.008 | M77: 5444.641 | N77: 5123.326 | O77: 5375.373 | P77: 65688.064
A78: 11 | B78: 0 | C78: 9060132009 | D78: 5557.577 | E78: 5575.149 | F78: 5703.892 | G78: =MAX(0,G51-3000) -> 5473.339 | H78: 5775.977 | I78: 6149.543 | J78: 5848.156 | K78: 5727.265 | L78: 5415.024 | M78: 5497.022 | N78: 5603.248 | O78: 5631.508 | P78: 67957.7
A79: 12 | B79: 0 | C79: 0030019644 | D79: 1980.233 | E79: 1999.588 | F79: 2543.734 | G79: =MAX(0,G52-3000) -> 2907.495 | H79: 3389.427 | I79: 3828.66 | J79: 4121.865 | K79: 4273.985 | L79: 3707.211 | M79: 2606.314 | N79: 1896.101 | O79: 1949.013 | P79: 35203.626
A80: 13 | B80: 0 | C80: 1080099801 | D80: 0 | E80: 0 | F80: 0 | G80: =MAX(0,G53-3000) -> 0 | H80: 0 | I80: 0 | J80: 0 | K80: 0 | L80: 0 | M80: 0 | N80: 0 | O80: 0 | P80: 0
A81: 14 | B81: 0 | C81: 0070121063 | D81: 2920.46 | E81: 2993.254 | F81: 2928.205 | G81: =MAX(0,G54-3000) -> 2817.009 | H81: 3388.395 | I81: 3221.201 | J81: 3304.875 | K81: 3173.893 | L81: 3325.053 | M81: 3242.394 | N81: 3406.447 | O81: 3101.693 | P81: 37822.879
A82: 15 | B82: 0 | C82: 2260946595 | D82: 0 | E82: 0 | F82: 0 | G82: =MAX(0,G55-3000) -> 0 | H82: 0 | I82: 0 | J82: 0 | K82: 0 | L82: 0 | M82: 0 | N82: 0 | O82: 0 | P82: 0
A83: 16 | B83: 0 | C83: 2470070232 | D83: 2028.102 | E83: 1788.468 | F83: 1942.805 | G83: =MAX(0,G56-3000) -> 1612.442 | H83: 1606.809 | I83: 1393.97 | J83: 1423.787 | K83: 1237.939 | L83: 1362.253 | M83: 1489.859 | N83: 1602.6 | O83: 1523.538 | P83: 19012.572
A84: 17 | B84: 0 | C84: 3730460787 | D84: 1576.142 | E84: 1593.748 | F84: 1793.024 | G84: =MAX(0,G57-3000) -> 1269.566 | H84: 1178.726 | I84: 1025.975 | J84: 1061.17 | K84: 1215.13 | L84: 1599.915 | M84: 1512.391 | N84: 1444.425 | O84: 1482.939 | P84: 16753.151
A85: 18 | B85: 0 | C85: 6030021572 | D85: 4561.8 | E85: 4319.55 | F85: 3877.6 | G85: =MAX(0,G58-3000) -> 4474.16 | H85: 5302.59 | I85: 6730.33 | J85: 7780.89 | K85: 8330.56 | L85: 7798.06 | M85: 4293.78 | N85: 4735.4 | O85: 4646.46 | P85: 66851.18
A86: 19 | B86: 0 | C86: 6100609210 | D86: 2925.472 | E86: 2829.219 | F86: 2446.55 | G86: =MAX(0,G59-3000) -> 2450.83 | H86: 1763.363 | I86: 1751.401 | J86: 1657.95 | K86: 2287.044 | L86: 2266.264 | M86: 2678.363 | N86: 2797.156 | O86: 2921.923 | P86: 28775.535
A87: 20 | B87: 0 | C87: 5030019646 | D87: 2543.024 | E87: 6427.748 | F87: 2699.796 | G87: =MAX(0,G60-3000) -> 2095.943 | H87: 1944.725 | I87: 1815.787 | J87: 1644.219 | K87: 1858.576 | L87: 1945.268 | M87: 2057.24 | N87: 1988.948 | O87: 1920.228 | P87: 28941.502
A88: 21 | B88: 0 | C88: 7030024549 | D88: 1283.557 | E88: 1289.834 | F88: 1226.067 | G88: =MAX(0,G61-3000) -> 1553.32 | H88: 2085.145 | I88: 3309.379 | J88: 2919.558 | K88: 4191.935 | L88: 6554.729 | M88: 5275.527 | N88: 1245.864 | O88: 1204.433 | P88: 32139.348
A89: 22 | B89: 0 | D89: =IF(D62>3000,D62-3000,0) -> 0 | E89: 0 | F89: 0 | G89: =MAX(0,G62-3000) -> 0 | H89: 0 | I89: 0 | J89: 0 | K89: 0 | L89: 0 | M89: 3979.901 | N89: 3503.073 | O89: 3407.751 | P89: =SUM(D89:O89) -> 10890.725
A90: 23 | B90: 0 | D90: =IF(D63>3000,D63-3000,0) -> 733.76 | E90: 840.748 | F90: 713.142 | G90: =MAX(0,G63-3000) -> 775.555 | H90: 660.164 | I90: 602.386 | J90: 660.213 | K90: 628.878 | L90: 524.979 | M90: 638.946 | N90: 738.236 | O90: 734.714 | P90: 8251.721
B91: Schedule 25 Total | D91: =SUM(D68:D90) -> 100307.946 | E91: =SUM(E68:E90) -> 105573.671 | F91: 103578.515 | G91: 101681.197 | H91: 111184.564 | I91: 106571.306 | J91: 108147.341 | K91: 113420.506 | L91: 112077.188 | M91: 108409.33 | N91: 101930.251 | O91: 103000.668 | P91: =IF(ROUND(SUM(P68:P90),0)<>ROUND(SUM(D91:O91),0),#VALUE!,SUM(P68:P90)) -> 1275882.483
B96: 9 KWHs | D96: =D$3 -> 2019-01-01 | E96: =E$3 -> 2019-02-01 | F96: 2019-03-01 | G96: 2019-04-01 | H96: 2019-05-01 | I96: 2019-06-01 | J96: 2019-07-01 | K96: 2019-08-01 | L96: 2019-09-01 | M96: 2019-10-01 | N96: 2019-11-01 | O96: 2019-12-01 | P96: Total
B97: 60 KV | P97: =SUM(D97:O97) -> 0
B98: 4.16 KV | P98: =SUM(D98:O98) -> 0
B99: 115 KV | P99: =SUM(D99:O99) -> 0
A100: * | B100: Total | D100: =SUM(D97:D99) -> 0 | E100: 0 | F100: 0 | G100: 0 | H100: 0 | I100: 0 | J100: 0 | K100: 0 | L100: 0 | M100: 0 | N100: 0 | O100: 0 | P100: 0
D101: =D12 -> 36161892 | E101: 35055804 | F101: 35276106 | G101: 34282368 | H101: 38684638 | I101: 37544592 | J101: 40314368 | K101: 40335278 | L101: 38614866 | M101: 40639056 | N101: 33404254 | O101: 40786226 | P101: =SUM(D101:O101) -> 451099448
B102: 9 KVA
B103: 60 KV | D103: 12147.53 | E103: 10722.44 | F103: 10827.09 | G103: 8690.55 | H103: 8811.69 | I103: 9212.06 | J103: 8570.72 | K103: 8267.47 | L103: 9002.3 | M103: 9878.44 | N103: 13562.4 | O103: 10503.37 | P103: =SUM(D103:O103) -> 120196.06
B104: 4.16 KV | P104: =SUM(D104:O104) -> 0
B105: 115 KV | D105: 48672 | E105: 48816 | F105: 52128.8 | G105: 51408.2 | H105: 50688.2 | I105: 51552.2 | J105: 52272.2 | K105: 54001.73 | L105: 52128.2 | M105: 54144.19 | N105: 51264.2 | O105: 54288.19 | P105: =SUM(D105:O105) -> 621364.11
A106: * | B106: Total | D106: =SUM(D103:D105) -> 60819.53 | E106: 59538.44 | F106: 62955.89 | G106: 60098.75 | H106: 59499.89 | I106: 60764.26 | J106: 60842.92 | K106: 62269.2 | L106: 61130.5 | M106: 64022.63 | N106: 64826.6 | O106: 64791.56 | P106: 741560.17
D107: =D49 -> 56979.76 | E107: 58491.21 | F107: 60723.97 | G107: 60695.18 | H107: 59633.5 | I107: 59915.37 | J107: 60954.8 | K107: 62499.94 | L107: 60332.9 | M107: 61348.84 | N107: 61453.18 | O107: 62886.96 | P107: =SUM(D107:O107) -> 725915.61
B109: Calc Revenue for 9 | D109: =500000*0.0575+MIN(5500000,D12-500000)*0.05177+MAX(0,D12-6000000)*0.04433+15000+D76*5.25-D103*1.1-D105*1.4 -> 1867452.329 | E109: =500000*0.0575+MIN(5500000,E12-500000)*0.05177+MAX(0,E12-6000000)*0.04433+15000+E76*5.25-E103*1.1-E105*1.4 -> 1827720.56 | F109: =500000*0.0575+MIN(5500000,F12-500000)*0.05177+MAX(0,F12-6000000)*0.04433+15000+F76*5.25-F103*1.1-F105*1.4 -> 1844455.502 | G109: =500000*0.05616+MIN(5500000,G12-500000)*0.05053+MAX(0,G12-6000000)*0.0432+21000+G76*6-G103*1.1-G105*1.4 -> 1813433.293 | H109: 1998116.023 | I109: 1948907.248 | J109: 2074495.626 | K109: 2082582.011 | L109: 1997072.601 | M109: 2086827.109 | N109: 1774889.333 | O109: 2101524.55 | P109: =SUM(D109:O109) -> 23417476.18
B110: Revenue for 9 per Handbill Report | P110: =SUM(D110:O110) -> 0
D111: =D109-D110 -> 1867452.329 | E111: =E109-E110 -> 1827720.56 | F111: 1844455.502 | G111: 1813433.293 | H111: 1998116.023 | I111: 1948907.248 | J111: 2074495.626 | K111: 2082582.011 | L111: 1997072.601 | M111: 2086827.109 | N111: 1774889.333 | O111: 2101524.55
B112: Primary Voltage Discount
B113: >11 and <60 | C113: -0.2 | D113: =(D64-D60-D61-D49-D62)*$C113 -> -18942.7462 | E113: =(E64-E60-E61-E49-E62)*$C113 -> -18932.444 | F113: -18807.4006 | G113: -18522.4946 | H113: -20598.5056 | I113: -19450.023 | J113: -19695.723 | K113: -20177.0598 | L113: -19785.7248 | M113: -18193.6708 | N113: -17767.424 | O113: -17832.9698 | P113: =SUM(D113:O113) -> -228706.1862
B114: >60 and <115 | C114: =-1.52 -> -1.52 | D114: =D103*$C114 -> -18464.2456 | E114: =E103*$C114 -> -16298.1088 | F114: =F103*$C114 -> -16457.1768 | G114: -13209.636 | H114: -13393.7688 | I114: -14002.3312 | J114: -13027.4944 | K114: -12566.5544 | L114: -13683.496 | M114: -15015.2288 | N114: -20614.848 | O114: -15965.1224 | P114: =SUM(D114:O114) -> -182698.0112
B115: >115 | C115: -1.93 | D115: =D105*$C115 -> -93936.96 | E115: =E105*$C115 -> -94214.88 | F115: =F105*$C115 -> -100608.584 | G115: -99217.826 | H115: -97828.226 | I115: -99495.746 | J115: -100885.346 | K115: -104223.3389 | L115: -100607.426 | M115: -104498.2867 | N115: -98939.906 | O115: -104776.2067 | P115: =SUM(D115:O115) -> -1199232.732
D116: =SUM(D113:D115) -> -131343.9518 | E116: -129445.4328 | F116: -135873.1614 | G116: -130949.9566 | H116: -131820.5004 | I116: -132948.1002 | J116: -133608.5634 | K116: -136966.9531 | L116: -134076.6468 | M116: -137707.1863 | N116: -137322.178 | O116: -138574.2989 | P116: -1610636.93
B117: Primary Voltage Discount
B118: >11 and <60 | C118: -0.2 | D118: =(D64-D60-D61-D49-D62)*$C118 -> -18942.7462 | E118: =(E64-E60-E61-E49-E62)*$C118 -> -18932.444 | F118: -18807.4006 | G118: -18522.4946 | H118: -20598.5056 | I118: -19450.023 | J118: -19695.723 | K118: -20177.0598 | L118: -19785.7248 | M118: -18193.6708 | N118: -17767.424 | O118: -17832.9698 | P118: =SUM(D118:O118) -> -228706.1862
B119: >60 and <115 | C119: -1.52 | D119: =D103*$C119 -> -18464.2456 | E119: =E103*$C119 -> -16298.1088 | F119: -16457.1768 | G119: -13209.636 | H119: -13393.7688 | I119: -14002.3312 | J119: -13027.4944 | K119: -12566.5544 | L119: -13683.496 | M119: -15015.2288 | N119: -20614.848 | O119: -15965.1224 | P119: =SUM(D119:O119) -> -182698.0112
B120: >115 | C120: -1.93 | D120: =D105*$C120 -> -93936.96 | E120: =E105*$C120 -> -94214.88 | F120: -100608.584 | G120: -99217.826 | H120: -97828.226 | I120: -99495.746 | J120: -100885.346 | K120: -104223.3389 | L120: -100607.426 | M120: -104498.2867 | N120: -98939.906 | O120: -104776.2067 | P120: =SUM(D120:O120) -> -1199232.732
D121: =SUM(D118:D120) -> -131343.9518 | E121: -129445.4328 | F121: -135873.1614 | G121: -130949.9566 | H121: -131820.5004 | I121: -132948.1002 | J121: -133608.5634 | K121: -136966.9531 | L121: -134076.6468 | M121: -137707.1863 | N121: -137322.178 | O121: -138574.2989 | P121: -1610636.93
T122: Present | U122: Proposed
B123: Base Revenues | T123: Annual Minimum
B124: =B4 -> 0 | C124: 770037736 | D124: =500000*('Rate Design'!$G$5/100)+MIN(5500000,D4-500000)*('Rate Design'!$G$6/100)+MAX(0,D4-6000000)*('Rate Design'!$G$7/100)+'Rate Design'!$G$9+D68*'Rate Design'!$G$10-0.2*D41 -> 414920.0151 | E124: =500000*('Rate Design'!$G$5/100)+MIN(5500000,E4-500000)*('Rate Design'!$G$6/100)+MAX(0,E4-6000000)*('Rate Design'!$G$7/100)+'Rate Design'!$G$9+E68*'Rate Design'!$G$10-0.2*E41 -> 403564.973 | F124: =500000*('Rate Design'!$G$5/100)+MIN(5500000,F4-500000)*('Rate Design'!$G$6/100)+MAX(0,F4-6000000)*('Rate Design'!$G$7/100)+'Rate Design'!$G$9+F68*'Rate Design'!$G$10-0.2*F41 -> 441979.8376 | G124: =500000*('Rate Design'!$G$5/100)+MIN(5500000,G4-500000)*('Rate Design'!$G$6/100)+MAX(0,G4-6000000)*('Rate Design'!$G$7/100)+'Rate Design'!$G$9+G68*'Rate Design'!$G$10-0.2*G41 -> 374686.0906 | H124: =500000*('Rate Design'!$G$5/100)+MIN(5500000,H4-500000)*('Rate Design'!$G$6/100)+MAX(0,H4-6000000)*('Rate Design'!$G$7/100)+'Rate Design'!$G$9+H68*'Rate Design'!$G$10-0.2*H41 -> 489487.8311 | I124: =500000*('Rate Design'!$G$5/100)+MIN(5500000,I4-500000)*('Rate Design'!$G$6/100)+MAX(0,I4-6000000)*('Rate Design'!$G$7/100)+'Rate Design'!$G$9+I68*'Rate Design'!$G$10-0.2*I41 -> 427577.3607 | J124: =500000*('Rate Design'!$G$5/100)+MIN(5500000,J4-500000)*('Rate Design'!$G$6/100)+MAX(0,J4-6000000)*('Rate Design'!$G$7/100)+'Rate Design'!$G$9+J68*'Rate Design'!$G$10-0.2*J41 -> 414757.1469 | K124: =500000*('Rate Design'!$G$5/100)+MIN(5500000,K4-500000)*('Rate Design'!$G$6/100)+MAX(0,K4-6000000)*('Rate Design'!$G$7/100)+'Rate Design'!$G$9+K68*'Rate Design'!$G$10-0.2*K41 -> 425357.9324 | L124: =500000*('Rate Design'!$G$5/100)+MIN(5500000,L4-500000)*('Rate Design'!$G$6/100)+MAX(0,L4-6000000)*('Rate Design'!$G$7/100)+'Rate Design'!$G$9+L68*'Rate Design'!$G$10-0.2*L41 -> 419952.8574 | M124: =500000*('Rate Design'!$G$5/100)+MIN(5500000,M4-500000)*('Rate Design'!$G$6/100)+MAX(0,M4-6000000)*('Rate Design'!$G$7/100)+'Rate Design'!$G$9+M68*'Rate Design'!$G$10-0.2*M41 -> 297541.3937 | N124: =500000*('Rate Design'!$G$5/100)+MIN(5500000,N4-500000)*('Rate Design'!$G$6/100)+MAX(0,N4-6000000)*('Rate Design'!$G$7/100)+'Rate Design'!$G$9+N68*'Rate Design'!$G$10-0.2*N41 -> 265916.468 | O124: =500000*('Rate Design'!$G$5/100)+MIN(5500000,O4-500000)*('Rate Design'!$G$6/100)+MAX(0,O4-6000000)*('Rate Design'!$G$7/100)+'Rate Design'!$G$9+O68*'Rate Design'!$G$10-0.2*O41 -> 248479.8259 | P124: =SUM(D124:O124) -> 4624221.732 | T124: =IF(P124<945750,945750-P124,0) -> 0
B125: =B5 -> 0 | C125: 500017 | D125: =500000*('Rate Design'!$G$5/100)+MIN(5500000,D5-500000)*('Rate Design'!$G$6/100)+MAX(0,D5-6000000)*('Rate Design'!$G$7/100)+'Rate Design'!$G$9+D69*'Rate Design'!$G$10-0.2*D42 -> 176238.393 | E125: =500000*('Rate Design'!$G$5/100)+MIN(5500000,E5-500000)*('Rate Design'!$G$6/100)+MAX(0,E5-6000000)*('Rate Design'!$G$7/100)+'Rate Design'!$G$9+E69*'Rate Design'!$G$10-0.2*E42 -> 197395.3028 | F125: =500000*('Rate Design'!$G$5/100)+MIN(5500000,F5-500000)*('Rate Design'!$G$6/100)+MAX(0,F5-6000000)*('Rate Design'!$G$7/100)+'Rate Design'!$G$9+F69*'Rate Design'!$G$10-0.2*F42 -> 203291.7596 | G125: =500000*('Rate Design'!$G$5/100)+MIN(5500000,G5-500000)*('Rate Design'!$G$6/100)+MAX(0,G5-6000000)*('Rate Design'!$G$7/100)+'Rate Design'!$G$9+G69*'Rate Design'!$G$10-0.2*G42 -> 196454.2171 | H125: =500000*('Rate Design'!$G$5/100)+MIN(5500000,H5-500000)*('Rate Design'!$G$6/100)+MAX(0,H5-6000000)*('Rate Design'!$G$7/100)+'Rate Design'!$G$9+H69*'Rate Design'!$G$10-0.2*H42 -> 194402.4489 | I125: =500000*('Rate Design'!$G$5/100)+MIN(5500000,I5-500000)*('Rate Design'!$G$6/100)+MAX(0,I5-6000000)*('Rate Design'!$G$7/100)+'Rate Design'!$G$9+I69*'Rate Design'!$G$10-0.2*I42 -> 189702.5122 | J125: =500000*('Rate Design'!$G$5/100)+MIN(5500000,J5-500000)*('Rate Design'!$G$6/100)+MAX(0,J5-6000000)*('Rate Design'!$G$7/100)+'Rate Design'!$G$9+J69*'Rate Design'!$G$10-0.2*J42 -> 191289.2548 | K125: =500000*('Rate Design'!$G$5/100)+MIN(5500000,K5-500000)*('Rate Design'!$G$6/100)+MAX(0,K5-6000000)*('Rate Design'!$G$7/100)+'Rate Design'!$G$9+K69*'Rate Design'!$G$10-0.2*K42 -> 197175.2063 | L125: =500000*('Rate Design'!$G$5/100)+MIN(5500000,L5-500000)*('Rate Design'!$G$6/100)+MAX(0,L5-6000000)*('Rate Design'!$G$7/100)+'Rate Design'!$G$9+L69*'Rate Design'!$G$10-0.2*L42 -> 190015.8627 | M125: =500000*('Rate Design'!$G$5/100)+MIN(5500000,M5-500000)*('Rate Design'!$G$6/100)+MAX(0,M5-6000000)*('Rate Design'!$G$7/100)+'Rate Design'!$G$9+M69*'Rate Design'!$G$10-0.2*M42 -> 197805.6865 | N125: =500000*('Rate Design'!$G$5/100)+MIN(5500000,N5-500000)*('Rate Design'!$G$6/100)+MAX(0,N5-6000000)*('Rate Design'!$G$7/100)+'Rate Design'!$G$9+N69*'Rate Design'!$G$10-0.2*N42 -> 191714.0899 | O125: =500000*('Rate Design'!$G$5/100)+MIN(5500000,O5-500000)*('Rate Design'!$G$6/100)+MAX(0,O5-6000000)*('Rate Design'!$G$7/100)+'Rate Design'!$G$9+O69*'Rate Design'!$G$10-0.2*O42 -> 153490.1475 | P125: =SUM(D125:O125) -> 2278974.881 | T125: =IF(P125<945750,945750-P125,0) -> 0
B126: 0 | C126: 500018 | D126: =500000*('Rate Design'!$G$5/100)+MIN(5500000,D6-500000)*('Rate Design'!$G$6/100)+MAX(0,D6-6000000)*('Rate Design'!$G$7/100)+'Rate Design'!$G$9+D70*'Rate Design'!$G$10-0.2*D43 -> 110505.67 | E126: =500000*('Rate Design'!$G$5/100)+MIN(5500000,E6-500000)*('Rate Design'!$G$6/100)+MAX(0,E6-6000000)*('Rate Design'!$G$7/100)+'Rate Design'!$G$9+E70*'Rate Design'!$G$10-0.2*E43 -> 99534.7582 | F126: =500000*('Rate Design'!$G$5/100)+MIN(5500000,F6-500000)*('Rate Design'!$G$6/100)+MAX(0,F6-6000000)*('Rate Design'!$G$7/100)+'Rate Design'!$G$9+F70*'Rate Design'!$G$10-0.2*F43 -> 105851.7759 | G126: =500000*('Rate Design'!$G$5/100)+MIN(5500000,G6-500000)*('Rate Design'!$G$6/100)+MAX(0,G6-6000000)*('Rate Design'!$G$7/100)+'Rate Design'!$G$9+G70*'Rate Design'!$G$10-0.2*G43 -> 94644.26881 | H126: =500000*('Rate Design'!$G$5/100)+MIN(5500000,H6-500000)*('Rate Design'!$G$6/100)+MAX(0,H6-6000000)*('Rate Design'!$G$7/100)+'Rate Design'!$G$9+H70*'Rate Design'!$G$10-0.2*H43 -> 95526.37602 | I126: =500000*('Rate Design'!$G$5/100)+MIN(5500000,I6-500000)*('Rate Design'!$G$6/100)+MAX(0,I6-6000000)*('Rate Design'!$G$7/100)+'Rate Design'!$G$9+I70*'Rate Design'!$G$10-0.2*I43 -> 93896.96105 | J126: =500000*('Rate Design'!$G$5/100)+MIN(5500000,J6-500000)*('Rate Design'!$G$6/100)+MAX(0,J6-6000000)*('Rate Design'!$G$7/100)+'Rate Design'!$G$9+J70*'Rate Design'!$G$10-0.2*J43 -> 96112.56219 | K126: =500000*('Rate Design'!$G$5/100)+MIN(5500000,K6-500000)*('Rate Design'!$G$6/100)+MAX(0,K6-6000000)*('Rate Design'!$G$7/100)+'Rate Design'!$G$9+K70*'Rate Design'!$G$10-0.2*K43 -> 92872.6685 | L126: =500000*('Rate Design'!$G$5/100)+MIN(5500000,L6-500000)*('Rate Design'!$G$6/100)+MAX(0,L6-6000000)*('Rate Design'!$G$7/100)+'Rate Design'!$G$9+L70*'Rate Design'!$G$10-0.2*L43 -> 93800.79097 | M126: =500000*('Rate Design'!$G$5/100)+MIN(5500000,M6-500000)*('Rate Design'!$G$6/100)+MAX(0,M6-6000000)*('Rate Design'!$G$7/100)+'Rate Design'!$G$9+M70*'Rate Design'!$G$10-0.2*M43 -> 104031.9771 | N126: =500000*('Rate Design'!$G$5/100)+MIN(5500000,N6-500000)*('Rate Design'!$G$6/100)+MAX(0,N6-6000000)*('Rate Design'!$G$7/100)+'Rate Design'!$G$9+N70*'Rate Design'!$G$10-0.2*N43 -> 95668.57699 | O126: =500000*('Rate Design'!$G$5/100)+MIN(5500000,O6-500000)*('Rate Design'!$G$6/100)+MAX(0,O6-6000000)*('Rate Design'!$G$7/100)+'Rate Design'!$G$9+O70*'Rate Design'!$G$10-0.2*O43 -> 98563.59915 | P126: 1181009.985 | T126: 0
B127: 0 | C127: 1900002 | D127: =500000*('Rate Design'!$G$5/100)+MIN(5500000,D7-500000)*('Rate Design'!$G$6/100)+MAX(0,D7-6000000)*('Rate Design'!$G$7/100)+'Rate Design'!$G$9+D71*'Rate Design'!$G$10-0.2*D44 -> 99866.32259 | E127: =500000*('Rate Design'!$G$5/100)+MIN(5500000,E7-500000)*('Rate Design'!$G$6/100)+MAX(0,E7-6000000)*('Rate Design'!$G$7/100)+'Rate Design'!$G$9+E71*'Rate Design'!$G$10-0.2*E44 -> 95492.23368 | F127: =500000*('Rate Design'!$G$5/100)+MIN(5500000,F7-500000)*('Rate Design'!$G$6/100)+MAX(0,F7-6000000)*('Rate Design'!$G$7/100)+'Rate Design'!$G$9+F71*'Rate Design'!$G$10-0.2*F44 -> 102314.0247 | G127: =500000*('Rate Design'!$G$5/100)+MIN(5500000,G7-500000)*('Rate Design'!$G$6/100)+MAX(0,G7-6000000)*('Rate Design'!$G$7/100)+'Rate Design'!$G$9+G71*'Rate Design'!$G$10-0.2*G44 -> 93891.55018 | H127: =500000*('Rate Design'!$G$5/100)+MIN(5500000,H7-500000)*('Rate Design'!$G$6/100)+MAX(0,H7-6000000)*('Rate Design'!$G$7/100)+'Rate Design'!$G$9+H71*'Rate Design'!$G$10-0.2*H44 -> 96693.71796 | I127: =500000*('Rate Design'!$G$5/100)+MIN(5500000,I7-500000)*('Rate Design'!$G$6/100)+MAX(0,I7-6000000)*('Rate Design'!$G$7/100)+'Rate Design'!$G$9+I71*'Rate Design'!$G$10-0.2*I44 -> 93348.14737 | J127: =500000*('Rate Design'!$G$5/100)+MIN(5500000,J7-500000)*('Rate Design'!$G$6/100)+MAX(0,J7-6000000)*('Rate Design'!$G$7/100)+'Rate Design'!$G$9+J71*'Rate Design'!$G$10-0.2*J44 -> 97048.30652 | K127: =500000*('Rate Design'!$G$5/100)+MIN(5500000,K7-500000)*('Rate Design'!$G$6/100)+MAX(0,K7-6000000)*('Rate Design'!$G$7/100)+'Rate Design'!$G$9+K71*'Rate Design'!$G$10-0.2*K44 -> 95664.0124 | L127: =500000*('Rate Design'!$G$5/100)+MIN(5500000,L7-500000)*('Rate Design'!$G$6/100)+MAX(0,L7-6000000)*('Rate Design'!$G$7/100)+'Rate Design'!$G$9+L71*'Rate Design'!$G$10-0.2*L44 -> 93501.61608 | M127: =500000*('Rate Design'!$G$5/100)+MIN(5500000,M7-500000)*('Rate Design'!$G$6/100)+MAX(0,M7-6000000)*('Rate Design'!$G$7/100)+'Rate Design'!$G$9+M71*'Rate Design'!$G$10-0.2*M44 -> 99354.68254 | N127: =500000*('Rate Design'!$G$5/100)+MIN(5500000,N7-500000)*('Rate Design'!$G$6/100)+MAX(0,N7-6000000)*('Rate Design'!$G$7/100)+'Rate Design'!$G$9+N71*'Rate Design'!$G$10-0.2*N44 -> 100902.1496 | O127: =500000*('Rate Design'!$G$5/100)+MIN(5500000,O7-500000)*('Rate Design'!$G$6/100)+MAX(0,O7-6000000)*('Rate Design'!$G$7/100)+'Rate Design'!$G$9+O71*'Rate Design'!$G$10-0.2*O44 -> 103902.7213 | P127: 1171979.485 | T127: 0
B128: 0 | C128: 1900011 | D128: =500000*('Rate Design'!$G$5/100)+MIN(5500000,D8-500000)*('Rate Design'!$G$6/100)+MAX(0,D8-6000000)*('Rate Design'!$G$7/100)+'Rate Design'!$G$9+D72*'Rate Design'!$G$10-0.2*D45 -> 117154.9926 | E128: =500000*('Rate Design'!$G$5/100)+MIN(5500000,E8-500000)*('Rate Design'!$G$6/100)+MAX(0,E8-6000000)*('Rate Design'!$G$7/100)+'Rate Design'!$G$9+E72*'Rate Design'!$G$10-0.2*E45 -> 111641.5549 | F128: =500000*('Rate Design'!$G$5/100)+MIN(5500000,F8-500000)*('Rate Design'!$G$6/100)+MAX(0,F8-6000000)*('Rate Design'!$G$7/100)+'Rate Design'!$G$9+F72*'Rate Design'!$G$10-0.2*F45 -> 115728.5211 | G128: =500000*('Rate Design'!$G$5/100)+MIN(5500000,G8-500000)*('Rate Design'!$G$6/100)+MAX(0,G8-6000000)*('Rate Design'!$G$7/100)+'Rate Design'!$G$9+G72*'Rate Design'!$G$10-0.2*G45 -> 114619.1213 | H128: =500000*('Rate Design'!$G$5/100)+MIN(5500000,H8-500000)*('Rate Design'!$G$6/100)+MAX(0,H8-6000000)*('Rate Design'!$G$7/100)+'Rate Design'!$G$9+H72*'Rate Design'!$G$10-0.2*H45 -> 130674.4852 | I128: =500000*('Rate Design'!$G$5/100)+MIN(5500000,I8-500000)*('Rate Design'!$G$6/100)+MAX(0,I8-6000000)*('Rate Design'!$G$7/100)+'Rate Design'!$G$9+I72*'Rate Design'!$G$10-0.2*I45 -> 132160.106 | J128: =500000*('Rate Design'!$G$5/100)+MIN(5500000,J8-500000)*('Rate Design'!$G$6/100)+MAX(0,J8-6000000)*('Rate Design'!$G$7/100)+'Rate Design'!$G$9+J72*'Rate Design'!$G$10-0.2*J45 -> 142670.8552 | K128: =500000*('Rate Design'!$G$5/100)+MIN(5500000,K8-500000)*('Rate Design'!$G$6/100)+MAX(0,K8-6000000)*('Rate Design'!$G$7/100)+'Rate Design'!$G$9+K72*'Rate Design'!$G$10-0.2*K45 -> 145998.6353 | L128: =500000*('Rate Design'!$G$5/100)+MIN(5500000,L8-500000)*('Rate Design'!$G$6/100)+MAX(0,L8-6000000)*('Rate Design'!$G$7/100)+'Rate Design'!$G$9+L72*'Rate Design'!$G$10-0.2*L45 -> 127750.6387 | M128: =500000*('Rate Design'!$G$5/100)+MIN(5500000,M8-500000)*('Rate Design'!$G$6/100)+MAX(0,M8-6000000)*('Rate Design'!$G$7/100)+'Rate Design'!$G$9+M72*'Rate Design'!$G$10-0.2*M45 -> 113248.3804 | N128: =500000*('Rate Design'!$G$5/100)+MIN(5500000,N8-500000)*('Rate Design'!$G$6/100)+MAX(0,N8-6000000)*('Rate Design'!$G$7/100)+'Rate Design'!$G$9+N72*'Rate Design'!$G$10-0.2*N45 -> 108493.3829 | O128: =500000*('Rate Design'!$G$5/100)+MIN(5500000,O8-500000)*('Rate Design'!$G$6/100)+MAX(0,O8-6000000)*('Rate Design'!$G$7/100)+'Rate Design'!$G$9+O72*'Rate Design'!$G$10-0.2*O45 -> 116084.1876 | P128: 1476224.861 | T128: 0
B129: 0 | C129: 622922 | D129: =500000*('Rate Design'!$G$5/100)+MIN(5500000,D9-500000)*('Rate Design'!$G$6/100)+MAX(0,D9-6000000)*('Rate Design'!$G$7/100)+'Rate Design'!$G$9+D73*'Rate Design'!$G$10-0.2*D46 -> 160676.32 | E129: =500000*('Rate Design'!$G$5/100)+MIN(5500000,E9-500000)*('Rate Design'!$G$6/100)+MAX(0,E9-6000000)*('Rate Design'!$G$7/100)+'Rate Design'!$G$9+E73*'Rate Design'!$G$10-0.2*E46 -> 164764.1638 | F129: =500000*('Rate Design'!$G$5/100)+MIN(5500000,F9-500000)*('Rate Design'!$G$6/100)+MAX(0,F9-6000000)*('Rate Design'!$G$7/100)+'Rate Design'!$G$9+F73*'Rate Design'!$G$10-0.2*F46 -> 153525.0077 | G129: =500000*('Rate Design'!$G$5/100)+MIN(5500000,G9-500000)*('Rate Design'!$G$6/100)+MAX(0,G9-6000000)*('Rate Design'!$G$7/100)+'Rate Design'!$G$9+G73*'Rate Design'!$G$10-0.2*G46 -> 141403.9356 | H129: =500000*('Rate Design'!$G$5/100)+MIN(5500000,H9-500000)*('Rate Design'!$G$6/100)+MAX(0,H9-6000000)*('Rate Design'!$G$7/100)+'Rate Design'!$G$9+H73*'Rate Design'!$G$10-0.2*H46 -> 133650.3974 | I129: =500000*('Rate Design'!$G$5/100)+MIN(5500000,I9-500000)*('Rate Design'!$G$6/100)+MAX(0,I9-6000000)*('Rate Design'!$G$7/100)+'Rate Design'!$G$9+I73*'Rate Design'!$G$10-0.2*I46 -> 126230.6186 | J129: =500000*('Rate Design'!$G$5/100)+MIN(5500000,J9-500000)*('Rate Design'!$G$6/100)+MAX(0,J9-6000000)*('Rate Design'!$G$7/100)+'Rate Design'!$G$9+J73*'Rate Design'!$G$10-0.2*J46 -> 137953.8936 | K129: =500000*('Rate Design'!$G$5/100)+MIN(5500000,K9-500000)*('Rate Design'!$G$6/100)+MAX(0,K9-6000000)*('Rate Design'!$G$7/100)+'Rate Design'!$G$9+K73*'Rate Design'!$G$10-0.2*K46 -> 154520.2691 | L129: =500000*('Rate Design'!$G$5/100)+MIN(5500000,L9-500000)*('Rate Design'!$G$6/100)+MAX(0,L9-6000000)*('Rate Design'!$G$7/100)+'Rate Design'!$G$9+L73*'Rate Design'!$G$10-0.2*L46 -> 155231.3404 | M129: =500000*('Rate Design'!$G$5/100)+MIN(5500000,M9-500000)*('Rate Design'!$G$6/100)+MAX(0,M9-6000000)*('Rate Design'!$G$7/100)+'Rate Design'!$G$9+M73*'Rate Design'!$G$10-0.2*M46 -> 151404.9972 | N129: =500000*('Rate Design'!$G$5/100)+MIN(5500000,N9-500000)*('Rate Design'!$G$6/100)+MAX(0,N9-6000000)*('Rate Design'!$G$7/100)+'Rate Design'!$G$9+N73*'Rate Design'!$G$10-0.2*N46 -> 153284.1273 | O129: =500000*('Rate Design'!$G$5/100)+MIN(5500000,O9-500000)*('Rate Design'!$G$6/100)+MAX(0,O9-6000000)*('Rate Design'!$G$7/100)+'Rate Design'!$G$9+O73*'Rate Design'!$G$10-0.2*O46 -> 150902.3387 | P129: 1783547.409 | T129: 0
B130: 0 | C130: 2304636 | D130: =500000*('Rate Design'!$G$5/100)+MIN(5500000,D10-500000)*('Rate Design'!$G$6/100)+MAX(0,D10-6000000)*('Rate Design'!$G$7/100)+'Rate Design'!$G$9+D74*'Rate Design'!$G$10-0.2*D47 -> 93707.60804 | E130: =500000*('Rate Design'!$G$5/100)+MIN(5500000,E10-500000)*('Rate Design'!$G$6/100)+MAX(0,E10-6000000)*('Rate Design'!$G$7/100)+'Rate Design'!$G$9+E74*'Rate Design'!$G$10-0.2*E47 -> 87720.21506 | F130: =500000*('Rate Design'!$G$5/100)+MIN(5500000,F10-500000)*('Rate Design'!$G$6/100)+MAX(0,F10-6000000)*('Rate Design'!$G$7/100)+'Rate Design'!$G$9+F74*'Rate Design'!$G$10-0.2*F47 -> 92759.01743 | G130: =500000*('Rate Design'!$G$5/100)+MIN(5500000,G10-500000)*('Rate Design'!$G$6/100)+MAX(0,G10-6000000)*('Rate Design'!$G$7/100)+'Rate Design'!$G$9+G74*'Rate Design'!$G$10-0.2*G47 -> 92102.49906 | H130: =500000*('Rate Design'!$G$5/100)+MIN(5500000,H10-500000)*('Rate Design'!$G$6/100)+MAX(0,H10-6000000)*('Rate Design'!$G$7/100)+'Rate Design'!$G$9+H74*'Rate Design'!$G$10-0.2*H47 -> 96225.16753 | I130: =500000*('Rate Design'!$G$5/100)+MIN(5500000,I10-500000)*('Rate Design'!$G$6/100)+MAX(0,I10-6000000)*('Rate Design'!$G$7/100)+'Rate Design'!$G$9+I74*'Rate Design'!$G$10-0.2*I47 -> 97503.508 | J130: =500000*('Rate Design'!$G$5/100)+MIN(5500000,J10-500000)*('Rate Design'!$G$6/100)+MAX(0,J10-6000000)*('Rate Design'!$G$7/100)+'Rate Design'!$G$9+J74*'Rate Design'!$G$10-0.2*J47 -> 102998.628 | K130: =500000*('Rate Design'!$G$5/100)+MIN(5500000,K10-500000)*('Rate Design'!$G$6/100)+MAX(0,K10-6000000)*('Rate Design'!$G$7/100)+'Rate Design'!$G$9+K74*'Rate Design'!$G$10-0.2*K47 -> 108442.9297 | L130: =500000*('Rate Design'!$G$5/100)+MIN(5500000,L10-500000)*('Rate Design'!$G$6/100)+MAX(0,L10-6000000)*('Rate Design'!$G$7/100)+'Rate Design'!$G$9+L74*'Rate Design'!$G$10-0.2*L47 -> 98563.93381 | M130: =500000*('Rate Design'!$G$5/100)+MIN(5500000,M10-500000)*('Rate Design'!$G$6/100)+MAX(0,M10-6000000)*('Rate Design'!$G$7/100)+'Rate Design'!$G$9+M74*'Rate Design'!$G$10-0.2*M47 -> 97184.00467 | N130: =500000*('Rate Design'!$G$5/100)+MIN(5500000,N10-500000)*('Rate Design'!$G$6/100)+MAX(0,N10-6000000)*('Rate Design'!$G$7/100)+'Rate Design'!$G$9+N74*'Rate Design'!$G$10-0.2*N47 -> 95544.89817 | O130: =500000*('Rate Design'!$G$5/100)+MIN(5500000,O10-500000)*('Rate Design'!$G$6/100)+MAX(0,O10-6000000)*('Rate Design'!$G$7/100)+'Rate Design'!$G$9+O74*'Rate Design'!$G$10-0.2*O47 -> 92610.55614 | P130: 1155362.966 | T130: 0
B131: 0 | C131: 610074869 | D131: =500000*('Rate Design'!$G$5/100)+MIN(5500000,D11-500000)*('Rate Design'!$G$6/100)+MAX(0,D11-6000000)*('Rate Design'!$G$7/100)+'Rate Design'!$G$9+D75*'Rate Design'!$G$10-0.2*D48 -> 92266.11397 | E131: =500000*('Rate Design'!$G$5/100)+MIN(5500000,E11-500000)*('Rate Design'!$G$6/100)+MAX(0,E11-6000000)*('Rate Design'!$G$7/100)+'Rate Design'!$G$9+E75*'Rate Design'!$G$10-0.2*E48 -> 87599.77866 | F131: =500000*('Rate Design'!$G$5/100)+MIN(5500000,F11-500000)*('Rate Design'!$G$6/100)+MAX(0,F11-6000000)*('Rate Design'!$G$7/100)+'Rate Design'!$G$9+F75*'Rate Design'!$G$10-0.2*F48 -> 93343.65895 | G131: =500000*('Rate Design'!$G$5/100)+MIN(5500000,G11-500000)*('Rate Design'!$G$6/100)+MAX(0,G11-6000000)*('Rate Design'!$G$7/100)+'Rate Design'!$G$9+G75*'Rate Design'!$G$10-0.2*G48 -> 92938.13521 | H131: =500000*('Rate Design'!$G$5/100)+MIN(5500000,H11-500000)*('Rate Design'!$G$6/100)+MAX(0,H11-6000000)*('Rate Design'!$G$7/100)+'Rate Design'!$G$9+H75*'Rate Design'!$G$10-0.2*H48 -> 96263.30984 | I131: =500000*('Rate Design'!$G$5/100)+MIN(5500000,I11-500000)*('Rate Design'!$G$6/100)+MAX(0,I11-6000000)*('Rate Design'!$G$7/100)+'Rate Design'!$G$9+I75*'Rate Design'!$G$10-0.2*I48 -> 96580.60716 | J131: =500000*('Rate Design'!$G$5/100)+MIN(5500000,J11-500000)*('Rate Design'!$G$6/100)+MAX(0,J11-6000000)*('Rate Design'!$G$7/100)+'Rate Design'!$G$9+J75*'Rate Design'!$G$10-0.2*J48 -> 97314.00085 | K131: =500000*('Rate Design'!$G$5/100)+MIN(5500000,K11-500000)*('Rate Design'!$G$6/100)+MAX(0,K11-6000000)*('Rate Design'!$G$7/100)+'Rate Design'!$G$9+K75*'Rate Design'!$G$10-0.2*K48 -> 99721.1919 | L131: =500000*('Rate Design'!$G$5/100)+MIN(5500000,L11-500000)*('Rate Design'!$G$6/100)+MAX(0,L11-6000000)*('Rate Design'!$G$7/100)+'Rate Design'!$G$9+L75*'Rate Design'!$G$10-0.2*L48 -> 92401.77952 | M131: =500000*('Rate Design'!$G$5/100)+MIN(5500000,M11-500000)*('Rate Design'!$G$6/100)+MAX(0,M11-6000000)*('Rate Design'!$G$7/100)+'Rate Design'!$G$9+M75*'Rate Design'!$G$10-0.2*M48 -> 97160.81963 | N131: =500000*('Rate Design'!$G$5/100)+MIN(5500000,N11-500000)*('Rate Design'!$G$6/100)+MAX(0,N11-6000000)*('Rate Design'!$G$7/100)+'Rate Design'!$G$9+N75*'Rate Design'!$G$10-0.2*N48 -> 89703.98793 | O131: =500000*('Rate Design'!$G$5/100)+MIN(5500000,O11-500000)*('Rate Design'!$G$6/100)+MAX(0,O11-6000000)*('Rate Design'!$G$7/100)+'Rate Design'!$G$9+O75*'Rate Design'!$G$10-0.2*O48 -> 92955.24396 | P131: 1128248.628 | T131: 0
B132: 0 | C132: 2500004 | D132: =500000*('Rate Design'!$G$5/100)+MIN(5500000,D12-500000)*('Rate Design'!$G$6/100)+MAX(0,D12-6000000)*('Rate Design'!$G$7/100)+'Rate Design'!$G$9+D76*'Rate Design'!$G$10-1.52*D103-1.93*D105 -> 1943576.929 | E132: =500000*('Rate Design'!$G$5/100)+MIN(5500000,E12-500000)*('Rate Design'!$G$6/100)+MAX(0,E12-6000000)*('Rate Design'!$G$7/100)+'Rate Design'!$G$9+E76*'Rate Design'!$G$10-1.52*E103-1.93*E105 -> 1911167.354 | F132: =500000*('Rate Design'!$G$5/100)+MIN(5500000,F12-500000)*('Rate Design'!$G$6/100)+MAX(0,F12-6000000)*('Rate Design'!$G$7/100)+'Rate Design'!$G$9+F76*'Rate Design'!$G$10-1.52*F103-1.93*F105 -> 1932476.279 | G132: =500000*('Rate Design'!$G$5/100)+MIN(5500000,G12-500000)*('Rate Design'!$G$6/100)+MAX(0,G12-6000000)*('Rate Design'!$G$7/100)+'Rate Design'!$G$9+G76*'Rate Design'!$G$10-1.52*G103-1.93*G105 -> 1894790.817 | H132: =500000*('Rate Design'!$G$5/100)+MIN(5500000,H12-500000)*('Rate Design'!$G$6/100)+MAX(0,H12-6000000)*('Rate Design'!$G$7/100)+'Rate Design'!$G$9+H76*'Rate Design'!$G$10-1.52*H103-1.93*H105 -> 2073620.474 | I132: =500000*('Rate Design'!$G$5/100)+MIN(5500000,I12-500000)*('Rate Design'!$G$6/100)+MAX(0,I12-6000000)*('Rate Design'!$G$7/100)+'Rate Design'!$G$9+I76*'Rate Design'!$G$10-1.52*I103-1.93*I105 -> 2025402.965 | J132: =500000*('Rate Design'!$G$5/100)+MIN(5500000,J12-500000)*('Rate Design'!$G$6/100)+MAX(0,J12-6000000)*('Rate Design'!$G$7/100)+'Rate Design'!$G$9+J76*'Rate Design'!$G$10-1.52*J103-1.93*J105 -> 2150915.484 | K132: =500000*('Rate Design'!$G$5/100)+MIN(5500000,K12-500000)*('Rate Design'!$G$6/100)+MAX(0,K12-6000000)*('Rate Design'!$G$7/100)+'Rate Design'!$G$9+K76*'Rate Design'!$G$10-1.52*K103-1.93*K105 -> 2161748.632 | L132: =500000*('Rate Design'!$G$5/100)+MIN(5500000,L12-500000)*('Rate Design'!$G$6/100)+MAX(0,L12-6000000)*('Rate Design'!$G$7/100)+'Rate Design'!$G$9+L76*'Rate Design'!$G$10-1.52*L103-1.93*L105 -> 2073401.723 | M132: =500000*('Rate Design'!$G$5/100)+MIN(5500000,M12-500000)*('Rate Design'!$G$6/100)+MAX(0,M12-6000000)*('Rate Design'!$G$7/100)+'Rate Design'!$G$9+M76*'Rate Design'!$G$10-1.52*M103-1.93*M105 -> 2162335.878 | N132: =500000*('Rate Design'!$G$5/100)+MIN(5500000,N12-500000)*('Rate Design'!$G$6/100)+MAX(0,N12-6000000)*('Rate Design'!$G$7/100)+'Rate Design'!$G$9+N76*'Rate Design'!$G$10-1.52*N103-1.93*N105 -> 1856766.797 | O132: =500000*('Rate Design'!$G$5/100)+MIN(5500000,O12-500000)*('Rate Design'!$G$6/100)+MAX(0,O12-6000000)*('Rate Design'!$G$7/100)+'Rate Design'!$G$9+O76*'Rate Design'!$G$10-1.52*O103-1.93*O105 -> 2180107.11 | P132: 24366310.44 | T132: 0
B133: 0 | C133: 290048778 | D133: =500000*('Rate Design'!$G$5/100)+MIN(5500000,D13-500000)*('Rate Design'!$G$6/100)+MAX(0,D13-6000000)*('Rate Design'!$G$7/100)+'Rate Design'!$G$9+D77*'Rate Design'!$G$10-0.2*D50 -> 354152.1367 | E133: =500000*('Rate Design'!$G$5/100)+MIN(5500000,E13-500000)*('Rate Design'!$G$6/100)+MAX(0,E13-6000000)*('Rate Design'!$G$7/100)+'Rate Design'!$G$9+E77*'Rate Design'!$G$10-0.2*E50 -> 276009.398 | F133: =500000*('Rate Design'!$G$5/100)+MIN(5500000,F13-500000)*('Rate Design'!$G$6/100)+MAX(0,F13-6000000)*('Rate Design'!$G$7/100)+'Rate Design'!$G$9+F77*'Rate Design'!$G$10-0.2*F50 -> 344231.2429 | G133: =500000*('Rate Design'!$G$5/100)+MIN(5500000,G13-500000)*('Rate Design'!$G$6/100)+MAX(0,G13-6000000)*('Rate Design'!$G$7/100)+'Rate Design'!$G$9+G77*'Rate Design'!$G$10-0.2*G50 -> 275846.7565 | H133: =500000*('Rate Design'!$G$5/100)+MIN(5500000,H13-500000)*('Rate Design'!$G$6/100)+MAX(0,H13-6000000)*('Rate Design'!$G$7/100)+'Rate Design'!$G$9+H77*'Rate Design'!$G$10-0.2*H50 -> 350270.0347 | I133: =500000*('Rate Design'!$G$5/100)+MIN(5500000,I13-500000)*('Rate Design'!$G$6/100)+MAX(0,I13-6000000)*('Rate Design'!$G$7/100)+'Rate Design'!$G$9+I77*'Rate Design'!$G$10-0.2*I50 -> 341574.6647 | J133: =500000*('Rate Design'!$G$5/100)+MIN(5500000,J13-500000)*('Rate Design'!$G$6/100)+MAX(0,J13-6000000)*('Rate Design'!$G$7/100)+'Rate Design'!$G$9+J77*'Rate Design'!$G$10-0.2*J50 -> 353409.1559 | K133: =500000*('Rate Design'!$G$5/100)+MIN(5500000,K13-500000)*('Rate Design'!$G$6/100)+MAX(0,K13-6000000)*('Rate Design'!$G$7/100)+'Rate Design'!$G$9+K77*'Rate Design'!$G$10-0.2*K50 -> 359515.2313 | L133: =500000*('Rate Design'!$G$5/100)+MIN(5500000,L13-500000)*('Rate Design'!$G$6/100)+MAX(0,L13-6000000)*('Rate Design'!$G$7/100)+'Rate Design'!$G$9+L77*'Rate Design'!$G$10-0.2*L50 -> 346172.5496 | M133: =500000*('Rate Design'!$G$5/100)+MIN(5500000,M13-500000)*('Rate Design'!$G$6/100)+MAX(0,M13-6000000)*('Rate Design'!$G$7/100)+'Rate Design'!$G$9+M77*'Rate Design'!$G$10-0.2*M50 -> 343587.4024 | N133: =500000*('Rate Design'!$G$5/100)+MIN(5500000,N13-500000)*('Rate Design'!$G$6/100)+MAX(0,N13-6000000)*('Rate Design'!$G$7/100)+'Rate Design'!$G$9+N77*'Rate Design'!$G$10-0.2*N50 -> 309578.2336 | O133: =500000*('Rate Design'!$G$5/100)+MIN(5500000,O13-500000)*('Rate Design'!$G$6/100)+MAX(0,O13-6000000)*('Rate Design'!$G$7/100)+'Rate Design'!$G$9+O77*'Rate Design'!$G$10-0.2*O50 -> 315623.2747 | P133: 3969970.081 | T133: 0
B134: 0 | C134: 2500003 | D134: =500000*('Rate Design'!$G$5/100)+MIN(5500000,D14-500000)*('Rate Design'!$G$6/100)+MAX(0,D14-6000000)*('Rate Design'!$G$7/100)+'Rate Design'!$G$9+D78*'Rate Design'!$G$10-0.2*D51 -> 360105.4515 | E134: =500000*('Rate Design'!$G$5/100)+MIN(5500000,E14-500000)*('Rate Design'!$G$6/100)+MAX(0,E14-6000000)*('Rate Design'!$G$7/100)+'Rate Design'!$G$9+E78*'Rate Design'!$G$10-0.2*E51 -> 309545.1917 | F134: =500000*('Rate Design'!$G$5/100)+MIN(5500000,F14-500000)*('Rate Design'!$G$6/100)+MAX(0,F14-6000000)*('Rate Design'!$G$7/100)+'Rate Design'!$G$9+F78*'Rate Design'!$G$10-0.2*F51 -> 345869.4969 | G134: =500000*('Rate Design'!$G$5/100)+MIN(5500000,G14-500000)*('Rate Design'!$G$6/100)+MAX(0,G14-6000000)*('Rate Design'!$G$7/100)+'Rate Design'!$G$9+G78*'Rate Design'!$G$10-0.2*G51 -> 230023.7401 | H134: =500000*('Rate Design'!$G$5/100)+MIN(5500000,H14-500000)*('Rate Design'!$G$6/100)+MAX(0,H14-6000000)*('Rate Design'!$G$7/100)+'Rate Design'!$G$9+H78*'Rate Design'!$G$10-0.2*H51 -> 349612.607 | I134: =500000*('Rate Design'!$G$5/100)+MIN(5500000,I14-500000)*('Rate Design'!$G$6/100)+MAX(0,I14-6000000)*('Rate Design'!$G$7/100)+'Rate Design'!$G$9+I78*'Rate Design'!$G$10-0.2*I51 -> 345994.4185 | J134: =500000*('Rate Design'!$G$5/100)+MIN(5500000,J14-500000)*('Rate Design'!$G$6/100)+MAX(0,J14-6000000)*('Rate Design'!$G$7/100)+'Rate Design'!$G$9+J78*'Rate Design'!$G$10-0.2*J51 -> 350831.8748 | K134: =500000*('Rate Design'!$G$5/100)+MIN(5500000,K14-500000)*('Rate Design'!$G$6/100)+MAX(0,K14-6000000)*('Rate Design'!$G$7/100)+'Rate Design'!$G$9+K78*'Rate Design'!$G$10-0.2*K51 -> 346161.9991 | L134: =500000*('Rate Design'!$G$5/100)+MIN(5500000,L14-500000)*('Rate Design'!$G$6/100)+MAX(0,L14-6000000)*('Rate Design'!$G$7/100)+'Rate Design'!$G$9+L78*'Rate Design'!$G$10-0.2*L51 -> 315905.4776 | M134: =500000*('Rate Design'!$G$5/100)+MIN(5500000,M14-500000)*('Rate Design'!$G$6/100)+MAX(0,M14-6000000)*('Rate Design'!$G$7/100)+'Rate Design'!$G$9+M78*'Rate Design'!$G$10-0.2*M51 -> 327100.1455 | N134: =500000*('Rate Design'!$G$5/100)+MIN(5500000,N14-500000)*('Rate Design'!$G$6/100)+MAX(0,N14-6000000)*('Rate Design'!$G$7/100)+'Rate Design'!$G$9+N78*'Rate Design'!$G$10-0.2*N51 -> 234162.2074 | O134: =500000*('Rate Design'!$G$5/100)+MIN(5500000,O14-500000)*('Rate Design'!$G$6/100)+MAX(0,O14-6000000)*('Rate Design'!$G$7/100)+'Rate Design'!$G$9+O78*'Rate Design'!$G$10-0.2*O51 -> 303708.2197 | P134: 3819020.83 | T134: 0
B135: 0 | C135: 500020 | D135: =500000*('Rate Design'!$G$5/100)+MIN(5500000,D15-500000)*('Rate Design'!$G$6/100)+MAX(0,D15-6000000)*('Rate Design'!$G$7/100)+'Rate Design'!$G$9+D79*'Rate Design'!$G$10-0.2*D52 -> 204640.3507 | E135: =500000*('Rate Design'!$G$5/100)+MIN(5500000,E15-500000)*('Rate Design'!$G$6/100)+MAX(0,E15-6000000)*('Rate Design'!$G$7/100)+'Rate Design'!$G$9+E79*'Rate Design'!$G$10-0.2*E52 -> 192983.6417 | F135: =500000*('Rate Design'!$G$5/100)+MIN(5500000,F15-500000)*('Rate Design'!$G$6/100)+MAX(0,F15-6000000)*('Rate Design'!$G$7/100)+'Rate Design'!$G$9+F79*'Rate Design'!$G$10-0.2*F52 -> 208129.5264 | G135: =500000*('Rate Design'!$G$5/100)+MIN(5500000,G15-500000)*('Rate Design'!$G$6/100)+MAX(0,G15-6000000)*('Rate Design'!$G$7/100)+'Rate Design'!$G$9+G79*'Rate Design'!$G$10-0.2*G52 -> 208961.5102 | H135: =500000*('Rate Design'!$G$5/100)+MIN(5500000,H15-500000)*('Rate Design'!$G$6/100)+MAX(0,H15-6000000)*('Rate Design'!$G$7/100)+'Rate Design'!$G$9+H79*'Rate Design'!$G$10-0.2*H52 -> 233714.1492 | I135: =500000*('Rate Design'!$G$5/100)+MIN(5500000,I15-500000)*('Rate Design'!$G$6/100)+MAX(0,I15-6000000)*('Rate Design'!$G$7/100)+'Rate Design'!$G$9+I79*'Rate Design'!$G$10-0.2*I52 -> 240948.172 | J135: =500000*('Rate Design'!$G$5/100)+MIN(5500000,J15-500000)*('Rate Design'!$G$6/100)+MAX(0,J15-6000000)*('Rate Design'!$G$7/100)+'Rate Design'!$G$9+J79*'Rate Design'!$G$10-0.2*J52 -> 263431.3417 | K135: =500000*('Rate Design'!$G$5/100)+MIN(5500000,K15-500000)*('Rate Design'!$G$6/100)+MAX(0,K15-6000000)*('Rate Design'!$G$7/100)+'Rate Design'!$G$9+K79*'Rate Design'!$G$10-0.2*K52 -> 271212.1722 | L135: =500000*('Rate Design'!$G$5/100)+MIN(5500000,L15-500000)*('Rate Design'!$G$6/100)+MAX(0,L15-6000000)*('Rate Design'!$G$7/100)+'Rate Design'!$G$9+L79*'Rate Design'!$G$10-0.2*L52 -> 234419.086 | M135: =500000*('Rate Design'!$G$5/100)+MIN(5500000,M15-500000)*('Rate Design'!$G$6/100)+MAX(0,M15-6000000)*('Rate Design'!$G$7/100)+'Rate Design'!$G$9+M79*'Rate Design'!$G$10-0.2*M52 -> 207356.7525 | N135: =500000*('Rate Design'!$G$5/100)+MIN(5500000,N15-500000)*('Rate Design'!$G$6/100)+MAX(0,N15-6000000)*('Rate Design'!$G$7/100)+'Rate Design'!$G$9+N79*'Rate Design'!$G$10-0.2*N52 -> 195911.9157 | O135: =500000*('Rate Design'!$G$5/100)+MIN(5500000,O15-500000)*('Rate Design'!$G$6/100)+MAX(0,O15-6000000)*('Rate Design'!$G$7/100)+'Rate Design'!$G$9+O79*'Rate Design'!$G$10-0.2*O52 -> 202815.5202 | P135: 2664524.138 | T135: 0
B136: 0 | C136: 1900012 | D136: =500000*('Rate Design'!$G$5/100)+MIN(5500000,D16-500000)*('Rate Design'!$G$6/100)+MAX(0,D16-6000000)*('Rate Design'!$G$7/100)+'Rate Design'!$G$9+D80*'Rate Design'!$G$10-0.2*D53 -> 78047.58962 | E136: =500000*('Rate Design'!$G$5/100)+MIN(5500000,E16-500000)*('Rate Design'!$G$6/100)+MAX(0,E16-6000000)*('Rate Design'!$G$7/100)+'Rate Design'!$G$9+E80*'Rate Design'!$G$10-0.2*E53 -> 74691.45412 | F136: =500000*('Rate Design'!$G$5/100)+MIN(5500000,F16-500000)*('Rate Design'!$G$6/100)+MAX(0,F16-6000000)*('Rate Design'!$G$7/100)+'Rate Design'!$G$9+F80*'Rate Design'!$G$10-0.2*F53 -> 77285.57911 | G136: =500000*('Rate Design'!$G$5/100)+MIN(5500000,G16-500000)*('Rate Design'!$G$6/100)+MAX(0,G16-6000000)*('Rate Design'!$G$7/100)+'Rate Design'!$G$9+G80*'Rate Design'!$G$10-0.2*G53 -> 77955.22269 | H136: =500000*('Rate Design'!$G$5/100)+MIN(5500000,H16-500000)*('Rate Design'!$G$6/100)+MAX(0,H16-6000000)*('Rate Design'!$G$7/100)+'Rate Design'!$G$9+H80*'Rate Design'!$G$10-0.2*H53 -> 84767.67527 | I136: =500000*('Rate Design'!$G$5/100)+MIN(5500000,I16-500000)*('Rate Design'!$G$6/100)+MAX(0,I16-6000000)*('Rate Design'!$G$7/100)+'Rate Design'!$G$9+I80*'Rate Design'!$G$10-0.2*I53 -> 83980.07527 | J136: =500000*('Rate Design'!$G$5/100)+MIN(5500000,J16-500000)*('Rate Design'!$G$6/100)+MAX(0,J16-6000000)*('Rate Design'!$G$7/100)+'Rate Design'!$G$9+J80*'Rate Design'!$G$10-0.2*J53 -> 88492.04034 | K136: =500000*('Rate Design'!$G$5/100)+MIN(5500000,K16-500000)*('Rate Design'!$G$6/100)+MAX(0,K16-6000000)*('Rate Design'!$G$7/100)+'Rate Design'!$G$9+K80*'Rate Design'!$G$10-0.2*K53 -> 89480.00055 | L136: =500000*('Rate Design'!$G$5/100)+MIN(5500000,L16-500000)*('Rate Design'!$G$6/100)+MAX(0,L16-6000000)*('Rate Design'!$G$7/100)+'Rate Design'!$G$9+L80*'Rate Design'!$G$10-0.2*L53 -> 82404.25524 | M136: =500000*('Rate Design'!$G$5/100)+MIN(5500000,M16-500000)*('Rate Design'!$G$6/100)+MAX(0,M16-6000000)*('Rate Design'!$G$7/100)+'Rate Design'!$G$9+M80*'Rate Design'!$G$10-0.2*M53 -> 77186.60636 | N136: =500000*('Rate Design'!$G$5/100)+MIN(5500000,N16-500000)*('Rate Design'!$G$6/100)+MAX(0,N16-6000000)*('Rate Design'!$G$7/100)+'Rate Design'!$G$9+N80*'Rate Design'!$G$10-0.2*N53 -> 75200.42039 | O136: =500000*('Rate Design'!$G$5/100)+MIN(5500000,O16-500000)*('Rate Design'!$G$6/100)+MAX(0,O16-6000000)*('Rate Design'!$G$7/100)+'Rate Design'!$G$9+O80*'Rate Design'!$G$10-0.2*O53 -> 77159.10982 | P136: 966650.0288 | T136: 0
B137: 0 | C137: 2400169 | D137: =500000*('Rate Design'!$G$5/100)+MIN(5500000,D17-500000)*('Rate Design'!$G$6/100)+MAX(0,D17-6000000)*('Rate Design'!$G$7/100)+'Rate Design'!$G$9+D81*'Rate Design'!$G$10-0.2*D54 -> 108064.495 | E137: =500000*('Rate Design'!$G$5/100)+MIN(5500000,E17-500000)*('Rate Design'!$G$6/100)+MAX(0,E17-6000000)*('Rate Design'!$G$7/100)+'Rate Design'!$G$9+E81*'Rate Design'!$G$10-0.2*E54 -> 104702.5834 | F137: =500000*('Rate Design'!$G$5/100)+MIN(5500000,F17-500000)*('Rate Design'!$G$6/100)+MAX(0,F17-6000000)*('Rate Design'!$G$7/100)+'Rate Design'!$G$9+F81*'Rate Design'!$G$10-0.2*F54 -> 105047.9693 | G137: =500000*('Rate Design'!$G$5/100)+MIN(5500000,G17-500000)*('Rate Design'!$G$6/100)+MAX(0,G17-6000000)*('Rate Design'!$G$7/100)+'Rate Design'!$G$9+G81*'Rate Design'!$G$10-0.2*G54 -> 105060.0997 | H137: =500000*('Rate Design'!$G$5/100)+MIN(5500000,H17-500000)*('Rate Design'!$G$6/100)+MAX(0,H17-6000000)*('Rate Design'!$G$7/100)+'Rate Design'!$G$9+H81*'Rate Design'!$G$10-0.2*H54 -> 113408.069 | I137: =500000*('Rate Design'!$G$5/100)+MIN(5500000,I17-500000)*('Rate Design'!$G$6/100)+MAX(0,I17-6000000)*('Rate Design'!$G$7/100)+'Rate Design'!$G$9+I81*'Rate Design'!$G$10-0.2*I54 -> 106643.6654 | J137: =500000*('Rate Design'!$G$5/100)+MIN(5500000,J17-500000)*('Rate Design'!$G$6/100)+MAX(0,J17-6000000)*('Rate Design'!$G$7/100)+'Rate Design'!$G$9+J81*'Rate Design'!$G$10-0.2*J54 -> 110113.2229 | K137: =500000*('Rate Design'!$G$5/100)+MIN(5500000,K17-500000)*('Rate Design'!$G$6/100)+MAX(0,K17-6000000)*('Rate Design'!$G$7/100)+'Rate Design'!$G$9+K81*'Rate Design'!$G$10-0.2*K54 -> 105633.3613 | L137: =500000*('Rate Design'!$G$5/100)+MIN(5500000,L17-500000)*('Rate Design'!$G$6/100)+MAX(0,L17-6000000)*('Rate Design'!$G$7/100)+'Rate Design'!$G$9+L81*'Rate Design'!$G$10-0.2*L54 -> 106260.8713 | M137: =500000*('Rate Design'!$G$5/100)+MIN(5500000,M17-500000)*('Rate Design'!$G$6/100)+MAX(0,M17-6000000)*('Rate Design'!$G$7/100)+'Rate Design'!$G$9+M81*'Rate Design'!$G$10-0.2*M54 -> 110195.1271 | N137: =500000*('Rate Design'!$G$5/100)+MIN(5500000,N17-500000)*('Rate Design'!$G$6/100)+MAX(0,N17-6000000)*('Rate Design'!$G$7/100)+'Rate Design'!$G$9+N81*'Rate Design'!$G$10-0.2*N54 -> 99625.67159 | O137: =500000*('Rate Design'!$G$5/100)+MIN(5500000,O17-500000)*('Rate Design'!$G$6/100)+MAX(0,O17-6000000)*('Rate Design'!$G$7/100)+'Rate Design'!$G$9+O81*'Rate Design'!$G$10-0.2*O54 -> 101268.8575 | P137: 1276023.994 | T137: 0
B138: 0 | C138: 610018682 | T138: 0
B139: 0 | C139: 690067830 | D139: =500000*('Rate Design'!$G$5/100)+MIN(5500000,D19-500000)*('Rate Design'!$G$6/100)+MAX(0,D19-6000000)*('Rate Design'!$G$7/100)+'Rate Design'!$G$9+D83*'Rate Design'!$G$10-0.2*D56 -> 170246.073 | E139: =500000*('Rate Design'!$G$5/100)+MIN(5500000,E19-500000)*('Rate Design'!$G$6/100)+MAX(0,E19-6000000)*('Rate Design'!$G$7/100)+'Rate Design'!$G$9+E83*'Rate Design'!$G$10-0.2*E56 -> 153505.5133 | F139: =500000*('Rate Design'!$G$5/100)+MIN(5500000,F19-500000)*('Rate Design'!$G$6/100)+MAX(0,F19-6000000)*('Rate Design'!$G$7/100)+'Rate Design'!$G$9+F83*'Rate Design'!$G$10-0.2*F56 -> 164316.2405 | G139: =500000*('Rate Design'!$G$5/100)+MIN(5500000,G19-500000)*('Rate Design'!$G$6/100)+MAX(0,G19-6000000)*('Rate Design'!$G$7/100)+'Rate Design'!$G$9+G83*'Rate Design'!$G$10-0.2*G56 -> 146813.8712 | H139: =500000*('Rate Design'!$G$5/100)+MIN(5500000,H19-500000)*('Rate Design'!$G$6/100)+MAX(0,H19-6000000)*('Rate Design'!$G$7/100)+'Rate Design'!$G$9+H83*'Rate Design'!$G$10-0.2*H56 -> 138575.0705 | I139: =500000*('Rate Design'!$G$5/100)+MIN(5500000,I19-500000)*('Rate Design'!$G$6/100)+MAX(0,I19-6000000)*('Rate Design'!$G$7/100)+'Rate Design'!$G$9+I83*'Rate Design'!$G$10-0.2*I56 -> 141479.7918 | J139: =500000*('Rate Design'!$G$5/100)+MIN(5500000,J19-500000)*('Rate Design'!$G$6/100)+MAX(0,J19-6000000)*('Rate Design'!$G$7/100)+'Rate Design'!$G$9+J83*'Rate Design'!$G$10-0.2*J56 -> 145712.0803 | K139: =500000*('Rate Design'!$G$5/100)+MIN(5500000,K19-500000)*('Rate Design'!$G$6/100)+MAX(0,K19-6000000)*('Rate Design'!$G$7/100)+'Rate Design'!$G$9+K83*'Rate Design'!$G$10-0.2*K56 -> 135558.932 | L139: =500000*('Rate Design'!$G$5/100)+MIN(5500000,L19-500000)*('Rate Design'!$G$6/100)+MAX(0,L19-6000000)*('Rate Design'!$G$7/100)+'Rate Design'!$G$9+L83*'Rate Design'!$G$10-0.2*L56 -> 128376.0305 | M139: =500000*('Rate Design'!$G$5/100)+MIN(5500000,M19-500000)*('Rate Design'!$G$6/100)+MAX(0,M19-6000000)*('Rate Design'!$G$7/100)+'Rate Design'!$G$9+M83*'Rate Design'!$G$10-0.2*M56 -> 151925.8186 | N139: =500000*('Rate Design'!$G$5/100)+MIN(5500000,N19-500000)*('Rate Design'!$G$6/100)+MAX(0,N19-6000000)*('Rate Design'!$G$7/100)+'Rate Design'!$G$9+N83*'Rate Design'!$G$10-0.2*N56 -> 149696.1638 | O139: =500000*('Rate Design'!$G$5/100)+MIN(5500000,O19-500000)*('Rate Design'!$G$6/100)+MAX(0,O19-6000000)*('Rate Design'!$G$7/100)+'Rate Design'!$G$9+O83*'Rate Design'!$G$10-0.2*O56 -> 148927.3403 | P139: 1775132.926 | T139: 0
B140: 0 | C140: 1300001 | D140: =500000*('Rate Design'!$G$5/100)+MIN(5500000,D20-500000)*('Rate Design'!$G$6/100)+MAX(0,D20-6000000)*('Rate Design'!$G$7/100)+'Rate Design'!$G$9+D84*'Rate Design'!$G$10-0.2*D57 -> 175604.6497 | E140: =500000*('Rate Design'!$G$5/100)+MIN(5500000,E20-500000)*('Rate Design'!$G$6/100)+MAX(0,E20-6000000)*('Rate Design'!$G$7/100)+'Rate Design'!$G$9+E84*'Rate Design'!$G$10-0.2*E57 -> 170221.8103 | F140: =500000*('Rate Design'!$G$5/100)+MIN(5500000,F20-500000)*('Rate Design'!$G$6/100)+MAX(0,F20-6000000)*('Rate Design'!$G$7/100)+'Rate Design'!$G$9+F84*'Rate Design'!$G$10-0.2*F57 -> 181699.9841 | G140: =500000*('Rate Design'!$G$5/100)+MIN(5500000,G20-500000)*('Rate Design'!$G$6/100)+MAX(0,G20-6000000)*('Rate Design'!$G$7/100)+'Rate Design'!$G$9+G84*'Rate Design'!$G$10-0.2*G57 -> 164646.4048 | H140: =500000*('Rate Design'!$G$5/100)+MIN(5500000,H20-500000)*('Rate Design'!$G$6/100)+MAX(0,H20-6000000)*('Rate Design'!$G$7/100)+'Rate Design'!$G$9+H84*'Rate Design'!$G$10-0.2*H57 -> 160500.0839 | I140: =500000*('Rate Design'!$G$5/100)+MIN(5500000,I20-500000)*('Rate Design'!$G$6/100)+MAX(0,I20-6000000)*('Rate Design'!$G$7/100)+'Rate Design'!$G$9+I84*'Rate Design'!$G$10-0.2*I57 -> 153106.8954 | J140: =500000*('Rate Design'!$G$5/100)+MIN(5500000,J20-500000)*('Rate Design'!$G$6/100)+MAX(0,J20-6000000)*('Rate Design'!$G$7/100)+'Rate Design'!$G$9+J84*'Rate Design'!$G$10-0.2*J57 -> 157250.9959 | K140: =500000*('Rate Design'!$G$5/100)+MIN(5500000,K20-500000)*('Rate Design'!$G$6/100)+MAX(0,K20-6000000)*('Rate Design'!$G$7/100)+'Rate Design'!$G$9+K84*'Rate Design'!$G$10-0.2*K57 -> 163907.58 | L140: =500000*('Rate Design'!$G$5/100)+MIN(5500000,L20-500000)*('Rate Design'!$G$6/100)+MAX(0,L20-6000000)*('Rate Design'!$G$7/100)+'Rate Design'!$G$9+L84*'Rate Design'!$G$10-0.2*L57 -> 165908.7644 | M140: =500000*('Rate Design'!$G$5/100)+MIN(5500000,M20-500000)*('Rate Design'!$G$6/100)+MAX(0,M20-6000000)*('Rate Design'!$G$7/100)+'Rate Design'!$G$9+M84*'Rate Design'!$G$10-0.2*M57 -> 173455.6785 | N140: =500000*('Rate Design'!$G$5/100)+MIN(5500000,N20-500000)*('Rate Design'!$G$6/100)+MAX(0,N20-6000000)*('Rate Design'!$G$7/100)+'Rate Design'!$G$9+N84*'Rate Design'!$G$10-0.2*N57 -> 169375.9235 | O140: =500000*('Rate Design'!$G$5/100)+MIN(5500000,O20-500000)*('Rate Design'!$G$6/100)+MAX(0,O20-6000000)*('Rate Design'!$G$7/100)+'Rate Design'!$G$9+O84*'Rate Design'!$G$10-0.2*O57 -> 173395.1876 | P140: 2009073.958 | T140: 0
B141: 0 | C141: 290081951 | D141: =500000*('Rate Design'!$G$5/100)+MIN(5500000,D21-500000)*('Rate Design'!$G$6/100)+MAX(0,D21-6000000)*('Rate Design'!$G$7/100)+'Rate Design'!$G$9+D85*'Rate Design'!$G$10-0.2*D58 -> 271550.1819 | E141: =500000*('Rate Design'!$G$5/100)+MIN(5500000,E21-500000)*('Rate Design'!$G$6/100)+MAX(0,E21-6000000)*('Rate Design'!$G$7/100)+'Rate Design'!$G$9+E85*'Rate Design'!$G$10-0.2*E58 -> 252814.3059 | F141: =500000*('Rate Design'!$G$5/100)+MIN(5500000,F21-500000)*('Rate Design'!$G$6/100)+MAX(0,F21-6000000)*('Rate Design'!$G$7/100)+'Rate Design'!$G$9+F85*'Rate Design'!$G$10-0.2*F58 -> 257128.9946 | G141: =500000*('Rate Design'!$G$5/100)+MIN(5500000,G21-500000)*('Rate Design'!$G$6/100)+MAX(0,G21-6000000)*('Rate Design'!$G$7/100)+'Rate Design'!$G$9+G85*'Rate Design'!$G$10-0.2*G58 -> 241205.4306 | H141: =500000*('Rate Design'!$G$5/100)+MIN(5500000,H21-500000)*('Rate Design'!$G$6/100)+MAX(0,H21-6000000)*('Rate Design'!$G$7/100)+'Rate Design'!$G$9+H85*'Rate Design'!$G$10-0.2*H58 -> 272689.9658 | I141: =500000*('Rate Design'!$G$5/100)+MIN(5500000,I21-500000)*('Rate Design'!$G$6/100)+MAX(0,I21-6000000)*('Rate Design'!$G$7/100)+'Rate Design'!$G$9+I85*'Rate Design'!$G$10-0.2*I58 -> 292698.762 | J141: =500000*('Rate Design'!$G$5/100)+MIN(5500000,J21-500000)*('Rate Design'!$G$6/100)+MAX(0,J21-6000000)*('Rate Design'!$G$7/100)+'Rate Design'!$G$9+J85*'Rate Design'!$G$10-0.2*J58 -> 330767.5638 | K141: =500000*('Rate Design'!$G$5/100)+MIN(5500000,K21-500000)*('Rate Design'!$G$6/100)+MAX(0,K21-6000000)*('Rate Design'!$G$7/100)+'Rate Design'!$G$9+K85*'Rate Design'!$G$10-0.2*K58 -> 357858.1914 | L141: =500000*('Rate Design'!$G$5/100)+MIN(5500000,L21-500000)*('Rate Design'!$G$6/100)+MAX(0,L21-6000000)*('Rate Design'!$G$7/100)+'Rate Design'!$G$9+L85*'Rate Design'!$G$10-0.2*L58 -> 305244.8605 | M141: =500000*('Rate Design'!$G$5/100)+MIN(5500000,M21-500000)*('Rate Design'!$G$6/100)+MAX(0,M21-6000000)*('Rate Design'!$G$7/100)+'Rate Design'!$G$9+M85*'Rate Design'!$G$10-0.2*M58 -> 263496.1357 | N141: =500000*('Rate Design'!$G$5/100)+MIN(5500000,N21-500000)*('Rate Design'!$G$6/100)+MAX(0,N21-6000000)*('Rate Design'!$G$7/100)+'Rate Design'!$G$9+N85*'Rate Design'!$G$10-0.2*N58 -> 272948.0605 | O141: =500000*('Rate Design'!$G$5/100)+MIN(5500000,O21-500000)*('Rate Design'!$G$6/100)+MAX(0,O21-6000000)*('Rate Design'!$G$7/100)+'Rate Design'!$G$9+O85*'Rate Design'!$G$10-0.2*O58 -> 277930.5173 | P141: 3396332.97 | T141: 0
B142: 0 | C142: 500033 | D142: =500000*('Rate Design'!$G$5/100)+MIN(5500000,D22-500000)*('Rate Design'!$G$6/100)+MAX(0,D22-6000000)*('Rate Design'!$G$7/100)+'Rate Design'!$G$9+D86*'Rate Design'!$G$10-0.2*D59 -> 221864.3184 | E142: =500000*('Rate Design'!$G$5/100)+MIN(5500000,E22-500000)*('Rate Design'!$G$6/100)+MAX(0,E22-6000000)*('Rate Design'!$G$7/100)+'Rate Design'!$G$9+E86*'Rate Design'!$G$10-0.2*E59 -> 208389.4664 | F142: =500000*('Rate Design'!$G$5/100)+MIN(5500000,F22-500000)*('Rate Design'!$G$6/100)+MAX(0,F22-6000000)*('Rate Design'!$G$7/100)+'Rate Design'!$G$9+F86*'Rate Design'!$G$10-0.2*F59 -> 210105.0253 | G142: =500000*('Rate Design'!$G$5/100)+MIN(5500000,G22-500000)*('Rate Design'!$G$6/100)+MAX(0,G22-6000000)*('Rate Design'!$G$7/100)+'Rate Design'!$G$9+G86*'Rate Design'!$G$10-0.2*G59 -> 199442.5803 | H142: =500000*('Rate Design'!$G$5/100)+MIN(5500000,H22-500000)*('Rate Design'!$G$6/100)+MAX(0,H22-6000000)*('Rate Design'!$G$7/100)+'Rate Design'!$G$9+H86*'Rate Design'!$G$10-0.2*H59 -> 191001.8826 | I142: =500000*('Rate Design'!$G$5/100)+MIN(5500000,I22-500000)*('Rate Design'!$G$6/100)+MAX(0,I22-6000000)*('Rate Design'!$G$7/100)+'Rate Design'!$G$9+I86*'Rate Design'!$G$10-0.2*I59 -> 182525.4951 | J142: =500000*('Rate Design'!$G$5/100)+MIN(5500000,J22-500000)*('Rate Design'!$G$6/100)+MAX(0,J22-6000000)*('Rate Design'!$G$7/100)+'Rate Design'!$G$9+J86*'Rate Design'!$G$10-0.2*J59 -> 186474.9223 | K142: =500000*('Rate Design'!$G$5/100)+MIN(5500000,K22-500000)*('Rate Design'!$G$6/100)+MAX(0,K22-6000000)*('Rate Design'!$G$7/100)+'Rate Design'!$G$9+K86*'Rate Design'!$G$10-0.2*K59 -> 194118.2781 | L142: =500000*('Rate Design'!$G$5/100)+MIN(5500000,L22-500000)*('Rate Design'!$G$6/100)+MAX(0,L22-6000000)*('Rate Design'!$G$7/100)+'Rate Design'!$G$9+L86*'Rate Design'!$G$10-0.2*L59 -> 196578.7846 | M142: =500000*('Rate Design'!$G$5/100)+MIN(5500000,M22-500000)*('Rate Design'!$G$6/100)+MAX(0,M22-6000000)*('Rate Design'!$G$7/100)+'Rate Design'!$G$9+M86*'Rate Design'!$G$10-0.2*M59 -> 212614.2775 | N142: =500000*('Rate Design'!$G$5/100)+MIN(5500000,N22-500000)*('Rate Design'!$G$6/100)+MAX(0,N22-6000000)*('Rate Design'!$G$7/100)+'Rate Design'!$G$9+N86*'Rate Design'!$G$10-0.2*N59 -> 216680.8728 | O142: =500000*('Rate Design'!$G$5/100)+MIN(5500000,O22-500000)*('Rate Design'!$G$6/100)+MAX(0,O22-6000000)*('Rate Design'!$G$7/100)+'Rate Design'!$G$9+O86*'Rate Design'!$G$10-0.2*O59 -> 224890.8493 | P142: 2444686.753 | T142: 0
B143: 0 | C143: 410031282 | D143: =500000*('Rate Design'!$G$5/100)+MIN(5500000,D23-500000)*('Rate Design'!$G$6/100)+MAX(0,D23-6000000)*('Rate Design'!$G$7/100)+'Rate Design'!$G$9+D87*'Rate Design'!$G$10 -> 204423.4085 | E143: =500000*('Rate Design'!$G$5/100)+MIN(5500000,E23-500000)*('Rate Design'!$G$6/100)+MAX(0,E23-6000000)*('Rate Design'!$G$7/100)+'Rate Design'!$G$9+E87*'Rate Design'!$G$10 -> 234864.1219 | F143: =500000*('Rate Design'!$G$5/100)+MIN(5500000,F23-500000)*('Rate Design'!$G$6/100)+MAX(0,F23-6000000)*('Rate Design'!$G$7/100)+'Rate Design'!$G$9+F87*'Rate Design'!$G$10 -> 206735.0281 | G143: =500000*('Rate Design'!$G$5/100)+MIN(5500000,G23-500000)*('Rate Design'!$G$6/100)+MAX(0,G23-6000000)*('Rate Design'!$G$7/100)+'Rate Design'!$G$9+G87*'Rate Design'!$G$10 -> 185182.8019 | H143: =500000*('Rate Design'!$G$5/100)+MIN(5500000,H23-500000)*('Rate Design'!$G$6/100)+MAX(0,H23-6000000)*('Rate Design'!$G$7/100)+'Rate Design'!$G$9+H87*'Rate Design'!$G$10 -> 179162.9065 | I143: =500000*('Rate Design'!$G$5/100)+MIN(5500000,I23-500000)*('Rate Design'!$G$6/100)+MAX(0,I23-6000000)*('Rate Design'!$G$7/100)+'Rate Design'!$G$9+I87*'Rate Design'!$G$10 -> 174039.9783 | J143: =500000*('Rate Design'!$G$5/100)+MIN(5500000,J23-500000)*('Rate Design'!$G$6/100)+MAX(0,J23-6000000)*('Rate Design'!$G$7/100)+'Rate Design'!$G$9+J87*'Rate Design'!$G$10 -> 172954.7491 | K143: =500000*('Rate Design'!$G$5/100)+MIN(5500000,K23-500000)*('Rate Design'!$G$6/100)+MAX(0,K23-6000000)*('Rate Design'!$G$7/100)+'Rate Design'!$G$9+K87*'Rate Design'!$G$10 -> 177232.2054 | L143: =500000*('Rate Design'!$G$5/100)+MIN(5500000,L23-500000)*('Rate Design'!$G$6/100)+MAX(0,L23-6000000)*('Rate Design'!$G$7/100)+'Rate Design'!$G$9+L87*'Rate Design'!$G$10 -> 170339.9786 | M143: =500000*('Rate Design'!$G$5/100)+MIN(5500000,M23-500000)*('Rate Design'!$G$6/100)+MAX(0,M23-6000000)*('Rate Design'!$G$7/100)+'Rate Design'!$G$9+M87*'Rate Design'!$G$10 -> 178039.1066 | N143: =500000*('Rate Design'!$G$5/100)+MIN(5500000,N23-500000)*('Rate Design'!$G$6/100)+MAX(0,N23-6000000)*('Rate Design'!$G$7/100)+'Rate Design'!$G$9+N87*'Rate Design'!$G$10 -> 178365.0118 | O143: =500000*('Rate Design'!$G$5/100)+MIN(5500000,O23-500000)*('Rate Design'!$G$6/100)+MAX(0,O23-6000000)*('Rate Design'!$G$7/100)+'Rate Design'!$G$9+O87*'Rate Design'!$G$10 -> 178419.11 | P143: 2239758.407 | T143: 0
B144: 0 | C144: 500032 | D144: =500000*('Rate Design'!$G$5/100)+MIN(5500000,D24-500000)*('Rate Design'!$G$6/100)+MAX(0,D24-6000000)*('Rate Design'!$G$7/100)+'Rate Design'!$G$9+D88*'Rate Design'!$G$10 -> 161266.481 | E144: =500000*('Rate Design'!$G$5/100)+MIN(5500000,E24-500000)*('Rate Design'!$G$6/100)+MAX(0,E24-6000000)*('Rate Design'!$G$7/100)+'Rate Design'!$G$9+E88*'Rate Design'!$G$10 -> 152987.0001 | F144: =500000*('Rate Design'!$G$5/100)+MIN(5500000,F24-500000)*('Rate Design'!$G$6/100)+MAX(0,F24-6000000)*('Rate Design'!$G$7/100)+'Rate Design'!$G$9+F88*'Rate Design'!$G$10 -> 156346.9881 | G144: =500000*('Rate Design'!$G$5/100)+MIN(5500000,G24-500000)*('Rate Design'!$G$6/100)+MAX(0,G24-6000000)*('Rate Design'!$G$7/100)+'Rate Design'!$G$9+G88*'Rate Design'!$G$10 -> 160564.581 | H144: =500000*('Rate Design'!$G$5/100)+MIN(5500000,H24-500000)*('Rate Design'!$G$6/100)+MAX(0,H24-6000000)*('Rate Design'!$G$7/100)+'Rate Design'!$G$9+H88*'Rate Design'!$G$10 -> 164067.0199 | I144: =500000*('Rate Design'!$G$5/100)+MIN(5500000,I24-500000)*('Rate Design'!$G$6/100)+MAX(0,I24-6000000)*('Rate Design'!$G$7/100)+'Rate Design'!$G$9+I88*'Rate Design'!$G$10 -> 190108.3122 | J144: =500000*('Rate Design'!$G$5/100)+MIN(5500000,J24-500000)*('Rate Design'!$G$6/100)+MAX(0,J24-6000000)*('Rate Design'!$G$7/100)+'Rate Design'!$G$9+J88*'Rate Design'!$G$10 -> 210736.9858 | K144: =500000*('Rate Design'!$G$5/100)+MIN(5500000,K24-500000)*('Rate Design'!$G$6/100)+MAX(0,K24-6000000)*('Rate Design'!$G$7/100)+'Rate Design'!$G$9+K88*'Rate Design'!$G$10 -> 246808.082 | L144: =500000*('Rate Design'!$G$5/100)+MIN(5500000,L24-500000)*('Rate Design'!$G$6/100)+MAX(0,L24-6000000)*('Rate Design'!$G$7/100)+'Rate Design'!$G$9+L88*'Rate Design'!$G$10 -> 238496.913 | M144: =500000*('Rate Design'!$G$5/100)+MIN(5500000,M24-500000)*('Rate Design'!$G$6/100)+MAX(0,M24-6000000)*('Rate Design'!$G$7/100)+'Rate Design'!$G$9+M88*'Rate Design'!$G$10 -> 206085.6232 | N144: =500000*('Rate Design'!$G$5/100)+MIN(5500000,N24-500000)*('Rate Design'!$G$6/100)+MAX(0,N24-6000000)*('Rate Design'!$G$7/100)+'Rate Design'!$G$9+N88*'Rate Design'!$G$10 -> 153405.059 | O144: =500000*('Rate Design'!$G$5/100)+MIN(5500000,O24-500000)*('Rate Design'!$G$6/100)+MAX(0,O24-6000000)*('Rate Design'!$G$7/100)+'Rate Design'!$G$9+O88*'Rate Design'!$G$10 -> 146867.5542 | P144: 2187740.599 | T144: 0
B145: 0 | D145: =500000*('Rate Design'!$G$5/100)+MIN(5500000,D25-500000)*('Rate Design'!$G$6/100)+MAX(0,D25-6000000)*('Rate Design'!$G$7/100)+'Rate Design'!$G$9+D89*'Rate Design'!$G$10 -> 70862.72367 | E145: =500000*('Rate Design'!$G$5/100)+MIN(5500000,E25-500000)*('Rate Design'!$G$6/100)+MAX(0,E25-6000000)*('Rate Design'!$G$7/100)+'Rate Design'!$G$9+E89*'Rate Design'!$G$10 -> 68863.7325 | F145: =500000*('Rate Design'!$G$5/100)+MIN(5500000,F25-500000)*('Rate Design'!$G$6/100)+MAX(0,F25-6000000)*('Rate Design'!$G$7/100)+'Rate Design'!$G$9+F89*'Rate Design'!$G$10 -> 68012.4901 | G145: =500000*('Rate Design'!$G$5/100)+MIN(5500000,G25-500000)*('Rate Design'!$G$6/100)+MAX(0,G25-6000000)*('Rate Design'!$G$7/100)+'Rate Design'!$G$9+G89*'Rate Design'!$G$10 -> 71064.37021 | H145: =500000*('Rate Design'!$G$5/100)+MIN(5500000,H25-500000)*('Rate Design'!$G$6/100)+MAX(0,H25-6000000)*('Rate Design'!$G$7/100)+'Rate Design'!$G$9+H89*'Rate Design'!$G$10 -> 73564.56536 | I145: =500000*('Rate Design'!$G$5/100)+MIN(5500000,I25-500000)*('Rate Design'!$G$6/100)+MAX(0,I25-6000000)*('Rate Design'!$G$7/100)+'Rate Design'!$G$9+I89*'Rate Design'!$G$10 -> 71637.96723 | J145: =500000*('Rate Design'!$G$5/100)+MIN(5500000,J25-500000)*('Rate Design'!$G$6/100)+MAX(0,J25-6000000)*('Rate Design'!$G$7/100)+'Rate Design'!$G$9+J89*'Rate Design'!$G$10 -> 71366.70133 | K145: =500000*('Rate Design'!$G$5/100)+MIN(5500000,K25-500000)*('Rate Design'!$G$6/100)+MAX(0,K25-6000000)*('Rate Design'!$G$7/100)+'Rate Design'!$G$9+K89*'Rate Design'!$G$10 -> 72998.73464 | L145: =500000*('Rate Design'!$G$5/100)+MIN(5500000,L25-500000)*('Rate Design'!$G$6/100)+MAX(0,L25-6000000)*('Rate Design'!$G$7/100)+'Rate Design'!$G$9+L89*'Rate Design'!$G$10 -> 72209.62268 | M145: =500000*('Rate Design'!$G$5/100)+MIN(5500000,M25-500000)*('Rate Design'!$G$6/100)+MAX(0,M25-6000000)*('Rate Design'!$G$7/100)+'Rate Design'!$G$9+M89*'Rate Design'!$G$10 -> 189428.9816 | N145: =500000*('Rate Design'!$G$5/100)+MIN(5500000,N25-500000)*('Rate Design'!$G$6/100)+MAX(0,N25-6000000)*('Rate Design'!$G$7/100)+'Rate Design'!$G$9+N89*'Rate Design'!$G$10 -> 205659.5391 | O145: =500000*('Rate Design'!$G$5/100)+MIN(5500000,O25-500000)*('Rate Design'!$G$6/100)+MAX(0,O25-6000000)*('Rate Design'!$G$7/100)+'Rate Design'!$G$9+O89*'Rate Design'!$G$10 -> 200233.8246 | P145: =SUM(D145:O145) -> 1235903.253 | T145: 0
B146: 0 | D146: =500000*('Rate Design'!$G$5/100)+MIN(5500000,D26-500000)*('Rate Design'!$G$6/100)+MAX(0,D26-6000000)*('Rate Design'!$G$7/100)+'Rate Design'!$G$9+D90*'Rate Design'!$G$10-0.2*D63 -> 83373.16077 | E146: =500000*('Rate Design'!$G$5/100)+MIN(5500000,E26-500000)*('Rate Design'!$G$6/100)+MAX(0,E26-6000000)*('Rate Design'!$G$7/100)+'Rate Design'!$G$9+E90*'Rate Design'!$G$10-0.2*E63 -> 82090.85499 | F146: =500000*('Rate Design'!$G$5/100)+MIN(5500000,F26-500000)*('Rate Design'!$G$6/100)+MAX(0,F26-6000000)*('Rate Design'!$G$7/100)+'Rate Design'!$G$9+F90*'Rate Design'!$G$10-0.2*F63 -> 80496.20026 | G146: =500000*('Rate Design'!$G$5/100)+MIN(5500000,G26-500000)*('Rate Design'!$G$6/100)+MAX(0,G26-6000000)*('Rate Design'!$G$7/100)+'Rate Design'!$G$9+G90*'Rate Design'!$G$10-0.2*G63 -> 77056.11642 | H146: =500000*('Rate Design'!$G$5/100)+MIN(5500000,H26-500000)*('Rate Design'!$G$6/100)+MAX(0,H26-6000000)*('Rate Design'!$G$7/100)+'Rate Design'!$G$9+H90*'Rate Design'!$G$10-0.2*H63 -> 79155.50853 | I146: =500000*('Rate Design'!$G$5/100)+MIN(5500000,I26-500000)*('Rate Design'!$G$6/100)+MAX(0,I26-6000000)*('Rate Design'!$G$7/100)+'Rate Design'!$G$9+I90*'Rate Design'!$G$10-0.2*I63 -> 77349.89955 | J146: =500000*('Rate Design'!$G$5/100)+MIN(5500000,J26-500000)*('Rate Design'!$G$6/100)+MAX(0,J26-6000000)*('Rate Design'!$G$7/100)+'Rate Design'!$G$9+J90*'Rate Design'!$G$10-0.2*J63 -> 79659.95243 | K146: =500000*('Rate Design'!$G$5/100)+MIN(5500000,K26-500000)*('Rate Design'!$G$6/100)+MAX(0,K26-6000000)*('Rate Design'!$G$7/100)+'Rate Design'!$G$9+K90*'Rate Design'!$G$10-0.2*K63 -> 80503.47608 | L146: =500000*('Rate Design'!$G$5/100)+MIN(5500000,L26-500000)*('Rate Design'!$G$6/100)+MAX(0,L26-6000000)*('Rate Design'!$G$7/100)+'Rate Design'!$G$9+L90*'Rate Design'!$G$10-0.2*L63 -> 75664.67459 | M146: =500000*('Rate Design'!$G$5/100)+MIN(5500000,M26-500000)*('Rate Design'!$G$6/100)+MAX(0,M26-6000000)*('Rate Design'!$G$7/100)+'Rate Design'!$G$9+M90*'Rate Design'!$G$10-0.2*M63 -> 79916.22329 | N146: =500000*('Rate Design'!$G$5/100)+MIN(5500000,N26-500000)*('Rate Design'!$G$6/100)+MAX(0,N26-6000000)*('Rate Design'!$G$7/100)+'Rate Design'!$G$9+N90*'Rate Design'!$G$10-0.2*N63 -> 79918.11601 | O146: =500000*('Rate Design'!$G$5/100)+MIN(5500000,O26-500000)*('Rate Design'!$G$6/100)+MAX(0,O26-6000000)*('Rate Design'!$G$7/100)+'Rate Design'!$G$9+O90*'Rate Design'!$G$10-0.2*O63 -> 79142.15039 | P146: =SUM(D146:O146) -> 954326.3333 | T146: 0
B147: Schedule 25 Total | P147: =SUM(P124:P146) -> 68105024.66 | Q147: =P147-'Pres & Prop Rev'!G152 -> -367799.9996 | T147: =SUM(T124:T144) -> 0
D149: =500000*('Rate Design'!$G$15/100)+MIN(5500000,#REF!-500000)*('Rate Design'!$G$16/100)+MAX(0,#REF!-6000000)*('Rate Design'!$G$17/100)+'Rate Design'!$G$31+#REF!*'Rate Design'!$G$32 ->  | E149: =500000*('Rate Design'!$G$15/100)+MIN(5500000,#REF!-500000)*('Rate Design'!$G$16/100)+MAX(0,#REF!-6000000)*('Rate Design'!$G$17/100)+'Rate Design'!$G$31+#REF!*'Rate Design'!$G$32 ->  | F149: =500000*('Rate Design'!$G$15/100)+MIN(5500000,#REF!-500000)*('Rate Design'!$G$16/100)+MAX(0,#REF!-6000000)*('Rate Design'!$G$17/100)+'Rate Design'!$G$31+#REF!*'Rate Design'!$G$32 ->  | G149: =500000*('Rate Design'!$G$27/100)+MIN(5500000,#REF!-500000)*('Rate Design'!$G$28/100)+MAX(0,#REF!-6000000)*('Rate Design'!$G$29/100)+'Rate Design'!$G$31+#REF!*'Rate Design'!$G$32 ->  | H149: =500000*('Rate Design'!$G$27/100)+MIN(5500000,#REF!-500000)*('Rate Design'!$G$28/100)+MAX(0,#REF!-6000000)*('Rate Design'!$G$29/100)+'Rate Design'!$G$31+#REF!*'Rate Design'!$G$32 ->  | I149: =500000*('Rate Design'!$G$27/100)+MIN(5500000,#REF!-500000)*('Rate Design'!$G$28/100)+MAX(0,#REF!-6000000)*('Rate Design'!$G$29/100)+'Rate Design'!$G$31+#REF!*'Rate Design'!$G$32 ->  | J149: =500000*('Rate Design'!$G$27/100)+MIN(5500000,#REF!-500000)*('Rate Design'!$G$28/100)+MAX(0,#REF!-6000000)*('Rate Design'!$G$29/100)+'Rate Design'!$G$31+#REF!*'Rate Design'!$G$32 ->  | K149: =500000*('Rate Design'!$G$27/100)+MIN(5500000,#REF!-500000)*('Rate Design'!$G$28/100)+MAX(0,#REF!-6000000)*('Rate Design'!$G$29/100)+'Rate Design'!$G$31+#REF!*'Rate Design'!$G$32 ->  | L149: =500000*('Rate Design'!$G$27/100)+MIN(5500000,#REF!-500000)*('Rate Design'!$G$28/100)+MAX(0,#REF!-6000000)*('Rate Design'!$G$29/100)+'Rate Design'!$G$31+#REF!*'Rate Design'!$G$32 ->  | M149: =500000*('Rate Design'!$G$27/100)+MIN(5500000,#REF!-500000)*('Rate Design'!$G$28/100)+MAX(0,#REF!-6000000)*('Rate Design'!$G$29/100)+'Rate Design'!$G$31+#REF!*'Rate Design'!$G$32 ->  | N149: =500000*('Rate Design'!$G$27/100)+MIN(5500000,#REF!-500000)*('Rate Design'!$G$28/100)+MAX(0,#REF!-6000000)*('Rate Design'!$G$29/100)+'Rate Design'!$G$31+#REF!*'Rate Design'!$G$32 ->  | O149: =500000*('Rate Design'!$G$27/100)+MIN(5500000,#REF!-500000)*('Rate Design'!$G$28/100)+MAX(0,#REF!-6000000)*('Rate Design'!$G$29/100)+'Rate Design'!$G$31+#REF!*'Rate Design'!$G$32 ->  | P149: =SUM(D149:O149) ->  | U149: =IF(P149<'Exh. ELJ-5 E Bill Components'!L52,'Exh. ELJ-5 E Bill Components'!L52-P149,0) -> 
D151: 24 | E151: 24 | F151: 24 | G151: 24 | H151: 24 | I151: 24 | J151: 24 | K151: 24 | L151: 24 | M151: 24 | N151: 24 | O151: 24
D152: 31 | E152: 30 | F152: 31 | G152: 31 | H152: 28 | I152: 31 | J152: 30 | K152: 31 | L152: 30 | M152: 31 | N152: 31 | O152: 30 | P152: =SUM(D152:O152) -> 365
D153: =D151*D152 -> 744 | E153: =E151*E152 -> 720 | F153: =F151*F152 -> 744 | G153: 744 | H153: 672 | I153: 744 | J153: 720 | K153: 744 | L153: 720 | M153: 744 | N153: 744 | O153: 720 | P153: =SUM(D153:O153) -> 8760
B154: Load Factor | D154: =D3 -> 2019-01-01 | E154: 2019-02-01 | F154: 2019-03-01 | G154: 2019-04-01 | H154: 2019-05-01 | I154: 2019-06-01 | J154: 2019-07-01 | K154: 2019-08-01 | L154: 2019-09-01 | M154: 2019-10-01 | N154: 2019-11-01 | O154: 2019-12-01 | P154: Monthly Average | Q154: Annual Peak
A155: 1 | B155: BF Goodrich | D155: =(D4/D$153)/D41 -> 0.7692798631 | E155: 0.6186955876 | F155: 0.7117728382 | G155: 0.6213656389 | H155: 0.4953523001 | I155: 0.7633077775 | J155: 0.8214889893 | K155: 0.798788478 | L155: 0.8305807433 | M155: 0.5848321623 | N155: 0.7174474288 | O155: 0.6914943649 | P155: =AVERAGE(D155:O155) -> 0.7020338477 | Q155: =(P4/8760)/Q41 -> 0.4011262493
A156: 2 | B156: Boise Cascade Plywood | D156: =(D5/D$153)/D42 -> 0.6098584201 | E156: 0.7475576411 | F156: 0.7820174324 | G156: 0.7889077781 | H156: 0.8772363452 | I156: 0.7625256188 | J156: 0.7802732242 | K156: 0.7924798895 | L156: 0.7657334597 | M156: 0.7868518911 | N156: 0.7479494486 | O156: 0.5656909692 | P156: =AVERAGE(D156:O156) -> 0.7505901765 | Q156: 0.7039478221
A157: 3 | B157: Boise Cascade Sawmill | D157: =(D6/D$153)/D43 -> 0.6531909962 | E157: 0.6327470425 | F157: 0.6580303143 | G157: 0.6166869612 | H157: 0.7224917106 | I157: 0.6413329183 | J157: 0.6700715582 | K157: 0.587806473 | L157: 0.6431771472 | M157: 0.6636172949 | N157: 0.6049541806 | O157: 0.6208417024 | P157: 0.6429123583 | Q157: 0.5709138328
A158: 4 | B158: City of Spokane Sewage Treatment Plt | D158: =(D7/D$153)/D44 -> 0.6550753279 | E158: 0.6439330744 | F158: 0.6991014161 | G158: 0.6657529056 | H158: 0.7593775025 | I158: 0.6083064878 | J158: 0.6801755836 | K158: 0.645058208 | L158: 0.6519153015 | M158: 0.6906387009 | N158: 0.6475919221 | O158: 0.6674289985 | P158: 0.6678629524 | Q158: 0.5999709328
A159: 5 | B159: Deaconess Medical Center | D159: =(D8/D$153)/D45 -> 0.8176051231 | E159: 0.7554338538 | F159: 0.7962224789 | G159: 0.699495086 | H159: 0.8121369921 | I159: 0.6755817187 | J159: 0.7339405753 | K159: 0.7592692479 | L159: 0.6881115476 | M159: 0.8083894283 | N159: 0.7606518712 | O159: 0.8172449099 | P159: 0.7603402361 | Q159: 0.6194109138
A160: 6 | B160: Gonzaga University | D160: =(D9/D$153)/D46 -> 0.6598955493 | E160: 0.7237658541 | F160: 0.6847752097 | G160: 0.6452602585 | H160: 0.5645773151 | I160: 0.4849728885 | J160: 0.531640056 | K160: 0.503383581 | L160: 0.5228127339 | M160: 0.6988839587 | N160: 0.643492459 | O160: 0.6609756809 | P160: 0.6103696287 | Q160: 0.5157464086
A161: 7 | B161: Honeywell Electronics | D161: =(D10/D$153)/D47 -> 0.5821913111 | E161: 0.534350908 | F161: 0.5761949149 | G161: 0.5409403398 | H161: 0.6266463164 | I161: 0.535812434 | J161: 0.5663480963 | K161: 0.5500342313 | L161: 0.5427054141 | M161: 0.5527576872 | N161: 0.5469062814 | O161: 0.5569511411 | P161: 0.559319923 | Q161: 0.4899413476
A162: 8 | B162: Huntwood Industries | D162: =(D11/D$153)/D48 -> 0.3294564821 | E162: 0.3092780305 | F162: 0.3401726468 | G162: 0.3343055623 | H162: 0.3891688407 | I162: 0.3475316205 | J162: 0.3624397852 | K162: 0.3594390274 | L162: 0.3310440093 | M162: 0.3587786345 | N162: 0.3084523779 | O162: 0.3290375632 | P162: 0.3415920484 | Q162: 0.3341568756
A163: 9 | B163: Inland Empire Paper | D163: =(D12/D$153)/D49 -> 0.8530168177 | E163: 0.8324091204 | F163: 0.7808139186 | G163: 0.759178103 | H163: 0.9653370269 | I163: 0.8422406686 | J163: 0.9185852103 | K163: 0.8674261661 | L163: 0.8889305559 | M163: 0.8903572928 | N163: 0.7306080964 | O163: 0.9007835028 | P163: 0.8524738733 | Q163: 0.8188560995
A164: 10 | B164: JR Simplot | D164: =(D13/D$153)/D50 -> 0.7681064654 | E164: 0.6930478532 | F164: 0.8590301959 | G164: 0.6593992974 | H164: 0.9766798581 | I164: 0.8512699092 | J164: 0.9153227663 | K164: 0.8855101532 | L164: 0.891413117 | M164: 0.8569612182 | N164: 0.7859412829 | O164: 0.8011028285 | P164: 0.8286487454 | Q164: 0.7389778433
A165: 11 | B165: McCaine Foods Inc | D165: =(D14/D$153)/D51 -> 0.8951310269 | E165: 0.7572721023 | F165: 0.8320040182 | G165: 0.4896141494 | H165: 0.9243966037 | I165: 0.7811434272 | J165: 0.8577433159 | K165: 0.8300966131 | L165: 0.7971982281 | M165: 0.7976682383 | N165: 0.4919556425 | O165: 0.7318817677 | P165: 0.7655087611 | Q165: 0.7241730606
A166: 12 | B166: Sacred Heart Medical Center | D166: =(D15/D$153)/D52 -> 0.8488871194 | E166: 0.8075287904 | F166: 0.7573376769 | G166: 0.7009905869 | H166: 0.8155944578 | I166: 0.7038913458 | J166: 0.776582749 | K166: 0.7602458536 | L166: 0.7173408838 | M166: 0.742689835 | N166: 0.8188733634 | O166: 0.8738101752 | P166: 0.7769810698 | Q166: 0.6291568185
A167: 13 | B167: Spokane County Courthouse | D167: =(D16/D$153)/D53 -> 0.6780056829 | E167: 0.6460398441 | F167: 0.6795451949 | G167: 0.5817490202 | H167: 0.664610927 | I167: 0.56781022 | J167: 0.6093590796 | K167: 0.5898962631 | L167: 0.5730766355 | M167: 0.5997105775 | N167: 0.6610017963 | O167: 0.6983735795 | P167: 0.629098235 | Q167: 0.5053377901
A168: 14 | B168: Spokane Steel Foundry | D168: =(D17/D$153)/D54 -> 0.2365062523 | E168: 0.2229328731 | F168: 0.2221017182 | G168: 0.2306057089 | H168: 0.2499716841 | I168: 0.2082497752 | J168: 0.224752275 | K168: 0.2070891037 | L168: 0.206231737 | M168: 0.2222353548 | N168: 0.1661450089 | O168: 0.1991540162 | P168: 0.2163312923 | Q168: 0.2071984824
A169: 15 | B169: Triumph Composite / Boeing | D169: 0 | E169: 0 | F169: 0 | G169: 0 | H169: 0 | I169: 0 | J169: 0 | K169: 0 | L169: 0 | M169: 0 | N169: 0 | O169: 0 | P169: 0 | Q169: 0
A170: 16 | B170: Vaagen Brothers Lumber | D170: =(D19/D$153)/D56 -> 0.6530859548 | E170: 0.6219616239 | F170: 0.6355935655 | G170: 0.5938878187 | H170: 0.604889053 | I170: 0.6014026407 | J170: 0.6425573082 | K170: 0.5937246424 | L170: 0.5433858758 | M170: 0.6470002254 | N170: 0.6126217112 | O170: 0.6433106122 | P170: 0.6161184193 | Q170: 0.5626178807
A171: 17 | B171: WSU - MP-A South Campus Feeder | D171: =(D20/D$153)/D57 -> 0.7710735234 | E171: 0.7599935584 | F171: 0.7607467476 | G171: 0.7725745578 | H171: 0.8494235643 | I171: 0.7548372541 | J171: 0.799884434 | K171: 0.7806340952 | L171: 0.7323775427 | M171: 0.7721491133 | N171: 0.7624083355 | O171: 0.8042432282 | P171: 0.7766954962 | Q171: 0.7115050205
A172: 18 | B172: WSU - MP-B East Campus EA | D172: =(D21/D$153)/D58 -> 0.7241563335 | E172: 0.7088004196 | F172: 0.7611627775 | G172: 0.6250508023 | H172: 0.7126207325 | I172: 0.5727626666 | J172: 0.6110649762 | K172: 0.6168843388 | L172: 0.5434525186 | M172: 0.728878201 | N172: 0.7078755632 | O172: 0.7608933124 | P172: 0.6728002202 | Q172: 0.5006205816
A173: 19 | B173: WSU - MP-C East Campus EB | D173: =(D22/D$153)/D59 -> 0.7572878419 | E173: 0.7343819701 | F173: 0.7846158015 | G173: 0.7307444389 | H173: 0.9076859143 | I173: 0.7740513221 | J173: 0.8442331569 | K173: 0.7328633252 | L173: 0.7742780271 | M173: 0.7556029622 | N173: 0.754651185 | O173: 0.7974670277 | P173: 0.7789885811 | Q173: 0.7070839876
A174: 20 | B174: WSU - MP -D Casp East (no PVD) | D174: =(D23/D$153)/D60 -> 0.7338915535 | E174: 0.4405117037 | F174: 0.7185165661 | G174: 0.7155787235 | H174: 0.787525138 | I174: 0.7075206643 | J174: 0.7601589082 | K174: 0.7171356514 | L174: 0.684888171 | M174: 0.6844461806 | N174: 0.6986712246 | O174: 0.7356027675 | P174: 0.6987039377 | Q174: 0.3908102204
A175: 21 | B175: WSU - MP-E Casp West (no PVD) | D175: =(D24/D$153)/D61 -> 0.7424936749 | E175: 0.711659757 | F175: 0.7240688425 | G175: 0.6809770567 | H175: 0.6697023061 | I175: 0.5558236636 | J175: 0.7252202501 | K175: 0.6739173661 | L175: 0.4422258107 | M175: 0.4226472867 | N175: 0.7008396624 | O175: 0.6900290981 | P175: 0.6449670646 | Q175: 0.3666663614

Sheet Lighting summary
B1: AVISTA UTILITIES
B2: WASHINGTON ELECTRIC
B3: STREET & AREA LIGHT REVENUE UNDER PRESENT & PROPOSED RATES
B4: 12 MONTHS ENDED DECEMBER 31, 2019
C7: ="Present "&IF(Base1_Billing2=2,"Billing ","")&"Rates(1)" -> Present Rates(1) | D7: ="Present "&IF(Base1_Billing2=2,"Billing","")&" Rates" -> Present Rates | F7: ="Proposed "&IF(Base1_Billing2=2,"Billing ","")&"Rates(2)" -> Proposed Rates(2) | G7: ="Proposed "&IF(Base1_Billing2=2,"Billing ","")&"Rates" -> Proposed Rates | I7: % Revenue Change
C8: Monthly | D8: Annual | F8: Monthly | G8: Annual | L8: Target Base | N8: Annual | O8: Present | P8: Proposed
C9: Revenue | D9: Revenue | F9: Revenue | G9: Revenue | I9: Base Rates | J9: Billing Rates | L9: % Change | N9: kWh's | O9: kWh Rate | P9: kWh Rate
B11: Schedule 41 | C11: ='St Lts'!Y$101*IF(Base1_Billing2=2,(1+$I$39),1) -> 181.27 | D11: =C11*12 -> 2175.24 | F11: ='St Lts'!AQ$101*IF(Base1_Billing2=2,1+$D$39,1) -> 196.33 | G11: =F11*12 -> 2355.96 | I11: =G11/D11-1 -> 0.08308048767 | J11: 0 | L11: 0.083 | N11: ='REVRUNS 12ME1219'!P207 -> 28214.475
B12: Schedule 42 | C12: ='St Lts'!Z$101*IF(Base1_Billing2=2,1+$I$39,1) -> 350635.22 | D12: =C12*12 -> 4207622.64 | F12: ='St Lts'!AR$101*IF(Base1_Billing2=2,1+$D$39,1) -> 379745.02 | G12: =F12*12 -> 4556940.24 | I12: =G12/D12-1 -> 0.08302018263 | J12: 0 | L12: 0.0765 | N12: ='REVRUNS 12ME1219'!P216 -> 9111659.554
B13: Schedule 44 | C13: ='St Lts'!AA$101*IF(Base1_Billing2=2,1+$I$39,1) -> 1995.6 | D13: 23947.2 | F13: ='St Lts'!AS$101*IF(Base1_Billing2=2,1+$D$39,1) -> 2161.17 | G13: 25934.04 | I13: 0.08296752856 | J13: 0 | L13: =L11 -> 0.083 | N13: ='REVRUNS 12ME1219'!P225 -> 123112.3519
B14: Schedule 45 | C14: ='St Lts'!AB$101*IF(Base1_Billing2=2,1+$I$39,1) -> 2720.82 | D14: 32649.84 | F14: ='St Lts'!AT$101*IF(Base1_Billing2=2,1+$D$39,1) -> 2946.69 | G14: 35360.28 | I14: 0.08301541447 | J14: 0 | L14: =L11 -> 0.083 | N14: ='REVRUNS 12ME1219'!P234 -> 424923.172
B15: Schedule 46 | C15: ='St Lts'!AC$101*IF(Base1_Billing2=2,1+$I$39,1) -> 9042.34 | D15: 108508.08 | F15: ='St Lts'!AU$101*IF(Base1_Billing2=2,1+$D$39,1) -> 9791.51 | G15: 117498.12 | I15: 0.08285134158 | J15: 0 | L15: =L11 -> 0.083 | N15: ='REVRUNS 12ME1219'!P243 -> 1041932.984 | O15: =D15/N15 -> 0.1041411316 | P15: =G15/N15 -> 0.1127693641
B16: Schedule 47 | C16: ='Area Lts'!S54*IF(Base1_Billing2=2,1+$I$39,1) -> 120186.14 | D16: 1442233.68 | F16: =IF(Base1_Billing2=1,'Area Lts'!AG54,'Area Lts'!AG63) -> 130155.55 | G16: 1561866.6 | I16: 0.08294974778 | J16: 0 | L16: =L11 -> 0.083 | N16: ='REVRUNS 12ME1219'!P252 -> 4732835.947
B17: Schedule 48 | C17: ='Area Lts'!T54*IF(Base1_Billing2=2,1+$I$39,1) -> 67627.36017 | D17: 811528.322 | F17: =IF(Base1_Billing2=1,'Area Lts'!AH54,'Area Lts'!AH63) -> 73239.24017 | G17: 878870.882 | I17: 0.08298239036 | J17: 0 | L17: =L11 -> 0.083 | N17: ='REVRUNS 12ME1219'!P262 -> 2499245.176
B19: Total | C19: =SUM(C11:C17) -> 552388.7502 | D19: =SUM(D11:D17) -> 6628665.002 | F19: =SUM(F11:F17) -> 598235.5102 | G19: =SUM(G11:G17) -> 7178826.122 | I19: =G19/D19-1 -> 0.08299727318 | J19: 0 | L19: =L11 -> 0.083 | N19: =SUM(N11:N18) -> 17961923.66
C20: =ROUND(C19-CHOOSE(Base1_Billing2,'St Lts'!AC103+'Area Lts'!T55,'St Lts'!AC109+'Area Lts'!T64+G52),0) -> 0 | F20: =ROUND(F19-CHOOSE(Base1_Billing2,'St Lts'!AU102+'Area Lts'!AH55,'St Lts'!AU108+'Area Lts'!AH64),0) -> 0 | L20: =I19-L19 -> -2.726818346e-06
B21: Sch 46 Per kWh Rate | D21: =D15/N15 -> 0.1041411316 | G21: =G15/N15 -> 0.1127693641
B23: (1) from JDM-E-12/14 | L23: =G19-('Rate Spread GRC'!H25*1000) -> 459897.3879
B24: (2) from JDM-E-13/14
C26: Billed | D26: =D19*(1+I39)+'Area Lts'!T62*12 -> 6628665.002 | F26: b4 Sch 91/92 | G26: =G19*(1+J39)+'Area Lts'!AH62*12 -> 7178826.122 | I26: =G26/D26-1 -> 0.08299727318 | K26: =G26-D26 -> 550161.12
C27: Diff | D27: =D26-D19 -> 0 | F27: b4 Sch 91/92 | G27: =G26-G19 -> 0
C28: Pres 91/92 | D28: =D$19*(I36+I37) -> 0 | F28: 91/92 b4 Sch 91/92 | G28: =G$19*(J36+J37) -> 0
C29: Pres 93 | D29: =D$19*I38 -> 0 | F29: 93 b4 Sch 93 | G29: =G$19*J38 -> 0
C30: add'l 91/92 | D30: =D28*($L$36+L37) -> 0
C31: Billed | D31: =D26 -> 6628665.002 | F31: w/Sch 91/92/93/98 | G31: =G19*(1+D39)+'Area Lts'!AH62*12 -> 7178826.122 | I31: =G31/D31-1 -> 0.08299727318 | K31: =G31-D26 -> 550161.12 | L31: =K31-J$19 -> 550161.12
J34: Revised
D35: Proposed | I35: Present | J35: Present | K35: Proposed
D36: =K36 -> 0 | G36: Sch 91-DSM | I36: 0 | J36: =(L19+(1+I36))/(1+L19)-1 -> 0 | K36: =J36*(1+L36) -> 0 | L36: 0
D37: =K37 -> 0 | G37: Sch 92-LIRAP | I37: 0 | J37: =(L19+(1+I37))/(1+L19)-1 -> 0 | K37: =J37*(1+L37) -> 0 | L37: 0 | M37: Reflects additional LIRAP funding
D38: =K38 -> 0 | I38: 0 | J38: =(L19+(1+I38))/(1+L19)-1 -> 0 | K38: =J38*(1+$L$38) -> 0 | L38: 0
D39: =D36+D37+D38 -> 0 | G39: Total adder | I39: =I36+I37+I38 -> 0 | J39: =J36+J37+J38 -> 0 | K39: =K36+K37+K38 -> 0
C41: Schedule 98 | D41: Schedule 91 | E41: Schedule 59 | G41: Total Revenue
B42: copy of Total above | C42: 488916.6501 | D42: 488917.65 | E42: 5866999.801 | G42: 556466.5401 | H42: 6677598.481
B43: diff from curr Total above | C43: =C19-C42 -> 63472.10012 | D43: =D19-D42 -> 6139747.352 | E43: =D19-E42 -> 761665.2014 | G43: =F19-G42 -> 41768.97012 | H43: =G19-H42 -> 501227.6414
B44: % diff | C44: =C43/C42 -> 0.1298219239 | D44: =D43/D42 -> 12.55783536 | E44: =E43/E42 -> 0.1298219239 | G44: =G43/G42 -> 0.07506106317 | H44: =H43/H42 -> 0.07506106317
B45: Schedule 41 | G45: =C45+D45+F45 -> 0
B46: Schedule 42 | G46: =C46+D46+F46 -> 0
B47: Schedule 44 | G47: 0
B48: Schedule 45 | G48: 0
B49: Schedule 46 | G49: 0
B50: Schedule 47 | G50: 0
B51: Schedule 48 | G51: 0
B52: Total | C52: =C45+C46+C47+C48+C49+C50+C51 -> 0 | D52: =D45+D46+D47+D48+D49+D50+D51 -> 0 | F52: =E45+E46+E47+E48+E49+E50+F51 -> 0 | G52: =C52+F52+D52 -> 0
F55: Total Billed | G55: =D31+G52 -> 6628665.002

Sheet St Lts
A1: Street Light Summary | I1: WASHINGTON Street Lights (Schedule 41 - 46 Rates) | AJ1: % rate increase --> | AK1: ='Lighting summary'!L11 -> 0.083 | AL1: ='Lighting summary'!L12 -> 0.0765 | AM1: ='Lighting summary'!L13 -> 0.083 | AN1: ='Lighting summary'!L14 -> 0.083 | AO1: ='Lighting summary'!L15 -> 0.083 | BE1: =-0.00789-0.00045-0.00339 -> -0.01173 | BF1: compare input Present Billing Rates to calculated Present Billing Rates | BM1: =BF2 -> 1.0151
A2: MDM-10069 Report as of 3/31/20 | M2: Number of Lights(1) | S2: Present Rates | Y2: Monthly Revenue at Present Rates | AE2: Number of Lights | AK2: Proposed Rates | AQ2: Monthly Revenue at Proposed Rates | AY2: Present Billing Rates | BE2: 0.01394 | BF2: =1+0.0151 -> 1.0151 | BG2: Sch 91 & 92 | BM2: New Billing Rates | BS2: Increase
I3: Fixture Type | J3: Pole Facility | K3: Size | L3: Sched | M3: 041 | N3: 042 | O3: 044 | P3: 045 | Q3: 046 | S3: 041 | T3: 042 | U3: 044 | V3: 045 | W3: 046 | Y3: 041 | Z3: 042 | AA3: 044 | AB3: 045 | AC3: 046 | AE3: 041 | AF3: 042 | AG3: 044 | AH3: 045 | AI3: 046 | AK3: 041 | AL3: 042 | AM3: 044 | AN3: 045 | AO3: 046 | AQ3: 041 | AR3: 042 | AS3: 044 | AT3: 045 | AU3: 046 | AX3: kwh | AY3: 041 | AZ3: 042 | BA3: 044 | BB3: 045 | BC3: 046 | BE3: Sch 93/94 | BF3: 041 | BG3: 042 | BH3: 044 | BI3: 045 | BJ3: 046 | BM3: 041 | BN3: 042 | BO3: 044 | BP3: 045 | BQ3: 046 | BS3: 041 | BT3: 042 | BU3: 044 | BV3: 045 | BW3: 046
I4: Single Mercury Vapor | J4: Direct Burial | K4: 4000 | L4: 214 | M4: =SUMIF($G:$G,TEXT(M$3,"000")&TEXT($L4,"000"),$E:$E) -> 0 | N4: 0 | O4: 0 | P4: 0 | Q4: 0 | R4: =IF(SUM(M4:Q4)>0,0,1) -> 1 | S4: 14.67 | T4: 0 | U4: 0 | V4: 0 | W4: 0 | Y4: =IF(AND(M4<>0,S4=0),#VALUE!,M4*S4) -> 0 | Z4: =IF(AND(N4<>0,T4=0),#VALUE!,N4*T4) -> 0 | AA4: =IF(AND(O4<>0,U4=0),#VALUE!,O4*U4) -> 0 | AB4: =IF(AND(P4<>0,V4=0),#VALUE!,P4*V4) -> 0 | AC4: =IF(AND(Q4<>0,W4=0),#VALUE!,Q4*W4) -> 0 | AE4: =M4 -> 0 | AF4: =N4 -> 0 | AG4: =O4 -> 0 | AH4: =P4 -> 0 | AI4: =Q4 -> 0 | AL4: =ROUND(T4*(1+AL$1),2) -> 0 | AM4: =ROUND(U4*(1+AM$1),2) -> 0 | AN4: =ROUND(V4*(1+AN$1),2) -> 0 | AO4: =ROUND(W4*(1+AO$1),2) -> 0 | AQ4: =IF(AND(AE4<>0,AK4=0),#VALUE!,AE4*AK4) -> 0 | AR4: =IF(AND(AF4<>0,AL4=0),#VALUE!,AF4*AL4) -> 0 | AS4: =IF(AND(AG4<>0,AM4=0),#VALUE!,AG4*AM4) -> 0 | AT4: =IF(AND(AH4<>0,AN4=0),#VALUE!,AH4*AN4) -> 0 | AU4: =IF(AND(AI4<>0,AO4=0),#VALUE!,AI4*AO4) -> 0 | AV4: =SUM(AQ4:AU4)-SUM(Y4:AC4) -> 0 | AX4: 42 | AY4: 14.99 | BE4: =ROUND(AX4*$BE$2,2)+ROUND(AX4*$BE$1,2) -> 0.1 | BF4: =ROUND((S4*$BF$2),2)+ROUND($BE4-AY4,2) -> 0 | BM4: =AK4*$BM$1 -> 0 | BN4: =AL4*$BM$1 -> 0 | BO4: =AM4*$BM$1 -> 0 | BP4: =AN4*$BM$1 -> 0 | BQ4: =AO4*$BM$1 -> 0 | BS4: =BM4-AY4 -> -14.99 | BT4: =BN4-AZ4 -> 0 | BU4: =BO4-BA4 -> 0 | BV4: =BP4-BB4 -> 0 | BW4: =BQ4-BC4 -> 0
B5: State | C5: Sched | D5: Rate Sub | E5: # of Lights | I5: LED (Dusk to Dawn) | J5: Dusk to Dawn | K5: 5W | L5: 005L | M5: 0 | N5: 0 | O5: 0 | P5: 0 | Q5: 0 | R5: =IF(SUM(M5:Q5)>0,0,1) -> 1 | S5: 0 | T5: 0 | U5: 0 | V5: 0 | W5: 0.21038 | Y5: =IF(AND(M5<>0,S5=0),#VALUE!,M5*S5) -> 0 | Z5: =IF(AND(N5<>0,T5=0),#VALUE!,N5*T5) -> 0 | AA5: =IF(AND(O5<>0,U5=0),#VALUE!,O5*U5) -> 0 | AB5: =IF(AND(P5<>0,V5=0),#VALUE!,P5*V5) -> 0 | AC5: =IF(AND(Q5<>0,W5=0),#VALUE!,Q5*W5) -> 0 | AE5: =SUMIF($G:$G,TEXT(AE$3,"000")&TEXT($L5,"000"),$E:$E) -> 0 | AF5: 0 | AG5: 0 | AH5: 0 | AI5: 0 | AK5: 0 | AM5: 0 | AN5: 0 | AO5: 0.23 | AQ5: 0 | AR5: 0 | AS5: 0 | AT5: 0 | AU5: 0 | AX5: 2 | BC5: 0.21 | BE5: =ROUND(AX5*$BE$2,2)+ROUND(AX5*$BE$1,2) -> 0.01 | BJ5: =ROUND((W5*$BF$2)+$BE5-BC5,2) -> 0.01 | BM5: =AK5*$BM$1 -> 0 | BN5: =AL5*$BM$1 -> 0 | BO5: =AM5*$BM$1 -> 0 | BP5: =AN5*$BM$1 -> 0 | BQ5: =AO5*$BM$1 -> 0.233473 | BS5: =BM5-AY5 -> 0 | BT5: =BN5-AZ5 -> 0 | BU5: =BO5-BA5 -> 0 | BV5: =BP5-BB5 -> 0 | BW5: =BQ5-BC5 -> 0.023473
I6: LED (Dusk to Dawn) | J6: Dusk to Dawn | K6: 5W | L6: 015L | M6: 0 | N6: 0 | O6: 0 | P6: 0 | Q6: 42 | R6: =IF(SUM(M6:Q6)>0,0,1) -> 0 | S6: 0 | T6: 0 | U6: 0 | V6: 0 | W6: 0.52595 | Y6: =IF(AND(M6<>0,S6=0),#VALUE!,M6*S6) -> 0 | Z6: =IF(AND(N6<>0,T6=0),#VALUE!,N6*T6) -> 0 | AA6: =IF(AND(O6<>0,U6=0),#VALUE!,O6*U6) -> 0 | AB6: =IF(AND(P6<>0,V6=0),#VALUE!,P6*V6) -> 0 | AC6: =IF(AND(Q6<>0,W6=0),#VALUE!,Q6*W6) -> 22.0899 | AE6: 0 | AF6: 0 | AG6: 0 | AH6: 0 | AI6: 42 | AK6: =ROUND(S6*(1+AK$1),2) -> 0 | AM6: =ROUND(U6*(1+AM$1),2) -> 0 | AN6: =ROUND(V6*(1+AN$1),2) -> 0 | AO6: =ROUND(W6*(1+AO$1),2) -> 0.57 | AQ6: =IF(AND(AE6<>0,AK6=0),#VALUE!,AE6*AK6) -> 0 | AR6: =IF(AND(AF6<>0,AL6=0),#VALUE!,AF6*AL6) -> 0 | AS6: =IF(AND(AG6<>0,AM6=0),#VALUE!,AG6*AM6) -> 0 | AT6: =IF(AND(AH6<>0,AN6=0),#VALUE!,AH6*AN6) -> 0 | AU6: =IF(AND(AI6<>0,AO6=0),#VALUE!,AI6*AO6) -> 23.94 | AX6: 5 | BC6: 0.55 | BE6: =ROUND(AX6*$BE$2,2)+ROUND(AX6*$BE$1,2) -> 0.01 | BJ6: =ROUND((W6*$BF$2)+$BE6-BC6,2) -> -0.01 | BM6: =AK6*$BM$1 -> 0 | BN6: =AL6*$BM$1 -> 0 | BO6: =AM6*$BM$1 -> 0 | BP6: =AN6*$BM$1 -> 0 | BQ6: =AO6*$BM$1 -> 0.578607 | BS6: =BM6-AY6 -> 0 | BT6: =BN6-AZ6 -> 0 | BU6: =BO6-BA6 -> 0 | BV6: =BP6-BB6 -> 0 | BW6: =BQ6-BC6 -> 0.028607
B7: 2 | C7: 041 | D7: 214 | E7: 0 | G7: =IF(OR(ISBLANK(C7),ISBLANK(D7)),"",TEXT(C7,"000")&TEXT(D7,"000")) -> 041214 | I7: LED (Dusk to Dawn) | J7: Dusk to Dawn | K7: 5W | L7: 025L | M7: 0 | N7: 0 | O7: 0 | P7: 0 | Q7: 45 | R7: 0 | S7: 0 | T7: 0 | U7: 0 | V7: 0 | W7: 0.94671 | Y7: 0 | Z7: 0 | AA7: 0 | AB7: 0 | AC7: 42.60195 | AE7: 0 | AF7: 0 | AG7: 0 | AH7: 0 | AI7: 45 | AK7: 0 | AM7: 0 | AN7: 0 | AO7: 1.03 | AQ7: 0 | AR7: 0 | AS7: 0 | AT7: 0 | AU7: =IF(AND(AI7<>0,AO7=0),#VALUE!,AI7*AO7) -> 46.35 | AX7: 9 | BC7: 0.99 | BE7: 0.02 | BJ7: -0.01 | BM7: 0 | BN7: 0 | BO7: 0 | BP7: 0 | BQ7: 1.045553 | BS7: 0 | BT7: 0 | BU7: 0 | BV7: 0 | BW7: 0.055553
B8: 2 | C8: 041 | D8: 411 | E8: 1 | G8: =IF(OR(ISBLANK(C8),ISBLANK(D8)),"",TEXT(C8,"000")&TEXT(D8,"000")) -> 041411 | I8: LED (Dusk to Dawn) | J8: Dusk to Dawn | K8: 5W | L8: 035L | M8: 0 | N8: 0 | O8: 0 | P8: 0 | Q8: 0 | R8: 1 | S8: 0 | T8: 0 | U8: 0 | V8: 0 | W8: 1.36747 | Y8: 0 | Z8: 0 | AA8: 0 | AB8: 0 | AC8: 0 | AE8: 0 | AF8: 0 | AG8: 0 | AH8: 0 | AI8: 0 | AK8: 0 | AM8: 0 | AN8: 0 | AO8: 1.48 | AQ8: 0 | AR8: 0 | AS8: 0 | AT8: 0 | AU8: 0 | AX8: 13 | BC8: 1.42 | BE8: 0.03 | BJ8: 0 | BM8: 0 | BN8: 0 | BO8: 0 | BP8: 0 | BQ8: 1.502348 | BS8: 0 | BT8: 0 | BU8: 0 | BV8: 0 | BW8: 0.082348
B9: 2 | C9: 041 | D9: 511 | E9: 0 | G9: =IF(OR(ISBLANK(C9),ISBLANK(D9)),"",TEXT(C9,"000")&TEXT(D9,"000")) -> 041511 | I9: LED (Dusk to Dawn) | J9: Dusk to Dawn | K9: 5W | L9: 045L | M9: 0 | N9: 0 | O9: 0 | P9: 0 | Q9: 0 | R9: 1 | S9: 0 | T9: 0 | U9: 0 | V9: 0 | W9: 1.68304 | Y9: 0 | Z9: 0 | AA9: 0 | AB9: 0 | AC9: 0 | AE9: 0 | AF9: 0 | AG9: 0 | AH9: 0 | AI9: 0 | AK9: 0 | AM9: 0 | AN9: 0 | AO9: 1.82 | AQ9: 0 | AR9: 0 | AS9: 0 | AT9: 0 | AU9: 0 | AX9: 16 | BC9: 1.74 | BE9: 0.03 | BJ9: 0 | BM9: 0 | BN9: 0 | BO9: 0 | BP9: 0 | BQ9: 1.847482 | BS9: 0 | BT9: 0 | BU9: 0 | BV9: 0 | BW9: 0.107482
B10: 2 | C10: 041 | D10: 611 | E10: 6 | G10: =IF(OR(ISBLANK(C10),ISBLANK(D10)),"",TEXT(C10,"000")&TEXT(D10,"000")) -> 041611 | I10: LED (Dusk to Dawn) | J10: Dusk to Dawn | K10: 5W | L10: 055L | M10: 0 | N10: 0 | O10: 0 | P10: 0 | Q10: 0 | R10: 1 | S10: 0 | T10: 0 | U10: 0 | V10: 0 | W10: 2.1038 | Y10: 0 | Z10: 0 | AA10: 0 | AB10: 0 | AC10: 0 | AE10: 0 | AF10: 0 | AG10: 0 | AH10: 0 | AI10: 0 | AK10: 0 | AM10: 0 | AN10: 0 | AO10: 2.28 | AQ10: 0 | AR10: 0 | AS10: 0 | AT10: 0 | AU10: 0 | AX10: 20 | BC10: 2.17 | BE10: 0.05 | BJ10: 0.02 | BM10: 0 | BN10: 0 | BO10: 0 | BP10: 0 | BQ10: 2.314428 | BS10: 0 | BT10: 0 | BU10: 0 | BV10: 0 | BW10: 0.144428
E11: =SUM(E7:E10) -> 7 | I11: LED (Dusk to Dawn) | J11: Dusk to Dawn | K11: 5W | L11: 065L | M11: 0 | N11: 0 | O11: 0 | P11: 0 | Q11: 0 | R11: 1 | S11: 0 | T11: 0 | U11: 0 | V11: 0 | W11: 2.41937 | Y11: 0 | Z11: 0 | AA11: 0 | AB11: 0 | AC11: 0 | AE11: 0 | AF11: 0 | AG11: 0 | AH11: 0 | AI11: 0 | AK11: 0 | AM11: 0 | AN11: 0 | AO11: 2.62 | AQ11: 0 | AR11: 0 | AS11: 0 | AT11: 0 | AU11: 0 | AX11: 23 | BC11: 2.51 | BE11: 0.05 | BJ11: 0 | BM11: 0 | BN11: 0 | BO11: 0 | BP11: 0 | BQ11: 2.659562 | BS11: 0 | BT11: 0 | BU11: 0 | BV11: 0 | BW11: 0.149562
G12: =IF(OR(ISBLANK(C12),ISBLANK(D12)),"",TEXT(C12,"000")&TEXT(D12,"000")) ->  | I12: LED (Dusk to Dawn) | J12: Dusk to Dawn | K12: 5W | L12: 075L | M12: 0 | N12: 0 | O12: 0 | P12: 0 | Q12: 0 | R12: 1 | S12: 0 | T12: 0 | U12: 0 | V12: 0 | W12: 2.84013 | Y12: 0 | Z12: 0 | AA12: 0 | AB12: 0 | AC12: 0 | AE12: 0 | AF12: 0 | AG12: 0 | AH12: 0 | AI12: 0 | AK12: 0 | AM12: 0 | AN12: 0 | AO12: 3.08 | AQ12: 0 | AR12: 0 | AS12: 0 | AT12: 0 | AU12: 0 | AX12: 27 | BC12: 2.95 | BE12: 0.06 | BJ12: -0.01 | BM12: 0 | BN12: 0 | BO12: 0 | BP12: 0 | BQ12: 3.126508 | BS12: 0 | BT12: 0 | BU12: 0 | BV12: 0 | BW12: 0.176508
B13: 2 | C13: 042 | D13: 234 | E13: 96 | G13: 042234 | I13: LED (Dusk to Dawn) | J13: Dusk to Dawn | K13: 5W | L13: 085L | M13: 0 | N13: 0 | O13: 0 | P13: 0 | Q13: 0 | R13: 1 | S13: 0 | T13: 0 | U13: 0 | V13: 0 | W13: 3.26089 | Y13: 0 | Z13: 0 | AA13: 0 | AB13: 0 | AC13: 0 | AE13: 0 | AF13: 0 | AG13: 0 | AH13: 0 | AI13: 0 | AK13: 0 | AM13: 0 | AN13: 0 | AO13: 3.53 | AQ13: 0 | AR13: 0 | AS13: 0 | AT13: 0 | AU13: 0 | AX13: 31 | BC13: 3.38 | BE13: 0.07 | BJ13: 0 | BM13: 0 | BN13: 0 | BO13: 0 | BP13: 0 | BQ13: 3.583303 | BS13: 0 | BT13: 0 | BU13: 0 | BV13: 0 | BW13: 0.203303
B14: 2 | C14: 042 | D14: 421 | E14: 2 | G14: 042421 | I14: LED (Dusk to Dawn) | J14: Dusk to Dawn | K14: 5W | L14: 095L | M14: =SUMIF($G:$G,TEXT(M$3,"000")&TEXT($L14,"000"),$E:$E) -> 0 | N14: 0 | O14: 0 | P14: 0 | Q14: 0 | R14: 1 | S14: 0 | T14: 0 | U14: 0 | V14: 0 | W14: 3.57646 | Y14: 0 | Z14: 0 | AA14: 0 | AB14: 0 | AC14: 0 | AE14: 0 | AF14: 0 | AG14: 0 | AH14: 0 | AI14: 0 | AK14: 0 | AM14: 0 | AN14: 0 | AO14: 3.87 | AQ14: 0 | AR14: 0 | AS14: 0 | AT14: 0 | AU14: 0 | AX14: 34 | BC14: 3.69 | BE14: 0.07 | BJ14: 0.01 | BM14: 0 | BN14: 0 | BO14: 0 | BP14: 0 | BQ14: 3.928437 | BS14: 0 | BT14: 0 | BU14: 0 | BV14: 0 | BW14: 0.238437
B15: 2 | C15: 042 | D15: 421L | E15: 1 | G15: 042421L | I15: LED (Dusk to Dawn) | J15: Dusk to Dawn | K15: 5W | L15: 105L | M15: 0 | N15: 0 | O15: 0 | P15: 0 | Q15: 6 | R15: 0 | S15: 0 | T15: 0 | U15: 0 | V15: 0 | W15: 3.99722 | Y15: 0 | Z15: 0 | AA15: 0 | AB15: 0 | AC15: 23.98332 | AE15: =SUMIF($G:$G,TEXT(AE$3,"000")&TEXT($L15,"000"),$E:$E) -> 0 | AF15: 0 | AG15: 0 | AH15: 0 | AI15: 6 | AK15: 0 | AM15: 0 | AN15: 0 | AO15: 4.33 | AQ15: 0 | AR15: 0 | AS15: 0 | AT15: 0 | AU15: 25.98 | AX15: 38 | BC15: 4.14 | BE15: 0.08 | BJ15: 0 | BM15: 0 | BN15: 0 | BO15: 0 | BP15: 0 | BQ15: 4.395383 | BS15: 0 | BT15: 0 | BU15: 0 | BV15: 0 | BW15: 0.255383
B16: 2 | C16: 042 | D16: 431 | E16: 0 | G16: 042431 | I16: LED (Dusk to Dawn) | J16: Dusk to Dawn | K16: 5W | L16: 115L | M16: 0 | N16: 0 | O16: 0 | P16: 0 | Q16: 0 | R16: 1 | S16: 0 | T16: 0 | U16: 0 | V16: 0 | W16: 4.31279 | Y16: 0 | Z16: 0 | AA16: 0 | AB16: 0 | AC16: 0 | AE16: 0 | AF16: 0 | AG16: 0 | AH16: 0 | AI16: 0 | AK16: 0 | AM16: 0 | AN16: 0 | AO16: 4.67 | AQ16: 0 | AR16: 0 | AS16: 0 | AT16: 0 | AU16: 0 | AX16: 41 | BC16: 4.47 | BE16: 0.09 | BJ16: 0 | BM16: 0 | BN16: 0 | BO16: 0 | BP16: 0 | BQ16: 4.740517 | BS16: 0 | BT16: 0 | BU16: 0 | BV16: 0 | BW16: 0.270517
B17: 2 | C17: 042 | D17: 431L | E17: 0 | G17: 042431L | I17: LED (Dusk to Dawn) | J17: Dusk to Dawn | K17: 5W | L17: 125L | M17: 0 | N17: 0 | O17: 0 | P17: 0 | Q17: 0 | R17: 1 | S17: 0 | T17: 0 | U17: 0 | V17: 0 | W17: 4.73355 | Y17: 0 | Z17: 0 | AA17: 0 | AB17: 0 | AC17: 0 | AE17: 0 | AF17: 0 | AG17: 0 | AH17: 0 | AI17: 0 | AK17: 0 | AM17: 0 | AN17: 0 | AO17: 5.13 | AQ17: 0 | AR17: 0 | AS17: 0 | AT17: 0 | AU17: 0 | AX17: 45 | BC17: 4.9 | BE17: 0.1 | BJ17: 0.01 | BM17: 0 | BN17: 0 | BO17: 0 | BP17: 0 | BQ17: 5.207463 | BS17: 0 | BT17: 0 | BU17: 0 | BV17: 0 | BW17: 0.307463
B18: 2 | C18: 042 | D18: 431T | E18: 0 | G18: 042431T | I18: LED (Dusk to Dawn) | J18: Dusk to Dawn | K18: 5W | L18: 135L | M18: 0 | N18: 0 | O18: 0 | P18: 0 | Q18: 36 | R18: 0 | S18: 0 | T18: 0 | U18: 0 | V18: 0 | W18: 5.15431 | Y18: 0 | Z18: 0 | AA18: 0 | AB18: 0 | AC18: 185.55516 | AE18: 0 | AF18: 0 | AG18: 0 | AH18: 0 | AI18: 36 | AK18: 0 | AM18: 0 | AN18: 0 | AO18: 5.58 | AQ18: 0 | AR18: 0 | AS18: 0 | AT18: 0 | AU18: 200.88 | AX18: 49 | BC18: 5.33 | BE18: 0.11 | BJ18: 0.01 | BM18: 0 | BN18: 0 | BO18: 0 | BP18: 0 | BQ18: 5.664258 | BS18: 0 | BT18: 0 | BU18: 0 | BV18: 0 | BW18: 0.334258
B19: 2 | C19: 042 | D19: 432 | E19: 78 | G19: 042432 | I19: LED (Dusk to Dawn) | J19: Dusk to Dawn | K19: 5W | L19: 145L | M19: 0 | N19: 0 | O19: 0 | P19: 0 | Q19: 0 | R19: 1 | S19: 0 | T19: 0 | U19: 0 | V19: 0 | W19: 5.46988 | Y19: 0 | Z19: 0 | AA19: 0 | AB19: 0 | AC19: 0 | AE19: 0 | AF19: 0 | AG19: 0 | AH19: 0 | AI19: 0 | AK19: 0 | AM19: 0 | AN19: 0 | AO19: 5.92 | AQ19: 0 | AR19: 0 | AS19: 0 | AT19: 0 | AU19: 0 | AX19: 52 | BC19: 5.66 | BE19: 0.11 | BJ19: 0 | BM19: 0 | BN19: 0 | BO19: 0 | BP19: 0 | BQ19: 6.009392 | BS19: 0 | BT19: 0 | BU19: 0 | BV19: 0 | BW19: 0.349392
B20: 2 | C20: 042 | D20: 432L | E20: 141 | G20: 042432L | I20: LED (Dusk to Dawn) | J20: Dusk to Dawn | K20: 5W | L20: 155L | M20: 0 | N20: 0 | O20: 0 | P20: 0 | Q20: 0 | R20: 1 | S20: 0 | T20: 0 | U20: 0 | V20: 0 | W20: 5.89064 | Y20: 0 | Z20: 0 | AA20: 0 | AB20: 0 | AC20: 0 | AE20: 0 | AF20: 0 | AG20: 0 | AH20: 0 | AI20: 0 | AK20: 0 | AM20: 0 | AN20: 0 | AO20: 6.38 | AQ20: 0 | AR20: 0 | AS20: 0 | AT20: 0 | AU20: 0 | AX20: 56 | BC20: 6.1 | BE20: 0.12 | BJ20: 0 | BM20: 0 | BN20: 0 | BO20: 0 | BP20: 0 | BQ20: 6.476338 | BS20: 0 | BT20: 0 | BU20: 0 | BV20: 0 | BW20: 0.376338
B21: 2 | C21: 042 | D21: 432T | E21: 28 | G21: 042432T | I21: LED (Dusk to Dawn) | J21: Dusk to Dawn | K21: 5W | L21: 165L | M21: 0 | N21: 0 | O21: 0 | P21: 0 | Q21: 0 | R21: 1 | S21: 0 | T21: 0 | U21: 0 | V21: 0 | W21: 6.20621 | Y21: 0 | Z21: 0 | AA21: 0 | AB21: 0 | AC21: 0 | AE21: 0 | AF21: 0 | AG21: 0 | AH21: 0 | AI21: 0 | AK21: 0 | AM21: 0 | AN21: 0 | AO21: 6.72 | AQ21: 0 | AR21: 0 | AS21: 0 | AT21: 0 | AU21: 0 | AX21: 59 | BC21: 6.42 | BE21: 0.13 | BJ21: 0.01 | BM21: 0 | BN21: 0 | BO21: 0 | BP21: 0 | BQ21: 6.821472 | BS21: 0 | BT21: 0 | BU21: 0 | BV21: 0 | BW21: 0.401472
B22: 2 | C22: 042 | D22: 433 | E22: 6 | G22: 042433 | I22: LED (Dusk to Dawn) | J22: Dusk to Dawn | K22: 5W | L22: 175L | M22: 0 | N22: 0 | O22: 0 | P22: 0 | Q22: 0 | R22: 1 | S22: 0 | T22: 0 | U22: 0 | V22: 0 | W22: 6.62697 | Y22: 0 | Z22: 0 | AA22: 0 | AB22: 0 | AC22: 0 | AE22: 0 | AF22: 0 | AG22: 0 | AH22: 0 | AI22: 0 | AK22: 0 | AM22: 0 | AN22: 0 | AO22: 7.18 | AQ22: 0 | AR22: 0 | AS22: 0 | AT22: 0 | AU22: 0 | AX22: 63 | BC22: 6.87 | BE22: 0.14 | BJ22: 0 | BM22: 0 | BN22: 0 | BO22: 0 | BP22: 0 | BQ22: 7.288418 | BS22: 0 | BT22: 0 | BU22: 0 | BV22: 0 | BW22: 0.418418
B23: 2 | C23: 042 | D23: 433L | E23: 49 | G23: 042433L | I23: LED (Dusk to Dawn) | J23: Dusk to Dawn | K23: 5W | L23: 185L | M23: 0 | N23: 0 | O23: 0 | P23: 0 | Q23: 0 | R23: 1 | S23: 0 | T23: 0 | U23: 0 | V23: 0 | W23: 7.04773 | Y23: 0 | Z23: 0 | AA23: 0 | AB23: 0 | AC23: 0 | AE23: 0 | AF23: 0 | AG23: 0 | AH23: 0 | AI23: 0 | AK23: 0 | AM23: 0 | AN23: 0 | AO23: 7.63 | AQ23: 0 | AR23: 0 | AS23: 0 | AT23: 0 | AU23: 0 | AX23: 67 | BC23: 7.3 | BE23: 0.14 | BJ23: -0.01 | BM23: 0 | BN23: 0 | BO23: 0 | BP23: 0 | BQ23: 7.745213 | BS23: 0 | BT23: 0 | BU23: 0 | BV23: 0 | BW23: 0.445213
B24: 2 | C24: 042 | D24: 433T | E24: 65 | G24: 042433T | I24: LED (Dusk to Dawn) | J24: Dusk to Dawn | K24: 5W | L24: 195L | M24: =SUMIF($G:$G,TEXT(M$3,"000")&TEXT($L24,"000"),$E:$E) -> 0 | N24: 0 | O24: 0 | P24: 0 | Q24: 0 | R24: 1 | S24: 0 | T24: 0 | U24: 0 | V24: 0 | W24: 7.3633 | Y24: 0 | Z24: 0 | AA24: 0 | AB24: 0 | AC24: 0 | AE24: 0 | AF24: 0 | AG24: 0 | AH24: 0 | AI24: 0 | AK24: 0 | AM24: 0 | AN24: 0 | AO24: 7.97 | AQ24: 0 | AR24: 0 | AS24: 0 | AT24: 0 | AU24: 0 | AX24: 70 | BC24: 7.63 | BE24: 0.16 | BJ24: 0 | BM24: 0 | BN24: 0 | BO24: 0 | BP24: 0 | BQ24: 8.090347 | BS24: 0 | BT24: 0 | BU24: 0 | BV24: 0 | BW24: 0.460347
B25: 2 | C25: 042 | D25: 434 | E25: 2197 | G25: 042434 | I25: LED (Dusk to Dawn) | J25: Dusk to Dawn | K25: 5W | L25: 212L | M25: 0 | N25: 0 | O25: 0 | P25: 0 | Q25: 0 | R25: 1 | S25: 0 | T25: 0 | U25: 0 | V25: 0 | W25: 8.09963 | Y25: 0 | Z25: 0 | AA25: 0 | AB25: 0 | AC25: 0 | AE25: 0 | AF25: 0 | AG25: 0 | AH25: 0 | AI25: 0 | AK25: 0 | AM25: 0 | AN25: 0 | AO25: 8.77 | AQ25: 0 | AR25: 0 | AS25: 0 | AT25: 0 | AU25: 0 | AX25: 77 | BC25: 8.39 | BE25: 0.17 | BJ25: 0 | BM25: 0 | BN25: 0 | BO25: 0 | BP25: 0 | BQ25: 8.902427 | BS25: 0 | BT25: 0 | BU25: 0 | BV25: 0 | BW25: 0.512427
B26: 2 | C26: 042 | D26: 434L | E26: 1100 | G26: 042434L | I26: LED (Dusk to Dawn) | J26: Dusk to Dawn | K26: 5W | L26: 237L | M26: 0 | N26: 0 | O26: 0 | P26: 0 | Q26: 30 | R26: 0 | S26: 0 | T26: 0 | U26: 0 | V26: 0 | W26: 9.04634 | Y26: 0 | Z26: 0 | AA26: 0 | AB26: 0 | AC26: =IF(AND(Q26<>0,W26=0),#VALUE!,Q26*W26) -> 271.3902 | AE26: 0 | AF26: 0 | AG26: 0 | AH26: 0 | AI26: 30 | AK26: 0 | AM26: 0 | AN26: 0 | AO26: =ROUND(W26*(1+AO$1),2) -> 9.8 | AQ26: 0 | AR26: 0 | AS26: 0 | AT26: 0 | AU26: =IF(AND(AI26<>0,AO26=0),#VALUE!,AI26*AO26) -> 294 | AX26: 86 | BC26: 9.38 | BE26: 0.19 | BJ26: -0.01 | BM26: 0 | BN26: 0 | BO26: 0 | BP26: 0 | BQ26: 9.94798 | BS26: 0 | BT26: 0 | BU26: 0 | BV26: 0 | BW26: 0.56798
B27: 2 | C27: 042 | D27: 435 | E27: =238+557 -> 795 | G27: 042435 | I27: Single High-Pressure Sodium Vapor | J27: Direct Burial | K27: 50W | L27: 234 | M27: 0 | N27: 96 | O27: 0 | P27: 0 | Q27: 0 | R27: 0 | S27: 0 | T27: 13.78 | U27: 0 | V27: 0 | W27: 0 | Y27: =IF(AND(M27<>0,S27=0),#VALUE!,M27*S27) -> 0 | Z27: =IF(AND(N27<>0,T27=0),#VALUE!,N27*T27) -> 1322.88 | AA27: =IF(AND(O27<>0,U27=0),#VALUE!,O27*U27) -> 0 | AB27: =IF(AND(P27<>0,V27=0),#VALUE!,P27*V27) -> 0 | AC27: =IF(AND(Q27<>0,W27=0),#VALUE!,Q27*W27) -> 0 | AE27: =M27 -> 0 | AF27: =N27 -> 96 | AG27: 0 | AH27: 0 | AI27: 0 | AK27: 0 | AL27: 14.83 | AM27: 0 | AN27: 0 | AO27: 0 | AQ27: 0 | AR27: 1423.68 | AS27: 0 | AT27: 0 | AU27: 0 | AV27: =SUM(AR27)-SUM(Z27) -> 100.8 | AW27: =AV27/Z27 -> 0.07619738752 | AX27: 20 | AZ27: 14.03 | BE27: =ROUND(AX27*$BE$2,2)+ROUND(AX27*$BE$1,2) -> 0.05 | BG27: =ROUND((T27*$BF$2)+$BE27-AZ27,2) -> 0.01 | BM27: =AK27*$BM$1 -> 0 | BN27: =AL27*$BM$1 -> 15.053933 | BO27: =AM27*$BM$1 -> 0 | BP27: 0 | BQ27: 0 | BS27: =BM27-AY27 -> 0 | BT27: =BN27-AZ27 -> 1.023933 | BU27: =BO27-BA27 -> 0 | BV27: =BP27-BB27 -> 0 | BW27: =BQ27-BC27 -> 0
B28: 2 | C28: 042 | D28: 435L | E28: =2575+5329 -> 7904 | G28: 042435L | I28: High-Pressure Sodium Vapor | J28: Dusk to Dawn | K28: 70W | L28: 335 | M28: 0 | N28: 0 | O28: 0 | P28: 0 | Q28: 8 | R28: 0 | S28: 0 | T28: 0 | U28: 0 | V28: 0 | W28: 3.54 | Y28: 0 | Z28: 0 | AA28: 0 | AB28: 0 | AC28: 28.32 | AE28: 0 | AF28: 0 | AG28: 0 | AH28: 0 | AI28: 8 | AK28: 0 | AL28: 0 | AM28: 0 | AN28: 0 | AO28: 3.83 | AQ28: 0 | AR28: 0 | AS28: 0 | AT28: 0 | AU28: 30.64 | AV28: 0 | AW28: =AV28/Z28 ->  | AX28: 25 | BC28: 3.65 | BE28: 0.06 | BJ28: =ROUND((W28*$BF$2)+$BE28-BC28,2) -> 0 | BM28: 0 | BN28: 0 | BO28: 0 | BP28: 0 | BQ28: 3.887833 | BS28: 0 | BT28: 0 | BU28: 0 | BV28: 0 | BW28: 0.237833
B29: 2 | C29: 042 | D29: 435T | E29: =1854+1849 -> 3703 | G29: 042435T | I29: Single Mercury Vapor | J29: Wood Pole | K29: 7000 | L29: 411 | M29: 1 | N29: 0 | O29: 0 | P29: 0 | Q29: 0 | R29: 0 | S29: 15.91 | T29: 0 | U29: 0 | V29: 0 | W29: 0 | Y29: 15.91 | Z29: 0 | AA29: 0 | AB29: 0 | AC29: 0 | AE29: 1 | AF29: 0 | AG29: 0 | AH29: 0 | AI29: 0 | AK29: 17.23 | AL29: 0 | AM29: 0 | AN29: 0 | AO29: 0 | AQ29: 17.23 | AR29: 0 | AS29: 0 | AT29: 0 | AU29: 0 | AV29: 0 | AW29: =AV29/Z29 ->  | AX29: 80 | AY29: 16.33 | BE29: 0.18 | BF29: =ROUND((S29*$BF$2)+$BE29-AY29,2) -> 0 | BM29: 17.490173 | BN29: 0 | BO29: 0 | BP29: 0 | BQ29: 0 | BS29: 1.160173 | BT29: 0 | BU29: 0 | BV29: 0 | BW29: 0
B30: 2 | C30: 042 | D30: 436 | E30: 22 | G30: 042436 | I30: Mercury Vapor | J30: Dusk to Dawn | K30: 7000 | L30: 415 | M30: 0 | N30: 0 | O30: 0 | P30: 61 | Q30: 0 | R30: 0 | S30: 0 | T30: 0 | U30: 0 | V30: 6.98 | W30: 0 | Y30: 0 | Z30: 0 | AA30: 0 | AB30: 425.78 | AC30: 0 | AE30: 0 | AF30: 0 | AG30: 0 | AH30: 61 | AI30: 0 | AK30: 0 | AL30: 0 | AM30: 0 | AN30: 7.56 | AO30: 0 | AQ30: 0 | AR30: 0 | AS30: 0 | AT30: 461.16 | AU30: 0 | AV30: 0 | AX30: 80 | BB30: 7.27 | BE30: 0.18 | BI30: =ROUND((V30*$BF$2)+$BE30-BB30,2) -> 0 | BM30: 0 | BN30: 0 | BO30: 0 | BP30: 7.674156 | BQ30: 0 | BS30: 0 | BT30: 0 | BU30: 0 | BV30: 0.404156 | BW30: 0
B31: 2 | C31: 042 | D31: 436L | E31: 80 | G31: 042436L | I31: Mercury Vapor | J31: Dusk to 1 AM | K31: 7000 | L31: 419 | M31: 0 | N31: 0 | O31: 0 | P31: 16 | Q31: 0 | R31: 0 | S31: 0 | T31: 0 | U31: 0 | V31: 4.73 | W31: 0 | Y31: 0 | Z31: 0 | AA31: 0 | AB31: 75.68 | AC31: 0 | AE31: =M31 -> 0 | AF31: 0 | AG31: 0 | AH31: 16 | AI31: 0 | AK31: 0 | AL31: 0 | AM31: 0 | AN31: 5.12 | AO31: 0 | AQ31: 0 | AR31: 0 | AS31: 0 | AT31: 81.92 | AU31: 0 | AV31: 0 | AX31: 80 | BB31: 4.98 | BE31: 0.18 | BI31: =ROUND((V31*$BF$2)+$BE31-BB31,2) -> 0 | BM31: 0 | BN31: 0 | BO31: =AM31*$BM$1 -> 0 | BP31: =AN31*$BM$1 -> 5.197312 | BQ31: =AO31*$BM$1 -> 0 | BS31: 0 | BT31: 0 | BU31: 0 | BV31: 0.217312 | BW31: 0
B32: 2 | C32: 042 | D32: 436T | E32: 271 | G32: 042436T | I32: Single High-Pressure Sodium Vapor | J32: Standard | K32: 100W | L32: 421 | M32: 0 | N32: 2 | O32: 0 | P32: 0 | Q32: 0 | R32: 0 | S32: 0 | T32: 24.26 | U32: 0 | V32: 0 | W32: 0 | Y32: 0 | Z32: 48.52 | AA32: 0 | AB32: 0 | AC32: 0 | AE32: 0 | AF32: 2 | AG32: 0 | AH32: 0 | AI32: 0 | AK32: 0 | AL32: 26.12 | AM32: 0 | AN32: 0 | AO32: 0 | AQ32: 0 | AR32: 52.24 | AS32: 0 | AT32: 0 | AU32: 0 | AV32: 3.72 | AW32: 0.07666941467 | AX32: 40 | AZ32: 24.71 | BE32: 0.09 | BG32: =ROUND((T32*$BF$2)+$BE32-AZ32,2) -> 0.01 | BM32: 0 | BN32: 26.514412 | BO32: 0 | BP32: 0 | BQ32: 0 | BS32: 0 | BT32: 1.804412 | BU32: 0 | BV32: 0 | BW32: 0
B33: 2 | C33: 042 | D33: 438 | E33: 10 | G33: 042438 | I33: Single Light Emitting Diode (LED) | J33: Standard | K33: 70W | L33: 421L | M33: 0 | N33: 1 | O33: 0 | P33: 0 | Q33: 0 | R33: 0 | S33: 0 | T33: =T32 -> 24.26 | Y33: =IF(AND(M33<>0,S33=0),#VALUE!,M33*S33) -> 0 | Z33: =IF(AND(N33<>0,T33=0),#VALUE!,N33*T33) -> 24.26 | AA33: =IF(AND(O33<>0,U33=0),#VALUE!,O33*U33) -> 0 | AB33: =IF(AND(P33<>0,V33=0),#VALUE!,P33*V33) -> 0 | AC33: =IF(AND(Q33<>0,W33=0),#VALUE!,Q33*W33) -> 0 | AE33: =SUMIF($G:$G,TEXT(AE$3,"000")&TEXT($L33,"000"),$E:$E) -> 0 | AF33: =SUMIF($G:$G,TEXT(AF$3,"000")&TEXT($L33,"000"),$E:$E) -> 1 | AG33: =SUMIF($G:$G,TEXT(AG$3,"000")&TEXT($L33,"000"),$E:$E) -> 0 | AH33: =SUMIF($G:$G,TEXT(AH$3,"000")&TEXT($L33,"000"),$E:$E) -> 0 | AI33: =SUMIF($G:$G,TEXT(AI$3,"000")&TEXT($L33,"000"),$E:$E) -> 0 | AK33: =ROUND(S33*(1+AK$1),2) -> 0 | AL33: =AL32 -> 26.12 | AM33: 0 | AN33: 0 | AO33: 0 | AQ33: 0 | AR33: 26.12 | AS33: 0 | AT33: 0 | AU33: 0 | AV33: 1.86 | AW33: 0.07666941467 | AX33: 26 | AZ33: 24.68 | BE33: =ROUND(AX33*$BE$2,2)+ROUND(AX33*$BE$1,2) -> 0.06 | BG33: 0.01 | BM33: 0 | BN33: 26.514412 | BO33: =AM33*$BM$1 -> 0 | BP33: =AN33*$BM$1 -> 0 | BQ33: =AO33*$BM$1 -> 0 | BS33: =BM33-AY33 -> 0 | BT33: =BN33-AZ33 -> 1.834412 | BU33: =BO33-BA33 -> 0 | BV33: =BP33-BB33 -> 0 | BW33: =BQ33-BC33 -> 0
B34: 2 | C34: 042 | D34: 441L | E34: 14 | G34: 042441L | I34: Single High-Pressure Sodium Vapor | J34: Standard | K34: 100W | L34: 431 | M34: =SUMIF($G:$G,TEXT(M$3,"000")&TEXT($L34,"000"),$E:$E) -> 0 | N34: 0 | O34: 2 | P34: 0 | Q34: 0 | R34: 0 | S34: 0 | U34: 7.5 | V34: 0 | W34: 0 | Y34: 0 | Z34: =IF(AND(N34<>0,T34=0),#VALUE!,N34*T34) -> 0 | AA34: 15 | AB34: 0 | AC34: 0 | AE34: 0 | AF34: =N34 -> 0 | AG34: 2 | AH34: 0 | AI34: 0 | AK34: 0 | AM34: 8.12 | AN34: 0 | AO34: 0 | AQ34: 0 | AR34: 0 | AS34: 16.24 | AT34: 0 | AU34: 0 | AV34: 0 | AX34: 40 | BA34: 7.69 | BE34: 0.09 | BG34: 0.09 | BH34: =ROUND((U34*$BF$2)+$BE34-BA34,2) -> 0.01 | BM34: 0 | BN34: 0 | BO34: 8.242612 | BP34: 0 | BQ34: 0 | BS34: 0 | BT34: 0 | BU34: 0.552612 | BV34: 0 | BW34: 0
B35: 2 | C35: 042 | D35: 441T | E35: 11 | G35: 042441T | I35: Single High-Pressure Sodium Vapor | J35: Pedestal Base | K35: 100W | L35: 432 | M35: 0 | N35: 78 | O35: 4 | P35: 0 | Q35: 0 | R35: 0 | S35: 0 | T35: 26.14 | U35: 7.5 | V35: 0 | W35: 0 | Y35: 0 | Z35: 2038.92 | AA35: 30 | AB35: 0 | AC35: 0 | AE35: 0 | AF35: 78 | AG35: 4 | AH35: 0 | AI35: 0 | AK35: 0 | AL35: =ROUND(T35*(1+AL$1),2) -> 28.14 | AM35: 8.12 | AN35: 0 | AO35: 0 | AQ35: 0 | AR35: 2194.92 | AS35: 32.48 | AT35: 0 | AU35: 0 | AV35: 156 | AW35: 0.07651109411 | AX35: 40 | AZ35: 26.61 | BA35: 7.69 | BE35: 0.09 | BG35: 0.01 | BH35: =ROUND((U35*$BF$2)+$BE35-BA35,2) -> 0.01 | BM35: 0 | BN35: 28.564914 | BO35: 8.242612 | BP35: 0 | BQ35: 0 | BS35: 0 | BT35: 1.954914 | BU35: 0.552612 | BV35: 0 | BW35: 0
B36: 2 | C36: 042 | D36: 474 | E36: 212 | G36: 042474 | I36: Single Light Emitting Diode (LED) | J36: Pedestal Base | K36: 70W | L36: 432L | M36: 0 | N36: 141 | O36: 0 | P36: 0 | Q36: 0 | R36: 0 | S36: 0 | T36: =T35 -> 26.14 | U36: 0 | Y36: =IF(AND(M36<>0,S36=0),#VALUE!,M36*S36) -> 0 | Z36: 3685.74 | AA36: 0 | AB36: 0 | AC36: 0 | AE36: =SUMIF($G:$G,TEXT(AE$3,"000")&TEXT($L36,"000"),$E:$E) -> 0 | AF36: =SUMIF($G:$G,TEXT(AF$3,"000")&TEXT($L36,"000"),$E:$E) -> 141 | AG36: =SUMIF($G:$G,TEXT(AG$3,"000")&TEXT($L36,"000"),$E:$E) -> 0 | AH36: =SUMIF($G:$G,TEXT(AH$3,"000")&TEXT($L36,"000"),$E:$E) -> 0 | AI36: =SUMIF($G:$G,TEXT(AI$3,"000")&TEXT($L36,"000"),$E:$E) -> 0 | AK36: 0 | AL36: =AL35 -> 28.14 | AM36: 0 | AN36: 0 | AO36: 0 | AQ36: 0 | AR36: 3967.74 | AS36: 0 | AT36: 0 | AU36: 0 | AV36: 282 | AW36: 0.07651109411 | AX36: 26 | AZ36: 26.58 | BE36: =ROUND(AX36*$BE$2,2)+ROUND(AX36*$BE$1,2) -> 0.06 | BG36: 0.01 | BM36: 0 | BN36: 28.564914 | BO36: =AM36*$BM$1 -> 0 | BP36: 0 | BQ36: 0 | BS36: =BM36-AY36 -> 0 | BT36: 1.984914 | BU36: 0 | BV36: 0 | BW36: 0
B37: 2 | C37: 042 | D37: 474L | E37: 106 | G37: 042474L | I37: Single Light Emitting Diode (LED) | J37: Pedestal Base | K37: 70W | L37: 432T | M37: 0 | N37: 28 | O37: 0 | P37: 0 | Q37: 0 | R37: 0 | S37: 0 | T37: =T35-T98 -> 20.91 | V37: 0 | W37: 0 | Y37: 0 | Z37: 585.48 | AA37: 0 | AB37: 0 | AC37: 0 | AE37: =M37 -> 0 | AF37: =N37 -> 28 | AG37: =O37 -> 0 | AH37: =P37 -> 0 | AI37: =Q37 -> 0 | AK37: 0 | AL37: =AL36-AL98 -> 22.91 | AM37: 0 | AN37: 0 | AO37: 0 | AQ37: 0 | AR37: 641.48 | AS37: 0 | AT37: 0 | AU37: 0 | AV37: 56 | AW37: 0.0956480153 | AX37: 26 | AZ37: 21.28 | BE37: =ROUND(AX37*$BE$2,2)+ROUND(AX37*$BE$1,2) -> 0.06 | BG37: 0.01 | BM37: 0 | BN37: 23.255941 | BO37: 0 | BP37: 0 | BQ37: 0 | BS37: 0 | BT37: 1.975941 | BU37: 0 | BV37: 0 | BW37: 0
B38: 2 | C38: 042 | D38: 475 | E38: 0 | G38: 042475 | I38: Single High-Pressure Sodium Vapor | J38: Direct Burial | K38: 100W | L38: 433 | M38: 0 | N38: 6 | O38: 6 | P38: 0 | Q38: 0 | R38: 0 | S38: 0 | T38: 26.14 | U38: 7.5 | V38: 0 | W38: 0 | Y38: 0 | Z38: 156.84 | AA38: 45 | AB38: 0 | AC38: 0 | AE38: 0 | AF38: =N38 -> 6 | AG38: =O38 -> 6 | AH38: =P38 -> 0 | AI38: =Q38 -> 0 | AK38: 0 | AL38: =ROUND(T38*(1+AL$1),2) -> 28.14 | AM38: 8.12 | AN38: 0 | AO38: 0 | AQ38: 0 | AR38: 168.84 | AS38: 48.72 | AT38: 0 | AU38: 0 | AV38: 12 | AW38: 0.07651109411 | AX38: 40 | AZ38: 26.61 | BA38: 7.69 | BE38: 0.09 | BG38: 0.01 | BH38: =ROUND((U38*$BF$2)+$BE38-BA38,2) -> 0.01 | BM38: 0 | BN38: 28.564914 | BO38: 8.242612 | BP38: 0 | BQ38: 0 | BS38: 0 | BT38: 1.954914 | BU38: 0.552612 | BV38: 0 | BW38: 0
B39: 3 | C39: 042 | D39: 478 | E39: 0 | G39: 042478 | I39: Single Light Emitting Diode (LED) | J39: Direct Burial | K39: 70W | L39: 433L | M39: 0 | N39: 49 | O39: 0 | P39: 0 | Q39: 0 | R39: 0 | S39: 0 | T39: =T38 -> 26.14 | U39: 0 | Y39: =IF(AND(M39<>0,S39=0),#VALUE!,M39*S39) -> 0 | Z39: 1280.86 | AA39: 0 | AB39: 0 | AC39: 0 | AE39: =SUMIF($G:$G,TEXT(AE$3,"000")&TEXT($L39,"000"),$E:$E) -> 0 | AF39: =SUMIF($G:$G,TEXT(AF$3,"000")&TEXT($L39,"000"),$E:$E) -> 49 | AG39: =SUMIF($G:$G,TEXT(AG$3,"000")&TEXT($L39,"000"),$E:$E) -> 0 | AH39: =SUMIF($G:$G,TEXT(AH$3,"000")&TEXT($L39,"000"),$E:$E) -> 0 | AI39: =SUMIF($G:$G,TEXT(AI$3,"000")&TEXT($L39,"000"),$E:$E) -> 0 | AK39: 0 | AL39: =AL38 -> 28.14 | AM39: 0 | AN39: 0 | AO39: 0 | AQ39: 0 | AR39: 1378.86 | AS39: 0 | AT39: 0 | AU39: 0 | AV39: 98 | AW39: 0.07651109411 | AX39: 26 | AZ39: 26.58 | BE39: =ROUND(AX39*$BE$2,2)+ROUND(AX39*$BE$1,2) -> 0.06 | BG39: 0.01 | BM39: 0 | BN39: 28.564914 | BO39: =AM39*$BM$1 -> 0 | BP39: 0 | BQ39: 0 | BS39: =BM39-AY39 -> 0 | BT39: 1.984914 | BU39: 0 | BV39: 0 | BW39: 0
B40: 2 | C40: 042 | D40: 484 | E40: 99 | G40: 042484 | I40: Single Light Emitting Diode (LED) | J40: Direct Burial | K40: 70W | L40: 433T | M40: 0 | N40: 65 | O40: 0 | P40: 0 | Q40: 0 | R40: 0 | S40: 0 | T40: =T38-T98 -> 20.91 | V40: 0 | W40: 0 | Y40: 0 | Z40: 1359.15 | AA40: 0 | AB40: 0 | AC40: 0 | AE40: =M40 -> 0 | AF40: =N40 -> 65 | AG40: =O40 -> 0 | AH40: =P40 -> 0 | AI40: =Q40 -> 0 | AK40: 0 | AL40: =AL39-AL98 -> 22.91 | AM40: 0 | AN40: 0 | AO40: 0 | AQ40: 0 | AR40: =IF(AND(AF40<>0,AL40=0),#VALUE!,AF40*AL40) -> 1489.15 | AS40: 0 | AT40: 0 | AU40: 0 | AV40: =SUM(AR40)-SUM(Z40) -> 130 | AW40: 0.0956480153 | AX40: 26 | AZ40: 21.28 | BE40: =ROUND(AX40*$BE$2,2)+ROUND(AX40*$BE$1,2) -> 0.06 | BG40: 0.01 | BM40: 0 | BN40: 23.255941 | BO40: 0 | BP40: 0 | BQ40: 0 | BS40: 0 | BT40: 1.975941 | BU40: 0 | BV40: 0 | BW40: 0
B41: 2 | C41: 042 | D41: 484L | E41: 64 | G41: 042484L | I41: Single High-Pressure Sodium Vapor | J41: Direct Burial | K41: 100W | L41: 434 | M41: 0 | N41: 2197 | O41: 0 | P41: 0 | Q41: 0 | R41: 0 | S41: 0 | T41: 14.74 | U41: 0 | V41: 0 | W41: 0 | Y41: 0 | Z41: 32383.78 | AA41: 0 | AB41: 0 | AC41: 0 | AE41: 0 | AF41: =N41 -> 2197 | AG41: =O41 -> 0 | AH41: =P41 -> 0 | AI41: =Q41 -> 0 | AK41: 0 | AL41: 15.87 | AM41: 0 | AN41: 0 | AO41: 0 | AQ41: 0 | AR41: 34866.39 | AS41: 0 | AT41: 0 | AU41: 0 | AV41: 2482.61 | AW41: 0.07666214383 | AX41: 40 | AZ41: 15.04 | BE41: 0.09 | BG41: 0.01 | BM41: 0 | BN41: 16.109637 | BO41: 0 | BP41: 0 | BQ41: 0 | BS41: 0 | BT41: 1.069637 | BU41: 0 | BV41: 0 | BW41: 0
B42: 2 | C42: 042 | D42: 531 | E42: 0 | G42: =IF(OR(ISBLANK(C42),ISBLANK(D42)),"",TEXT(C42,"000")&TEXT(D42,"000")) -> 042531 | I42: Single Light Emitting Diode (LED) | J42: Direct Burial | K42: 70W | L42: 434L | M42: 0 | N42: 1100 | O42: 0 | P42: 0 | Q42: 0 | R42: 0 | S42: 0 | T42: =T41 -> 14.74 | U42: 0 | Y42: =IF(AND(M42<>0,S42=0),#VALUE!,M42*S42) -> 0 | Z42: =IF(AND(N42<>0,T42=0),#VALUE!,N42*T42) -> 16214 | AA42: =IF(AND(O42<>0,U42=0),#VALUE!,O42*U42) -> 0 | AB42: =IF(AND(P42<>0,V42=0),#VALUE!,P42*V42) -> 0 | AC42: =IF(AND(Q42<>0,W42=0),#VALUE!,Q42*W42) -> 0 | AE42: =SUMIF($G:$G,TEXT(AE$3,"000")&TEXT($L42,"000"),$E:$E) -> 0 | AF42: =SUMIF($G:$G,TEXT(AF$3,"000")&TEXT($L42,"000"),$E:$E) -> 1100 | AG42: =SUMIF($G:$G,TEXT(AG$3,"000")&TEXT($L42,"000"),$E:$E) -> 0 | AH42: =SUMIF($G:$G,TEXT(AH$3,"000")&TEXT($L42,"000"),$E:$E) -> 0 | AI42: =SUMIF($G:$G,TEXT(AI$3,"000")&TEXT($L42,"000"),$E:$E) -> 0 | AK42: 0 | AL42: =AL41 -> 15.87 | AM42: 0 | AN42: 0 | AO42: 0 | AQ42: 0 | AR42: 17457 | AS42: 0 | AT42: 0 | AU42: 0 | AV42: 1243 | AW42: 0.07666214383 | AX42: 26 | AZ42: 15.01 | BE42: =ROUND(AX42*$BE$2,2)+ROUND(AX42*$BE$1,2) -> 0.06 | BG42: 0.01 | BM42: 0 | BN42: 16.109637 | BO42: =AM42*$BM$1 -> 0 | BP42: =AN42*$BM$1 -> 0 | BQ42: =AO42*$BM$1 -> 0 | BS42: =BM42-AY42 -> 0 | BT42: =BN42-AZ42 -> 1.099637 | BU42: =BO42-BA42 -> 0 | BV42: =BP42-BB42 -> 0 | BW42: =BQ42-BC42 -> 0
B43: 2 | C43: 042 | D43: 531L | E43: 0 | G43: 042531L | I43: Single High-Pressure Sodium Vapor | J43: Standard / Dusk to Dawn (046) | K43: 100W | L43: 435 | M43: 0 | N43: 795 | O43: 17 | P43: 0 | Q43: 17 | R43: 0 | S43: 0 | T43: 13.99 | U43: 7.5 | V43: 0 | W43: 5.01 | Y43: 0 | Z43: 11122.05 | AA43: 127.5 | AB43: 0 | AC43: 85.17 | AE43: 0 | AF43: =N43 -> 795 | AG43: =O43 -> 17 | AH43: =P43 -> 0 | AI43: =Q43 -> 17 | AK43: 0 | AL43: 15.06 | AM43: 8.12 | AN43: 0 | AO43: 5.43 | AQ43: 0 | AR43: 11972.7 | AS43: 138.04 | AT43: 0 | AU43: 92.31 | AV43: 850.65 | AW43: 0.07648320229 | AX43: 40 | AZ43: 14.28 | BA43: 7.69 | BC43: 5.17 | BE43: 0.09 | BG43: 0.01 | BH43: =ROUND((U43*$BF$2)+$BE43-BA43,2) -> 0.01 | BJ43: =ROUND((W43*$BF$2)+$BE43-BC43,2) -> 0.01 | BM43: 0 | BN43: 15.287406 | BO43: 8.242612 | BP43: 0 | BQ43: 5.511993 | BS43: 0 | BT43: 1.007406 | BU43: 0.552612 | BV43: 0 | BW43: 0.341993
B44: 2 | C44: 042 | D44: 531T | E44: 0 | G44: 042531T | I44: Single Light Emitting Diode (LED) | J44: Standard / Dusk to Dawn (046) | K44: 70W | L44: 435L | M44: =SUMIF($G:$G,TEXT(M$3,"000")&TEXT($L44,"000"),$E:$E) -> 0 | N44: 7904 | O44: 0 | P44: 0 | Q44: 0 | R44: 0 | S44: 0 | T44: =T43 -> 13.99 | U44: 0 | Y44: =IF(AND(M44<>0,S44=0),#VALUE!,M44*S44) -> 0 | Z44: 110576.96 | AA44: 0 | AB44: 0 | AC44: 0 | AE44: =SUMIF($G:$G,TEXT(AE$3,"000")&TEXT($L44,"000"),$E:$E) -> 0 | AF44: =SUMIF($G:$G,TEXT(AF$3,"000")&TEXT($L44,"000"),$E:$E) -> 7904 | AG44: =SUMIF($G:$G,TEXT(AG$3,"000")&TEXT($L44,"000"),$E:$E) -> 0 | AH44: =SUMIF($G:$G,TEXT(AH$3,"000")&TEXT($L44,"000"),$E:$E) -> 0 | AI44: =SUMIF($G:$G,TEXT(AI$3,"000")&TEXT($L44,"000"),$E:$E) -> 0 | AK44: 0 | AL44: =AL43 -> 15.06 | AM44: 0 | AN44: 0 | AO44: 0 | AQ44: 0 | AR44: 119034.24 | AS44: 0 | AT44: 0 | AU44: 0 | AV44: 8457.28 | AW44: 0.07648320229 | AX44: 26 | AZ44: 14.25 | BE44: =ROUND(AX44*$BE$2,2)+ROUND(AX44*$BE$1,2) -> 0.06 | BG44: 0.01 | BM44: 0 | BN44: 15.287406 | BO44: =AM44*$BM$1 -> 0 | BP44: 0 | BQ44: 0 | BS44: =BM44-AY44 -> 0 | BT44: 1.037406 | BU44: 0 | BV44: 0 | BW44: 0
B45: 2 | C45: 042 | D45: 532 | E45: 109 | G45: 042532 | I45: Single Light Emitting Diode (LED) | J45: Standard / Dusk to Dawn (046) | K45: 70W | L45: 435T | M45: 0 | N45: 3703 | O45: 0 | P45: 0 | Q45: 0 | R45: 0 | S45: 0 | T45: =T43-T98 -> 8.76 | V45: 0 | Y45: 0 | Z45: 32438.28 | AA45: 0 | AB45: 0 | AC45: 0 | AE45: =M45 -> 0 | AF45: =N45 -> 3703 | AG45: =O45 -> 0 | AH45: =P45 -> 0 | AI45: =Q45 -> 0 | AK45: 0 | AL45: =AL44-AL98 -> 9.83 | AM45: 0 | AN45: 0 | AO45: 0 | AQ45: 0 | AR45: 36400.49 | AS45: 0 | AT45: 0 | AU45: 0 | AV45: 3962.21 | AW45: 0.1221461187 | AX45: 26 | AZ45: 8.94 | BE45: =ROUND(AX45*$BE$2,2)+ROUND(AX45*$BE$1,2) -> 0.06 | BG45: 0.01 | BM45: 0 | BN45: 9.978433 | BO45: 0 | BP45: 0 | BQ45: 0 | BS45: 0 | BT45: 1.038433 | BU45: 0 | BV45: 0 | BW45: 0
B46: 2 | C46: 042 | D46: 532L | E46: 705 | G46: 042532L | I46: Single High-Pressure Sodium Vapor | J46: Developer Contributed | K46: 100W | L46: 436 | M46: 0 | N46: 22 | O46: 0 | P46: 0 | Q46: 0 | R46: 0 | S46: 0 | T46: 15.86 | U46: 0 | V46: 0 | W46: 0 | Y46: 0 | Z46: 348.92 | AA46: 0 | AB46: 0 | AC46: 0 | AE46: 0 | AF46: =N46 -> 22 | AG46: =O46 -> 0 | AH46: =P46 -> 0 | AI46: =Q46 -> 0 | AK46: 0 | AL46: 17.07 | AM46: 0 | AN46: 0 | AO46: 0 | AQ46: 0 | AR46: 375.54 | AS46: 0 | AT46: 0 | AU46: 0 | AV46: 26.62 | AW46: 0.0762925599 | AX46: 40 | AZ46: 16.18 | BE46: 0.09 | BG46: 0.01 | BM46: 0 | BN46: 17.327757 | BO46: 0 | BP46: 0 | BQ46: 0 | BS46: 0 | BT46: 1.147757 | BU46: 0 | BV46: 0 | BW46: 0
B47: 2 | C47: 042 | D47: 532T | E47: 152 | G47: 042532T | I47: Single Light Emitting Diode (LED) | J47: Developer Contributed | K47: 70W | L47: 436L | M47: 0 | N47: 80 | O47: 0 | P47: 0 | Q47: 0 | R47: 0 | S47: 0 | T47: =T46 -> 15.86 | U47: 0 | Y47: =IF(AND(M47<>0,S47=0),#VALUE!,M47*S47) -> 0 | Z47: 1268.8 | AA47: 0 | AB47: 0 | AC47: 0 | AE47: =SUMIF($G:$G,TEXT(AE$3,"000")&TEXT($L47,"000"),$E:$E) -> 0 | AF47: =SUMIF($G:$G,TEXT(AF$3,"000")&TEXT($L47,"000"),$E:$E) -> 80 | AG47: =SUMIF($G:$G,TEXT(AG$3,"000")&TEXT($L47,"000"),$E:$E) -> 0 | AH47: =SUMIF($G:$G,TEXT(AH$3,"000")&TEXT($L47,"000"),$E:$E) -> 0 | AI47: =SUMIF($G:$G,TEXT(AI$3,"000")&TEXT($L47,"000"),$E:$E) -> 0 | AK47: 0 | AL47: =AL46 -> 17.07 | AM47: 0 | AN47: 0 | AO47: 0 | AQ47: 0 | AR47: 1365.6 | AS47: 0 | AT47: 0 | AU47: 0 | AV47: 96.8 | AW47: 0.0762925599 | AX47: 26 | AZ47: 16.15 | BE47: =ROUND(AX47*$BE$2,2)+ROUND(AX47*$BE$1,2) -> 0.06 | BG47: 0.01 | BM47: 0 | BN47: 17.327757 | BO47: =AM47*$BM$1 -> 0 | BP47: 0 | BQ47: 0 | BS47: =BM47-AY47 -> 0 | BT47: 1.177757 | BU47: 0 | BV47: 0 | BW47: 0
B48: 2 | C48: 042 | D48: 533 | E48: 21 | G48: 042533 | I48: Single Light Emitting Diode (LED) | J48: Developer Contributed | K48: 70W | L48: 436T | M48: 0 | N48: 271 | O48: 0 | P48: 0 | Q48: 0 | R48: 0 | S48: 0 | T48: =T46-T98 -> 10.63 | U48: 0 | V48: 0 | W48: 0 | Y48: 0 | Z48: 2880.73 | AA48: 0 | AB48: 0 | AC48: 0 | AE48: =M48 -> 0 | AF48: =N48 -> 271 | AG48: =O48 -> 0 | AH48: =P48 -> 0 | AI48: =Q48 -> 0 | AK48: 0 | AL48: =AL47-AL98 -> 11.84 | AM48: 0 | AN48: 0 | AO48: 0 | AQ48: 0 | AR48: 3208.64 | AS48: 0 | AT48: 0 | AU48: 0 | AV48: 327.91 | AW48: 0.1138287865 | AX48: 26 | AZ48: 10.84 | BE48: =ROUND(AX48*$BE$2,2)+ROUND(AX48*$BE$1,2) -> 0.06 | BG48: 0.01 | BM48: 0 | BN48: 12.018784 | BO48: 0 | BP48: 0 | BQ48: 0 | BS48: 0 | BT48: 1.178784 | BU48: 0 | BV48: 0 | BW48: 0
B49: 2 | C49: 042 | D49: 533L | E49: 53 | G49: 042533L | I49: Decorative Sodium Vapor | J49: No Pole | K49: Kim Light 100W | L49: 438 | M49: 0 | N49: 10 | O49: 0 | P49: 0 | Q49: 0 | R49: =IF(SUM(M49:Q49)>0,0,1) -> 0 | S49: 0 | T49: 14.74 | U49: 0 | V49: 0 | W49: 0 | Y49: 0 | Z49: 147.4 | AA49: 0 | AB49: 0 | AC49: 0 | AE49: 0 | AF49: =N49 -> 10 | AG49: 0 | AH49: 0 | AI49: 0 | AK49: 0 | AL49: =ROUND(T49*(1+AL$1),2) -> 15.87 | AM49: 0 | AN49: 0 | AO49: 0 | AQ49: 0 | AR49: 158.7 | AS49: 0 | AT49: 0 | AU49: 0 | AV49: 11.3 | AW49: 0.07666214383 | AX49: 40 | AZ49: 15.04 | BE49: 0.09 | BG49: 0.01 | BM49: 0 | BN49: 16.109637 | BO49: 0 | BP49: 0 | BQ49: 0 | BS49: 0 | BT49: 1.069637 | BU49: 0 | BV49: 0 | BW49: 0
B50: 2 | C50: 042 | D50: 533T | E50: 47 | G50: 042533T | I50: Double Light Emitting Diode (LED) | J50: Standard | K50: 70W | L50: 441L | M50: 0 | N50: 14 | O50: 0 | P50: 0 | Q50: 0 | R50: 0 | S50: 0 | T50: 26.85 | U50: 0 | Y50: =IF(AND(M50<>0,S50=0),#VALUE!,M50*S50) -> 0 | Z50: 375.9 | AA50: 0 | AB50: 0 | AC50: 0 | AE50: =SUMIF($G:$G,TEXT(AE$3,"000")&TEXT($L50,"000"),$E:$E) -> 0 | AF50: 14 | AG50: 0 | AH50: 0 | AI50: 0 | AK50: 0 | AL50: 28.9 | AM50: 0 | AN50: 0 | AO50: 0 | AQ50: 0 | AR50: =IF(AND(AF50<>0,AL50=0),#VALUE!,AF50*AL50) -> 404.6 | AS50: 0 | AT50: 0 | AU50: 0 | AV50: 28.7 | AW50: 0.07635009311 | AX50: 52 | AZ50: 27.37 | BE50: =ROUND(AX50*$BE$2,2)+ROUND(AX50*$BE$1,2) -> 0.11 | BG50: 0 | BM50: 0 | BN50: 29.33639 | BO50: =AM50*$BM$1 -> 0 | BP50: 0 | BQ50: 0 | BS50: =BM50-AY50 -> 0 | BT50: 1.96639 | BU50: 0 | BV50: 0 | BW50: 0
B51: 2 | C51: 042 | D51: 535 | E51: =205+109 -> 314 | G51: 042535 | I51: Double Light Emitting Diode (LED) | J51: Standard | K51: 70W | L51: 441T | M51: 0 | N51: 11 | O51: 0 | P51: 0 | Q51: 0 | R51: 0 | T51: =T50-T98-T98 -> 16.39 | Y51: 0 | Z51: 180.29 | AA51: 0 | AB51: 0 | AC51: 0 | AE51: 0 | AF51: 11 | AG51: 0 | AH51: 0 | AI51: 0 | AK51: 0 | AL51: =AL50-AL98-AL98 -> 18.44 | AM51: 0 | AN51: 0 | AO51: 0 | AQ51: 0 | AR51: 202.84 | AS51: 0 | AT51: 0 | AU51: 0 | AV51: 22.55 | AW51: 0.125076266 | AX51: 52 | AZ51: 16.75 | BE51: =ROUND(AX51*$BE$2,2)+ROUND(AX51*$BE$1,2) -> 0.11 | BG51: 0 | BM51: 0 | BN51: 18.718444 | BO51: 0 | BP51: 0 | BQ51: 0 | BS51: 0 | BT51: 1.968444 | BU51: 0 | BV51: 0 | BW51: 0
B52: 2 | C52: 042 | D52: 535L | E52: =1320+814 -> 2134 | G52: 042535L | I52: Decorative Sodium Vapor | J52: Direct Burial | K52: Granville 100W | L52: 474 | M52: 0 | N52: 212 | O52: 0 | P52: 0 | Q52: 0 | R52: 0 | S52: 0 | T52: 25.68 | U52: 0 | V52: 0 | W52: 0 | Y52: 0 | Z52: 5444.16 | AA52: 0 | AB52: 0 | AC52: 0 | AE52: 0 | AF52: =N52 -> 212 | AG52: =O52 -> 0 | AH52: =P52 -> 0 | AI52: =Q52 -> 0 | AK52: 0 | AL52: 27.64 | AM52: 0 | AN52: 0 | AO52: 0 | AQ52: =IF(AND(AE52<>0,AK52=0),#VALUE!,AE52*AK52) -> 0 | AR52: =IF(AND(AF52<>0,AL52=0),#VALUE!,AF52*AL52) -> 5859.68 | AS52: =IF(AND(AG52<>0,AM52=0),#VALUE!,AG52*AM52) -> 0 | AT52: 0 | AU52: 0 | AV52: 415.52 | AW52: 0.07632398754 | AX52: 40 | AZ52: 26.15 | BE52: 0.09 | BG52: 0.01 | BM52: 0 | BN52: 28.057364 | BO52: 0 | BP52: 0 | BQ52: 0 | BS52: 0 | BT52: 1.907364 | BU52: 0 | BV52: 0 | BW52: 0
B53: 2 | C53: 042 | D53: 535T | E53: =474+393 -> 867 | G53: 042535T | I53: Decorative Light Emitting Diode (LED) | J53: Direct Burial | K53: Granville 70W | L53: 474L | M53: 0 | N53: 106 | O53: 0 | P53: 0 | Q53: 0 | R53: 0 | S53: 0 | T53: =T52 -> 25.68 | U53: 0 | Y53: =IF(AND(M53<>0,S53=0),#VALUE!,M53*S53) -> 0 | Z53: =IF(AND(N53<>0,T53=0),#VALUE!,N53*T53) -> 2722.08 | AA53: =IF(AND(O53<>0,U53=0),#VALUE!,O53*U53) -> 0 | AB53: =IF(AND(P53<>0,V53=0),#VALUE!,P53*V53) -> 0 | AC53: =IF(AND(Q53<>0,W53=0),#VALUE!,Q53*W53) -> 0 | AE53: =SUMIF($G:$G,TEXT(AE$3,"000")&TEXT($L53,"000"),$E:$E) -> 0 | AF53: 106 | AG53: 0 | AH53: 0 | AI53: 0 | AK53: 0 | AL53: =AL52 -> 27.64 | AM53: 0 | AN53: 0 | AO53: 0 | AQ53: =IF(AND(AE53<>0,AK53=0),#VALUE!,AE53*AK53) -> 0 | AR53: 2929.84 | AS53: 0 | AT53: 0 | AU53: 0 | AV53: 207.76 | AW53: 0.07632398754 | AX53: 26 | AZ53: 26.12 | BE53: =ROUND(AX53*$BE$2,2)+ROUND(AX53*$BE$1,2) -> 0.06 | BG53: 0.01 | BM53: 0 | BN53: 28.057364 | BO53: =AM53*$BM$1 -> 0 | BP53: 0 | BQ53: 0 | BS53: =BM53-AY53 -> 0 | BT53: 1.937364 | BU53: 0 | BV53: 0 | BW53: 0
B54: 2 | C54: 042 | D54: 536 | E54: 155 | G54: 042536 | I54: Decorative Sodium Vapor | J54: No Pole | K54: Granville 100W | L54: 475 | M54: =SUMIF($G:$G,TEXT(M$3,"000")&TEXT($L54,"000"),$E:$E) -> 0 | N54: 0 | O54: 0 | P54: 0 | Q54: 0 | R54: 1 | S54: 0 | T54: 19.71 | U54: 0 | V54: 0 | W54: 0 | Z54: 0 | AE54: 0 | AF54: 0 | AG54: 0 | AH54: 0 | AI54: 0 | AK54: 0 | AL54: =ROUND(T54*(1+AL$1),2) -> 21.22 | AM54: =ROUND(U54*(1+AM$1),2) -> 0 | AN54: =ROUND(V54*(1+AN$1),2) -> 0 | AO54: =ROUND(W54*(1+AO$1),2) -> 0 | AR54: 0 | AV54: 0 | AX54: 40 | AZ54: 20.09 | BE54: =ROUND(AX54*$BE$2,2)+ROUND(AX54*$BE$1,2) -> 0.09 | BG54: 0.01 | BM54: 0 | BN54: 21.540422 | BO54: 0 | BP54: 0 | BQ54: 0 | BS54: 0 | BT54: 1.450422 | BU54: 0 | BV54: 0 | BW54: 0
B55: 2 | C55: 042 | D55: 536L | E55: 241 | G55: 042536L | I55: Decorative Sodium Vapor | J55: Direct Burial | K55: Post Top 100W | L55: 484 | M55: 0 | N55: 99 | O55: 0 | P55: 0 | Q55: 0 | R55: 0 | S55: 0 | T55: 24.45 | U55: 0 | V55: 0 | W55: 0 | Y55: 0 | Z55: 2420.55 | AA55: 0 | AB55: 0 | AC55: 0 | AE55: 0 | AF55: =N55 -> 99 | AG55: 0 | AH55: 0 | AI55: 0 | AK55: =ROUND(S55*(1+AK$1),2) -> 0 | AL55: 26.32 | AM55: 0 | AN55: 0 | AO55: 0 | AQ55: =IF(AND(AE55<>0,AK55=0),#VALUE!,AE55*AK55) -> 0 | AR55: 2605.68 | AS55: =IF(AND(AG55<>0,AM55=0),#VALUE!,AG55*AM55) -> 0 | AT55: =IF(AND(AH55<>0,AN55=0),#VALUE!,AH55*AN55) -> 0 | AU55: =IF(AND(AI55<>0,AO55=0),#VALUE!,AI55*AO55) -> 0 | AV55: 185.13 | AW55: 0.07648261759 | AX55: 40 | AZ55: 24.9 | BE55: 0.09 | BG55: 0.01 | BM55: =AK55*$BM$1 -> 0 | BN55: =AL55*$BM$1 -> 26.717432 | BO55: 0 | BP55: 0 | BQ55: 0 | BS55: 0 | BT55: 1.817432 | BU55: 0 | BV55: 0 | BW55: 0
B56: 2 | C56: 042 | D56: 536T | E56: 337 | G56: 042536T | I56: Decorative Light Emitting Diode (LED) | J56: Direct Burial | K56: Post Top 70W | L56: 484L | M56: 0 | N56: 64 | O56: 0 | P56: 0 | Q56: 0 | R56: 0 | S56: 0 | T56: =T55 -> 24.45 | U56: 0 | Y56: =IF(AND(M56<>0,S56=0),#VALUE!,M56*S56) -> 0 | Z56: =IF(AND(N56<>0,T56=0),#VALUE!,N56*T56) -> 1564.8 | AA56: =IF(AND(O56<>0,U56=0),#VALUE!,O56*U56) -> 0 | AB56: =IF(AND(P56<>0,V56=0),#VALUE!,P56*V56) -> 0 | AC56: =IF(AND(Q56<>0,W56=0),#VALUE!,Q56*W56) -> 0 | AE56: =SUMIF($G:$G,TEXT(AE$3,"000")&TEXT($L56,"000"),$E:$E) -> 0 | AF56: 64 | AG56: 0 | AH56: 0 | AI56: 0 | AK56: =ROUND(S56*(1+AK$1),2) -> 0 | AL56: =AL55 -> 26.32 | AM56: 0 | AN56: 0 | AO56: 0 | AQ56: 0 | AR56: 1684.48 | AS56: 0 | AT56: 0 | AU56: 0 | AV56: 119.68 | AW56: 0.07648261759 | AX56: 26 | AZ56: 24.87 | BE56: =ROUND(AX56*$BE$2,2)+ROUND(AX56*$BE$1,2) -> 0.06 | BG56: 0.01 | BM56: 0 | BN56: 26.717432 | BO56: =AM56*$BM$1 -> 0 | BP56: 0 | BQ56: 0 | BS56: =BM56-AY56 -> 0 | BT56: =BN56-AZ56 -> 1.847432 | BU56: =BO56-BA56 -> 0 | BV56: =BP56-BB56 -> 0 | BW56: =BQ56-BC56 -> 0
B57: 2 | C57: 042 | D57: 541 | E57: 4 | G57: 042541 | I57: LED (Dusk to 11:00) | J57: Dusk to 11 PM | K57: 100W | L57: 499 | M57: 0 | N57: 0 | O57: 0 | P57: 0 | Q57: 41 | R57: 0 | S57: 0 | T57: 0 | U57: 0 | V57: 0 | W57: 2.78 | Y57: 0 | Z57: 0 | AA57: 0 | AB57: 0 | AC57: 113.98 | AE57: 0 | AF57: 0 | AG57: 0 | AH57: 0 | AI57: 41 | AK57: 0 | AL57: 0 | AM57: 0 | AN57: 0 | AO57: 3.01 | AQ57: 0 | AR57: 0 | AS57: 0 | AT57: 0 | AU57: 123.41 | AV57: 0 | AX57: 21 | BC57: 2.86 | BE57: 0.04 | BJ57: =ROUND((W57*$BF$2)+$BE57-BC57,2) -> 0 | BM57: 0 | BN57: 0 | BO57: 0 | BP57: 0 | BQ57: 3.055451 | BS57: =BM57-AY57 -> 0 | BT57: 0 | BU57: 0 | BV57: 0 | BW57: 0.195451
B58: 2 | C58: 042 | D58: 541L | E58: 1 | G58: 042541L | I58: Mercury Vapor | J58: Dusk to Dawn | K58: 10000 | L58: 515 | M58: 0 | N58: 0 | O58: 0 | P58: 1 | Q58: 0 | R58: 0 | S58: 0 | T58: 0 | U58: 0 | V58: 9.65 | W58: 0 | Y58: 0 | Z58: 0 | AA58: 0 | AB58: 9.65 | AC58: 0 | AE58: 0 | AF58: 0 | AG58: 0 | AH58: 1 | AI58: 0 | AK58: 0 | AL58: 0 | AM58: 0 | AN58: 10.45 | AO58: 0 | AQ58: 0 | AR58: 0 | AS58: 0 | AT58: 10.45 | AU58: 0 | AV58: 0 | AX58: 111 | BB58: 10.04 | BE58: 0.25 | BI58: =ROUND((V58*$BF$2)+$BE58-BB58,2) -> 0.01 | BM58: 0 | BN58: 0 | BO58: 0 | BP58: 10.607795 | BQ58: 0 | BS58: 0 | BT58: 0 | BU58: 0 | BV58: 0.567795 | BW58: 0
B59: 2 | C59: 042 | D59: 541T | E59: 0 | G59: 042541T | I59: Single High-Pressure Sodium Vapor | J59: Standard | K59: 200W | L59: 531 | M59: 0 | N59: 0 | O59: 1 | P59: 0 | Q59: 0 | R59: 0 | S59: 0 | U59: 11.68 | V59: 0 | W59: 0 | Y59: 0 | Z59: 0 | AA59: 11.68 | AB59: 0 | AC59: 0 | AE59: 0 | AF59: =N59 -> 0 | AG59: =O59 -> 1 | AH59: =P59 -> 0 | AI59: =Q59 -> 0 | AK59: 0 | AL59: 0 | AM59: 12.65 | AN59: 0 | AO59: 0 | AQ59: 0 | AR59: 0 | AS59: 12.65 | AT59: 0 | AU59: 0 | AV59: 0 | AX59: 85 | BA59: 12.04 | BE59: 0.18 | BH59: =ROUND((U59*$BF$2)+$BE59-BA59,2) -> 0 | BM59: 0 | BN59: 0 | BO59: 12.841015 | BP59: 0 | BQ59: 0 | BS59: 0 | BT59: 0 | BU59: 0.801015 | BV59: 0 | BW59: 0
B60: 2 | C60: 042 | D60: 542L | E60: 15 | G60: 042542L | I60: Single High-Pressure Sodium Vapor | J60: Pedestal Base | K60: 200W | L60: 532 | M60: 0 | N60: 109 | O60: 89 | P60: 0 | Q60: 0 | R60: 0 | S60: 0 | T60: 34.98 | U60: 11.68 | V60: 0 | W60: 0 | Y60: 0 | Z60: =IF(AND(N60<>0,T60=0),#VALUE!,N60*T60) -> 3812.82 | AA60: 1039.52 | AB60: 0 | AC60: 0 | AE60: 0 | AF60: 109 | AG60: 89 | AH60: 0 | AI60: 0 | AK60: 0 | AL60: 37.66 | AM60: 12.65 | AN60: 0 | AO60: 0 | AQ60: 0 | AR60: 4104.94 | AS60: 1125.85 | AT60: 0 | AU60: 0 | AV60: 292.12 | AW60: 0.07661520869 | AX60: 85 | AZ60: 35.69 | BA60: 12.04 | BE60: 0.18 | BG60: =ROUND((T60*$BF$2)+$BE60-AZ60,2) -> 0 | BH60: =ROUND((U60*$BF$2)+$BE60-BA60,2) -> 0 | BM60: 0 | BN60: 38.228666 | BO60: 12.841015 | BP60: 0 | BQ60: 0 | BS60: 0 | BT60: 2.538666 | BU60: 0.801015 | BV60: 0 | BW60: 0
B61: 2 | C61: 042 | D61: 542T | E61: 9 | G61: 042542T | I61: Single Light Emitting Diode (LED) | J61: Pedestal Base | K61: 107W | L61: 532L | M61: =SUMIF($G:$G,TEXT(M$3,"000")&TEXT($L61,"000"),$E:$E) -> 0 | N61: 705 | O61: 0 | P61: 0 | Q61: 0 | R61: 0 | S61: 0 | T61: =T60 -> 34.98 | U61: 0 | V61: 0 | Y61: =IF(AND(M61<>0,S61=0),#VALUE!,M61*S61) -> 0 | Z61: 24660.9 | AA61: 0 | AB61: 0 | AC61: 0 | AE61: =SUMIF($G:$G,TEXT(AE$3,"000")&TEXT($L61,"000"),$E:$E) -> 0 | AF61: =SUMIF($G:$G,TEXT(AF$3,"000")&TEXT($L61,"000"),$E:$E) -> 705 | AG61: =SUMIF($G:$G,TEXT(AG$3,"000")&TEXT($L61,"000"),$E:$E) -> 0 | AH61: =SUMIF($G:$G,TEXT(AH$3,"000")&TEXT($L61,"000"),$E:$E) -> 0 | AI61: =SUMIF($G:$G,TEXT(AI$3,"000")&TEXT($L61,"000"),$E:$E) -> 0 | AK61: =ROUND(S61*(1+AK$1),2) -> 0 | AL61: =AL60 -> 37.66 | AM61: 0 | AN61: 0 | AO61: 0 | AQ61: 0 | AR61: 26550.3 | AS61: 0 | AT61: 0 | AU61: 0 | AV61: 1889.4 | AW61: 0.07661520869 | AX61: 39 | AZ61: 35.59 | BE61: =ROUND(AX61*$BE$2,2)+ROUND(AX61*$BE$1,2) -> 0.08 | BG61: 0 | BM61: 0 | BN61: 38.228666 | BO61: =AM61*$BM$1 -> 0 | BP61: 0 | BQ61: 0 | BS61: =BM61-AY61 -> 0 | BT61: 2.638666 | BU61: 0 | BV61: 0 | BW61: 0
B62: 2 | C62: 042 | D62: 546T | E62: 8 | G62: 042546T | I62: Single Light Emitting Diode (LED) | J62: Pedestal Base | K62: 107W | L62: 532T | M62: 0 | N62: 152 | O62: 0 | P62: 0 | Q62: 0 | R62: 0 | S62: 0 | T62: =T60-T99 -> 29.45 | V62: 0 | W62: 0 | Y62: 0 | Z62: 4476.4 | AA62: 0 | AB62: 0 | AC62: 0 | AE62: =M62 -> 0 | AF62: =N62 -> 152 | AG62: =O62 -> 0 | AH62: =P62 -> 0 | AI62: =Q62 -> 0 | AK62: =ROUND(S62*(1+AK$1),2) -> 0 | AL62: =AL61-AL99 -> 32.13 | AM62: 0 | AN62: 0 | AO62: 0 | AQ62: 0 | AR62: 4883.76 | AS62: 0 | AT62: 0 | AU62: 0 | AV62: 407.36 | AW62: 0.09100169779 | AX62: 39 | AZ62: 29.97 | BE62: =ROUND(AX62*$BE$2,2)+ROUND(AX62*$BE$1,2) -> 0.08 | BG62: 0 | BM62: 0 | BN62: 32.615163 | BO62: 0 | BP62: 0 | BQ62: 0 | BS62: 0 | BT62: 2.645163 | BU62: 0 | BV62: 0 | BW62: 0
B63: 2 | C63: 042 | D63: 631 | E63: 38 | G63: 042631 | I63: Single High-Pressure Sodium Vapor | J63: Direct Burial | K63: 200W | L63: 533 | M63: 0 | N63: 21 | O63: 3 | P63: 0 | Q63: 0 | R63: 0 | S63: 0 | T63: 34.98 | U63: 11.68 | V63: 0 | W63: 0 | Y63: 0 | Z63: 734.58 | AA63: 35.04 | AB63: 0 | AC63: 0 | AE63: 0 | AF63: 21 | AG63: 3 | AH63: 0 | AI63: 0 | AK63: 0 | AL63: 37.66 | AM63: 12.65 | AN63: 0 | AO63: 0 | AQ63: 0 | AR63: 790.86 | AS63: 37.95 | AT63: 0 | AU63: 0 | AV63: 56.28 | AW63: 0.07661520869 | AX63: 85 | AZ63: 35.69 | BA63: 12.04 | BE63: 0.18 | BG63: 0 | BH63: =ROUND((U63*$BF$2)+$BE63-BA63,2) -> 0 | BM63: 0 | BN63: 38.228666 | BO63: 12.841015 | BP63: 0 | BQ63: 0 | BS63: 0 | BT63: 2.538666 | BU63: 0.801015 | BV63: 0 | BW63: 0
B64: 2 | C64: 042 | D64: 633 | E64: 34 | G64: 042633 | I64: Single Light Emitting Diode (LED) | J64: Direct Burial | K64: 107W | L64: 533L | M64: 0 | N64: 53 | O64: 0 | P64: 0 | Q64: 0 | R64: 0 | S64: 0 | T64: =T63 -> 34.98 | U64: 0 | V64: 0 | Y64: =IF(AND(M64<>0,S64=0),#VALUE!,M64*S64) -> 0 | Z64: 1853.94 | AA64: 0 | AB64: 0 | AC64: 0 | AE64: =SUMIF($G:$G,TEXT(AE$3,"000")&TEXT($L64,"000"),$E:$E) -> 0 | AF64: =SUMIF($G:$G,TEXT(AF$3,"000")&TEXT($L64,"000"),$E:$E) -> 53 | AG64: =SUMIF($G:$G,TEXT(AG$3,"000")&TEXT($L64,"000"),$E:$E) -> 0 | AH64: =SUMIF($G:$G,TEXT(AH$3,"000")&TEXT($L64,"000"),$E:$E) -> 0 | AI64: =SUMIF($G:$G,TEXT(AI$3,"000")&TEXT($L64,"000"),$E:$E) -> 0 | AK64: =ROUND(S64*(1+AK$1),2) -> 0 | AL64: =AL63 -> 37.66 | AM64: 0 | AN64: 0 | AO64: 0 | AQ64: 0 | AR64: 1995.98 | AS64: 0 | AT64: 0 | AU64: 0 | AV64: 142.04 | AW64: 0.07661520869 | AX64: 39 | AZ64: 35.59 | BE64: =ROUND(AX64*$BE$2,2)+ROUND(AX64*$BE$1,2) -> 0.08 | BG64: 0 | BM64: 0 | BN64: 38.228666 | BO64: =AM64*$BM$1 -> 0 | BP64: 0 | BQ64: 0 | BS64: =BM64-AY64 -> 0 | BT64: 2.638666 | BU64: 0 | BV64: 0 | BW64: 0
B65: 2 | C65: 042 | D65: 636 | E65: 2 | G65: 042636 | I65: Single Light Emitting Diode (LED) | J65: Direct Burial | K65: 107W | L65: 533T | M65: 0 | N65: 47 | O65: 0 | P65: 0 | Q65: 0 | R65: 0 | S65: 0 | T65: =T63-T99 -> 29.45 | V65: 0 | W65: 0 | Y65: 0 | Z65: 1384.15 | AA65: 0 | AB65: 0 | AC65: 0 | AE65: =M65 -> 0 | AF65: =N65 -> 47 | AG65: =O65 -> 0 | AH65: =P65 -> 0 | AI65: =Q65 -> 0 | AK65: =ROUND(S65*(1+AK$1),2) -> 0 | AL65: =AL64-AL99 -> 32.13 | AM65: 0 | AN65: 0 | AO65: 0 | AQ65: 0 | AR65: 1510.11 | AS65: 0 | AT65: 0 | AU65: 0 | AV65: 125.96 | AW65: 0.09100169779 | AX65: 39 | AZ65: 29.97 | BE65: =ROUND(AX65*$BE$2,2)+ROUND(AX65*$BE$1,2) -> 0.08 | BG65: 0 | BM65: 0 | BN65: 32.615163 | BO65: 0 | BP65: 0 | BQ65: 0 | BS65: 0 | BT65: 2.645163 | BU65: 0 | BV65: 0 | BW65: 0
B66: 2 | C66: 042 | D66: 831 | E66: 0 | G66: 042831 | I66: Single High-Pressure Sodium Vapor | J66: Standard / Dusk to Dawn (046) | K66: 200W | L66: 535 | M66: 0 | N66: 314 | O66: 9 | P66: 0 | Q66: 49 | R66: 0 | S66: 0 | T66: 19.45 | U66: 11.68 | V66: 0 | W66: 9.23 | Y66: 0 | Z66: 6107.3 | AA66: 105.12 | AB66: 0 | AC66: 452.27 | AE66: 0 | AF66: 314 | AG66: 9 | AH66: 0 | AI66: 49 | AK66: 0 | AL66: 20.94 | AM66: 12.65 | AN66: 0 | AO66: 10 | AQ66: 0 | AR66: 6575.16 | AS66: 113.85 | AT66: 0 | AU66: 490 | AV66: 467.86 | AW66: 0.0766066838 | AX66: 85 | AZ66: 19.92 | BA66: 12.04 | BC66: 9.55 | BE66: 0.18 | BG66: 0 | BH66: =ROUND((U66*$BF$2)+$BE66-BA66,2) -> 0 | BJ66: =ROUND((W66*$BF$2)+$BE66-BC66,2) -> 0 | BM66: 0 | BN66: 21.256194 | BO66: 12.841015 | BP66: 0 | BQ66: 10.151 | BS66: 0 | BT66: 1.336194 | BU66: 0.801015 | BV66: 0 | BW66: 0.601
B67: 2 | C67: 042 | D67: 831T | E67: 0 | G67: 042831T | I67: Single Light Emitting Diode (LED) | J67: Standard / Dusk to Dawn (046) | K67: 107W | L67: 535L | M67: 0 | N67: 2134 | O67: 0 | P67: 0 | Q67: 0 | R67: 0 | S67: 0 | T67: =T66 -> 19.45 | U67: 0 | V67: 0 | Y67: =IF(AND(M67<>0,S67=0),#VALUE!,M67*S67) -> 0 | Z67: 41506.3 | AA67: 0 | AB67: 0 | AC67: 0 | AE67: =SUMIF($G:$G,TEXT(AE$3,"000")&TEXT($L67,"000"),$E:$E) -> 0 | AF67: =SUMIF($G:$G,TEXT(AF$3,"000")&TEXT($L67,"000"),$E:$E) -> 2134 | AG67: =SUMIF($G:$G,TEXT(AG$3,"000")&TEXT($L67,"000"),$E:$E) -> 0 | AH67: =SUMIF($G:$G,TEXT(AH$3,"000")&TEXT($L67,"000"),$E:$E) -> 0 | AI67: =SUMIF($G:$G,TEXT(AI$3,"000")&TEXT($L67,"000"),$E:$E) -> 0 | AK67: =ROUND(S67*(1+AK$1),2) -> 0 | AL67: =AL66 -> 20.94 | AM67: 0 | AN67: 0 | AO67: 0 | AQ67: 0 | AR67: 44685.96 | AS67: 0 | AT67: 0 | AU67: 0 | AV67: 3179.66 | AW67: 0.0766066838 | AX67: 39 | AZ67: 19.82 | BE67: =ROUND(AX67*$BE$2,2)+ROUND(AX67*$BE$1,2) -> 0.08 | BG67: 0 | BM67: 0 | BN67: 21.256194 | BO67: =AM67*$BM$1 -> 0 | BP67: 0 | BQ67: 0 | BS67: =BM67-AY67 -> 0 | BT67: 1.436194 | BU67: 0 | BV67: 0 | BW67: 0
B68: 2 | C68: 042 | D68: 831L | E68: 0 | G68: =IF(OR(ISBLANK(C68),ISBLANK(D68)),"",TEXT(C68,"000")&TEXT(D68,"000")) -> 042831L | I68: Single Light Emitting Diode (LED) | J68: Standard / Dusk to Dawn (046) | K68: 107W | L68: 535T | M68: 0 | N68: 867 | O68: 0 | P68: 0 | Q68: 0 | R68: 0 | S68: 0 | T68: =T66-T99 -> 13.92 | V68: 0 | Y68: 0 | Z68: 12068.64 | AA68: 0 | AB68: 0 | AC68: 0 | AE68: =M68 -> 0 | AF68: =N68 -> 867 | AG68: =O68 -> 0 | AH68: =P68 -> 0 | AI68: =Q68 -> 0 | AK68: =ROUND(S68*(1+AK$1),2) -> 0 | AL68: =AL67-AL99 -> 15.41 | AM68: 0 | AN68: 0 | AO68: 0 | AQ68: 0 | AR68: 13360.47 | AS68: 0 | AT68: 0 | AU68: 0 | AV68: 1291.83 | AW68: 0.1070402299 | AX68: 39 | AZ68: 14.21 | BE68: =ROUND(AX68*$BE$2,2)+ROUND(AX68*$BE$1,2) -> 0.08 | BG68: 0 | BM68: 0 | BN68: 15.642691 | BO68: 0 | BP68: 0 | BQ68: 0 | BS68: 0 | BT68: 1.432691 | BU68: 0 | BV68: 0 | BW68: 0
B69: 2 | C69: 042 | D69: 832 | E69: 0 | G69: 042832 | I69: Single High-Pressure Sodium Vapor | J69: Developer Contributed | K69: 200W | L69: 536 | M69: 0 | N69: 155 | O69: 0 | P69: 0 | Q69: 0 | R69: 0 | S69: 0 | T69: 23.62 | U69: 0 | V69: 0 | W69: 0 | Y69: 0 | Z69: 3661.1 | AA69: 0 | AB69: 0 | AC69: 0 | AE69: 0 | AF69: 155 | AG69: 0 | AH69: 0 | AI69: 0 | AK69: 0 | AL69: 25.43 | AM69: 0 | AN69: 0 | AO69: 0 | AQ69: 0 | AR69: 3941.65 | AS69: 0 | AT69: 0 | AU69: 0 | AV69: 280.55 | AW69: 0.0766299746 | AX69: 85 | AZ69: 24.16 | BE69: 0.18 | BG69: 0 | BM69: 0 | BN69: 25.813993 | BO69: 0 | BP69: 0 | BQ69: 0 | BS69: 0 | BT69: 1.653993 | BU69: 0 | BV69: 0 | BW69: 0
B70: 2 | C70: 042 | D70: 832T | E70: 19 | G70: =IF(OR(ISBLANK(C70),ISBLANK(D70)),"",TEXT(C70,"000")&TEXT(D70,"000")) -> 042832T | I70: Single Light Emitting Diode (LED) | J70: Developer Contributed | K70: 107W | L70: 536L | M70: 0 | N70: 241 | O70: 0 | P70: 0 | Q70: 0 | R70: 0 | S70: 0 | T70: =T69 -> 23.62 | U70: 0 | V70: 0 | Y70: =IF(AND(M70<>0,S70=0),#VALUE!,M70*S70) -> 0 | Z70: 5692.42 | AA70: 0 | AB70: 0 | AC70: 0 | AE70: =SUMIF($G:$G,TEXT(AE$3,"000")&TEXT($L70,"000"),$E:$E) -> 0 | AF70: =SUMIF($G:$G,TEXT(AF$3,"000")&TEXT($L70,"000"),$E:$E) -> 241 | AG70: =SUMIF($G:$G,TEXT(AG$3,"000")&TEXT($L70,"000"),$E:$E) -> 0 | AH70: =SUMIF($G:$G,TEXT(AH$3,"000")&TEXT($L70,"000"),$E:$E) -> 0 | AI70: =SUMIF($G:$G,TEXT(AI$3,"000")&TEXT($L70,"000"),$E:$E) -> 0 | AK70: =ROUND(S70*(1+AK$1),2) -> 0 | AL70: =AL69 -> 25.43 | AM70: 0 | AN70: 0 | AO70: 0 | AQ70: 0 | AR70: 6128.63 | AS70: 0 | AT70: 0 | AU70: 0 | AV70: 436.21 | AW70: 0.0766299746 | AX70: 39 | AZ70: 24.06 | BE70: =ROUND(AX70*$BE$2,2)+ROUND(AX70*$BE$1,2) -> 0.08 | BG70: 0 | BM70: 0 | BN70: 25.813993 | BO70: =AM70*$BM$1 -> 0 | BP70: 0 | BQ70: 0 | BS70: =BM70-AY70 -> 0 | BT70: 1.753993 | BU70: 0 | BV70: 0 | BW70: 0
B71: 2 | C71: 042 | D71: 832L | E71: 1 | G71: 042832L | I71: Single Light Emitting Diode (LED) | J71: Developer Contributed | K71: 107W | L71: 536T | M71: =SUMIF($G:$G,TEXT(M$3,"000")&TEXT($L71,"000"),$E:$E) -> 0 | N71: 337 | O71: 0 | P71: 0 | Q71: 0 | R71: 0 | S71: 0 | T71: =T69-T99 -> 18.09 | U71: 0 | V71: 0 | W71: 0 | Y71: 0 | Z71: 6096.33 | AA71: 0 | AB71: 0 | AC71: 0 | AE71: =M71 -> 0 | AF71: =N71 -> 337 | AG71: =O71 -> 0 | AH71: =P71 -> 0 | AI71: =Q71 -> 0 | AK71: =ROUND(S71*(1+AK$1),2) -> 0 | AL71: =AL70-AL99 -> 19.9 | AM71: 0 | AN71: 0 | AO71: 0 | AQ71: 0 | AR71: 6706.3 | AS71: 0 | AT71: 0 | AU71: 0 | AV71: 609.97 | AW71: 0.1000552792 | AX71: 39 | AZ71: 18.44 | BE71: =ROUND(AX71*$BE$2,2)+ROUND(AX71*$BE$1,2) -> 0.08 | BG71: 0 | BM71: 0 | BN71: 20.20049 | BO71: 0 | BP71: 0 | BQ71: 0 | BS71: 0 | BT71: 1.76049 | BU71: 0 | BV71: 0 | BW71: 0
B72: 2 | C72: 042 | D72: 835 | E72: =8+36 -> 44 | G72: =IF(OR(ISBLANK(C72),ISBLANK(D72)),"",TEXT(C72,"000")&TEXT(D72,"000")) -> 042835 | I72: Double High-Pressure Sodium Vapor | J72: Standard | K72: 200W | L72: 541 | M72: 0 | N72: 4 | O72: 0 | P72: 0 | Q72: 0 | R72: 0 | S72: 0 | T72: 43.09 | U72: 0 | V72: 0 | W72: 0 | Y72: 0 | Z72: 172.36 | AA72: 0 | AB72: 0 | AC72: 0 | AE72: 0 | AF72: 4 | AG72: 0 | AH72: 0 | AI72: 0 | AK72: 0 | AL72: =ROUND(T72*(1+AL$1),2) -> 46.39 | AM72: 0 | AN72: 0 | AO72: 0 | AQ72: 0 | AR72: 185.56 | AS72: 0 | AT72: 0 | AU72: 0 | AV72: 13.2 | AW72: 0.07658389417 | AX72: 170 | AZ72: 44.11 | BE72: 0.38 | BG72: 0.01 | BM72: 0 | BN72: 47.090489 | BO72: 0 | BP72: 0 | BQ72: 0 | BS72: 0 | BT72: 2.980489 | BU72: 0 | BV72: 0 | BW72: 0
B73: 2 | C73: 042 | D73: 835T | E73: =19+26 -> 45 | G73: =IF(OR(ISBLANK(C73),ISBLANK(D73)),"",TEXT(C73,"000")&TEXT(D73,"000")) -> 042835T | I73: Double Light Emitting Diode (LED) | J73: Standard | K73: 107W | L73: 541L | M73: 0 | N73: 1 | O73: 0 | P73: 0 | Q73: 0 | R73: 0 | S73: 0 | T73: =T72 -> 43.09 | U73: 0 | V73: 0 | Y73: =IF(AND(M73<>0,S73=0),#VALUE!,M73*S73) -> 0 | Z73: 43.09 | AA73: 0 | AB73: 0 | AC73: 0 | AE73: =SUMIF($G:$G,TEXT(AE$3,"000")&TEXT($L73,"000"),$E:$E) -> 0 | AF73: 1 | AG73: 0 | AH73: 0 | AI73: 0 | AK73: =ROUND(S73*(1+AK$1),2) -> 0 | AL73: =AL72 -> 46.39 | AM73: 0 | AN73: 0 | AO73: 0 | AQ73: 0 | AR73: 46.39 | AS73: 0 | AT73: 0 | AU73: 0 | AV73: 3.3 | AW73: 0.07658389417 | AX73: 78 | AZ73: 43.91 | BE73: =ROUND(AX73*$BE$2,2)+ROUND(AX73*$BE$1,2) -> 0.18 | BG73: 0.01 | BM73: 0 | BN73: 47.090489 | BO73: =AM73*$BM$1 -> 0 | BP73: =AN73*$BM$1 -> 0 | BQ73: =AO73*$BM$1 -> 0 | BS73: =BM73-AY73 -> 0 | BT73: 3.180489 | BU73: 0 | BV73: 0 | BW73: 0
B74: 2 | C74: 042 | D74: 835L | E74: =9+13 -> 22 | G74: =IF(OR(ISBLANK(C74),ISBLANK(D74)),"",TEXT(C74,"000")&TEXT(D74,"000")) -> 042835L | I74: Double Light Emitting Diode (LED) | J74: Pedestal Base | K74: 107W | L74: 542L | M74: 0 | N74: 15 | O74: 0 | P74: 0 | Q74: 0 | R74: 0 | S74: 0 | T74: 59.28 | U74: 0 | V74: 0 | Y74: =IF(AND(M74<>0,S74=0),#VALUE!,M74*S74) -> 0 | Z74: 889.2 | AA74: 0 | AB74: 0 | AC74: 0 | AE74: 0 | AF74: 15 | AG74: 0 | AH74: 0 | AI74: 0 | AK74: 0 | AL74: 63.81 | AM74: 0 | AN74: 0 | AO74: 0 | AQ74: 0 | AR74: =IF(AND(AF74<>0,AL74=0),#VALUE!,AF74*AL74) -> 957.15 | AS74: 0 | AT74: 0 | AU74: 0 | AV74: 67.95 | AW74: 0.07641700405 | AX74: 78 | AZ74: 60.35 | BE74: 0.18 | BG74: 0.01 | BM74: 0 | BN74: 64.773531 | BO74: 0 | BP74: 0 | BQ74: 0 | BS74: 0 | BT74: 4.423531 | BU74: 0 | BV74: 0 | BW74: 0
B75: 2 | C75: 042 | D75: 836T | E75: 3 | G75: =IF(OR(ISBLANK(C75),ISBLANK(D75)),"",TEXT(C75,"000")&TEXT(D75,"000")) -> 042836T | I75: Double Light Emitting Diode (LED) | J75: Pedestal Base | K75: 107W | L75: 542T | M75: 0 | N75: 9 | O75: 0 | P75: 0 | Q75: 0 | R75: 0 | S75: 0 | T75: =T74-T99-T99 -> 48.22 | V75: 0 | W75: 0 | Y75: 0 | Z75: 433.98 | AA75: 0 | AB75: 0 | AC75: 0 | AE75: =M75 -> 0 | AF75: 9 | AG75: 0 | AH75: 0 | AI75: 0 | AK75: =ROUND(S75*(1+AK$1),2) -> 0 | AL75: =AL74-AL99-AL99 -> 52.75 | AM75: 0 | AN75: 0 | AO75: 0 | AQ75: 0 | AR75: 474.75 | AS75: 0 | AT75: 0 | AU75: 0 | AV75: 40.77 | AW75: 0.0939444214 | AX75: 78 | AZ75: 49.12 | BE75: =ROUND(AX75*$BE$2,2)+ROUND(AX75*$BE$1,2) -> 0.18 | BG75: =ROUND((T75*$BF$2)+$BE75-AZ75,2) -> 0.01 | BM75: 0 | BN75: 53.546525 | BO75: =AM75*$BM$1 -> 0 | BP75: 0 | BQ75: 0 | BS75: =BM75-AY75 -> 0 | BT75: 4.426525 | BU75: 0 | BV75: 0 | BW75: 0
B76: 2 | C76: 042 | D76: 842 | E76: 2 | G76: 042842 | I76: Double Light Emitting Diode (LED) | J76: Developer Contributed | K76: 107W | L76: 546T | M76: 0 | N76: 8 | O76: 0 | P76: 0 | Q76: 0 | R76: 0 | S76: 0 | T76: =T141-T99-T99 -> 36.2 | V76: 0 | W76: 0 | Y76: 0 | Z76: 289.6 | AA76: 0 | AB76: 0 | AC76: 0 | AE76: 0 | AF76: 8 | AG76: 0 | AH76: 0 | AI76: 0 | AK76: =ROUND(S76*(1+AK$1),2) -> 0 | AL76: =AL141-AL99-AL99 -> 39.82 | AM76: 0 | AN76: 0 | AO76: 0 | AQ76: 0 | AR76: 318.56 | AS76: 0 | AT76: 0 | AU76: 0 | AV76: 28.96 | AW76: 0.1 | AX76: 78 | AZ76: 36.92 | BE76: =ROUND(AX76*$BE$2,2)+ROUND(AX76*$BE$1,2) -> 0.18 | BG76: 0.01 | BM76: 0 | BN76: 40.421282 | BO76: 0 | BP76: 0 | BQ76: 0 | BS76: 0 | BT76: 3.501282 | BU76: 0 | BV76: 0 | BW76: 0
E77: =SUM(E13:E76) -> 22436 | I77: Single Mercury Vapor | J77: Wood Pole | K77: 20000 | L77: 611 | M77: 6 | N77: 0 | O77: 0 | P77: 0 | Q77: 0 | R77: 0 | S77: 27.56 | T77: 0 | U77: 0 | V77: 0 | W77: 0 | Y77: =IF(AND(M77<>0,S77=0),#VALUE!,M77*S77) -> 165.36 | Z77: 0 | AA77: 0 | AB77: 0 | AC77: 0 | AE77: 6 | AF77: 0 | AG77: 0 | AH77: 0 | AI77: 0 | AK77: 29.85 | AL77: 0 | AM77: =ROUND(U77*(1+AM$1),2) -> 0 | AN77: =ROUND(V77*(1+AN$1),2) -> 0 | AO77: =ROUND(W77*(1+AO$1),2) -> 0 | AQ77: 179.1 | AR77: 0 | AS77: 0 | AT77: 0 | AU77: 0 | AV77: 0 | AX77: 182 | AY77: 28.38 | BE77: 0.41 | BF77: =ROUND((S77*$BF$2)+$BE77-AY77,2) -> 0.01 | BM77: 30.300735 | BN77: 0 | BO77: 0 | BP77: 0 | BQ77: 0 | BS77: 1.920735 | BT77: 0 | BU77: 0 | BV77: 0 | BW77: 0
I78: Mercury Vapor | J78: Dusk to Dawn | K78: 20000 | L78: 615 | M78: 0 | N78: 0 | O78: 0 | P78: 87 | Q78: 0 | R78: 0 | S78: 0 | T78: 0 | U78: 0 | V78: 14.91 | W78: 0 | Y78: 0 | Z78: 0 | AA78: 0 | AB78: 1297.17 | AC78: 0 | AE78: 0 | AF78: 0 | AG78: 0 | AH78: 87 | AI78: 0 | AK78: 0 | AL78: 0 | AM78: 0 | AN78: 16.15 | AO78: 0 | AQ78: =IF(AND(AE78<>0,AK78=0),#VALUE!,AE78*AK78) -> 0 | AR78: 0 | AS78: =IF(AND(AG78<>0,AM78=0),#VALUE!,AG78*AM78) -> 0 | AT78: =IF(AND(AH78<>0,AN78=0),#VALUE!,AH78*AN78) -> 1405.05 | AU78: =IF(AND(AI78<>0,AO78=0),#VALUE!,AI78*AO78) -> 0 | AV78: 0 | AX78: 182 | BB78: 15.54 | BE78: =ROUND(AX78*$BE$2,2)+ROUND(AX78*$BE$1,2) -> 0.41 | BI78: =ROUND((V78*$BF$2)+$BE78-BB78,2) -> 0.01 | BM78: =AK78*$BM$1 -> 0 | BN78: =AL78*$BM$1 -> 0 | BO78: 0 | BP78: 16.393865 | BQ78: 0 | BS78: 0 | BT78: 0 | BU78: 0 | BV78: 0.853865 | BW78: 0
B79: 2 | C79: 044 | D79: 431 | E79: 2 | G79: =IF(OR(ISBLANK(C79),ISBLANK(D79)),"",TEXT(C79,"000")&TEXT(D79,"000")) -> 044431 | I79: Mercury Vapor | J79: Dust to 1 AM | K79: 20000 | L79: 618 | M79: 0 | N79: 0 | O79: 0 | P79: 87 | Q79: 0 | R79: =IF(SUM(M79:Q79)>0,0,1) -> 0 | S79: 0 | T79: 0 | U79: 0 | V79: =V78-((182-124)*0.105) -> 8.82 | W79: 0 | Y79: =IF(AND(M79<>0,S79=0),#VALUE!,M79*S79) -> 0 | Z79: =IF(AND(N79<>0,T79=0),#VALUE!,N79*T79) -> 0 | AA79: =IF(AND(O79<>0,U79=0),#VALUE!,O79*U79) -> 0 | AB79: =IF(AND(P79<>0,V79=0),#VALUE!,P79*V79) -> 767.34 | AC79: =IF(AND(Q79<>0,W79=0),#VALUE!,Q79*W79) -> 0 | AE79: =M79 -> 0 | AF79: =N79 -> 0 | AG79: =O79 -> 0 | AH79: =P79 -> 87 | AI79: =Q79 -> 0 | AK79: =ROUND(S79*(1+AK$1),2) -> 0 | AL79: =ROUND(T79*(1+AL$1),2) -> 0 | AM79: =ROUND(U79*(1+AM$1),2) -> 0 | AN79: =ROUND(V79*(1+AN$1),2) -> 9.55 | AO79: =ROUND(W79*(1+AO$1),2) -> 0 | AQ79: =IF(AND(AE79<>0,AK79=0),#VALUE!,AE79*AK79) -> 0 | AR79: =IF(AND(AF79<>0,AL79=0),#VALUE!,AF79*AL79) -> 0 | AS79: =IF(AND(AG79<>0,AM79=0),#VALUE!,AG79*AM79) -> 0 | AT79: =IF(AND(AH79<>0,AN79=0),#VALUE!,AH79*AN79) -> 830.85 | AU79: =IF(AND(AI79<>0,AO79=0),#VALUE!,AI79*AO79) -> 0 | AV79: 0 | AX79: 124 | BB79: 9.22 | BE79: =ROUND(AX79*$BE$2,2)+ROUND(AX79*$BE$1,2) -> 0.28 | BI79: =ROUND((V79*$BF$2)+$BE79-BB79,2) -> 0.01 | BM79: =AK79*$BM$1 -> 0 | BN79: =AL79*$BM$1 -> 0 | BO79: =AM79*$BM$1 -> 0 | BP79: =AN79*$BM$1 -> 9.694205 | BQ79: =AO79*$BM$1 -> 0 | BS79: =BM79-AY79 -> 0 | BT79: =BN79-AZ79 -> 0 | BU79: =BO79-BA79 -> 0 | BV79: =BP79-BB79 -> 0.474205 | BW79: =BQ79-BC79 -> 0
B80: 2 | C80: 044 | D80: 432 | E80: 4 | G80: 044432 | I80: Single High-Pressure Sodium Vapor | J80: Standard | K80: 250W | L80: 631 | M80: 0 | N80: 38 | O80: 0 | P80: 0 | Q80: 0 | R80: 0 | S80: 0 | T80: 23.69 | U80: 13.59 | V80: 0 | W80: 0 | Y80: 0 | Z80: 900.22 | AA80: 0 | AB80: 0 | AC80: 0 | AE80: 0 | AF80: 38 | AG80: 0 | AH80: 0 | AI80: 0 | AK80: 0 | AL80: 25.5 | AM80: 14.72 | AN80: 0 | AO80: 0 | AQ80: 0 | AR80: 969 | AS80: 0 | AT80: 0 | AU80: 0 | AV80: 68.78 | AW80: 0.0764035458 | AX80: 107 | AZ80: 24.29 | BA80: 14.04 | BE80: 0.23 | BG80: =ROUND((T80*$BF$2)+$BE80-AZ80,2) -> -0.01 | BH80: =ROUND((U80*$BF$2)+$BE80-BA80,2) -> -0.01 | BM80: 0 | BN80: 25.88505 | BO80: 14.942272 | BP80: 0 | BQ80: 0 | BS80: 0 | BT80: 1.59505 | BU80: 0.902272 | BV80: 0 | BW80: 0
B81: 2 | C81: 044 | D81: 433 | E81: 6 | G81: 044433 | I81: Single High-Pressure Sodium Vapor | J81: Pedestal Base | K81: 250W | L81: 632 | M81: =SUMIF($G:$G,TEXT(M$3,"000")&TEXT($L81,"000"),$E:$E) -> 0 | N81: 0 | O81: 0 | P81: 0 | Q81: 0 | R81: 1 | S81: 0 | U81: 13.59 | V81: 0 | W81: 0 | Y81: 0 | Z81: 0 | AA81: 0 | AB81: 0 | AC81: 0 | AE81: 0 | AF81: 0 | AG81: 0 | AH81: 0 | AI81: 0 | AK81: 0 | AL81: 0 | AM81: 14.72 | AN81: 0 | AO81: 0 | AQ81: 0 | AR81: 0 | AS81: 0 | AT81: 0 | AU81: 0 | AV81: 0 | AX81: 107 | BA81: 14.04 | BE81: 0.23 | BH81: =ROUND((U81*$BF$2)+$BE81-BA81,2) -> -0.01 | BM81: 0 | BN81: 0 | BO81: 14.942272 | BP81: 0 | BQ81: 0 | BS81: 0 | BT81: 0 | BU81: 0.902272 | BV81: 0 | BW81: 0
B82: 2 | C82: 044 | D82: 435 | E82: =11+1+5 -> 17 | G82: 044435 | I82: Single High-Pressure Sodium Vapor | J82: Direct Burial | K82: 250W | L82: 633 | M82: 0 | N82: 34 | O82: 0 | P82: 0 | Q82: 0 | R82: 0 | S82: 0 | T82: 39.22 | U82: 13.59 | V82: 0 | W82: 0 | Y82: 0 | Z82: 1333.48 | AA82: 0 | AB82: 0 | AC82: 0 | AE82: 0 | AF82: 34 | AG82: 0 | AH82: 0 | AI82: 0 | AK82: 0 | AL82: 42.22 | AM82: 14.72 | AN82: 0 | AO82: 0 | AQ82: 0 | AR82: 1435.48 | AS82: 0 | AT82: 0 | AU82: 0 | AV82: 102 | AW82: 0.07649158593 | AX82: 107 | AZ82: 40.05 | BA82: 14.04 | BE82: 0.23 | BG82: =ROUND((T82*$BF$2)+$BE82-AZ82,2) -> -0.01 | BH82: =ROUND((U82*$BF$2)+$BE82-BA82,2) -> -0.01 | BM82: 0 | BN82: 42.857522 | BO82: 14.942272 | BP82: 0 | BQ82: 0 | BS82: 0 | BT82: 2.807522 | BU82: 0.902272 | BV82: 0 | BW82: 0
B83: 2 | C83: 044 | D83: 531 | E83: 1 | G83: 044531 | I83: Single High-Pressure Sodium Vapor | J83: Dusk to Dawn (046) | K83: 250W | L83: 635 | M83: 0 | N83: 0 | O83: 1 | P83: 0 | Q83: 236 | R83: 0 | S83: 0 | T83: 0 | U83: 13.59 | V83: 0 | W83: 11.12 | Y83: 0 | Z83: 0 | AA83: 13.59 | AB83: 0 | AC83: 2624.32 | AE83: 0 | AF83: 0 | AG83: 1 | AH83: 0 | AI83: 236 | AK83: 0 | AL83: 0 | AM83: 14.72 | AN83: 0 | AO83: 12.04 | AQ83: 0 | AR83: 0 | AS83: 14.72 | AT83: 0 | AU83: 2841.44 | AV83: 0 | AX83: 107 | BA83: 14.04 | BC83: 11.53 | BE83: 0.23 | BH83: =ROUND((U83*$BF$2)+$BE83-BA83,2) -> -0.01 | BJ83: =ROUND((W83*$BF$2)+$BE83-BC83,2) -> -0.01 | BM83: 0 | BN83: 0 | BO83: 14.942272 | BP83: 0 | BQ83: 12.221804 | BS83: 0 | BT83: 0 | BU83: 0.902272 | BV83: 0 | BW83: 0.691804
B84: 2 | C84: 044 | D84: 532 | E84: 89 | G84: 044532 | I84: Single High-Pressure Sodium Vapor | J84: Developer Contributed | K84: 250W | L84: 636 | M84: 0 | N84: 2 | O84: 0 | P84: 0 | Q84: 0 | R84: 0 | S84: 0 | T84: 27.86 | U84: 0 | V84: 0 | W84: 0 | Y84: 0 | Z84: 55.72 | AA84: 0 | AB84: 0 | AC84: 0 | AE84: 0 | AF84: 2 | AG84: 0 | AH84: 0 | AI84: 0 | AK84: 0 | AL84: 29.99 | AM84: 0 | AN84: 0 | AO84: 0 | AQ84: 0 | AR84: 59.98 | AS84: 0 | AT84: 0 | AU84: 0 | AV84: 4.26 | AW84: 0.07645369706 | AX84: 107 | AZ84: 28.52 | BE84: 0.23 | BG84: =ROUND((T84*$BF$2)+$BE84-AZ84,2) -> -0.01 | BM84: 0 | BN84: 30.442849 | BO84: 0 | BP84: 0 | BQ84: 0 | BS84: 0 | BT84: 1.922849 | BU84: 0 | BV84: 0 | BW84: 0
B85: 2 | C85: 044 | D85: 533 | E85: =2+1 -> 3 | G85: 044533 | I85: Mercury Vapor | J85: Dusk to Dawn | K85: 35000 | L85: 715 | M85: 0 | N85: 0 | O85: 0 | P85: 6 | Q85: 0 | R85: 0 | S85: 0 | T85: 0 | U85: 0 | V85: 24.2 | W85: 0 | Y85: 0 | Z85: 0 | AA85: 0 | AB85: 145.2 | AC85: 0 | AE85: 0 | AF85: 0 | AG85: 0 | AH85: 6 | AI85: 0 | AK85: 0 | AL85: =ROUND(T85*(1+AL$1),2) -> 0 | AM85: 0 | AN85: 26.21 | AO85: 0 | AQ85: 0 | AR85: 0 | AS85: 0 | AT85: 157.26 | AU85: 0 | AV85: 0 | AX85: 285 | BB85: 25.19 | BE85: 0.63 | BI85: =ROUND((V85*$BF$2)+$BE85-BB85,2) -> 0.01 | BM85: 0 | BN85: 0 | BO85: 0 | BP85: 26.605771 | BQ85: 0 | BS85: 0 | BT85: 0 | BU85: 0 | BV85: 1.415771 | BW85: 0
B86: 2 | C86: 044 | D86: 535 | E86: =8+1 -> 9 | G86: 044535 | I86: Single High-Pressure Sodium Vapor | J86: Pedestal Base | K86: 310W | L86: 732 | M86: 0 | N86: 0 | O86: 21 | P86: 0 | Q86: 0 | R86: 0 | S86: 0 | T86: 0 | U86: 15.94 | V86: 0 | W86: 0 | Y86: 0 | Z86: 0 | AA86: 334.74 | AB86: 0 | AC86: 0 | AE86: 0 | AF86: 0 | AG86: 21 | AH86: 0 | AI86: 0 | AK86: 0 | AL86: 0 | AM86: 17.26 | AN86: 0 | AO86: 0 | AQ86: 0 | AR86: 0 | AS86: 362.46 | AT86: 0 | AU86: 0 | AV86: 0 | AX86: 133 | BA86: 16.47 | BE86: 0.29 | BH86: =ROUND((U86*$BF$2)+$BE86-BA86,2) -> 0 | BM86: 0 | BN86: 0 | BO86: 17.520626 | BP86: 0 | BQ86: 0 | BS86: 0 | BT86: 0 | BU86: 1.050626 | BV86: 0 | BW86: 0
B87: 2 | C87: 044 | D87: 632 | E87: 0 | G87: 044632 | I87: Single High-Pressure Sodium Vapor | J87: No Pole / Dusk to Dawn (046) | K87: 310W | L87: 735 | M87: 0 | N87: 0 | O87: 1 | P87: 0 | Q87: 262 | R87: 0 | S87: 0 | T87: 0 | U87: 15.94 | V87: 0 | W87: 13.41 | Y87: 0 | Z87: 0 | AA87: 15.94 | AB87: 0 | AC87: 3513.42 | AE87: 0 | AF87: 0 | AG87: 1 | AH87: 0 | AI87: 262 | AK87: 0 | AL87: 0 | AM87: 17.26 | AN87: 0 | AO87: 14.52 | AQ87: 0 | AR87: 0 | AS87: 17.26 | AT87: 0 | AU87: 3804.24 | AV87: 0 | AX87: 133 | BA87: 16.47 | BC87: 13.9 | BE87: 0.29 | BH87: =ROUND((U87*$BF$2)+$BE87-BA87,2) -> 0 | BJ87: =ROUND((W87*$BF$2)+$BE87-BC87,2) -> 0 | BM87: 0 | BN87: 0 | BO87: 17.520626 | BP87: 0 | BQ87: 14.739252 | BS87: 0 | BT87: 0 | BU87: 1.050626 | BV87: 0 | BW87: 0.839252
B88: 2 | C88: 044 | D88: 635 | E88: 1 | G88: =IF(OR(ISBLANK(C88),ISBLANK(D88)),"",TEXT(C88,"000")&TEXT(D88,"000")) -> 044635 | I88: Single High-Pressure Sodium Vapor | J88: Pedestal Base | K88: 400W | L88: 832 | M88: 0 | N88: 0 | O88: 0 | P88: 0 | Q88: 0 | R88: 1 | S88: 0 | T88: 52.32 | V88: 0 | W88: 0 | Y88: 0 | Z88: =IF(AND(N88<>0,T88=0),#VALUE!,N88*T88) -> 0 | AA88: 0 | AB88: 0 | AC88: 0 | AE88: 0 | AF88: 0 | AG88: 0 | AH88: 0 | AI88: 0 | AK88: 0 | AL88: =ROUND(T88*(1+AL$1),2) -> 56.32 | AM88: 0 | AN88: 0 | AO88: 0 | AQ88: 0 | AR88: 0 | AS88: 0 | AT88: 0 | AU88: 0 | AV88: =SUM(AR88)-SUM(Z88) -> 0 | AX88: 169 | AZ88: 53.49 | BE88: 0.38 | BG88: =ROUND((T88*$BF$2)+$BE88-AZ88,2) -> 0 | BH88: =ROUND((U88*$BF$2)+$BE88-BA88,2) -> 0.38 | BM88: 0 | BN88: 57.170432 | BO88: 0 | BP88: 0 | BQ88: 0 | BS88: 0 | BT88: 3.680432 | BU88: 0 | BV88: 0 | BW88: 0
B89: 2 | C89: 044 | D89: 732 | E89: 21 | G89: =IF(OR(ISBLANK(C89),ISBLANK(D89)),"",TEXT(C89,"000")&TEXT(D89,"000")) -> 044732 | I89: Single Light Emitting Diode (LED) | J89: Pedestal Base | K89: 248W | L89: 832T | M89: 0 | N89: 19 | O89: 0 | P89: 0 | Q89: 0 | R89: 0 | S89: 0 | T89: =T88-T100 -> 44.4 | U89: 0 | V89: 0 | Z89: =IF(AND(N89<>0,T89=0),#VALUE!,N89*T89) -> 843.6 | AA89: 0 | AB89: 0 | AC89: 0 | AE89: =SUMIF($G:$G,TEXT(AE$3,"000")&TEXT($L89,"000"),$E:$E) -> 0 | AF89: 19 | AG89: 0 | AH89: 0 | AI89: 0 | AK89: =ROUND(S89*(1+AK$1),2) -> 0 | AL89: 47.8 | AM89: =ROUND(U89*(1+AM$1),2) -> 0 | AN89: 0 | AO89: 0 | AQ89: 0 | AR89: =IF(AND(AF89<>0,AL89=0),#VALUE!,AF89*AL89) -> 908.2 | AS89: 0 | AT89: 0 | AU89: 0 | AV89: 64.6 | AW89: =AV89/Z89 -> 0.07657657658
B90: 2 | C90: 044 | D90: 735 | E90: 1 | G90: 044735 | I90: Single Light Emitting Diode (LED) | J90: Pedestal Base | K90: 248W | L90: 832L | M90: 0 | N90: 1 | O90: 0 | P90: 0 | Q90: 0 | R90: 0 | S90: 0 | T90: =T88 -> 52.32 | U90: 0 | V90: 0 | Z90: =IF(AND(N90<>0,T90=0),#VALUE!,N90*T90) -> 52.32 | AA90: 0 | AB90: 0 | AC90: 0 | AE90: 0 | AF90: 1 | AG90: 0 | AH90: 0 | AI90: 0 | AK90: =ROUND(S90*(1+AK$1),2) -> 0 | AL90: =AL88 -> 56.32 | AM90: 0 | AN90: 0 | AO90: 0 | AQ90: 0 | AR90: 56.32 | AS90: 0 | AT90: 0 | AU90: 0 | AV90: 4 | AW90: 0.07645259939
B91: 2 | C91: 044 | D91: 835 | E91: 9 | G91: 044835 | I91: Single High-Pressure Sodium Vapor | J91: Standard / Dusk to Dawn (046) | K91: 400W | L91: 835 | M91: =SUMIF($G:$G,TEXT(M$3,"000")&TEXT($L91,"000"),$E:$E) -> 0 | N91: 44 | O91: 9 | P91: 0 | Q91: 57 | R91: 0 | S91: 0 | T91: 27.61 | U91: 20.46 | V91: 0 | W91: 17.01 | Y91: 0 | Z91: 1214.84 | AA91: 184.14 | AB91: 0 | AC91: 969.57 | AE91: 0 | AF91: 44 | AG91: 9 | AH91: 0 | AI91: 57 | AK91: 0 | AL91: =ROUND(T91*(1+AL$1),2) -> 29.72 | AM91: 22.16 | AN91: 0 | AO91: 18.42 | AQ91: 0 | AR91: =IF(AND(AF91<>0,AL91=0),#VALUE!,AF91*AL91) -> 1307.68 | AS91: 199.44 | AT91: 0 | AU91: 1049.94 | AV91: =SUM(AR91)-SUM(Z91) -> 92.84 | AW91: =AV91/Z91 -> 0.07642158638 | AX91: 169 | AZ91: 28.41 | BA91: 21.15 | BC91: 17.65 | BE91: 0.38 | BG91: 0 | BH91: =ROUND((U91*$BF$2)+$BE91-BA91,2) -> 0 | BJ91: =ROUND((W91*$BF$2)+$BE91-BC91,2) -> 0 | BM91: 0 | BN91: 30.168772 | BO91: 22.494616 | BP91: 0 | BQ91: 18.698142 | BS91: 0 | BT91: 1.758772 | BU91: 1.344616 | BV91: 0 | BW91: 1.048142
B92: 2 | C92: 044 | D92: 845 | E92: 1 | G92: 044845 | I92: Single Light Emitting Diode (LED) | J92: Standard / Dusk to Dawn (046) | K92: 248W | L92: 835T | M92: 0 | N92: 45 | O92: 0 | P92: 0 | Q92: 0 | R92: 0 | S92: 0 | T92: =T91-T100 -> 19.69 | V92: 0 | Y92: =IF(AND(M92<>0,S92=0),#VALUE!,M92*S92) -> 0 | Z92: =IF(AND(N92<>0,T92=0),#VALUE!,N92*T92) -> 886.05 | AA92: 0 | AB92: 0 | AC92: 0 | AE92: =M92 -> 0 | AF92: =N92 -> 45 | AG92: =O92 -> 0 | AH92: =P92 -> 0 | AI92: =Q92 -> 0 | AK92: =ROUND(S92*(1+AK$1),2) -> 0 | AL92: =AL91-AL100 -> 21.8 | AM92: 0 | AN92: 0 | AO92: 0 | AQ92: 0 | AR92: 981 | AS92: 0 | AT92: 0 | AU92: 0 | AV92: =SUM(AR92)-SUM(Z92) -> 94.95 | AW92: 0.1071609954 | AX92: 83 | AZ92: 20.18 | BE92: =ROUND(AX92*$BE$2,2)+ROUND(AX92*$BE$1,2) -> 0.19 | BG92: 0 | BM92: 0 | BN92: 22.12918 | BO92: =AM92*$BM$1 -> 0 | BP92: =AN92*$BM$1 -> 0 | BQ92: =AO92*$BM$1 -> 0 | BS92: =BM92-AY92 -> 0 | BT92: =BN92-AZ92 -> 1.94918 | BU92: =BO92-BA92 -> 0 | BV92: =BP92-BB92 -> 0 | BW92: =BQ92-BC92 -> 0
E93: =SUM(E79:E92) -> 164 | I93: Single Light Emitting Diode (LED) | J93: Standard / Dusk to Dawn (046) | K93: 248W | L93: 835L | M93: 0 | N93: 22 | O93: 0 | P93: 0 | Q93: 0 | R93: 0 | S93: 0 | T93: =T91 -> 27.61 | U93: 0 | V93: 0 | Z93: =IF(AND(N93<>0,T93=0),#VALUE!,N93*T93) -> 607.42 | AA93: 0 | AB93: 0 | AC93: 0 | AE93: =SUMIF($G:$G,TEXT(AE$3,"000")&TEXT($L93,"000"),$E:$E) -> 0 | AF93: =SUMIF($G:$G,TEXT(AF$3,"000")&TEXT($L93,"000"),$E:$E) -> 22 | AG93: =SUMIF($G:$G,TEXT(AG$3,"000")&TEXT($L93,"000"),$E:$E) -> 0 | AH93: =SUMIF($G:$G,TEXT(AH$3,"000")&TEXT($L93,"000"),$E:$E) -> 0 | AI93: =SUMIF($G:$G,TEXT(AI$3,"000")&TEXT($L93,"000"),$E:$E) -> 0 | AK93: =ROUND(S93*(1+AK$1),2) -> 0 | AL93: =AL91 -> 29.72 | AM93: =ROUND(U93*(1+AM$1),2) -> 0 | AN93: =ROUND(V93*(1+AN$1),2) -> 0 | AO93: =ROUND(W93*(1+AO$1),2) -> 0 | AQ93: 0 | AR93: 653.84 | AS93: 0 | AT93: 0 | AU93: 0 | AV93: =SUM(AR93)-SUM(Z93) -> 46.42 | AW93: 0.07642158638
I94: Single Light Emitting Diode (LED) | J94: Developer Contributed | K94: 248W | L94: 836T | M94: 0 | N94: 3 | O94: 0 | P94: 0 | Q94: 0 | R94: 0 | S94: 0 | T94: =T148-T100 -> 27.37 | U94: 0 | V94: 0 | W94: 0 | Y94: =IF(AND(M94<>0,S94=0),#VALUE!,M94*S94) -> 0 | Z94: =IF(AND(N94<>0,T94=0),#VALUE!,N94*T94) -> 82.11 | AA94: 0 | AB94: 0 | AC94: 0 | AE94: =M94 -> 0 | AF94: =N94 -> 3 | AG94: =O94 -> 0 | AH94: =P94 -> 0 | AI94: =Q94 -> 0 | AK94: =ROUND(S94*(1+AK$1),2) -> 0 | AL94: =ROUND(T94*(1+AL$1),2) -> 29.46 | AM94: =ROUND(U94*(1+AM$1),2) -> 0 | AN94: =ROUND(V94*(1+AN$1),2) -> 0 | AO94: =ROUND(W94*(1+AO$1),2) -> 0 | AQ94: 0 | AR94: =IF(AND(AF94<>0,AL94=0),#VALUE!,AF94*AL94) -> 88.38 | AS94: 0 | AT94: 0 | AU94: 0 | AV94: 6.27 | AW94: 0.07636097917 | AX94: 83 | AZ94: 27.97 | BE94: =ROUND(AX94*$BE$2,2)+ROUND(AX94*$BE$1,2) -> 0.19 | BG94: =ROUND((T94*$BF$2)+$BE94-AZ94,2) -> 0 | BM94: =AK94*$BM$1 -> 0 | BN94: =AL94*$BM$1 -> 29.904846 | BO94: =AM94*$BM$1 -> 0 | BP94: =AN94*$BM$1 -> 0 | BQ94: =AO94*$BM$1 -> 0 | BS94: =BM94-AY94 -> 0 | BT94: =BN94-AZ94 -> 1.934846 | BU94: =BO94-BA94 -> 0 | BV94: =BP94-BB94 -> 0 | BW94: =BQ94-BC94 -> 0
B95: 2 | C95: 045 | D95: 415 | E95: 61 | G95: 045415 | I95: Double High-Pressure Sodium Vapor | J95: Pedestal Base | K95: 400W | L95: 842 | M95: 0 | N95: 2 | O95: 0 | P95: 0 | Q95: 0 | R95: 0 | S95: 0 | T95: 92.5 | U95: 0 | V95: 0 | W95: 0 | Y95: 0 | Z95: 185 | AA95: 0 | AB95: 0 | AC95: 0 | AE95: 0 | AF95: 2 | AG95: 0 | AH95: 0 | AI95: 0 | AK95: 0 | AL95: 99.58 | AM95: 0 | AN95: 0 | AO95: 0 | AQ95: 0 | AR95: 199.16 | AS95: 0 | AT95: 0 | AU95: 0 | AV95: 14.16 | AW95: 0.07654054054 | AX95: 338 | AZ95: 94.64 | BE95: 0.75 | BG95: 0.01 | BM95: 0 | BN95: 101.083658 | BO95: 0 | BP95: 0 | BQ95: 0 | BS95: 0 | BT95: 6.443658 | BU95: 0 | BV95: 0 | BW95: 0
B96: 2 | C96: 045 | D96: 419 | E96: 16 | G96: =IF(OR(ISBLANK(C96),ISBLANK(D96)),"",TEXT(C96,"000")&TEXT(D96,"000")) -> 045419 | I96: Double High-Pressure Sodium Vapor | J96: No Pole | K96: 400W | L96: 845 | M96: 0 | N96: 0 | O96: 1 | P96: 0 | Q96: 0 | R96: =IF(SUM(M96:Q96)>0,0,1) -> 0 | S96: 0 | T96: 0 | U96: 38.33 | V96: 0 | W96: 0 | Y96: =IF(AND(M96<>0,S96=0),#VALUE!,M96*S96) -> 0 | Z96: 0 | AA96: 38.33 | AB96: 0 | AC96: 0 | AE96: 0 | AF96: 0 | AG96: 1 | AH96: 0 | AI96: 0 | AK96: 0 | AL96: 0 | AM96: 41.51 | AN96: 0 | AO96: 0 | AQ96: 0 | AR96: 0 | AS96: 41.51 | AT96: 0 | AU96: 0 | AV96: 0 | AX96: 338 | BA96: 39.65 | BE96: 0.75 | BH96: =ROUND((U96*$BF$2)+$BE96-BA96,2) -> 0.01 | BM96: 0 | BN96: 0 | BO96: 42.136801 | BP96: 0 | BQ96: 0 | BS96: 0 | BT96: 0 | BU96: 2.486801 | BV96: 0 | BW96: 0
B97: 2 | C97: 045 | D97: 515 | E97: 1 | G97: =IF(OR(ISBLANK(C97),ISBLANK(D97)),"",TEXT(C97,"000")&TEXT(D97,"000")) -> 045515 | I97: Single High-Pressure Sodium Vapor | J97: Dust to Dawn (046) | K97: 150W | L97: 935 | M97: 0 | N97: 0 | O97: 0 | P97: 0 | Q97: 103 | R97: 0 | S97: 0 | T97: 0 | U97: 0 | V97: 0 | W97: 6.89 | Y97: =IF(AND(M97<>0,S97=0),#VALUE!,M97*S97) -> 0 | Z97: 0 | AA97: 0 | AB97: 0 | AC97: 709.67 | AE97: 0 | AF97: 0 | AG97: 0 | AH97: 0 | AI97: 103 | AK97: =ROUND(S97*(1+AK$1),2) -> 0 | AL97: 0 | AM97: 0 | AN97: 0 | AO97: 7.46 | AQ97: 0 | AR97: 0 | AS97: 0 | AT97: 0 | AU97: 768.38 | AV97: 0 | AX97: 62 | BC97: 7.12 | BE97: 0.13 | BJ97: =ROUND((W97*$BF$2)+$BE97-BC97,2) -> 0 | BM97: 0 | BN97: 0 | BO97: 0 | BP97: 0 | BQ97: 7.572646 | BS97: 0 | BT97: 0 | BU97: 0 | BV97: 0 | BW97: 0.452646
B98: 2 | C98: 045 | D98: 615 | E98: 87 | G98: 045615 | I98: TIB Capital Offset | K98: 70W | T98: 5.23 | AL98: =ROUND(T98,2) -> 5.23 | AQ98: 0 | BO98: =AL98*$BM$1 -> 5.308973 | BU98: 5.308973
B99: 2 | C99: 045 | D99: 618 | E99: 87 | G99: =IF(OR(ISBLANK(C99),ISBLANK(D99)),"",TEXT(C99,"000")&TEXT(D99,"000")) -> 045618 | I99: TIB Capital Offset | K99: 107W | T99: 5.53 | AL99: =ROUND(T99,2) -> 5.53 | AQ99: 0 | BO99: =AL99*$BM$1 -> 5.613503 | BU99: 5.613503
B100: 2 | C100: 045 | D100: 715 | E100: 6 | G100: 045715 | I100: TIB Capital Offset | K100: 248W | S100: 0 | T100: 7.92 | V100: 0 | W100: 0 | AK100: 0 | AL100: =ROUND(T100,2) -> 7.92 | AN100: =ROUND(V100*(1+AN$1),2) -> 0 | AO100: 0 | AV100: =SUM(AQ100:AU100)-SUM(Y100:AC100) -> 0 | BM100: =AK100*$BM$1 -> 0 | BN100: =#REF!*$BM$1 ->  | BO100: =AL100*$BM$1 -> 8.039592 | BP100: 0 | BQ100: 0
E101: =SUM(E95:E100) -> 258 | K101: Total | M101: =SUM(M4:M100) -> 7 | N101: =SUM(N4:N100) -> 22436 | O101: =SUM(O4:O100) -> 164 | P101: =SUM(P4:P100) -> 258 | Q101: =SUM(Q4:Q100) -> 932 | S101: 0 | T101: 0 | U101: 0 | V101: 0 | W101: 0 | Y101: =ROUND(SUM(Y4:Y100),2) -> 181.27 | Z101: =ROUND(SUM(Z4:Z100),2) -> 350635.22 | AA101: =ROUND(SUM(AA4:AA100),2) -> 1995.6 | AB101: =ROUND(SUM(AB4:AB100),2) -> 2720.82 | AC101: =ROUND(SUM(AC4:AC100),2) -> 9042.34 | AE101: =SUM(AE4:AE100) -> 7 | AF101: =SUM(AF4:AF100) -> 22436 | AG101: =SUM(AG4:AG100) -> 164 | AH101: =SUM(AH4:AH100) -> 258 | AI101: =SUM(AI4:AI100) -> 932 | AK101: 0 | AL101: 0 | AM101: =ROUND(U101*(1+AM$1),2) -> 0 | AN101: 0 | AO101: 0 | AQ101: =ROUND(SUM(AQ4:AQ100),2) -> 196.33 | AR101: =ROUND(SUM(AR4:AR100),2) -> 379745.02 | AS101: =ROUND(SUM(AS4:AS100),2) -> 2161.17 | AT101: =ROUND(SUM(AT4:AT100),2) -> 2946.69 | AU101: =ROUND(SUM(AU4:AU100),2) -> 9791.51 | BM101: 0 | BN101: =AL101*$BM$1 -> 0 | BO101: 0 | BP101: 0 | BQ101: 0
I102: All light codes notated with a "T" are not on the tariff sheets. | Q102: =SUM(M101:Q101) -> 23797 | S102: 0 | T102: 0 | U102: 0 | V102: 0 | W102: 0 | AI102: =SUM(AE101:AI101) -> 23797 | AK102: 0 | AL102: 0 | AM102: 0 | AN102: 0 | AO102: 0 | AU102: =SUM(AQ101:AU101) -> 394840.72 | BM102: 0 | BN102: 0 | BO102: 0 | BP102: 0 | BQ102: 0
B103: 2 | C103: 046 | D103: 005L | E103: 0 | G103: 046005L | Q103: =ROUND(Q102-E138,0) -> 0 | S103: 0 | T103: 0 | U103: 0 | V103: 0 | W103: 0 | AC103: =SUM(Y101:AC101) -> 364575.25 | AI103: =AI102-Q102 -> 0 | AL103: 0 | AM103: 0 | AN103: 0 | AO103: 0 | AU103: =AU102/AC103-1 -> 0.08301570115 | BM103: =X103*$BM$1 -> 0 | BN103: 0 | BO103: 0 | BP103: 0 | BQ103: 0
B104: 2 | C104: 046 | D104: 015L | E104: 42 | G104: 046015L | AK104: 0 | AL104: 0 | AM104: 0 | AN104: 0 | AO104: 0 | BM104: 0 | BN104: 0 | BO104: 0 | BP104: 0 | BQ104: 0
B105: 2 | C105: 046 | D105: 025L | E105: 45 | G105: 046025L | I105: no customer count - taken out of exhibit to limit print range | S105: 0 | T105: 0 | U105: 0 | V105: 0 | W105: 0 | Y105: =Y101-Y102 -> 181.27 | Z105: =Z101-Z102 -> 350635.22 | AA105: 1995.6 | AB105: 2720.82 | AC105: 9042.34 | AK105: 0 | AL105: 0 | AM105: 0 | AN105: 0 | AO105: 0 | BM105: 0 | BN105: 0 | BO105: 0 | BP105: 0 | BQ105: 0
B106: 2 | C106: 046 | D106: 035L | E106: 0 | G106: 046035L | I106: Single High-Pressure Sodium Vapor | J106: Dusk to 1 AM (046) | K106: 100W | L106: 439 | M106: =SUMIF($G:$G,TEXT(M$3,"000")&TEXT($L106,"000"),$E:$E) -> 0 | N106: =SUMIF($G:$G,TEXT(N$3,"000")&TEXT($L106,"000"),$E:$E) -> 0 | O106: =SUMIF($G:$G,TEXT(O$3,"000")&TEXT($L106,"000"),$E:$E) -> 0 | P106: =SUMIF($G:$G,TEXT(P$3,"000")&TEXT($L106,"000"),$E:$E) -> 0 | Q106: =SUMIF($G:$G,TEXT(Q$3,"000")&TEXT($L106,"000"),$E:$E) -> 0 | R106: =IF(SUM(M106:Q106)>0,0,1) -> 1 | AF106: =SUMIF($G:$G,TEXT(AF$3,"000")&TEXT($L106,"000"),$E:$E) -> 0 | AG106: =SUMIF($G:$G,TEXT(AG$3,"000")&TEXT($L106,"000"),$E:$E) -> 0 | AH106: =SUMIF($G:$G,TEXT(AH$3,"000")&TEXT($L106,"000"),$E:$E) -> 0 | AI106: =SUMIF($G:$G,TEXT(AI$3,"000")&TEXT($L106,"000"),$E:$E) -> 0 | AK106: 0 | AL106: 0 | AM106: 0 | AN106: 0 | AO106: 0 | BM106: 0 | BN106: 0 | BO106: 0 | BP106: 0 | BQ106: 0 | BS106: 0 | BT106: 0 | BU106: 0 | BV106: 0 | BW106: 0
B107: 2 | C107: 046 | D107: 045L | E107: 0 | G107: 046045L
B108: 2 | C108: 046 | D108: 055L | E108: 0 | G108: 046055L | I108: Double High-Pressure Sodium Vapor | J108: Direct Burial | K108: 100W | L108: 443 | M108: =SUMIF($G:$G,TEXT(M$3,"000")&TEXT($L108,"000"),$E:$E) -> 0 | N108: 0 | O108: 0 | P108: 0 | Q108: 0 | R108: =IF(SUM(M108:Q108)>0,0,1) -> 1 | AF108: =SUMIF($G:$G,TEXT(AF$3,"000")&TEXT($L108,"000"),$E:$E) -> 0 | AG108: 0 | AH108: 0 | AI108: 0 | AK108: 0 | AL108: 0 | AM108: =ROUND(U108*(1+AM$1),2) -> 0 | AN108: 0 | AO108: 0 | BM108: =AK108*$BM$1 -> 0 | BN108: =AL108*$BM$1 -> 0 | BO108: 0 | BP108: 0 | BQ108: 0 | BS108: 0 | BT108: 0 | BU108: 0 | BV108: 0 | BW108: 0
B109: 2 | C109: 046 | D109: 065L | E109: 0 | G109: 046065L | I109: Double High-Pressure Sodium Vapor | J109: Developer Contributed | K109: 100W | L109: 446 | M109: 0 | N109: 0 | O109: 0 | P109: 0 | Q109: 0 | R109: =IF(SUM(M109:Q109)>0,0,1) -> 1 | AF109: 0 | AG109: 0 | AH109: 0 | AI109: 0 | AK109: 0 | AL109: 0 | AM109: 0 | AN109: 0 | AO109: 0 | BM109: 0 | BN109: 0 | BO109: 0 | BP109: 0 | BQ109: 0 | BS109: 0 | BT109: 0 | BU109: 0 | BV109: 0 | BW109: 0
B110: 2 | C110: 046 | D110: 075L | E110: 0 | G110: 046075L | I110: Single Mercury Vapor | J110: Wood Pole | K110: 10000 | L110: 511 | M110: 0 | N110: 0 | O110: 0 | P110: 0 | Q110: 0 | T110: 0 | U110: 0 | V110: 0 | W110: 0 | AE110: =M110 -> 0 | AF110: 0 | AG110: 0 | AH110: 0 | AI110: 0 | AK110: =ROUND(S110*(1+AK$1),2) -> 0 | AL110: 0 | AM110: 0 | AN110: 0 | AO110: 0 | AQ110: =IF(AND(AE110<>0,AK110=0),#VALUE!,AE110*AK110) -> 0 | AR110: 0 | AS110: 0 | AT110: 0 | AU110: 0 | AV110: =SUM(AQ110:AU110)-SUM(Y110:AC110) -> 0 | AX110: 111 | AY110: 20.88 | BE110: =ROUND(AX110*$BE$2,2)+ROUND(AX110*$BE$1,2) -> 0.25 | BF110: =ROUND((S110*$BF$2)+$BE110-AY110,2) -> -20.63 | BM110: 0 | BN110: 0 | BO110: =AM110*$BM$1 -> 0 | BP110: 0 | BQ110: 0 | BS110: =BM110-AY110 -> -20.88 | BT110: 0 | BU110: 0 | BV110: 0 | BW110: 0
B111: 2 | C111: 046 | D111: 085L | E111: 0 | G111: 046085L | I111: Double High-Pressure Sodium Vapor | J111: Standard | K111: 100W | L111: 441 | M111: 0 | N111: 0 | O111: 0 | P111: 0 | Q111: 0 | R111: =IF(SUM(M111:Q111)>0,0,1) -> 1 | S111: 0 | V111: 0 | W111: 0 | Y111: =IF(AND(M111<>0,S111=0),#VALUE!,M111*S111) -> 0 | Z111: =IF(AND(N111<>0,T111=0),#VALUE!,N111*T111) -> 0 | AA111: =IF(AND(O111<>0,U111=0),#VALUE!,O111*U111) -> 0 | AB111: =IF(AND(P111<>0,V111=0),#VALUE!,P111*V111) -> 0 | AC111: =IF(AND(Q111<>0,W111=0),#VALUE!,Q111*W111) -> 0 | AE111: 0 | AF111: 0 | AG111: 0 | AH111: 0 | AI111: 0 | AK111: 0 | AL111: 0 | AM111: 0 | AN111: 0 | AO111: 0 | AQ111: 0 | AR111: 0 | AS111: 0 | AT111: 0 | AU111: 0 | AV111: =SUM(AQ111:AU111)-SUM(Y111:AC111) -> 0 | AX111: 80 | AZ111: 29.57 | BA111: 14.19 | BE111: 0.18 | BG111: =ROUND((T111*$BF$2)+$BE111-AZ111,2) -> -29.39 | BH111: =ROUND((U111*$BF$2)+$BE111-BA111,2) -> -14.01 | BM111: 0 | BN111: 0 | BO111: 0 | BP111: 0 | BQ111: 0 | BS111: 0 | BT111: -29.57 | BU111: -14.19 | BV111: 0 | BW111: 0
B112: 2 | C112: 046 | D112: 095L | E112: 0 | G112: 046095L | I112: Double High-Pressure Sodium Vapor | J112: Pedestal Base | K112: 100W | L112: 442 | M112: 0 | N112: 0 | O112: 0 | P112: 0 | Q112: 0 | R112: 1 | S112: 0 | U112: 0 | V112: 0 | W112: 0 | Z112: =IF(AND(N112<>0,T112=0),#VALUE!,N112*T112) -> 0 | AC112: =IF(AND(Q112<>0,W112=0),#VALUE!,Q112*W112) -> 0 | AE112: =SUMIF($G:$G,TEXT(AE$3,"000")&TEXT($L112,"000"),$E:$E) -> 0 | AF112: =SUMIF($G:$G,TEXT(AF$3,"000")&TEXT($L112,"000"),$E:$E) -> 0 | AG112: =SUMIF($G:$G,TEXT(AG$3,"000")&TEXT($L112,"000"),$E:$E) -> 0 | AH112: =SUMIF($G:$G,TEXT(AH$3,"000")&TEXT($L112,"000"),$E:$E) -> 0 | AI112: =SUMIF($G:$G,TEXT(AI$3,"000")&TEXT($L112,"000"),$E:$E) -> 0 | AK112: 0 | AL112: 0 | AM112: 0 | AN112: 0 | AO112: 0 | AR112: =IF(AND(AF112<>0,AL112=0),#VALUE!,AF112*AL112) -> 0 | AX112: 80 | AZ112: 41.39 | BE112: 0.18 | BG112: =ROUND((T112*$BF$2)+$BE112-AZ112,2) -> -41.21 | BM112: 0 | BN112: 0 | BO112: 0 | BP112: 0 | BQ112: 0 | BS112: 0 | BT112: -41.39 | BU112: 0 | BV112: 0 | BW112: 0
B113: 2 | C113: 046 | D113: 105L | E113: 6 | G113: 046105L | I113: Single High-Pressure Sodium Vapor | J113: Pedestal Base | K113: 200W | L113: 522 | M113: 0 | N113: 0 | O113: 0 | P113: 0 | Q113: 0 | R113: 1 | S113: 0 | U113: 0 | V113: 0 | W113: 0 | Y113: =IF(AND(M113<>0,S113=0),#VALUE!,M113*S113) -> 0 | Z113: 0 | AA113: =IF(AND(O113<>0,U113=0),#VALUE!,O113*U113) -> 0 | AB113: 0 | AC113: 0 | AE113: =M113 -> 0 | AF113: 0 | AG113: 0 | AH113: 0 | AI113: 0 | AK113: 0 | AL113: 0 | AM113: 0 | AN113: 0 | AO113: 0 | AQ113: =IF(AND(AE113<>0,AK113=0),#VALUE!,AE113*AK113) -> 0 | AR113: 0 | AS113: =IF(AND(AG113<>0,AM113=0),#VALUE!,AG113*AM113) -> 0 | AT113: =IF(AND(AH113<>0,AN113=0),#VALUE!,AH113*AN113) -> 0 | AU113: =IF(AND(AI113<>0,AO113=0),#VALUE!,AI113*AO113) -> 0 | AV113: =SUM(AQ113:AU113)-SUM(Y113:AC113) -> 0 | AX113: 85 | AZ113: 59.82 | BE113: 0.18 | BG113: =ROUND((T113*$BF$2)+$BE113-AZ113,2) -> -59.64 | BM113: 0 | BN113: 0 | BO113: 0 | BP113: 0 | BQ113: 0 | BS113: 0 | BT113: -59.82 | BU113: 0 | BV113: 0 | BW113: 0
B114: 2 | C114: 046 | D114: 115L | E114: 0 | G114: 046115L | I114: Single High-Pressure Sodium Vapor (Capital Only) | J114: Direct Burial | K114: 200W | L114: 538 | M114: 0 | N114: 0 | O114: 0 | P114: 0 | Q114: 0 | R114: 1 | S114: 0 | U114: 0 | V114: 0 | W114: 0 | Y114: 0 | Z114: 0 | AA114: 0 | AB114: 0 | AC114: 0 | AE114: 0 | AF114: 0 | AG114: 0 | AH114: 0 | AI114: 0 | AK114: 0 | AL114: 0 | AM114: 0 | AN114: 0 | AO114: 0 | AQ114: 0 | AR114: 0 | AS114: 0 | AT114: 0 | AU114: 0 | AX114: 85 | AZ114: 24.3 | BE114: 0.18 | BG114: =ROUND((T114*$BF$2)+$BE114-AZ114,2) -> -24.12 | BM114: 0 | BN114: 0 | BO114: 0 | BP114: 0 | BQ114: 0 | BS114: 0 | BT114: -24.3 | BU114: 0 | BV114: 0 | BW114: 0
B115: 2 | C115: 046 | D115: 125L | E115: 0 | G115: 046125L | I115: Double High-Pressure Sodium Vapor | J115: Pedestal Base | K115: 200W | L115: 542 | M115: 0 | N115: 0 | O115: 0 | P115: 0 | Q115: 0 | R115: 1 | S115: 0 | V115: 0 | W115: 0 | Y115: 0 | Z115: 0 | AA115: 0 | AB115: 0 | AC115: 0 | AE115: 0 | AF115: 0 | AG115: 0 | AH115: 0 | AI115: 0 | AK115: 0 | AL115: 0 | AM115: 0 | AN115: 0 | AO115: 0 | AQ115: 0 | AR115: 0 | AS115: 0 | AT115: 0 | AU115: 0 | AV115: =SUM(AQ115:AU115)-SUM(Y115:AC115) -> 0 | AX115: 170 | AZ115: 61.09 | BA115: 23.76 | BE115: 0.38 | BG115: =ROUND((T115*$BF$2)+$BE115-AZ115,2) -> -60.71 | BH115: =ROUND((U115*$BF$2)+$BE115-BA115,2) -> -23.38 | BM115: 0 | BN115: 0 | BO115: 0 | BP115: 0 | BQ115: 0 | BS115: 0 | BT115: -61.09 | BU115: -23.76 | BV115: 0 | BW115: 0
